Workbook

Sheet MENU
B2: ● | C2: Coordinates & Straight-Line Graphs | AC2: 𝒙 | AD2: y
B4: =CONCATENATE(" Read or plot (",AC2,", ",AD2,") coordinates in the 1ˢᵗ quadrant or all 4 quadrants") -> Read or plot (𝒙, y) coordinates in the 1ˢᵗ quadrant or all 4 quadrants
B6: Find the equation of a line parallel to the axes or main diagonal
B8: Find the equation of 2 lines parallel to the axes or main diagonal
B10: Generate coordinates & plot a straight-line graph on +ve axes
B12: Generate coordinates & plot 2 straight-line graphs on +ve axes
B13: Generate coordinates & plot a straight-line graph on ±ve axes
B14: Generate coordinates & plot 2 straight-line graphs on ±ve axes
B16: Find the gradient of 2 straight-line segments on +ve or ±ve axes
B18: =CONCATENATE(" Find the gradient, ",AD2,"-intercept & equation of a straight-line graph") -> Find the gradient, y-intercept & equation of a straight-line graph
B20: Find the equation & point of intersection of 2 straight-line graphs
B22: Find the equation & point of intersection of 4 straight-line graphs
B24: =CONCATENATE(" Draw the straight-line graph of an equation of the form a",AC2," + b",AD2," = c") -> Draw the straight-line graph of an equation of the form a𝒙 + by = c
B26: =CONCATENATE(" Draw the straight-line graph of 2 equations of the form a",AC2," + b",AD2," = c") -> Draw the straight-line graph of 2 equations of the form a𝒙 + by = c
AD27: =POSSINEQN!$A$14 -> 33 | AE27: =VLOOKUP(AD27,$AD$31:$AE$68,2) -> × 2
AD28: =NEGSINEQN!A14 -> 33 | AE28: =VLOOKUP(AD28,$AD$31:$AE$68,2) -> × 2
AD29: =1*POSCOSTAB!A4 -> 33 | AE29: =VLOOKUP(AD29,$AD$31:$AE$68,2) -> × 2 | AF29: =POSCOSTAB!A14 -> 36 | AG29: =VLOOKUP(1*AF29,$AD$31:$AE$68,2) -> × 4
AD30: =COORDSEQN!A4 -> 33 | AE30: =VLOOKUP(AD30,$AD$31:$AE$68,2) -> × 2 | AF30: =COORDSEQN!A14 -> 36 | AG30: =VLOOKUP(1*AF30,$AD$31:$AE$68,2) -> × 4
AC31: ∕ | AD31: 0 | AE31: × −5
AD32: =AD31+1 -> 1 | AE32: × −4
AD33: 2 | AE33: × −3
AD34: 3 | AE34: x
AD35: 4 | AE35: × −2
AD36: 5 | AE36: x
AD37: 6 | AE37: x
AD38: 7 | AE38: x
AD39: 8 | AE39: x
AD40: 9 | AE40: × −1
AD41: 10 | AE41: x
AD42: 11 | AE42: x
AD43: 12 | AE43: x
AD44: 13 | AE44: x
AD45: 14 | AE45: × −½
AD46: 15 | AE46: x
AD47: 16 | AE47: × −⅓
AD48: 17 | AE48: × −¼
AD49: 18 | AE49: × −⅕
AD50: 19 | AE50: × ⅕
AD51: 20 | AE51: × ¼
AD52: 21 | AE52: × ⅓
AD53: 22 | AE53: x
AD54: 23 | AE54: × ½
AD55: 24 | AE55: x
AD56: 25 | AE56: x
AD57: 26 | AE57: x
AD58: 27 | AE58: x
AD59: 28 | AE59: × 1
AD60: 29 | AE60: x
AD61: 30 | AE61: x
AD62: 31 | AE62: x
AD63: 32 | AE63: x
AD64: 33 | AE64: × 2
AD65: 34 | AE65: x
AD66: 35 | AE66: × 3
AD67: 36 | AE67: × 4
AD68: 37 | AE68: × 5

Sheet LINK
C2: All content © eStarters Ltd 2020
C4: For more downloads and further information
C6: Visit the Trinity Maths website
C8: To contact us directly, email: info@estarters.com
C10: =MENU!C2 -> Coordinates & Straight-Line Graphs
C12: is № 3 of 12 free sample files from the
C14: 178 Topic Files in Trinity Maths (Version 3)

Sheet XY10MAN
D1: 1 | L1: 1
A2: 0 | C2: =CONCATENATE("Find the (",T2,", ",U2,") coordinates of each point.") -> Find the (𝒙, y) coordinates of each point. | T2: =MENU!AC2 -> 𝒙 | U2: =MENU!AD2 -> y | V2: 0 | W2: 0 | X2: 0 | Y2: 0 | Z2: 2
V3: =N15+$V$2 -> 1 | W3: =O15+$V$2 -> 8 | X3: =N16+$X$2 -> 4 | Y3: =O16+$X$2 -> 2
V4: =N13+$W$2 -> 8 | W4: =O13+$W$2 -> 3 | X4: =N14+$Y$2 -> 9 | Y4: =O14+$Y$2 -> 7
M6: blue = | N6: =CONCATENATE("(",$R$19,",") -> (1, | P6: =CONCATENATE($S$19,")") -> 8)
M8: green = | N8: =CONCATENATE("(",$R$18,",") -> (9, | P8: =CONCATENATE($S$18,")") -> 7)
M10: purple = | N10: =CONCATENATE("(",$R$20,",") -> (4, | P10: =CONCATENATE($S$20,")") -> 2)
M12: red = | N12: =CONCATENATE("(",$R$17,",") -> (8, | P12: =CONCATENATE($S$17,")") -> 3)
L13: =N13-5 -> 3 | M13: -2 | N13: =Q13/2 -> 8 | O13: =10-P13/2 -> 3 | P13: 14 | Q13: 16
L14: 4 | M14: 2 | N14: =Q14/2 -> 9 | O14: =10-P14/2 -> 7 | P14: 6 | Q14: 18
L15: -4 | M15: 3 | N15: =Q15/2 -> 1 | O15: =10-P15/2 -> 8 | P15: 4 | Q15: 2
L16: -1 | M16: -3 | N16: =Q16/2 -> 4 | O16: =10-P16/2 -> 2 | P16: 16 | Q16: 8 | W16: 1 | X16: -5 | Y16: 0
N17: =N13*2+1 -> 17 | O17: 7 | P17: =VLOOKUP(N17,$W$16:$Y$36,2) -> 3 | Q17: -2 | R17: =VLOOKUP(N17,$W$16:$Y$36,3) -> 8 | S17: 3 | T17: =CONCATENATE("(",P17,", ",Q17,")") -> (3, -2) | V17: =CONCATENATE("(",R17,", ",S17,")") -> (8, 3) | W17: 2 | X17: -4½ | Y17: ½
N18: 19 | O18: 15 | P18: 4 | Q18: 2 | R18: 9 | S18: 7 | T18: =CONCATENATE("(",P18,", ",Q18,")") -> (4, 2) | V18: =CONCATENATE("(",R18,", ",S18,")") -> (9, 7) | W18: 3 | X18: -4 | Y18: 1
N19: 3 | O19: 17 | P19: -4 | Q19: 3 | R19: 1 | S19: 8 | T19: =CONCATENATE("(",P19,", ",Q19,")") -> (-4, 3) | V19: =CONCATENATE("(",R19,", ",S19,")") -> (1, 8) | W19: 4 | X19: -3½ | Y19: 1½
N20: 9 | O20: 5 | P20: -1 | Q20: -3 | R20: 4 | S20: 2 | T20: =CONCATENATE("(",P20,", ",Q20,")") -> (-1, -3) | V20: =CONCATENATE("(",R20,", ",S20,")") -> (4, 2) | W20: 5 | X20: -3 | Y20: 2
W21: 6 | X21: -2½ | Y21: 2½
W22: 7 | X22: -2 | Y22: 3
W23: 8 | X23: -1½ | Y23: 3½
W24: 9 | X24: -1 | Y24: 4
W25: 10 | X25: -½ | Y25: 4½
W26: 11 | X26: 0 | Y26: 5
W27: 12 | X27: ½ | Y27: 5½
W28: 13 | X28: 1 | Y28: 6
W29: 14 | X29: 1½ | Y29: 6½
W30: 15 | X30: 2 | Y30: 7
W31: 16 | X31: 2½ | Y31: 7½
W32: 17 | X32: 3 | Y32: 8
W33: 18 | X33: 3½ | Y33: 8½
W34: 19 | X34: 4 | Y34: 9
W35: 20 | X35: 4½ | Y35: 9½
W36: 21 | X36: 5 | Y36: 10

Sheet XY55MAN
D1: 1 | L1: 1
A2: 0 | C2: =XY10MAN!C2 -> Find the (𝒙, y) coordinates of each point. | V2: 0 | W2: 0 | X2: 0 | Y2: 0 | Z2: 2
V3: =N15+$V$2 -> 1 | W3: =O15+$V$2 -> 8 | X3: =N16+$X$2 -> 4 | Y3: =O16+$X$2 -> 2
V4: =N13+$W$2 -> 8 | W4: =O13+$W$2 -> 3 | X4: =N14+$Y$2 -> 9 | Y4: =O14+$Y$2 -> 7
M6: blue = | N6: =CONCATENATE("(",$R$19,",") -> (−4, | P6: =CONCATENATE($S$19,")") -> 3)
M8: green = | N8: =CONCATENATE("(",$R$18,",") -> (4, | P8: =CONCATENATE($S$18,")") -> 2)
M10: purple = | N10: =CONCATENATE("(",$R$20,",") -> (−1, | P10: =CONCATENATE($S$20,")") -> −3)
M12: red = | N12: =CONCATENATE("(",$R$17,",") -> (3, | P12: =CONCATENATE($S$17,")") -> −2)
L13: =N13-5 -> 3 | M13: -2 | N13: =Q13/2 -> 8 | O13: =10-P13/2 -> 3 | P13: 14 | Q13: 16
L14: 4 | M14: 2 | N14: =Q14/2 -> 9 | O14: =10-P14/2 -> 7 | P14: 6 | Q14: 18
L15: -4 | M15: 3 | N15: =Q15/2 -> 1 | O15: =10-P15/2 -> 8 | P15: 4 | Q15: 2
L16: -1 | M16: -3 | N16: =Q16/2 -> 4 | O16: =10-P16/2 -> 2 | P16: 16 | Q16: 8 | W16: 1 | X16: −5 | Y16: 0
N17: =N13*2+1 -> 17 | O17: 7 | P17: =VLOOKUP(N17,$W$16:$Y$36,2) -> 3 | Q17: −2 | R17: =VLOOKUP(N17,$W$16:$Y$36,2) -> 3 | S17: −2 | T17: =CONCATENATE("(",P17,", ",Q17,")") -> (3, −2) | V17: =CONCATENATE("(",R17,", ",S17,")") -> (3, −2) | W17: 2 | X17: −4½ | Y17: ½
N18: 19 | O18: 15 | P18: 4 | Q18: 2 | R18: 4 | S18: 2 | T18: =CONCATENATE("(",P18,", ",Q18,")") -> (4, 2) | V18: =CONCATENATE("(",R18,", ",S18,")") -> (4, 2) | W18: 3 | X18: −4 | Y18: 1
N19: =N15*2+1 -> 3 | O19: 17 | P19: −4 | Q19: 3 | R19: −4 | S19: 3 | T19: =CONCATENATE("(",P19,", ",Q19,")") -> (−4, 3) | V19: =CONCATENATE("(",R19,", ",S19,")") -> (−4, 3) | W19: 4 | X19: −3½ | Y19: 1½
N20: 9 | O20: 5 | P20: −1 | Q20: −3 | R20: −1 | S20: −3 | T20: =CONCATENATE("(",P20,", ",Q20,")") -> (−1, −3) | V20: =CONCATENATE("(",R20,", ",S20,")") -> (−1, −3) | W20: 5 | X20: −3 | Y20: 2
W21: 6 | X21: −2½ | Y21: 2½
W22: 7 | X22: −2 | Y22: 3
W23: 8 | X23: −1½ | Y23: 3½
W24: 9 | X24: −1 | Y24: 4
W25: 10 | X25: −½ | Y25: 4½
W26: 11 | X26: 0 | Y26: 5
W27: 12 | X27: ½ | Y27: 5½
W28: 13 | X28: 1 | Y28: 6
W29: 14 | X29: 1½ | Y29: 6½
W30: 15 | X30: 2 | Y30: 7
W31: 16 | X31: 2½ | Y31: 7½
W32: 17 | X32: 3 | Y32: 8
W33: 18 | X33: 3½ | Y33: 8½
W34: 19 | X34: 4 | Y34: 9
W35: 20 | X35: 4½ | Y35: 9½
W36: 21 | X36: 5 | Y36: 10

Sheet EQN OF ONEHVL
N1: 0
A2: -359 | B2: 1 | C2: Find the equation of the straight-line graph. | U2: =MENU!AC2 -> 𝒙 | V2: y
A3: =IF(A6=1,1,-1) -> -1 | C3: 0 | J3: =CONCATENATE(U2,"-intercept =") -> 𝒙-intercept = | P3: =IF(DATA!BP105="−"," -",IF(DATA!BP105<0,CONCATENATE("−",ABS(DATA!BP105)," "),CONCATENATE(DATA!BP105))) -> 2 | W3: =C15 ->  | X3: =C16 -> 
A4: 424 | D4: 0
A5: =MOD(A4,4)+1 -> 1 | J5: =CONCATENATE(V2,"-intercept =") -> y-intercept = | P5: =IF(DATA!BQ105="−"," -",IF(DATA!BQ105<0,CONCATENATE("−",ABS(DATA!BQ105)," "),CONCATENATE(DATA!BQ105))) -> -
A6: -1 | U6: =IF(V6=-1,-1,1) -> 1 | V6: 2 | W6: =IF(V6=1,5,IF(V6=-1,5,21)) -> 21 | X6: =IF(V6=1,5,IF(V6=-1,-5,21)) -> 21
A7: 496 | J7: equation of the line | W7: =IF(V6=1,-5,IF(V6=-1,-5,21)) -> 21 | X7: =IF(V6=1,-5,IF(V6=-1,5,21)) -> 21
A8: =IF(A11=1,1,-1) -> 1 | J8: 0 | K8: =IF(J8=1,CONCATENATE(" ",DATA!BR105,DATA!BS105)," =") -> =
A9: 14 | W9: 1 | X9: =IF($W$9=1,DATA!BN105,11) -> 2 | Y9: =IF($W$9=1,DATA!BO105,11) -> -5
A10: =MOD(A9,21)+1 -> 15 | W10: 1 | X10: =IF($W$9=1,DATA!BN106,11) -> 2.000001 | Y10: =IF($W$9=1,DATA!BO106,11) -> 5
A11: 1 | W11: 1
A12: -349 | I12: -5 | J12: -5
A13: =IF(A16=1,1,-1) -> -1 | I13: -5 | J13: 5
A14: 3 | I14: -4 | J14: 5
A15: =MOD(A14,4)+1 -> 4 | C15: =IF(V6=1,CONCATENATE(V2," = ",U2),"") ->  | I15: -4 | J15: -5
A16: -1 | C16: =IF(V6=-1,CONCATENATE(V2," = −",U2),"") ->  | I16: -3 | J16: -5
A17: 270 | I17: -3 | J17: 5
A18: =IF(A21=1,1,-1) -> -1 | I18: -2 | J18: 5
A19: 5 | I19: -2 | J19: -5
A20: =MOD(A19,21)+1 -> 6 | I20: -1 | J20: -5
A21: -1 | I21: -1 | J21: 5
A22: 1 | I22: 0 | J22: 5
I23: 0 | J23: -5
I24: 1 | J24: -5
I25: 1 | J25: 5
I26: 2 | J26: 5
I27: 2 | J27: -5
I28: 3 | J28: -5
I29: 3 | J29: 5
I30: 4 | J30: 5
I31: 4 | J31: -5
I32: 5 | J32: -5
I33: 5 | J33: 5
I34: 5 | J34: 5
I35: 5 | J35: -5
I36: 5 | J36: -5
I37: 5 | J37: 5
I38: -5 | J38: 5
I39: -5 | J39: 5
I40: 5 | J40: 5
I41: 5 | J41: 5
I42: -5 | J42: 5
I43: -5 | J43: 4
I44: 5 | J44: 4
I45: 5 | J45: 3
I46: -5 | J46: 3
I47: -5 | J47: 2
I48: 5 | J48: 2
I49: 5 | J49: 1
I50: -5 | J50: 1
I51: -5 | J51: 0
I52: 5 | J52: 0
I53: 5 | J53: -1
I54: -5 | J54: -1
I55: -5 | J55: -2
I56: 5 | J56: -2
I57: 5 | J57: -3
I58: -5 | J58: -3
I59: -5 | J59: -4
I60: 5 | J60: -4
I61: 5 | J61: -5
I62: -5 | J62: -5

Sheet EQN OF 2HVL
N1: 0 | O1: 0 | P1: 0
A2: 1000 | B2: 1 | C2: Find the equation of each straight-line graph. | U2: =MENU!AC2 -> 𝒙 | V2: y
A3: =IF(A6=1,1,-1) -> -1 | C3: 0 | J3: =CONCATENATE(U2,"-intercept =") -> 𝒙-intercept = | P3: =IF(DATA!BP5="−"," -",IF(DATA!BP5<0,CONCATENATE("−",ABS(DATA!BP5)," "),CONCATENATE(DATA!BP5))) -> 2 | W3: =C28 ->  | X3: =C29 -> 
A4: 148 | D4: 0
A5: =MOD(A4,4)+1 -> 1 | J5: =CONCATENATE(V2,"-intercept =") -> y-intercept = | P5: =IF(DATA!BQ5="−"," -",IF(DATA!BQ5<0,CONCATENATE("−",ABS(DATA!BQ5)," "),CONCATENATE(DATA!BQ5))) -> -
A6: -1 | U6: =IF(V6=-1,-1,1) -> 1 | V6: 2 | W6: =IF(V6=1,5,IF(V6=-1,5,21)) -> 21 | X6: =IF(V6=1,5,IF(V6=-1,-5,21)) -> 21
A7: 496 | J7: equation of the line | W7: =IF(V6=1,-5,IF(V6=-1,-5,21)) -> 21 | X7: =IF(V6=1,-5,IF(V6=-1,5,21)) -> 21
A8: =IF(A11=1,1,-1) -> 1 | J8: 0 | K8: =IF(J8=1,CONCATENATE(" ",DATA!BR5,DATA!BS5)," =") -> =
A9: 14 | W9: 1 | X9: =IF($W$9=1,DATA!BN5,11) -> 2 | Y9: =IF($W$9=1,DATA!BO5,11) -> -5
A10: =MOD(A9,21)+1 -> 15 | J10: =CONCATENATE(U2,"-intercept =") -> 𝒙-intercept = | P10: =IF(DATA!BP3="−"," -",IF(DATA!BP3<0,CONCATENATE("−",ABS(DATA!BP3)," "),CONCATENATE(DATA!BP3))) -> - | W10: 1 | X10: =IF($W$9=1,DATA!BN6,11) -> 2.000001 | Y10: =IF($W$9=1,DATA!BO6,11) -> 5
A11: 1 | W11: 1 | X11: =IF($W$11=1,DATA!BN3,11) -> -5 | Y11: =IF($W$11=1,DATA!BO3,11) -> 3
A12: 1000 | J12: =CONCATENATE(V2,"-intercept =") -> y-intercept = | P12: =IF(DATA!BQ3="−"," -",IF(DATA!BQ3<0,CONCATENATE("−",ABS(DATA!BQ3)," "),CONCATENATE(DATA!BQ3))) -> 3 | W12: 1 | X12: =IF($W$11=1,DATA!BN4,11) -> 5 | Y12: =IF($W$11=1,DATA!BO4,11) -> 3
A13: =IF(A16=1,1,-1) -> -1
A14: 102 | J14: equation of the line
A15: =MOD(A14,4)+1 -> 3 | J15: 0 | K15: =IF(J15=1,CONCATENATE(" ",DATA!BR3,DATA!BS3)," =") -> =
A16: -1
A17: 270
A18: =IF(A21=1,1,-1) -> -1 | J18: point of intersection
A19: 16
A20: =MOD(A19,21)+1 -> 17 | K20: =IF(DATA!BT10=11,"all points equal",IF(DATA!BT10=10,"lines are parallel",CONCATENATE("(",AA26,", ",AA27,")"))) -> (2, 3)
A21: -1
A22: 1
T26: =DATA!$BT$8 -> 2 | U26: =ABS(T26) -> 2 | V26: =IF(T26<0,"−","") ->  | W26: =ROUNDDOWN(U26,0) -> 2 | X26: =ROUND(U26-W26,3) -> 0 | Y26: =IF(X26=T28,U28,IF(X26=T29,U29,IF(X26=T30,U30,IF(X26=T31,U31,IF(X26=T32,U32,IF(X26=T33,U33,IF(X26=T34,U34,X26))))))) -> 0 | Z26: =IF(Y26=T35,U35,IF(Y26=T36,U36,Y26)) -> 0 | AA26: =IF(Z26=X26,CONCATENATE(V26,W26+Z26),IF(W26=0,CONCATENATE(V26,Z26),CONCATENATE(V26,W26,Z26))) -> 2
T27: =DATA!$BU$8 -> 3 | U27: =ABS(T27) -> 3 | V27: =IF(T27<0,"−","") ->  | W27: =ROUNDDOWN(U27,0) -> 3 | X27: =ROUND(U27-W27,3) -> 0 | Y27: =IF(X27=T28,U28,IF(X27=T29,U29,IF(X27=T30,U30,IF(X27=T31,U31,IF(X27=T32,U32,IF(X27=T33,U33,IF(X27=T34,U34,X27))))))) -> 0 | Z27: =IF(Y27=T35,U35,IF(Y27=T36,U36,Y27)) -> 0 | AA27: =IF(Z27=X27,CONCATENATE(V27,W27+Z27),IF(W27=0,CONCATENATE(V27,Z27),CONCATENATE(V27,W27,Z27))) -> 3
C28: =IF(V6=1,CONCATENATE(V2," = ",U2),"") ->  | T28: 0.125 | U28: ⅛
C29: =IF(V6=-1,CONCATENATE(V2," = −",U2),"") ->  | T29: 0.25 | U29: ¼
I30: -5 | J30: -5 | T30: 0.333 | U30: ⅓
I31: -5 | J31: 5 | T31: 0.375 | U31: ⅜
I32: -4 | J32: 5 | T32: 0.5 | U32: ½
I33: -4 | J33: -5 | T33: 0.625 | U33: ⅝
I34: -3 | J34: -5 | T34: 0.667 | U34: ⅔
I35: -3 | J35: 5 | T35: 0.75 | U35: ¾
I36: -2 | J36: 5 | T36: 0.875 | U36: ⅞
I37: -2 | J37: -5
I38: -1 | J38: -5
I39: -1 | J39: 5
I40: 0 | J40: 5
I41: 0 | J41: -5
I42: 1 | J42: -5
I43: 1 | J43: 5
I44: 2 | J44: 5
I45: 2 | J45: -5
I46: 3 | J46: -5
I47: 3 | J47: 5
I48: 4 | J48: 5
I49: 4 | J49: -5
I50: 5 | J50: -5
I51: 5 | J51: 5
I52: 5 | J52: 5
I53: 5 | J53: -5
I54: 5 | J54: -5
I55: 5 | J55: 5
I56: -5 | J56: 5
I57: -5 | J57: 5
I58: 5 | J58: 5
I59: 5 | J59: 5
I60: -5 | J60: 5
I61: -5 | J61: 4
I62: 5 | J62: 4
I63: 5 | J63: 3
I64: -5 | J64: 3
I65: -5 | J65: 2
I66: 5 | J66: 2
I67: 5 | J67: 1
I68: -5 | J68: 1
I69: -5 | J69: 0
I70: 5 | J70: 0
I71: 5 | J71: -1
I72: -5 | J72: -1
I73: -5 | J73: -2
I74: 5 | J74: -2
I75: 5 | J75: -3
I76: -5 | J76: -3
I77: -5 | J77: -4
I78: 5 | J78: -4
I79: 5 | J79: -5
I80: -5 | J80: -5

Sheet POSSINEQN
C1: 36 | D1: 0 | F1: 0 | G1: 1 | H1: 0 | I1: 1 | J1: 0 | L1: 0 | N1: 0 | P1: 0
A2: 5 | B2: 1 | C2: =CONCATENATE("Complete the table of coordinates for the ",) -> Complete the table of coordinates for the | Q2: 1 | U2: =MENU!AC2 -> 𝒙 | V2: =A14*100+A19 -> 3306 | W2: 1 | X2: =VLOOKUP(W2,$W$15:$X$52,2) -> −4𝒙 | Y2: =MENU!$AE$27 -> × 2
A3: =IF(A6=1,1,-1) -> -1 | B3: 1 | C3: =CONCATENATE("equation of a straight-line graph y = m",U2," + c.") -> equation of a straight-line graph y = m𝒙 + c. | U3: y | W3: 1 | X3: =VLOOKUP(W3,$W$15:$X$52,2) -> −4𝒙
A4: =IF(POSSINGRA!$B$3=1,POSSINGRA!A4,POSSINEQN!A14) -> 33 | B4: -2 | C4: =CONCATENATE("Use 0 ≤ ",U2," ≤ 6 and plot on +ve (",U2,", y) axes 0 to 10.") -> Use 0 ≤ 𝒙 ≤ 6 and plot on +ve (𝒙, y) axes 0 to 10. | V4: =CONCATENATE(" ",DATA!IB5," ") ->  | W4: =CONCATENATE(Y4,ROUND(DATA!HZ5,1)," ") -> 
A5: =MOD(A4,38)+1 -> 34 | C5: y = | D5: =CONCATENATE(X14," ",DATA!IC5) -> 2𝒙 + 1 | G5: 0 | H5: =IF(G5=1,CONCATENATE(U2," "),"") ->  | I5: ➔ | J5: =IF(V2=2805,Y2,IF(A14=28,CONCATENATE(IF(A19>5,"+ ","− "),ABS(A19-5)),Y2)) -> × 2 | L5: ➔ | M5: =CONCATENATE(DATA!IG5," ",DATA!IH5) -> + 1 | O5: ➔ | P5: =U3 -> y
A6: -1
A7: 3738 | E7: =IF(F7=1,"➔",0) -> 0 | F7: =IF(M5="y ",1,0) -> 0
A8: =IF(A11=1,1,-1) -> -1 | Y8: =IF(D1=1,0," ") ->  | Z8: =IF(D1=1,D10," ") ->  | AA8: =IF(F1=1,1," ") ->  | AB8: =IF(F1=1,F10," ") ->  | AC8: =IF(H1=1,2," ") ->  | AD8: =IF(H1=1,H10," ") ->  | AE8: =IF(J1=1,3," ") ->  | AF8: =IF(J1=1,J10," ") ->  | AG8: =IF(L1=1,4," ") ->  | AH8: =IF(L1=1,L10," ") ->  | AI8: =IF(N1=1,5," ") ->  | AJ8: =IF(N1=1,N10," ") ->  | AK8: =IF(P1=1,6," ") ->  | AL8: =IF(P1=1,P10," ") -> 
A9: =IF(POSSINGRA!$B$3=1,POSSINGRA!A9,POSSINEQN!A19) -> 6 | C9: =U2 -> 𝒙 | D9: 0 | F9: 1 | H9: 2 | J9: 3 | L9: 4 | N9: 5 | P9: 6 | W9: =COORDSEQN!A4 -> 33 | X9: =VLOOKUP(W9,$W$15:$X$52,2) -> 2𝒙
A10: =MOD(A9,11)+1 -> 7 | C10: y | D10: =VLOOKUP(DATA!$HP$5,DATA!$A$16:$AP$855,21) -> 1 | F10: =VLOOKUP(DATA!$HP$5,DATA!$A$16:$AP$855,22) -> 3 | H10: =VLOOKUP(DATA!$HP$5,DATA!$A$16:$AP$855,23) -> 5 | J10: =VLOOKUP(DATA!$HP$5,DATA!$A$16:$AP$855,24) -> 7 | L10: =VLOOKUP(DATA!$HP$5,DATA!$A$16:$AP$855,25) -> 9 | N10: =VLOOKUP(DATA!$HP$5,DATA!$A$16:$AP$855,26) -> 11 | P10: =VLOOKUP(DATA!$HP$5,DATA!$A$16:$AP$855,27) -> 13 | W10: =COORDSEQN!A14 -> 36 | X10: 4𝒙
W11: =POSCOSTAB!A4 -> 33 | X11: 2𝒙
W12: =POSCOSTAB!A14 -> 36 | X12: 4𝒙 | AA12: =ROUND(DATA!$EK$19*60+301,1) -> 181 | AB12: =VLOOKUP(AA12,$AA$15:$AB$52,2) -> −2𝒙
W13: =NEGSINEQN!A14 -> 33 | X13: 2𝒙 | Y13: =NEGSINGRA!A4 -> 33 | Z13: =VLOOKUP(Y13,$W$15:$X$52,2) -> 2𝒙 | AA13: =ROUND(DATA!$EK$3*60+301,1) -> 241 | AB13: =VLOOKUP(AA13,$AA$15:$AB$52,2) -> −𝒙
A14: 33 | W14: =A14 -> 33 | X14: 2𝒙 | Y14: =POSSINGRA!A4 -> 33 | Z14: =VLOOKUP(Y14,$W$15:$X$52,2) -> 2𝒙 | AA14: =ROUND(DATA!$EK$5*60+301,1) -> 121 | AB14: =VLOOKUP(AA14,$AA$15:$AB$52,2) -> −3𝒙
A15: =MOD(A14,38)+1 -> 34 | W15: 0 | X15: =CONCATENATE("−",5,U2) -> −5𝒙 | Y15: -5 | Z15: =60*Y15 -> -300 | AA15: =Z15+301 -> 1 | AB15: =X15 -> −5𝒙
A16: -1 | W16: =W15+1 -> 1 | X16: =CONCATENATE("−",4,U2) -> −4𝒙 | Y16: -4 | Z16: =60*Y16 -> -240 | AA16: =Z16+301 -> 61 | AB16: =X16 -> −4𝒙
A17: 3738 | W17: =W16+1 -> 2 | X17: =CONCATENATE("−",3,U2) -> −3𝒙 | Y17: -3 | Z17: -180 | AA17: 121 | AB17: −3𝒙
A18: =IF(A21=1,1,-1) -> -1 | W18: 3 | X18: =CONCATENATE("−⁵",$W$53,"₂",U2) -> −⁵∕₂𝒙 | Y18: -2.5 | Z18: -150 | AA18: 151 | AB18: −⁵∕₂𝒙
A19: 6 | W19: 4 | X19: =CONCATENATE("−",2,U2) -> −2𝒙 | Y19: -2 | Z19: -120 | AA19: 181 | AB19: −2𝒙
W20: 5 | X20: =CONCATENATE("−⁵",$W$53,"₃",U2) -> −⁵∕₃𝒙 | Y20: =-5/3 -> -1.666666667 | Z20: -100 | AA20: 201 | AB20: −⁵∕₃𝒙
W21: 6 | X21: =CONCATENATE("−³",$W$53,"₂",U2) -> −³∕₂𝒙 | Y21: -1.5 | Z21: -90 | AA21: 211 | AB21: −³∕₂𝒙
W22: 7 | X22: =CONCATENATE("−⁴",$W$53,"₃",U2) -> −⁴∕₃𝒙 | Y22: =-4/3 -> -1.333333333 | Z22: -80 | AA22: 221 | AB22: −⁴∕₃𝒙
W23: 8 | X23: =CONCATENATE("−⁵",$W$53,"₄",U2) -> −⁵∕₄𝒙 | Y23: -1.25 | Z23: -75 | AA23: 226 | AB23: −⁵∕₄𝒙
W24: 9 | X24: =CONCATENATE("−",U2) -> −𝒙 | Y24: -1 | Z24: -60 | AA24: 241 | AB24: −𝒙
W25: 10 | X25: =CONCATENATE("−⅘",U2) -> −⅘𝒙 | Y25: -0.8 | Z25: -48 | AA25: 253 | AB25: −⅘𝒙
W26: 11 | X26: =CONCATENATE("−¾",U2) -> −¾𝒙 | Y26: -0.75 | Z26: -45 | AA26: 256 | AB26: −¾𝒙
W27: 12 | X27: =CONCATENATE("−⅔",U2) -> −⅔𝒙 | Y27: =-2/3 -> -0.6666666667 | Z27: -40 | AA27: 261 | AB27: −⅔𝒙
W28: 13 | X28: =CONCATENATE("−⅗",U2) -> −⅗𝒙 | Y28: -0.6 | Z28: -36 | AA28: 265 | AB28: −⅗𝒙
W29: 14 | X29: =CONCATENATE("−½",U2) -> −½𝒙 | Y29: -0.5 | Z29: -30 | AA29: 271 | AB29: −½𝒙
W30: 15 | X30: =CONCATENATE("−⅖",U2) -> −⅖𝒙 | Y30: -0.4 | Z30: -24 | AA30: 277 | AB30: −⅖𝒙
W31: 16 | X31: =CONCATENATE("−⅓",U2) -> −⅓𝒙 | Y31: =-1/3 -> -0.3333333333 | Z31: -20 | AA31: 281 | AB31: −⅓𝒙
W32: 17 | X32: =CONCATENATE("−¼",U2) -> −¼𝒙 | Y32: -0.25 | Z32: -15 | AA32: 286 | AB32: −¼𝒙
W33: 18 | X33: =CONCATENATE("−⅕",U2) -> −⅕𝒙 | Y33: -0.2 | Z33: -12 | AA33: 289 | AB33: −⅕𝒙
W34: 19 | X34: =CONCATENATE("⅕",U2) -> ⅕𝒙 | Y34: 0.2 | Z34: 12 | AA34: 313 | AB34: ⅕𝒙
W35: 20 | X35: =CONCATENATE("¼",U2) -> ¼𝒙 | Y35: =-Y32 -> 0.25 | Z35: 15 | AA35: 316 | AB35: ¼𝒙
W36: 21 | X36: =CONCATENATE("⅓",U2) -> ⅓𝒙 | Y36: =-Y31 -> 0.3333333333 | Z36: 20 | AA36: 321 | AB36: ⅓𝒙
W37: 22 | X37: =CONCATENATE("⅖",U2) -> ⅖𝒙 | Y37: =-Y30 -> 0.4 | Z37: 24 | AA37: 325 | AB37: ⅖𝒙
W38: 23 | X38: =CONCATENATE("½",U2) -> ½𝒙 | Y38: =-Y29 -> 0.5 | Z38: 30 | AA38: 331 | AB38: ½𝒙
W39: 24 | X39: =CONCATENATE("⅗",U2) -> ⅗𝒙 | Y39: =-Y28 -> 0.6 | Z39: 36 | AA39: 337 | AB39: ⅗𝒙
W40: 25 | X40: =CONCATENATE("⅔",U2) -> ⅔𝒙 | Y40: =-Y27 -> 0.6666666667 | Z40: 40 | AA40: 341 | AB40: ⅔𝒙
W41: 26 | X41: =CONCATENATE("¾",U2) -> ¾𝒙 | Y41: =-Y26 -> 0.75 | Z41: 45 | AA41: 346 | AB41: ¾𝒙
W42: 27 | X42: =CONCATENATE("⅘",U2) -> ⅘𝒙 | Y42: =-Y25 -> 0.8 | Z42: 48 | AA42: 349 | AB42: ⅘𝒙
W43: 28 | X43: =U2 -> 𝒙 | Y43: =-Y24 -> 1 | Z43: 60 | AA43: 361 | AB43: 𝒙
W44: 29 | X44: =CONCATENATE("⁵",$W$53,"₄",U2) -> ⁵∕₄𝒙 | Y44: =-Y23 -> 1.25 | Z44: 75 | AA44: 376 | AB44: ⁵∕₄𝒙
W45: 30 | X45: =CONCATENATE("⁴",$W$53,"₃",U2) -> ⁴∕₃𝒙 | Y45: =-Y22 -> 1.333333333 | Z45: 80 | AA45: 381 | AB45: ⁴∕₃𝒙
W46: 31 | X46: =CONCATENATE("³",$W$53,"₂",U2) -> ³∕₂𝒙 | Y46: =-Y21 -> 1.5 | Z46: 90 | AA46: 391 | AB46: ³∕₂𝒙
W47: 32 | X47: =CONCATENATE("⁵",$W$53,"₃",U2) -> ⁵∕₃𝒙 | Y47: =-Y20 -> 1.666666667 | Z47: 100 | AA47: 401 | AB47: ⁵∕₃𝒙
W48: 33 | X48: =CONCATENATE(2,U2) -> 2𝒙 | Y48: =-Y19 -> 2 | Z48: 120 | AA48: 421 | AB48: 2𝒙
W49: 34 | X49: =CONCATENATE("⁵",$W$53,"₂",U2) -> ⁵∕₂𝒙 | Y49: =-Y18 -> 2.5 | Z49: 150 | AA49: 451 | AB49: ⁵∕₂𝒙
W50: 35 | X50: =CONCATENATE(3,U2) -> 3𝒙 | Y50: 3 | Z50: 180 | AA50: 481 | AB50: 3𝒙
W51: 36 | X51: =CONCATENATE(4,U2) -> 4𝒙 | Y51: 4 | Z51: 240 | AA51: 541 | AB51: 4𝒙
W52: 37 | X52: =CONCATENATE(5,U2) -> 5𝒙 | Y52: 5 | Z52: 300 | AA52: 601 | AB52: 5𝒙
W53: ∕

Sheet POSSINGRA
A2: 5 | B2: 1 | C2: =CONCATENATE("Plot and join the coordinates on +ve (",T2,", ",U2,") axes.") -> Plot and join the coordinates on +ve (𝒙, y) axes. | Q2: =POSSINEQN!Q2 -> 1 | T2: =MENU!AC2 -> 𝒙 | U2: y
A3: =IF(A6=1,1,-1) -> -1 | B3: 0
A4: 33 | L4: =CONCATENATE(" (0, ",POSSINEQN!$D$10,")") -> (0, 1) | T4: =CONCATENATE(" ",DATA!IB5," ") ->  | U4: =DATA!HZ5 -> 
A5: =MOD(A4,38)+1 -> 34
A6: -1 | L6: =CONCATENATE(" (1, ",POSSINEQN!$F$10,")") -> (1, 3)
A7: 3738
A8: =IF(A11=1,1,-1) -> -1 | L8: =CONCATENATE(" (2, ",POSSINEQN!$H$10,")") -> (2, 5)
A9: 6 | W9: 0 | X9: =IF($W$9=1,DATA!HQ5,11) -> 11 | Y9: =IF($W$9=1,DATA!HR5,11) -> 11
L10: =CONCATENATE(" (3, ",POSSINEQN!$J$10,")") -> (3, 7) | W10: 0 | X10: =IF($W$9=1,DATA!HQ6,11) -> 11 | Y10: =IF($W$9=1,DATA!HR6,11) -> 11
L12: =CONCATENATE(" (4, ",POSSINEQN!$L$10,")") -> (4, 9)
T13: =CONCATENATE(" ",DATA!IB5," ") ->  | U13: =DATA!HZ5 -> 
A14: 37 | L14: =CONCATENATE(" (5, ",POSSINEQN!$N$10,")") -> (5, 11)
L16: =CONCATENATE(" (6, ",POSSINEQN!P10,")") -> (6, 13)
K18: 1 | L18: =IF(K18=1,DATA!HU5,"=") -> y = | M18: =IF(K18=1,CONCATENATE(POSSINEQN!Z14," ",DATA!IC5),"") -> 2𝒙 + 1
A19: 2
Z37: =IF($W$10=1,DATA!IK5,11) -> 11 | AA37: =IF($W$10=1,DATA!IL5,11) -> 11
Z38: =IF($W$10=1,DATA!IK6,11) -> 11 | AA38: =IF($W$10=1,DATA!IL6,11) -> 11
Z39: =IF($W$10=1,DATA!IK7,11) -> 11 | AA39: =IF($W$10=1,DATA!IL7,11) -> 11
Z40: =IF($W$10=1,DATA!IK8,11) -> 11 | AA40: =IF($W$10=1,DATA!IL8,11) -> 11
Z41: =IF($W$10=1,DATA!IK9,11) -> 11 | AA41: =IF($W$10=1,DATA!IL9,11) -> 11
Z42: =IF($W$10=1,DATA!IK10,11) -> 11 | AA42: =IF($W$10=1,DATA!IL10,11) -> 11
Z43: =IF($W$10=1,DATA!IK11,11) -> 11 | AA43: =IF($W$10=1,DATA!IL11,11) -> 11

Sheet NEGSINEQN
D1: 0 | F1: 0 | H1: 0 | J1: 0 | L1: 0 | N1: 0 | P1: 0
A2: 5 | B2: 1 | C2: =CONCATENATE("Complete the table of coordinates for the ",) -> Complete the table of coordinates for the | Q2: 1 | V2: =MENU!AC2 -> 𝒙 | W2: y | X2: =A14*100+A19 -> 3306 | Y2: =MENU!$AE$28 -> × 2
A3: =IF(A6=1,1,-1) -> -1 | B3: 1 | C3: =CONCATENATE("equation of a straight-line graph y = m",V2," + c.") -> equation of a straight-line graph y = m𝒙 + c.
A4: =IF(NEGSINGRA!$B$3=1,NEGSINGRA!A4,NEGSINEQN!A14) -> 33 | B4: 4 | C4: =CONCATENATE("Use −3 ≤ ",V2," ≤ 3 and plot on ±ve (",V2,", y) axes −5 to 5.") -> Use −3 ≤ 𝒙 ≤ 3 and plot on ±ve (𝒙, y) axes −5 to 5. | V4: =CONCATENATE(" ",DATA!HE5," ") ->  | W4: =CONCATENATE(Y4,ROUND(DATA!HC5,1)," ") -> 
A5: =MOD(A4,38)+1 -> 34 | C5: y = | D5: =CONCATENATE(POSSINEQN!X13," ",DATA!HF5) -> 2𝒙 + 1 | G5: 0 | H5: =IF(G5=1,CONCATENATE(V2," "),"") ->  | I5: ➔ | J5: =IF(X2=2805,Y2,IF(A14=28,CONCATENATE(IF(A19>5,"+ ","− "),ABS(A19-5)),Y2)) -> × 2 | L5: ➔ | M5: =CONCATENATE(DATA!HJ5," ",DATA!HK5) -> + 1 | O5: ➔ | P5: =W2 -> y
A6: -1
A7: 3738 | E7: =IF(F7=1,"➔",0) -> 0 | F7: =IF(M5="y ",1,0) -> 0 | K7: =DATA!HI5 -> 
A8: =IF(A11=1,1,-1) -> -1 | AA8: =IF(D1=1,-3," ") ->  | AB8: =IF(D1=1,D10," ") ->  | AC8: =IF(F1=1,-2," ") ->  | AD8: =IF(F1=1,F10," ") ->  | AE8: =IF(H1=1,-1," ") ->  | AF8: =IF(H1=1,H10," ") ->  | AG8: =IF(J1=1,0," ") ->  | AH8: =IF(J1=1,J10," ") ->  | AI8: =IF(L1=1,1," ") ->  | AJ8: =IF(L1=1,L10," ") ->  | AK8: =IF(N1=1,2," ") ->  | AL8: =IF(N1=1,N10," ") ->  | AM8: =IF(P1=1,3," ") ->  | AN8: =IF(P1=1,P10," ") -> 
A9: =IF(NEGSINGRA!$B$3=1,NEGSINGRA!A9,NEGSINEQN!A19) -> 6 | B9: 4 | C9: =V2 -> 𝒙 | D9: −3 | F9: −2 | H9: −1 | J9: 0 | L9: 1 | N9: 2 | P9: 3
A10: =MOD(A9,11)+1 -> 7 | C10: y | D10: =VLOOKUP(DATA!$GS$5,DATA!$A$16:$AP$855,18) -> −5 | F10: =VLOOKUP(DATA!$GS$5,DATA!$A$16:$AP$855,19) -> −3 | H10: =VLOOKUP(DATA!$GS$5,DATA!$A$16:$AP$855,20) -> −1 | J10: =VLOOKUP(DATA!$GS$5,DATA!$A$16:$AP$855,21) -> 1 | L10: =VLOOKUP(DATA!$GS$5,DATA!$A$16:$AP$855,22) -> 3 | N10: =VLOOKUP(DATA!$GS$5,DATA!$A$16:$AP$855,23) -> 5 | P10: =VLOOKUP(DATA!$GS$5,DATA!$A$16:$AP$855,24) -> 7
A14: 33
A15: =MOD(A14,38)+1 -> 34
A16: -1
A17: 3738
A18: =IF(A21=1,1,-1) -> -1
A19: 6

Sheet NEGSINGRA
A2: 5 | B2: 1 | C2: =CONCATENATE("Plot and join the coordinates on ±ve (",T2,", ",U2,") axes.") -> Plot and join the coordinates on ±ve (𝒙, y) axes. | Q2: =NEGSINEQN!Q2 -> 1 | T2: =MENU!AC2 -> 𝒙 | U2: y
A3: =IF(A6=1,1,-1) -> -1 | B3: 0
A4: 33 | L4: =CONCATENATE(" (−3, ",NEGSINEQN!$D$10,")") -> (−3, −5)
A5: =MOD(A4,38)+1 -> 34
A6: -1 | L6: =CONCATENATE(" (−2, ",NEGSINEQN!$F$10,")") -> (−2, −3)
A7: 3738
A8: =IF(A11=1,1,-1) -> -1 | L8: =CONCATENATE(" (−1, ",NEGSINEQN!$H$10,")") -> (−1, −1)
A9: 6 | W9: 0 | X9: =IF($W$9=1,DATA!GT5,11) -> 11 | Y9: =IF($W$9=1,DATA!GU5,11) -> 11
L10: =CONCATENATE(" (0, ",NEGSINEQN!$J$10,")") -> (0, 1) | W10: 0 | X10: =IF($W$9=1,DATA!GT6,11) -> 11 | Y10: =IF($W$9=1,DATA!GU6,11) -> 11
L12: =CONCATENATE(" (1, ",NEGSINEQN!$L$10,")") -> (1, 3)
T13: =CONCATENATE(" ",DATA!HE5," ") ->  | U13: =DATA!HC5 -> 
A14: 3 | L14: =CONCATENATE(" (2, ",NEGSINEQN!$N$10,")") -> (2, 5)
L16: =CONCATENATE(" (3, ",NEGSINEQN!$P$10,")") -> (3, 7)
K18: 1 | L18: =IF(K18=1,DATA!GX5,"=") -> y = | M18: =IF(K18=1,CONCATENATE(POSSINEQN!Z13," ",DATA!HF5),"") -> 2𝒙 + 1
Z37: =IF($W$10=1,DATA!HN2,11) -> 11 | AA37: =IF($W$10=1,DATA!HO2,11) -> 11
Z38: =IF($W$10=1,DATA!HN3,11) -> 11 | AA38: =IF($W$10=1,DATA!HO3,11) -> 11
Z39: =IF($W$10=1,DATA!HN4,11) -> 11 | AA39: =IF($W$10=1,DATA!HO4,11) -> 11
Z40: =IF($W$10=1,DATA!HN5,11) -> 11 | AA40: =IF($W$10=1,DATA!HO5,11) -> 11
Z41: =IF($W$10=1,DATA!HN6,11) -> 11 | AA41: =IF($W$10=1,DATA!HO6,11) -> 11
Z42: =IF($W$10=1,DATA!HN7,11) -> 11 | AA42: =IF($W$10=1,DATA!HO7,11) -> 11
Z43: =IF($W$10=1,DATA!HN8,11) -> 11 | AA43: =IF($W$10=1,DATA!HO8,11) -> 11

Sheet POSCOSTAB
D1: 1 | F1: 1 | H1: 1 | J1: 1 | L1: 1 | N1: 1 | P1: 1
A2: 5 | C2: =CONCATENATE("Complete the table of coordinates for the ",) -> Complete the table of coordinates for the | Q2: 1 | V2: =MENU!AC2 -> 𝒙 | W2: y | X2: =A4*100+A9 -> 3306 | Y2: =MENU!$AE$29 -> × 2 | Z2: =A14*100+A19 -> 3602 | AA2: =MENU!AG29 -> × 4
A3: =IF(A6=1,1,-1) -> -1 | B3: 1 | C3: =CONCATENATE("equation of a straight-line graph y = m",V2," + c.") -> equation of a straight-line graph y = m𝒙 + c.
A4: 33 | C4: =CONCATENATE("Use 0 ≤ ",V2," ≤ 6 and plot on +ve (",V2,", y) axes 0 to 10.") -> Use 0 ≤ 𝒙 ≤ 6 and plot on +ve (𝒙, y) axes 0 to 10. | V4: =CONCATENATE(" ",DATA!BB5," ") ->  | W4: =CONCATENATE(Y4,ROUND(DATA!AZ5,1)," ") -> 
A5: =MOD(A4,38)+1 -> 34 | C5: y = | D5: =CONCATENATE(POSSINEQN!X11," ",DATA!BC5) -> 2𝒙 + 1 | G5: 0 | H5: =IF(G5=1,CONCATENATE(V2," "),"") ->  | I5: ➔ | J5: =IF(X2=2805,Y2,IF(A4=28,CONCATENATE(IF(A9>5,"+ ","− "),ABS(A9-5)),Y2)) -> × 2 | L5: ➔ | M5: =CONCATENATE(DATA!BG5," ",DATA!BH5) -> + 1 | O5: ➔ | P5: =W2 -> y
A6: -1
A7: 4 | E7: =IF(F7=1,"➔",0) -> 0 | F7: =IF(M5="y ",1,0) -> 0 | K7: =DATA!BF5 -> 
A8: =IF(A11=1,1,-1) -> 1 | J8: 1 | M8: 1
A9: 6 | C9: =V2 -> 𝒙 | D9: 0 | F9: 1 | H9: 2 | J9: 3 | L9: 4 | N9: 5 | P9: 6
A10: =MOD(A9,11)+1 -> 7 | C10: y | D10: =VLOOKUP(DATA!$AP$5,DATA!$A$16:$AP$855,21) -> 1 | F10: =VLOOKUP(DATA!$AP$5,DATA!$A$16:$AP$855,22) -> 3 | H10: =VLOOKUP(DATA!$AP$5,DATA!$A$16:$AP$855,23) -> 5 | J10: =VLOOKUP(DATA!$AP$5,DATA!$A$16:$AP$855,24) -> 7 | L10: =VLOOKUP(DATA!$AP$5,DATA!$A$16:$AP$855,25) -> 9 | N10: =VLOOKUP(DATA!$AP$5,DATA!$A$16:$AP$855,26) -> 11 | P10: =VLOOKUP(DATA!$AP$5,DATA!$A$16:$AP$855,27) -> 13
A11: 1
A12: 5 | V12: =CONCATENATE(" ",DATA!BB3," ") ->  | W12: =CONCATENATE(Y12,ROUND(DATA!AZ3,1)," ") -> 
A13: =IF(A16=1,1,-1) -> 1 | C13: y = | D13: =CONCATENATE(POSSINEQN!X12," ",DATA!BC3) -> 4𝒙 − 3 | G13: 0 | H13: =IF(G13=1,CONCATENATE(V2," "),"") ->  | I13: ➔ | J13: =IF(Z2=2805,AA2,IF(A14=28,CONCATENATE(IF(A19>5,"+ ","− "),ABS(A19-5)),AA2)) -> × 4 | L13: ➔ | M13: =CONCATENATE(DATA!BG3," ",DATA!BH3) -> − 3 | O13: ➔ | P13: =W2 -> y
A14: 36
A15: =MOD(A14,38)+1 -> 37 | E15: =IF(F15=1,"➔",0) -> 0 | F15: =IF(M13="y ",1,0) -> 0 | K15: =DATA!BF3 -> 
A16: 1 | J16: 1
A17: 5 | C17: =V2 -> 𝒙 | D17: 0 | F17: 1 | H17: 2 | J17: 3 | L17: 4 | N17: 5 | P17: 6
A18: =IF(A21=1,1,-1) -> -1 | C18: y | D18: =VLOOKUP(DATA!$AP$3,DATA!$A$16:$AP$855,21) -> −3 | F18: =VLOOKUP(DATA!$AP$3,DATA!$A$16:$AP$855,22) -> 1 | H18: =VLOOKUP(DATA!$AP$3,DATA!$A$16:$AP$855,23) -> 5 | J18: =VLOOKUP(DATA!$AP$3,DATA!$A$16:$AP$855,24) -> 9 | L18: =VLOOKUP(DATA!$AP$3,DATA!$A$16:$AP$855,25) -> 13 | N18: =VLOOKUP(DATA!$AP$3,DATA!$A$16:$AP$855,26) -> 17 | P18: =VLOOKUP(DATA!$AP$3,DATA!$A$16:$AP$855,27) -> 21
A19: 2
A20: =MOD(A19,11)+1 -> 3
A21: -1
A22: 1

Sheet EQNGRAPOS
A2: 1120 | B2: 1 | C2: =POSSINGRA!C2 -> Plot and join the coordinates on +ve (𝒙, y) axes. | S2: =POSCOSTAB!Q2 -> 1
A3: =IF(A6=1,1,-1) -> 1
A4: =A3+A2 -> 1121 | L4: =CONCATENATE("(0, ",POSCOSTAB!D10,"), (1, ",POSCOSTAB!F10,")") -> (0, 1), (1, 3) | T4: =CONCATENATE(" ",DATA!BB5," ") ->  | U4: =DATA!AZ5 -> 
A5: =MOD(A4,40)+1 -> 2 | L5: =CONCATENATE("(2, ",POSCOSTAB!H10,"), (3, ",POSCOSTAB!J10,")") -> (2, 5), (3, 7)
A6: 1 | L6: =CONCATENATE("(4, ",POSCOSTAB!L10,"), (5, ",POSCOSTAB!$N$10,"), (6, ",POSCOSTAB!$P$10,")") -> (4, 9), (5, 11), (6, 13)
A7: 2721
A8: =IF(A11=1,1,-1) -> -1
A9: =A8+A7 -> 2720 | K9: 1 | L9: =IF(K9=1,DATA!AU5,"=") -> y = | M9: =IF(K9=1,POSCOSTAB!D5,"") -> 2𝒙 + 1 | W9: 0 | X9: =IF($W$9=1,DATA!AQ5,11) -> 11 | Y9: =IF($W$9=1,DATA!AR5,11) -> 11
A10: =MOD(A9,21)+1 -> 12 | W10: 0 | X10: =IF($W$9=1,DATA!AQ6,11) -> 11 | Y10: =IF($W$9=1,DATA!AR6,11) -> 11
A11: -1 | W11: 0 | X11: =IF($W$11=1,DATA!AQ3,11) -> 11 | Y11: =IF($W$11=1,DATA!AR3,11) -> 11
A12: 4683 | W12: 0 | X12: =IF($W$11=1,DATA!AQ4,11) -> 11 | Y12: =IF($W$11=1,DATA!AR4,11) -> 11
A13: =IF(A16=1,1,-1) -> -1 | L13: =CONCATENATE("(0, ",POSCOSTAB!D18,"), (1, ",POSCOSTAB!F18,")") -> (0, −3), (1, 1) | T13: =CONCATENATE(" ",DATA!BB3," ") ->  | U13: =DATA!AZ3 -> 
A14: =A13+A12 -> 4682 | L14: =CONCATENATE("(2, ",POSCOSTAB!H18,"), (3, ",POSCOSTAB!J18,")") -> (2, 5), (3, 9)
A15: =MOD(A14,40)+1 -> 3 | L15: =CONCATENATE("(4, ",POSCOSTAB!L18,"), (5, ",POSCOSTAB!$N$18,"), (6, ",POSCOSTAB!$P$18,")") -> (4, 13), (5, 17), (6, 21)
A16: -1
A17: 1755
A18: =IF(A21=1,1,-1) -> 1 | K18: 1 | L18: =IF(K18=1,DATA!AU3,"=") -> y = | M18: =IF(K18=1,POSCOSTAB!D13,"") -> 4𝒙 − 3
A19: =A18+A17 -> 1756
A20: =MOD(A19,21)+1 -> 14 | L20: point of intersection
A21: 1
A22: 1
L23: =IF(DATA!AW10=11,"all points equal",IF(DATA!AW10=10,"lines are parallel",CONCATENATE("(",L30,", ",M30,")"))) -> (2, 5)
T26: =ROUND(DATA!$AW$8,6) -> 2 | U26: =ABS(T26) -> 2 | V26: =IF(T26<0,"−","") ->  | W26: =ROUNDDOWN(U26,0) -> 2 | X26: =ROUND(U26-W26,3) -> 0 | Y26: =IF(X26=T28,U28,IF(X26=T29,U29,IF(X26=T30,U30,IF(X26=T31,U31,IF(X26=T32,U32,IF(X26=T33,U33,IF(X26=T34,U34,X26))))))) -> 0 | Z26: =IF(Y26=T35,U35,IF(Y26=T36,U36,Y26)) -> 0 | AA26: =IF(Z26=X26,CONCATENATE(V26,W26+Z26),IF(W26=0,CONCATENATE(V26,Z26),CONCATENATE(V26,W26,Z26))) -> 2
T27: =ROUND(DATA!$AX$8,6) -> 5 | U27: =ABS(T27) -> 5 | V27: =IF(T27<0,"−","") ->  | W27: =ROUNDDOWN(U27,0) -> 5 | X27: =ROUND(U27-W27,3) -> 0 | Y27: =IF(X27=T28,U28,IF(X27=T29,U29,IF(X27=T30,U30,IF(X27=T31,U31,IF(X27=T32,U32,IF(X27=T33,U33,IF(X27=T34,U34,X27))))))) -> 0 | Z27: =IF(Y27=T35,U35,IF(Y27=T36,U36,Y27)) -> 0 | AA27: =IF(Z27=X27,CONCATENATE(V27,W27+Z27),IF(W27=0,CONCATENATE(V27,Z27),CONCATENATE(V27,W27,Z27))) -> 5
T28: 0.125 | U28: ⅛
T29: 0.25 | U29: ¼
L30: =TWOGRAPHS!CU16 -> 2 | M30: =TWOGRAPHS!CU17 -> 5 | T30: 0.333 | U30: ⅓
T31: 0.375 | U31: ⅜
T32: 0.5 | U32: ½
T33: 0.625 | U33: ⅝
T34: 0.667 | U34: ⅔
T35: 0.75 | U35: ¾
T36: 0.875 | U36: ⅞
Z37: =IF($W$10=1,DATA!BK5,11) -> 11 | AA37: =IF($W$10=1,DATA!BL5,11) -> 11 | AB37: =IF($W$12=1,DATA!BI5,11) -> 11 | AC37: =IF($W$12=1,DATA!BJ5,11) -> 11
Z38: =IF($W$10=1,DATA!BK6,11) -> 11 | AA38: =IF($W$10=1,DATA!BL6,11) -> 11 | AB38: =IF($W$12=1,DATA!BI6,11) -> 11 | AC38: =IF($W$12=1,DATA!BJ6,11) -> 11
Z39: =IF($W$10=1,DATA!BK7,11) -> 11 | AA39: =IF($W$10=1,DATA!BL7,11) -> 11 | AB39: =IF($W$12=1,DATA!BI7,11) -> 11 | AC39: =IF($W$12=1,DATA!BJ7,11) -> 11
Z40: =IF($W$10=1,DATA!BK8,11) -> 11 | AA40: =IF($W$10=1,DATA!BL8,11) -> 11 | AB40: =IF($W$12=1,DATA!BI8,11) -> 11 | AC40: =IF($W$12=1,DATA!BJ8,11) -> 11
Z41: =IF($W$10=1,DATA!BK9,11) -> 11 | AA41: =IF($W$10=1,DATA!BL9,11) -> 11 | AB41: =IF($W$12=1,DATA!BI9,11) -> 11 | AC41: =IF($W$12=1,DATA!BJ9,11) -> 11
Z42: =IF($W$10=1,DATA!BK10,11) -> 11 | AA42: =IF($W$10=1,DATA!BL10,11) -> 11 | AB42: =IF($W$12=1,DATA!BI10,11) -> 11 | AC42: =IF($W$12=1,DATA!BJ10,11) -> 11
Z43: =IF($W$10=1,DATA!BK11,11) -> 11 | AA43: =IF($W$10=1,DATA!BL11,11) -> 11 | AB43: =IF($W$12=1,DATA!BI11,11) -> 11 | AC43: =IF($W$12=1,DATA!BJ11,11) -> 11

Sheet COORDSEQN
D1: 1 | F1: 1 | H1: 1 | J1: 1 | L1: 1 | N1: 1 | P1: 1
A2: 5 | B2: 1 | C2: =CONCATENATE("Complete the table of coordinates for the ",) -> Complete the table of coordinates for the | Q2: 1 | V2: =MENU!AC2 -> 𝒙 | W2: y | X2: =A4*100+A9 -> 3306 | Y2: =MENU!$AE$30 -> × 2 | Z2: =A14*100+A19 -> 3602 | AA2: =MENU!AG30 -> × 4
A3: =IF(A6=1,1,-1) -> 1 | C3: =CONCATENATE("equation of a straight-line graph y = m",V2," + c.") -> equation of a straight-line graph y = m𝒙 + c.
A4: 33 | C4: =CONCATENATE("Use −3 ≤ ",V2," ≤ 3 and plot on ±ve (",V2,", y) axes −5 to 5.") -> Use −3 ≤ 𝒙 ≤ 3 and plot on ±ve (𝒙, y) axes −5 to 5. | V4: =CONCATENATE(" ",DATA!AD5," ") ->  | W4: =CONCATENATE(Y4,ROUND(DATA!AB5,1)," ") -> 
A5: =MOD(A4,38)+1 -> 34 | C5: y = | D5: =CONCATENATE(POSSINEQN!X9," ",DATA!AE5) -> 2𝒙 + 1 | G5: 0 | H5: =IF(G5=1,CONCATENATE(V2," "),"") ->  | I5: ➔ | J5: =IF(X2=2805,Y2,IF(A4=28,CONCATENATE(IF(A9>5,"+ ","− "),ABS(A9-5)),Y2)) -> × 2 | L5: ➔ | M5: =CONCATENATE(DATA!AI5," ",DATA!AJ5) -> + 1 | O5: ➔ | P5: =W2 -> y
A6: 1
A7: 5 | E7: =IF(F7=1,"➔",0) -> 0 | F7: =IF(M5="y ",1,0) -> 0 | K7: =DATA!AH5 -> 
A8: =IF(A11=1,1,-1) -> 1 | J8: 1 | M8: 1
A9: 6 | C9: =V2 -> 𝒙 | D9: −3 | F9: −2 | H9: −1 | J9: 0 | L9: 1 | N9: 2 | P9: 3
A10: =MOD(A9,11)+1 -> 7 | C10: y | D10: =VLOOKUP(DATA!$R$5,DATA!$A$16:$AP$855,18) -> −5 | F10: =VLOOKUP(DATA!$R$5,DATA!$A$16:$AP$855,19) -> −3 | H10: =VLOOKUP(DATA!$R$5,DATA!$A$16:$AP$855,20) -> −1 | J10: =VLOOKUP(DATA!$R$5,DATA!$A$16:$AP$855,21) -> 1 | L10: =VLOOKUP(DATA!$R$5,DATA!$A$16:$AP$855,22) -> 3 | N10: =VLOOKUP(DATA!$R$5,DATA!$A$16:$AP$855,23) -> 5 | P10: =VLOOKUP(DATA!$R$5,DATA!$A$16:$AP$855,24) -> 7
A11: 1
A12: 5 | V12: =CONCATENATE(" ",DATA!AD3," ") ->  | W12: =CONCATENATE(Y12,ROUND(DATA!AB3,1)," ") -> 
A13: =IF(A16=1,1,-1) -> -1 | C13: y = | D13: =CONCATENATE(POSSINEQN!X10," ",DATA!AE3) -> 4𝒙 − 3 | G13: 0 | H13: =IF(G13=1,CONCATENATE(V2," "),"") ->  | I13: ➔ | J13: =IF(Z2=2805,AA2,IF(A14=28,CONCATENATE(IF(A19>5,"+ ","− "),ABS(A19-5)),AA2)) -> × 4 | L13: ➔ | M13: =CONCATENATE(DATA!AI3," ",DATA!AJ3) -> − 3 | O13: ➔ | P13: =W2 -> y
A14: 36
A15: =MOD(A14,38)+1 -> 37 | E15: =IF(F15=1,"➔",0) -> 0 | F15: =IF(M13="y ",1,0) -> 0 | K15: =DATA!AH3 -> 
A16: -1 | J16: 1
A17: 5 | C17: =V2 -> 𝒙 | D17: −3 | F17: −2 | H17: −1 | J17: 0 | L17: 1 | N17: 2 | P17: 3
A18: =IF(A21=1,1,-1) -> 1 | C18: y | D18: =VLOOKUP(DATA!$R$3,DATA!$A$16:$AP$855,18) -> −15 | F18: =VLOOKUP(DATA!$R$3,DATA!$A$16:$AP$855,19) -> −11 | H18: =VLOOKUP(DATA!$R$3,DATA!$A$16:$AP$855,20) -> −7 | J18: =VLOOKUP(DATA!$R$3,DATA!$A$16:$AP$855,21) -> −3 | L18: =VLOOKUP(DATA!$R$3,DATA!$A$16:$AP$855,22) -> 1 | N18: =VLOOKUP(DATA!$R$3,DATA!$A$16:$AP$855,23) -> 5 | P18: =VLOOKUP(DATA!$R$3,DATA!$A$16:$AP$855,24) -> 9
A19: 2
A20: =MOD(A19,11)+1 -> 3
A21: 1
A22: 1

Sheet GRAPHEQN
A2: 1120 | B2: 1 | C2: =NEGSINGRA!C2 -> Plot and join the coordinates on ±ve (𝒙, y) axes. | S2: =COORDSEQN!Q2 -> 1
A3: =IF(A6=1,1,-1) -> 1
A4: =A3+A2 -> 1121 | L4: =CONCATENATE("(−3, ",COORDSEQN!D10,"), (−2, ",COORDSEQN!F10,")") -> (−3, −5), (−2, −3) | T4: =CONCATENATE(" ",DATA!AD5," ") ->  | U4: =DATA!AB5 -> 
A5: =MOD(A4,40)+1 -> 2 | L5: =CONCATENATE("(−1, ",COORDSEQN!H10,"), (0, ",COORDSEQN!J10,")") -> (−1, −1), (0, 1)
A6: 1 | L6: =CONCATENATE("(1, ",COORDSEQN!L10,"), (2, ",COORDSEQN!N10,"), (3, ",COORDSEQN!P10,")") -> (1, 3), (2, 5), (3, 7)
A7: 2721
A8: =IF(A11=1,1,-1) -> -1
A9: =A8+A7 -> 2720 | K9: 1 | L9: =IF(K9=1,DATA!W5,"=") -> y = | M9: =IF(K9=1,COORDSEQN!D5,"") -> 2𝒙 + 1 | W9: 0 | X9: =IF($W$9=1,DATA!S5,11) -> 11 | Y9: =IF($W$9=1,DATA!T5,11) -> 11
A10: =MOD(A9,21)+1 -> 12 | W10: 0 | X10: =IF($W$9=1,DATA!S6,11) -> 11 | Y10: =IF($W$9=1,DATA!T6,11) -> 11
A11: -1 | W11: 0 | X11: =IF($W$11=1,DATA!S3,11) -> 11 | Y11: =IF($W$11=1,DATA!T3,11) -> 11
A12: 4683 | W12: 0 | X12: =IF($W$11=1,DATA!S4,11) -> 11 | Y12: =IF($W$11=1,DATA!T4,11) -> 11
A13: =IF(A16=1,1,-1) -> -1 | L13: =CONCATENATE("(−3, ",COORDSEQN!D18,"), (−2, ",COORDSEQN!F18,")") -> (−3, −15), (−2, −11) | T13: =CONCATENATE(" ",DATA!AD3," ") ->  | U13: =DATA!AB3 -> 
A14: =A13+A12 -> 4682 | L14: =CONCATENATE("(−1, ",COORDSEQN!H18,"), (0, ",COORDSEQN!J18,")") -> (−1, −7), (0, −3)
A15: =MOD(A14,40)+1 -> 3 | L15: =CONCATENATE("(1, ",COORDSEQN!L18,"), (2, ",COORDSEQN!N18,"), (3, ",COORDSEQN!P18,")") -> (1, 1), (2, 5), (3, 9)
A16: -1
A17: 1755
A18: =IF(A21=1,1,-1) -> 1 | K18: 1 | L18: =IF(K18=1,DATA!W3,"=") -> y = | M18: =IF(K18=1,COORDSEQN!D13,"") -> 4𝒙 − 3
A19: =A18+A17 -> 1756
A20: =MOD(A19,21)+1 -> 14 | L20: point of intersection
A21: 1
A22: 1
L23: =IF(DATA!Y10=11,"all points equal",IF(DATA!Y10=10,"lines are parallel",CONCATENATE("(",L30,", ",M30,")"))) -> (2, 5)
T26: =ROUND(DATA!$Y$8,6) -> 2 | U26: =ABS(T26) -> 2 | V26: =IF(T26<0,"−","") ->  | W26: =ROUNDDOWN(U26,0) -> 2 | X26: =ROUND(U26-W26,3) -> 0 | Y26: =IF(X26=T28,U28,IF(X26=T29,U29,IF(X26=T30,U30,IF(X26=T31,U31,IF(X26=T32,U32,IF(X26=T33,U33,IF(X26=T34,U34,X26))))))) -> 0 | Z26: =IF(Y26=T35,U35,IF(Y26=T36,U36,Y26)) -> 0 | AA26: =IF(Z26=X26,CONCATENATE(V26,W26+Z26),IF(W26=0,CONCATENATE(V26,Z26),CONCATENATE(V26,W26,Z26))) -> 2
T27: =ROUND(DATA!$Z$8,6) -> 5 | U27: =ABS(T27) -> 5 | V27: =IF(T27<0,"−","") ->  | W27: =ROUNDDOWN(U27,0) -> 5 | X27: =ROUND(U27-W27,3) -> 0 | Y27: =IF(X27=T28,U28,IF(X27=T29,U29,IF(X27=T30,U30,IF(X27=T31,U31,IF(X27=T32,U32,IF(X27=T33,U33,IF(X27=T34,U34,X27))))))) -> 0 | Z27: =IF(Y27=T35,U35,IF(Y27=T36,U36,Y27)) -> 0 | AA27: =IF(Z27=X27,CONCATENATE(V27,W27+Z27),IF(W27=0,CONCATENATE(V27,Z27),CONCATENATE(V27,W27,Z27))) -> 5
T28: 0.125 | U28: ⅛
T29: 0.25 | U29: ¼
L30: =TWOGRAPHS!CU18 -> 2 | M30: =TWOGRAPHS!CU19 -> 5 | T30: 0.333 | U30: ⅓
T31: 0.375 | U31: ⅜
T32: 0.5 | U32: ½
T33: 0.625 | U33: ⅝
T34: 0.667 | U34: ⅔
T35: 0.75 | U35: ¾
T36: 0.875 | U36: ⅞
Z37: =IF($W$10=1,DATA!AM2,11) -> 11 | AA37: =IF($W$10=1,DATA!AN2,11) -> 11 | AB37: =IF($W$12=1,DATA!AK2,11) -> 11 | AC37: =IF($W$12=1,DATA!AL2,11) -> 11
Z38: =IF($W$10=1,DATA!AM3,11) -> 11 | AA38: =IF($W$10=1,DATA!AN3,11) -> 11 | AB38: =IF($W$12=1,DATA!AK3,11) -> 11 | AC38: =IF($W$12=1,DATA!AL3,11) -> 11
Z39: =IF($W$10=1,DATA!AM4,11) -> 11 | AA39: =IF($W$10=1,DATA!AN4,11) -> 11 | AB39: =IF($W$12=1,DATA!AK4,11) -> 11 | AC39: =IF($W$12=1,DATA!AL4,11) -> 11
Z40: =IF($W$10=1,DATA!AM5,11) -> 11 | AA40: =IF($W$10=1,DATA!AN5,11) -> 11 | AB40: =IF($W$12=1,DATA!AK5,11) -> 11 | AC40: =IF($W$12=1,DATA!AL5,11) -> 11
Z41: =IF($W$10=1,DATA!AM6,11) -> 11 | AA41: =IF($W$10=1,DATA!AN6,11) -> 11 | AB41: =IF($W$12=1,DATA!AK6,11) -> 11 | AC41: =IF($W$12=1,DATA!AL6,11) -> 11
Z42: =IF($W$10=1,DATA!AM7,11) -> 11 | AA42: =IF($W$10=1,DATA!AN7,11) -> 11 | AB42: =IF($W$12=1,DATA!AK7,11) -> 11 | AC42: =IF($W$12=1,DATA!AL7,11) -> 11
Z43: =IF($W$10=1,DATA!AM8,11) -> 11 | AA43: =IF($W$10=1,DATA!AN8,11) -> 11 | AB43: =IF($W$12=1,DATA!AK8,11) -> 11 | AC43: =IF($W$12=1,DATA!AL8,11) -> 11

Sheet EQNONE
B1: 1 | C1: 0 | D1: 1 | E1: 0 | G1: 0
S2: =MENU!AC2 -> 𝒙 | T2: y | U2: 0 | V2: =IF($U$2=1,CONCATENATE("Δ",T2),"") ->  | W2: =IF($U$2=1,CONCATENATE("Δ",S2),"") ->  | CA2: =D24 -> 3 | CB2: =ABS(CA2) -> 3 | CC2: =IF(CA2<0,"−","") ->  | CD2: =ROUNDDOWN(CB2,0) -> 3 | CE2: =ROUND(CB2-CD2,3) -> 0 | CF2: =IF(CE2=CQ2,CQ3,IF(CE2=CR2,CR3,IF(CE2=CS2,CS3,IF(CE2=CT2,CT3,IF(CE2=CU2,CU3,IF(CE2=CV2,CV3,IF(CE2=CW2,CW3,CE2))))))) -> 0 | CG2: =IF(CF2=CX2,CX3,IF(CF2=CY2,CY3,CF2)) -> 0 | CH2: =IF(CG2=CE2,CONCATENATE(CC2,CD2+CG2),IF(CD2=0,CONCATENATE(CC2,CG2),CONCATENATE(CC2,CD2,CG2))) -> 3 | CI2: =IF(CE2=CQ2,"*",IF(CE2=CR2,"*",IF(CE2=CS2,"*",IF(CE2=CT2,"*",IF(CE2=CU2,"*",IF(CE2=CV2,"*",IF(CE2=CW2,"*",CO2))))))) -> • | CJ2: =IF(CF2=CX2,"*",IF(CF2=CY2,"*",CI2)) -> • | CK2: =IF(CA2=ROUND(CA2,0),"ⁿ",CJ2) -> ⁿ | CL2: =50*CA2 -> 150 | CM2: =ROUND(50*CA2,0) -> 150 | CN2: =CONCATENATE(CL2-CM2) -> 0 | CO2: =IF((ROUND(100*CA2,6)-ROUND(100*CA2,0))=0,"•","·") -> • | CP2: =50*CA3 -> 350 | CQ2: =IF(DI2=1,DJ2,DQ2) -> 0.05 | CR2: =IF(DI2=1,DK2,DR2) -> 0.083 | CS2: =IF(DI2=1,DL2,DS2) -> 0.143 | CT2: =IF(DI2=1,DM2,DT2) -> 0.2 | CU2: =IF(DI2=1,DN2,DU2) -> 0.267 | CV2: =IF(DI2=1,DO2,DV2) -> 0.316 | CW2: =IF(DI2=1,DP2,DW2) -> 0.385 | CX2: =IF(DI2=1,DQ2,DX2) -> 0.444 | CY2: =IF(DI2=1,DR2,DY2) -> 0.526 | CZ2: =IF(DI3=1,DZ2,EG2) -> 0.05 | DA2: =IF(DI3=1,EA2,EH2) -> 0.083 | DB2: =IF(DI3=1,EB2,EI2) -> 0.143 | DC2: =IF(DI3=1,EC2,EJ2) -> 0.2 | DD2: =IF(DI3=1,ED2,EK2) -> 0.267 | DE2: =IF(DI3=1,EE2,EL2) -> 0.316 | DF2: =IF(DI3=1,EF2,EM2) -> 0.385 | DG2: =IF(DI3=1,EG2,EN2) -> 0.444 | DH2: =IF(DI3=1,EH2,EO2) -> 0.526 | DI2: =IF(CE2<0.5,1,2) -> 1 | DJ2: =IF(CE2<$EW$2,$ES$2,IF(CE2<$EW$3,$ES$3,IF(CE2<$EW$4,$ES$4,IF(CE2<$EW$5,$ES$5,IF(CE2<$EW$6,$ES$6,IF(CE2<$EW$7,$ES$7,IF(CE2<$EW$8,$ES$8,$ES$9))))))) -> 0.05 | DK2: =IF(CE2<$EW$10,$ES$10,IF(CE2<$EW$11,$ES$11,IF(CE2<$EW$12,$ES$12,IF(CE2<$EW$13,$ES$13,IF(CE2<$EW$14,$ES$14,IF(CE2<$EW$15,$ES$15,IF(CE2<$EW$16,$ES$16,$ES$17))))))) -> 0.083 | DL2: =IF(CE2<$EW$18,$ES$18,IF(CE2<$EW$19,$ES$19,IF(CE2<$EW$20,$ES$20,IF(CE2<$EW$21,$ES$21,IF(CE2<$EW$22,$ES$22,IF(CE2<$EW$23,$ES$23,IF(CE2<$EW$24,$ES$24,$ES$25))))))) -> 0.143 | DM2: =IF(CE2<$EW$26,$ES$26,IF(CE2<$EW$27,$ES$27,IF(CE2<$EW$28,$ES$28,IF(CE2<$EW$29,$ES$29,IF(CE2<$EW$30,$ES$30,IF(CE2<$EW$31,$ES$31,IF(CE2<$EW$32,$ES$32,$ES$33))))))) -> 0.2 | DN2: =IF(CE2<$EW$34,$ES$34,IF(CE2<$EW$35,$ES$35,IF(CE2<$EW$36,$ES$36,IF(CE2<$EW$37,$ES$37,IF(CE2<$EW$38,$ES$38,IF(CE2<$EW$39,$ES$39,IF(CE2<$EW$40,$ES$40,$ES$41))))))) -> 0.267 | DO2: =IF(CE2<$EW$42,$ES$42,IF(CE2<$EW$43,$ES$43,IF(CE2<$EW$44,$ES$44,IF(CE2<$EW$45,$ES$45,IF(CE2<$EW$46,$ES$46,IF(CE2<$EW$47,$ES$47,IF(CE2<$EW$48,$ES$48,$ES$49))))))) -> 0.316 | DP2: =IF(CE2<$EW$50,$ES$50,IF(CE2<$EW$51,$ES$51,IF(CE2<$EW$52,$ES$52,IF(CE2<$EW$53,$ES$53,IF(CE2<$EW$54,$ES$54,IF(CE2<$EW$55,$ES$55,IF(CE2<$EW$56,$ES$56,$ES$57))))))) -> 0.385 | DQ2: =IF(CE2<$EW$58,$ES$58,IF(CE2<$EW$59,$ES$59,IF(CE2<$EW$60,$ES$60,IF(CE2<$EW$61,$ES$61,IF(CE2<$EW$62,$ES$62,IF(CE2<$EW$63,$ES$63,IF(CE2<$EW$64,$ES$64,$ES$65))))))) -> 0.444 | DR2: =IF(CE2<$EW$66,$ES$66,IF(CE2<$EW$67,$ES$67,IF(CE2<$EW$68,$ES$68,IF(CE2<$EW$69,$ES$69,IF(CE2<$EW$70,$ES$70,IF(CE2<$EW$71,$ES$71,IF(CE2<$EW$72,$ES$72,$ES$73))))))) -> 0.526 | DS2: =IF(CE2<$EW$74,$ES$74,IF(CE2<$EW$75,$ES$75,IF(CE2<$EW$76,$ES$76,IF(CE2<$EW$77,$ES$77,IF(CE2<$EW$78,$ES$78,IF(CE2<$EW$79,$ES$79,IF(CE2<$EW$80,$ES$80,$ES$81))))))) -> 0.571 | DT2: =IF(CE2<$EW$82,$ES$82,IF(CE2<$EW$83,$ES$83,IF(CE2<$EW$84,$ES$84,IF(CE2<$EW$85,$ES$85,IF(CE2<$EW$86,$ES$86,IF(CE2<$EW$87,$ES$87,IF(CE2<$EW$88,$ES$88,$ES$89))))))) -> 0.632 | DU2: =IF(CE2<$EW$90,$ES$90,IF(CE2<$EW$91,$ES$91,IF(CE2<$EW$92,$ES$92,IF(CE2<$EW$93,$ES$93,IF(CE2<$EW$94,$ES$94,IF(CE2<$EW$95,$ES$95,IF(CE2<$EW$96,$ES$96,$ES$97))))))) -> 0.692 | DV2: =IF(CE2<$EW$98,$ES$98,IF(CE2<$EW$99,$ES$99,IF(CE2<$EW$100,$ES$100,IF(CE2<$EW$101,$ES$101,IF(CE2<$EW$102,$ES$102,IF(CE2<$EW$103,$ES$103,IF(CE2<$EW$104,$ES$104,$ES$105))))))) -> 0.75 | DW2: =IF(CE2<$EW$106,$ES$106,IF(CE2<$EW$107,$ES$107,IF(CE2<$EW$108,$ES$108,IF(CE2<$EW$109,$ES$109,IF(CE2<$EW$110,$ES$110,IF(CE2<$EW$111,$ES$111,IF(CE2<$EW$112,$ES$112,$ES$113))))))) -> 0.818 | DX2: =IF(CE2<$EW$114,$ES$114,IF(CE2<$EW$115,$ES$115,IF(CE2<$EW$116,$ES$116,IF(CE2<$EW$117,$ES$117,IF(CE2<$EW$118,$ES$118,IF(CE2<$EW$119,$ES$119,IF(CE2<$EW$120,$ES$120,$ES$121))))))) -> 0.875 | DY2: =IF(CE2<$EW$122,$ES$122,IF(CE2<$EW$123,$ES$123,IF(CE2<$EW$124,$ES$124,IF(CE2<$EW$125,$ES$125,IF(CE2<$EW$126,$ES$126,IF(CE2<$EW$127,$ES$127,$ES$128)))))) -> 0.929 | DZ2: =IF(CE3<$EW$2,$ES$2,IF(CE3<$EW$3,$ES$3,IF(CE3<$EW$4,$ES$4,IF(CE3<$EW$5,$ES$5,IF(CE3<$EW$6,$ES$6,IF(CE3<$EW$7,$ES$7,IF(CE3<$EW$8,$ES$8,$ES$9))))))) -> 0.05 | EA2: =IF(CE3<$EW$10,$ES$10,IF(CE3<$EW$11,$ES$11,IF(CE3<$EW$12,$ES$12,IF(CE3<$EW$13,$ES$13,IF(CE3<$EW$14,$ES$14,IF(CE3<$EW$15,$ES$15,IF(CE3<$EW$16,$ES$16,$ES$17))))))) -> 0.083 | EB2: =IF(CE3<$EW$18,$ES$18,IF(CE3<$EW$19,$ES$19,IF(CE3<$EW$20,$ES$20,IF(CE3<$EW$21,$ES$21,IF(CE3<$EW$22,$ES$22,IF(CE3<$EW$23,$ES$23,IF(CE3<$EW$24,$ES$24,$ES$25))))))) -> 0.143 | EC2: =IF(CE3<$EW$26,$ES$26,IF(CE3<$EW$27,$ES$27,IF(CE3<$EW$28,$ES$28,IF(CE3<$EW$29,$ES$29,IF(CE3<$EW$30,$ES$30,IF(CE3<$EW$31,$ES$31,IF(CE3<$EW$32,$ES$32,$ES$33))))))) -> 0.2 | ED2: =IF(CE3<$EW$34,$ES$34,IF(CE3<$EW$35,$ES$35,IF(CE3<$EW$36,$ES$36,IF(CE3<$EW$37,$ES$37,IF(CE3<$EW$38,$ES$38,IF(CE3<$EW$39,$ES$39,IF(CE3<$EW$40,$ES$40,$ES$41))))))) -> 0.267 | EE2: =IF(CE3<$EW$42,$ES$42,IF(CE3<$EW$43,$ES$43,IF(CE3<$EW$44,$ES$44,IF(CE3<$EW$45,$ES$45,IF(CE3<$EW$46,$ES$46,IF(CE3<$EW$47,$ES$47,IF(CE3<$EW$48,$ES$48,$ES$49))))))) -> 0.316 | EF2: =IF(CE3<$EW$50,$ES$50,IF(CE3<$EW$51,$ES$51,IF(CE3<$EW$52,$ES$52,IF(CE3<$EW$53,$ES$53,IF(CE3<$EW$54,$ES$54,IF(CE3<$EW$55,$ES$55,IF(CE3<$EW$56,$ES$56,$ES$57))))))) -> 0.385 | EG2: =IF(CE3<$EW$58,$ES$58,IF(CE3<$EW$59,$ES$59,IF(CE3<$EW$60,$ES$60,IF(CE3<$EW$61,$ES$61,IF(CE3<$EW$62,$ES$62,IF(CE3<$EW$63,$ES$63,IF(CE3<$EW$64,$ES$64,$ES$65))))))) -> 0.444 | EH2: =IF(CE3<$EW$66,$ES$66,IF(CE3<$EW$67,$ES$67,IF(CE3<$EW$68,$ES$68,IF(CE3<$EW$69,$ES$69,IF(CE3<$EW$70,$ES$70,IF(CE3<$EW$71,$ES$71,IF(CE3<$EW$72,$ES$72,$ES$73))))))) -> 0.526 | EI2: =IF(CE3<$EW$74,$ES$74,IF(CE3<$EW$75,$ES$75,IF(CE3<$EW$76,$ES$76,IF(CE3<$EW$77,$ES$77,IF(CE3<$EW$78,$ES$78,IF(CE3<$EW$79,$ES$79,IF(CE3<$EW$80,$ES$80,$ES$81))))))) -> 0.571 | EJ2: =IF(CE3<$EW$82,$ES$82,IF(CE3<$EW$83,$ES$83,IF(CE3<$EW$84,$ES$84,IF(CE3<$EW$85,$ES$85,IF(CE3<$EW$86,$ES$86,IF(CE3<$EW$87,$ES$87,IF(CE3<$EW$88,$ES$88,$ES$89))))))) -> 0.632 | EK2: =IF(CE3<$EW$90,$ES$90,IF(CE3<$EW$91,$ES$91,IF(CE3<$EW$92,$ES$92,IF(CE3<$EW$93,$ES$93,IF(CE3<$EW$94,$ES$94,IF(CE3<$EW$95,$ES$95,IF(CE3<$EW$96,$ES$96,$ES$97))))))) -> 0.692 | EL2: =IF(CE3<$EW$98,$ES$98,IF(CE3<$EW$99,$ES$99,IF(CE3<$EW$100,$ES$100,IF(CE3<$EW$101,$ES$101,IF(CE3<$EW$102,$ES$102,IF(CE3<$EW$103,$ES$103,IF(CE3<$EW$104,$ES$104,$ES$105))))))) -> 0.75 | EM2: =IF(CE3<$EW$106,$ES$106,IF(CE3<$EW$107,$ES$107,IF(CE3<$EW$108,$ES$108,IF(CE3<$EW$109,$ES$109,IF(CE3<$EW$110,$ES$110,IF(CE3<$EW$111,$ES$111,IF(CE3<$EW$112,$ES$112,$ES$113))))))) -> 0.818 | EN2: =IF(CE3<$EW$114,$ES$114,IF(CE3<$EW$115,$ES$115,IF(CE3<$EW$116,$ES$116,IF(CE3<$EW$117,$ES$117,IF(CE3<$EW$118,$ES$118,IF(CE3<$EW$119,$ES$119,IF(CE3<$EW$120,$ES$120,$ES$121))))))) -> 0.875 | EO2: =IF(CE3<$EW$122,$ES$122,IF(CE3<$EW$123,$ES$123,IF(CE3<$EW$124,$ES$124,IF(CE3<$EW$125,$ES$125,IF(CE3<$EW$126,$ES$126,IF(CE3<$EW$127,$ES$127,$ES$128)))))) -> 0.929 | EP2: 1 | EQ2: 1 | ER2: 20 | ES2: =ROUND(EQ2/ER2,3) -> 0.05 | ET2: =VLOOKUP(EQ2,$EX$2:$EY$21,2) -> ¹ | EU2: =VLOOKUP(ER2,$EX$23:$EY$42,2) -> ₂₀ | EV2: =CONCATENATE(ET2,$EX$22,EU2) -> ¹∕₂₀ | EW2: 0.052 | EX2: 1 | EY2: ¹
I3: =IF($U$2=1,"gradient m = ","gradient m") -> gradient m | N3: =IF(C9=1,CONCATENATE("= ",BC7),"=") -> = | S3: 0 | T3: =IF(BA15=1,W6+99,W6+U3) -> 100 | U3: 99 | X3: x | Y3: y | AE3: x | AF3: y | AL3: x | AM3: y | AV3: x | AW3: y | BI3: ∕ | CA3: =E24 -> 7 | CB3: =ABS(CA3) -> 7 | CD3: =ROUNDDOWN(CB3,0) -> 7 | CE3: =ROUND(CB3-CD3,3) -> 0 | CF3: =IF(CE3=CZ2,CZ3,IF(CE3=DA2,DA3,IF(CE3=DB2,DB3,IF(CE3=DC2,DC3,IF(CE3=DD2,DD3,IF(CE3=DE2,DE3,IF(CE3=DF2,DF3,CE3))))))) -> 0 | CG3: =IF(CF3=DG2,DG3,IF(CF3=DH2,DH3,CF3)) -> 0 | CH3: =IF(CG3=CE3,CONCATENATE(CC3,CD3+CG3),IF(CD3=0,CONCATENATE(CC3,CG3),CONCATENATE(CC3,CD3,CG3))) -> 7 | CI3: =IF(CE3=CZ2,"*",IF(CE3=DA2,"*",IF(CE3=DB2,"*",IF(CE3=DC2,"*",IF(CE3=DD2,"*",IF(CE3=DE2,"*",IF(CE3=DF2,"*",CO3))))))) -> • | CJ3: =IF(CF3=DG2,"*",IF(CF3=DH2,"*",CI3)) -> • | CK3: =IF(CA3=ROUND(CA3,0),"ⁿ",CJ3) -> ⁿ | CL3: =50*CA3 -> 350 | CM3: =ROUND(50*CA3,0) -> 350 | CN3: =CONCATENATE(CL3-CM3) -> 0 | CO3: =IF((ROUND(100*CA3,6)-ROUND(100*CA3,0))=0,"•","·") -> • | CP3: =ROUND(50*CA3,0) -> 350 | CQ3: =IF(DI2=1,DJ3,DQ3) -> ¹∕₂₀ | CR3: =IF(DI2=1,DK3,DR3) -> ¹∕₁₂ | CS3: =IF(DI2=1,DL3,DS3) -> ¹∕₇ | CT3: =IF(DI2=1,DM3,DT3) -> ⅕ | CU3: =IF(DI2=1,DN3,DU3) -> ⁴∕₁₅ | CV3: =IF(DI2=1,DO3,DV3) -> ⁶∕₁₉ | CW3: =IF(DI2=1,DP3,DW3) -> ⁵∕₁₃ | CX3: =IF(DI2=1,DQ3,DX3) -> ⁴∕₉ | CY3: =IF(DI2=1,DR3,DY3) -> ¹º∕₁₉ | CZ3: =IF(DI3=1,DZ3,EG3) -> ¹∕₂₀ | DA3: =IF(DI3=1,EA3,EH3) -> ¹∕₁₂ | DB3: =IF(DI3=1,EB3,EI3) -> ¹∕₇ | DC3: =IF(DI3=1,EC3,EJ3) -> ⅕ | DD3: =IF(DI3=1,ED3,EK3) -> ⁴∕₁₅ | DE3: =IF(DI3=1,EE3,EL3) -> ⁶∕₁₉ | DF3: =IF(DI3=1,EF3,EM3) -> ⁵∕₁₃ | DG3: =IF(DI3=1,EG3,EN3) -> ⁴∕₉ | DH3: =IF(DI3=1,EH3,EO3) -> ¹º∕₁₉ | DI3: =IF(CE3<0.5,1,2) -> 1 | DJ3: =IF(CE2<$EW$2,$EV$2,IF(CE2<$EW$3,$EV$3,IF(CE2<$EW$4,$EV$4,IF(CE2<$EW$5,$EV$5,IF(CE2<$EW$6,$EV$6,IF(CE2<$EW$7,$EV$7,IF(CE2<$EW$8,$EV$8,$EV$9))))))) -> ¹∕₂₀ | DK3: =IF(CE2<$EW$10,$EV$10,IF(CE2<$EW$11,$EV$11,IF(CE2<$EW$12,$EV$12,IF(CE2<$EW$13,$EV$13,IF(CE2<$EW$14,$EV$14,IF(CE2<$EW$15,$EV$15,IF(CE2<$EW$16,$EV$16,$EV$17))))))) -> ¹∕₁₂ | DL3: =IF(CE2<$EW$18,$EV$18,IF(CE2<$EW$19,$EV$19,IF(CE2<$EW$20,$EV$20,IF(CE2<$EW$21,$EV$21,IF(CE2<$EW$22,$EV$22,IF(CE2<$EW$23,$EV$23,IF(CE2<$EW$24,$EV$24,$EV$25))))))) -> ¹∕₇ | DM3: =IF(CE2<$EW$26,$EV$26,IF(CE2<$EW$27,$EV$27,IF(CE2<$EW$28,$EV$28,IF(CE2<$EW$29,$EV$29,IF(CE2<$EW$30,$EV$30,IF(CE2<$EW$31,$EV$31,IF(CE2<$EW$32,$EV$32,$EV$33))))))) -> ⅕ | DN3: =IF(CE2<$EW$34,$EV$34,IF(CE2<$EW$35,$EV$35,IF(CE2<$EW$36,$EV$36,IF(CE2<$EW$37,$EV$37,IF(CE2<$EW$38,$EV$38,IF(CE2<$EW$39,$EV$39,IF(CE2<$EW$40,$EV$40,$EV$41))))))) -> ⁴∕₁₅ | DO3: =IF(CE2<$EW$42,$EV$42,IF(CE2<$EW$43,$EV$43,IF(CE2<$EW$44,$EV$44,IF(CE2<$EW$45,$EV$45,IF(CE2<$EW$46,$EV$46,IF(CE2<$EW$47,$EV$47,IF(CE2<$EW$48,$EV$48,$EV$49))))))) -> ⁶∕₁₉ | DP3: =IF(CE2<$EW$50,$EV$50,IF(CE2<$EW$51,$EV$51,IF(CE2<$EW$52,$EV$52,IF(CE2<$EW$53,$EV$53,IF(CE2<$EW$54,$EV$54,IF(CE2<$EW$55,$EV$55,IF(CE2<$EW$56,$EV$56,$EV$57))))))) -> ⁵∕₁₃ | DQ3: =IF(CE2<$EW$58,$EV$58,IF(CE2<$EW$59,$EV$59,IF(CE2<$EW$60,$EV$60,IF(CE2<$EW$61,$EV$61,IF(CE2<$EW$62,$EV$62,IF(CE2<$EW$63,$EV$63,IF(CE2<$EW$64,$EV$64,$EV$65))))))) -> ⁴∕₉ | DR3: =IF(CE2<$EW$66,$EV$66,IF(CE2<$EW$67,$EV$67,IF(CE2<$EW$68,$EV$68,IF(CE2<$EW$69,$EV$69,IF(CE2<$EW$70,$EV$70,IF(CE2<$EW$71,$EV$71,IF(CE2<$EW$72,$EV$72,$EV$73))))))) -> ¹º∕₁₉ | DS3: =IF(CE2<$EW$74,$EV$74,IF(CE2<$EW$75,$EV$75,IF(CE2<$EW$76,$EV$76,IF(CE2<$EW$77,$EV$77,IF(CE2<$EW$78,$EV$78,IF(CE2<$EW$79,$EV$79,IF(CE2<$EW$80,$EV$80,$EV$81))))))) -> ⁴∕₇ | DT3: =IF(CE2<$EW$82,$EV$82,IF(CE2<$EW$83,$EV$83,IF(CE2<$EW$84,$EV$84,IF(CE2<$EW$85,$EV$85,IF(CE2<$EW$86,$EV$86,IF(CE2<$EW$87,$EV$87,IF(CE2<$EW$88,$EV$88,$EV$89))))))) -> ¹²∕₁₉ | DU3: =IF(CE2<$EW$90,$EV$90,IF(CE2<$EW$91,$EV$91,IF(CE2<$EW$92,$EV$92,IF(CE2<$EW$93,$EV$93,IF(CE2<$EW$94,$EV$94,IF(CE2<$EW$95,$EV$95,IF(CE2<$EW$96,$EV$96,$EV$97))))))) -> ⁹∕₁₃ | DV3: =IF(CE2<$EW$98,$EV$98,IF(CE2<$EW$99,$EV$99,IF(CE2<$EW$100,$EV$100,IF(CE2<$EW$101,$EV$101,IF(CE2<$EW$102,$EV$102,IF(CE2<$EW$103,$EV$103,IF(CE2<$EW$104,$EV$104,$EV$105))))))) -> ¾ | DW3: =IF(CE2<$EW$106,$EV$106,IF(CE2<$EW$107,$EV$107,IF(CE2<$EW$108,$EV$108,IF(CE2<$EW$109,$EV$109,IF(CE2<$EW$110,$EV$110,IF(CE2<$EW$111,$EV$111,IF(CE2<$EW$112,$EV$112,$EV$113))))))) -> ⁹∕₁₁ | DX3: =IF(CE2<$EW$114,$EV$114,IF(CE2<$EW$115,$EV$115,IF(CE2<$EW$116,$EV$116,IF(CE2<$EW$117,$EV$117,IF(CE2<$EW$118,$EV$118,IF(CE2<$EW$119,$EV$119,IF(CE2<$EW$120,$EV$120,$EV$121))))))) -> ⅞ | DY3: =IF(CE2<$EW$122,$EV$122,IF(CE2<$EW$123,$EV$123,IF(CE2<$EW$124,$EV$124,IF(CE2<$EW$125,$EV$125,IF(CE2<$EW$126,$EV$126,IF(CE2<$EW$127,$EV$127,$EV$128)))))) -> ¹³∕₁₄ | DZ3: =IF(CE3<$EW$2,$EV$2,IF(CE3<$EW$3,$EV$3,IF(CE3<$EW$4,$EV$4,IF(CE3<$EW$5,$EV$5,IF(CE3<$EW$6,$EV$6,IF(CE3<$EW$7,$EV$7,IF(CE3<$EW$8,$EV$8,$EV$9))))))) -> ¹∕₂₀ | EA3: =IF(CE3<$EW$10,$EV$10,IF(CE3<$EW$11,$EV$11,IF(CE3<$EW$12,$EV$12,IF(CE3<$EW$13,$EV$13,IF(CE3<$EW$14,$EV$14,IF(CE3<$EW$15,$EV$15,IF(CE3<$EW$16,$EV$16,$EV$17))))))) -> ¹∕₁₂ | EB3: =IF(CE3<$EW$18,$EV$18,IF(CE3<$EW$19,$EV$19,IF(CE3<$EW$20,$EV$20,IF(CE3<$EW$21,$EV$21,IF(CE3<$EW$22,$EV$22,IF(CE3<$EW$23,$EV$23,IF(CE3<$EW$24,$EV$24,$EV$25))))))) -> ¹∕₇ | EC3: =IF(CE3<$EW$26,$EV$26,IF(CE3<$EW$27,$EV$27,IF(CE3<$EW$28,$EV$28,IF(CE3<$EW$29,$EV$29,IF(CE3<$EW$30,$EV$30,IF(CE3<$EW$31,$EV$31,IF(CE3<$EW$32,$EV$32,$EV$33))))))) -> ⅕ | ED3: =IF(CE3<$EW$34,$EV$34,IF(CE3<$EW$35,$EV$35,IF(CE3<$EW$36,$EV$36,IF(CE3<$EW$37,$EV$37,IF(CE3<$EW$38,$EV$38,IF(CE3<$EW$39,$EV$39,IF(CE3<$EW$40,$EV$40,$EV$41))))))) -> ⁴∕₁₅ | EE3: =IF(CE3<$EW$42,$EV$42,IF(CE3<$EW$43,$EV$43,IF(CE3<$EW$44,$EV$44,IF(CE3<$EW$45,$EV$45,IF(CE3<$EW$46,$EV$46,IF(CE3<$EW$47,$EV$47,IF(CE3<$EW$48,$EV$48,$EV$49))))))) -> ⁶∕₁₉ | EF3: =IF(CE3<$EW$50,$EV$50,IF(CE3<$EW$51,$EV$51,IF(CE3<$EW$52,$EV$52,IF(CE3<$EW$53,$EV$53,IF(CE3<$EW$54,$EV$54,IF(CE3<$EW$55,$EV$55,IF(CE3<$EW$56,$EV$56,$EV$57))))))) -> ⁵∕₁₃ | EG3: =IF(CE3<$EW$58,$EV$58,IF(CE3<$EW$59,$EV$59,IF(CE3<$EW$60,$EV$60,IF(CE3<$EW$61,$EV$61,IF(CE3<$EW$62,$EV$62,IF(CE3<$EW$63,$EV$63,IF(CE3<$EW$64,$EV$64,$EV$65))))))) -> ⁴∕₉ | EH3: =IF(CE3<$EW$66,$EV$66,IF(CE3<$EW$67,$EV$67,IF(CE3<$EW$68,$EV$68,IF(CE3<$EW$69,$EV$69,IF(CE3<$EW$70,$EV$70,IF(CE3<$EW$71,$EV$71,IF(CE3<$EW$72,$EV$72,$EV$73))))))) -> ¹º∕₁₉ | EI3: =IF(CE3<$EW$74,$EV$74,IF(CE3<$EW$75,$EV$75,IF(CE3<$EW$76,$EV$76,IF(CE3<$EW$77,$EV$77,IF(CE3<$EW$78,$EV$78,IF(CE3<$EW$79,$EV$79,IF(CE3<$EW$80,$EV$80,$EV$81))))))) -> ⁴∕₇ | EJ3: =IF(CE3<$EW$82,$EV$82,IF(CE3<$EW$83,$EV$83,IF(CE3<$EW$84,$EV$84,IF(CE3<$EW$85,$EV$85,IF(CE3<$EW$86,$EV$86,IF(CE3<$EW$87,$EV$87,IF(CE3<$EW$88,$EV$88,$EV$89))))))) -> ¹²∕₁₉ | EK3: =IF(CE3<$EW$90,$EV$90,IF(CE3<$EW$91,$EV$91,IF(CE3<$EW$92,$EV$92,IF(CE3<$EW$93,$EV$93,IF(CE3<$EW$94,$EV$94,IF(CE3<$EW$95,$EV$95,IF(CE3<$EW$96,$EV$96,$EV$97))))))) -> ⁹∕₁₃ | EL3: =IF(CE3<$EW$98,$EV$98,IF(CE3<$EW$99,$EV$99,IF(CE3<$EW$100,$EV$100,IF(CE3<$EW$101,$EV$101,IF(CE3<$EW$102,$EV$102,IF(CE3<$EW$103,$EV$103,IF(CE3<$EW$104,$EV$104,$EV$105))))))) -> ¾ | EM3: =IF(CE3<$EW$106,$EV$106,IF(CE3<$EW$107,$EV$107,IF(CE3<$EW$108,$EV$108,IF(CE3<$EW$109,$EV$109,IF(CE3<$EW$110,$EV$110,IF(CE3<$EW$111,$EV$111,IF(CE3<$EW$112,$EV$112,$EV$113))))))) -> ⁹∕₁₁ | EN3: =IF(CE3<$EW$114,$EV$114,IF(CE3<$EW$115,$EV$115,IF(CE3<$EW$116,$EV$116,IF(CE3<$EW$117,$EV$117,IF(CE3<$EW$118,$EV$118,IF(CE3<$EW$119,$EV$119,IF(CE3<$EW$120,$EV$120,$EV$121))))))) -> ⅞ | EO3: =IF(CE3<$EW$122,$EV$122,IF(CE3<$EW$123,$EV$123,IF(CE3<$EW$124,$EV$124,IF(CE3<$EW$125,$EV$125,IF(CE3<$EW$126,$EV$126,IF(CE3<$EW$127,$EV$127,$EV$128)))))) -> ¹³∕₁₄ | EP3: 2 | EQ3: 1 | ER3: 19 | ES3: =ROUND(EQ3/ER3,3) -> 0.053 | ET3: ¹ | EU3: ₁₉ | EV3: ¹∕₁₉ | EW3: 0.055 | EX3: 2 | EY3: ²
S4: =IF(U5=1,S3+V6,S3-V6) -> 1 | T4: =IF(U5=1,T3+U6,T3-U6) -> 102 | U4: 0 | X4: -10 | Y4: =$AA$7*X4^3+$AB$7*X4^2+$AC$7*X4+$AD$7 -> -87 | AB4: 0 | AE4: -10 | AF4: =$AH$7*AE4^3+$AI$7*AE4^2+$AJ$7*AE4+$AK$7 -> -31 | AI4: 0 | AL4: -10 | AM4: =$AO$7*AL4^3+$AP$7*AL4^2+$AQ$7*AL4+$AR$7 -> -10 | AS4: 1 | AV4: -10 | AW4: =$AY$7*AV4^3+$AZ$7*AV4^2+$BA$7*AV4+$BB$7 -> -19 | BE4: concx³ | BF4: concx²a | BG4: concx²b | BH4: concxa | BI4: concxb | BJ4: concda | BK4: concdb | BL4: op1 | BM4: op2 | BN4: op3 | BO4: op4 | CA4: =EQNGRAPOS!T26 -> 2 | CB4: =ABS(CA4) -> 2 | CD4: =ROUNDDOWN(CB4,0) -> 2 | CE4: =ROUND(CB4-CD4,3) -> 0 | CF4: =IF(CE4=CQ4,CQ5,IF(CE4=CR4,CR5,IF(CE4=CS4,CS5,IF(CE4=CT4,CT5,IF(CE4=CU4,CU5,IF(CE4=CV4,CV5,IF(CE4=CW4,CW5,CE4))))))) -> 0 | CG4: =IF(CF4=CX4,CX5,IF(CF4=CY4,CY5,CF4)) -> 0 | CH4: =IF(CG4=CE4,CONCATENATE(CC4,CD4+CG4),IF(CD4=0,CONCATENATE(CC4,CG4),CONCATENATE(CC4,CD4,CG4))) -> 2 | CI4: =IF(CE4=CQ4,"*",IF(CE4=CR4,"*",IF(CE4=CS4,"*",IF(CE4=CT4,"*",IF(CE4=CU4,"*",IF(CE4=CV4,"*",IF(CE4=CW4,"*",CO4))))))) -> • | CJ4: =IF(CF4=CX4,"*",IF(CF4=CY4,"*",CI4)) -> • | CK4: =IF(CA4=ROUND(CA4,0),"ⁿ",CJ4) -> ⁿ | CL4: =50*CA4 -> 100 | CM4: =ROUND(50*CA4,0) -> 100 | CN4: =CONCATENATE(CL4-CM4) -> 0 | CO4: =IF((ROUND(100*CA4,6)-ROUND(100*CA4,0))=0,"•","·") -> • | CP4: =50*CA5 -> 250 | CQ4: =IF(DI4=1,DJ4,DQ4) -> 0.05 | CR4: =IF(DI4=1,DK4,DR4) -> 0.083 | CS4: =IF(DI4=1,DL4,DS4) -> 0.143 | CT4: =IF(DI4=1,DM4,DT4) -> 0.2 | CU4: =IF(DI4=1,DN4,DU4) -> 0.267 | CV4: =IF(DI4=1,DO4,DV4) -> 0.316 | CW4: =IF(DI4=1,DP4,DW4) -> 0.385 | CX4: =IF(DI4=1,DQ4,DX4) -> 0.444 | CY4: =IF(DI4=1,DR4,DY4) -> 0.526 | CZ4: =IF(DI5=1,DZ4,EG4) -> 0.05 | DA4: =IF(DI5=1,EA4,EH4) -> 0.083 | DB4: =IF(DI5=1,EB4,EI4) -> 0.143 | DC4: =IF(DI5=1,EC4,EJ4) -> 0.2 | DD4: =IF(DI5=1,ED4,EK4) -> 0.267 | DE4: =IF(DI5=1,EE4,EL4) -> 0.316 | DF4: =IF(DI5=1,EF4,EM4) -> 0.385 | DG4: =IF(DI5=1,EG4,EN4) -> 0.444 | DH4: =IF(DI5=1,EH4,EO4) -> 0.526 | DI4: =IF(CE4<0.5,1,2) -> 1 | DJ4: =IF(CE4<$EW$2,$ES$2,IF(CE4<$EW$3,$ES$3,IF(CE4<$EW$4,$ES$4,IF(CE4<$EW$5,$ES$5,IF(CE4<$EW$6,$ES$6,IF(CE4<$EW$7,$ES$7,IF(CE4<$EW$8,$ES$8,$ES$9))))))) -> 0.05 | DK4: =IF(CE4<$EW$10,$ES$10,IF(CE4<$EW$11,$ES$11,IF(CE4<$EW$12,$ES$12,IF(CE4<$EW$13,$ES$13,IF(CE4<$EW$14,$ES$14,IF(CE4<$EW$15,$ES$15,IF(CE4<$EW$16,$ES$16,$ES$17))))))) -> 0.083 | DL4: =IF(CE4<$EW$18,$ES$18,IF(CE4<$EW$19,$ES$19,IF(CE4<$EW$20,$ES$20,IF(CE4<$EW$21,$ES$21,IF(CE4<$EW$22,$ES$22,IF(CE4<$EW$23,$ES$23,IF(CE4<$EW$24,$ES$24,$ES$25))))))) -> 0.143 | DM4: =IF(CE4<$EW$26,$ES$26,IF(CE4<$EW$27,$ES$27,IF(CE4<$EW$28,$ES$28,IF(CE4<$EW$29,$ES$29,IF(CE4<$EW$30,$ES$30,IF(CE4<$EW$31,$ES$31,IF(CE4<$EW$32,$ES$32,$ES$33))))))) -> 0.2 | DN4: =IF(CE4<$EW$34,$ES$34,IF(CE4<$EW$35,$ES$35,IF(CE4<$EW$36,$ES$36,IF(CE4<$EW$37,$ES$37,IF(CE4<$EW$38,$ES$38,IF(CE4<$EW$39,$ES$39,IF(CE4<$EW$40,$ES$40,$ES$41))))))) -> 0.267 | DO4: =IF(CE4<$EW$42,$ES$42,IF(CE4<$EW$43,$ES$43,IF(CE4<$EW$44,$ES$44,IF(CE4<$EW$45,$ES$45,IF(CE4<$EW$46,$ES$46,IF(CE4<$EW$47,$ES$47,IF(CE4<$EW$48,$ES$48,$ES$49))))))) -> 0.316 | DP4: =IF(CE4<$EW$50,$ES$50,IF(CE4<$EW$51,$ES$51,IF(CE4<$EW$52,$ES$52,IF(CE4<$EW$53,$ES$53,IF(CE4<$EW$54,$ES$54,IF(CE4<$EW$55,$ES$55,IF(CE4<$EW$56,$ES$56,$ES$57))))))) -> 0.385 | DQ4: =IF(CE4<$EW$58,$ES$58,IF(CE4<$EW$59,$ES$59,IF(CE4<$EW$60,$ES$60,IF(CE4<$EW$61,$ES$61,IF(CE4<$EW$62,$ES$62,IF(CE4<$EW$63,$ES$63,IF(CE4<$EW$64,$ES$64,$ES$65))))))) -> 0.444 | DR4: =IF(CE4<$EW$66,$ES$66,IF(CE4<$EW$67,$ES$67,IF(CE4<$EW$68,$ES$68,IF(CE4<$EW$69,$ES$69,IF(CE4<$EW$70,$ES$70,IF(CE4<$EW$71,$ES$71,IF(CE4<$EW$72,$ES$72,$ES$73))))))) -> 0.526 | DS4: =IF(CE4<$EW$74,$ES$74,IF(CE4<$EW$75,$ES$75,IF(CE4<$EW$76,$ES$76,IF(CE4<$EW$77,$ES$77,IF(CE4<$EW$78,$ES$78,IF(CE4<$EW$79,$ES$79,IF(CE4<$EW$80,$ES$80,$ES$81))))))) -> 0.571 | DT4: =IF(CE4<$EW$82,$ES$82,IF(CE4<$EW$83,$ES$83,IF(CE4<$EW$84,$ES$84,IF(CE4<$EW$85,$ES$85,IF(CE4<$EW$86,$ES$86,IF(CE4<$EW$87,$ES$87,IF(CE4<$EW$88,$ES$88,$ES$89))))))) -> 0.632 | DU4: =IF(CE4<$EW$90,$ES$90,IF(CE4<$EW$91,$ES$91,IF(CE4<$EW$92,$ES$92,IF(CE4<$EW$93,$ES$93,IF(CE4<$EW$94,$ES$94,IF(CE4<$EW$95,$ES$95,IF(CE4<$EW$96,$ES$96,$ES$97))))))) -> 0.692 | DV4: =IF(CE4<$EW$98,$ES$98,IF(CE4<$EW$99,$ES$99,IF(CE4<$EW$100,$ES$100,IF(CE4<$EW$101,$ES$101,IF(CE4<$EW$102,$ES$102,IF(CE4<$EW$103,$ES$103,IF(CE4<$EW$104,$ES$104,$ES$105))))))) -> 0.75 | DW4: =IF(CE4<$EW$106,$ES$106,IF(CE4<$EW$107,$ES$107,IF(CE4<$EW$108,$ES$108,IF(CE4<$EW$109,$ES$109,IF(CE4<$EW$110,$ES$110,IF(CE4<$EW$111,$ES$111,IF(CE4<$EW$112,$ES$112,$ES$113))))))) -> 0.818 | DX4: =IF(CE4<$EW$114,$ES$114,IF(CE4<$EW$115,$ES$115,IF(CE4<$EW$116,$ES$116,IF(CE4<$EW$117,$ES$117,IF(CE4<$EW$118,$ES$118,IF(CE4<$EW$119,$ES$119,IF(CE4<$EW$120,$ES$120,$ES$121))))))) -> 0.875 | DY4: =IF(CE4<$EW$122,$ES$122,IF(CE4<$EW$123,$ES$123,IF(CE4<$EW$124,$ES$124,IF(CE4<$EW$125,$ES$125,IF(CE4<$EW$126,$ES$126,IF(CE4<$EW$127,$ES$127,$ES$128)))))) -> 0.929 | DZ4: =IF(CE5<$EW$2,$ES$2,IF(CE5<$EW$3,$ES$3,IF(CE5<$EW$4,$ES$4,IF(CE5<$EW$5,$ES$5,IF(CE5<$EW$6,$ES$6,IF(CE5<$EW$7,$ES$7,IF(CE5<$EW$8,$ES$8,$ES$9))))))) -> 0.05 | EA4: =IF(CE5<$EW$10,$ES$10,IF(CE5<$EW$11,$ES$11,IF(CE5<$EW$12,$ES$12,IF(CE5<$EW$13,$ES$13,IF(CE5<$EW$14,$ES$14,IF(CE5<$EW$15,$ES$15,IF(CE5<$EW$16,$ES$16,$ES$17))))))) -> 0.083 | EB4: =IF(CE5<$EW$18,$ES$18,IF(CE5<$EW$19,$ES$19,IF(CE5<$EW$20,$ES$20,IF(CE5<$EW$21,$ES$21,IF(CE5<$EW$22,$ES$22,IF(CE5<$EW$23,$ES$23,IF(CE5<$EW$24,$ES$24,$ES$25))))))) -> 0.143 | EC4: =IF(CE5<$EW$26,$ES$26,IF(CE5<$EW$27,$ES$27,IF(CE5<$EW$28,$ES$28,IF(CE5<$EW$29,$ES$29,IF(CE5<$EW$30,$ES$30,IF(CE5<$EW$31,$ES$31,IF(CE5<$EW$32,$ES$32,$ES$33))))))) -> 0.2 | ED4: =IF(CE5<$EW$34,$ES$34,IF(CE5<$EW$35,$ES$35,IF(CE5<$EW$36,$ES$36,IF(CE5<$EW$37,$ES$37,IF(CE5<$EW$38,$ES$38,IF(CE5<$EW$39,$ES$39,IF(CE5<$EW$40,$ES$40,$ES$41))))))) -> 0.267 | EE4: =IF(CE5<$EW$42,$ES$42,IF(CE5<$EW$43,$ES$43,IF(CE5<$EW$44,$ES$44,IF(CE5<$EW$45,$ES$45,IF(CE5<$EW$46,$ES$46,IF(CE5<$EW$47,$ES$47,IF(CE5<$EW$48,$ES$48,$ES$49))))))) -> 0.316 | EF4: =IF(CE5<$EW$50,$ES$50,IF(CE5<$EW$51,$ES$51,IF(CE5<$EW$52,$ES$52,IF(CE5<$EW$53,$ES$53,IF(CE5<$EW$54,$ES$54,IF(CE5<$EW$55,$ES$55,IF(CE5<$EW$56,$ES$56,$ES$57))))))) -> 0.385 | EG4: =IF(CE5<$EW$58,$ES$58,IF(CE5<$EW$59,$ES$59,IF(CE5<$EW$60,$ES$60,IF(CE5<$EW$61,$ES$61,IF(CE5<$EW$62,$ES$62,IF(CE5<$EW$63,$ES$63,IF(CE5<$EW$64,$ES$64,$ES$65))))))) -> 0.444 | EH4: =IF(CE5<$EW$66,$ES$66,IF(CE5<$EW$67,$ES$67,IF(CE5<$EW$68,$ES$68,IF(CE5<$EW$69,$ES$69,IF(CE5<$EW$70,$ES$70,IF(CE5<$EW$71,$ES$71,IF(CE5<$EW$72,$ES$72,$ES$73))))))) -> 0.526 | EI4: =IF(CE5<$EW$74,$ES$74,IF(CE5<$EW$75,$ES$75,IF(CE5<$EW$76,$ES$76,IF(CE5<$EW$77,$ES$77,IF(CE5<$EW$78,$ES$78,IF(CE5<$EW$79,$ES$79,IF(CE5<$EW$80,$ES$80,$ES$81))))))) -> 0.571 | EJ4: =IF(CE5<$EW$82,$ES$82,IF(CE5<$EW$83,$ES$83,IF(CE5<$EW$84,$ES$84,IF(CE5<$EW$85,$ES$85,IF(CE5<$EW$86,$ES$86,IF(CE5<$EW$87,$ES$87,IF(CE5<$EW$88,$ES$88,$ES$89))))))) -> 0.632 | EK4: =IF(CE5<$EW$90,$ES$90,IF(CE5<$EW$91,$ES$91,IF(CE5<$EW$92,$ES$92,IF(CE5<$EW$93,$ES$93,IF(CE5<$EW$94,$ES$94,IF(CE5<$EW$95,$ES$95,IF(CE5<$EW$96,$ES$96,$ES$97))))))) -> 0.692 | EL4: =IF(CE5<$EW$98,$ES$98,IF(CE5<$EW$99,$ES$99,IF(CE5<$EW$100,$ES$100,IF(CE5<$EW$101,$ES$101,IF(CE5<$EW$102,$ES$102,IF(CE5<$EW$103,$ES$103,IF(CE5<$EW$104,$ES$104,$ES$105))))))) -> 0.75 | EM4: =IF(CE5<$EW$106,$ES$106,IF(CE5<$EW$107,$ES$107,IF(CE5<$EW$108,$ES$108,IF(CE5<$EW$109,$ES$109,IF(CE5<$EW$110,$ES$110,IF(CE5<$EW$111,$ES$111,IF(CE5<$EW$112,$ES$112,$ES$113))))))) -> 0.818 | EN4: =IF(CE5<$EW$114,$ES$114,IF(CE5<$EW$115,$ES$115,IF(CE5<$EW$116,$ES$116,IF(CE5<$EW$117,$ES$117,IF(CE5<$EW$118,$ES$118,IF(CE5<$EW$119,$ES$119,IF(CE5<$EW$120,$ES$120,$ES$121))))))) -> 0.875 | EO4: =IF(CE5<$EW$122,$ES$122,IF(CE5<$EW$123,$ES$123,IF(CE5<$EW$124,$ES$124,IF(CE5<$EW$125,$ES$125,IF(CE5<$EW$126,$ES$126,IF(CE5<$EW$127,$ES$127,$ES$128)))))) -> 0.929 | EP4: 3 | EQ4: 1 | ER4: 18 | ES4: 0.056 | ET4: ¹ | EU4: ₁₈ | EV4: ¹∕₁₈ | EW4: 0.058 | EX4: 3 | EY4: ³
S5: =IF(U5=1,S4,S3) -> 1 | T5: =IF(U5=1,T3,T4) -> 100 | U5: =IF(AND(ABS(T3+U6)>ABS(T3-U6),ABS(T3+U6)>5,ABS(T3-U6)<=5),2,1) -> 1 | X5: -9.9 | Y5: =$AA$7*X5^3+$AB$7*X5^2+$AC$7*X5+$AD$7 -> -86.1 | AE5: -9.9 | AF5: -30.7 | AL5: -9.9 | AM5: -9.9 | AV5: -9.9 | AW5: -18.8 | BD5: 1 | BE5: 9x³ | BF5: + 9x² | BG5: 9x² | BH5: x | BI5: =CONCATENATE(9,$S$2," ") -> 9𝒙 | BJ5: + 9 | BK5: 9 | BL5: 9 | BM5: 9 | BN5: 9 | BO5: 9 | BP5: 9 | BQ5: 1 | BU5: ∞ | CA5: =EQNGRAPOS!T27 -> 5 | CB5: 5 | CD5: 5 | CE5: 0 | CF5: =IF(CE5=CZ4,CZ5,IF(CE5=DA4,DA5,IF(CE5=DB4,DB5,IF(CE5=DC4,DC5,IF(CE5=DD4,DD5,IF(CE5=DE4,DE5,IF(CE5=DF4,DF5,CE5))))))) -> 0 | CG5: =IF(CF5=DG4,DG5,IF(CF5=DH4,DH5,CF5)) -> 0 | CH5: 5 | CI5: =IF(CE5=CZ4,"*",IF(CE5=DA4,"*",IF(CE5=DB4,"*",IF(CE5=DC4,"*",IF(CE5=DD4,"*",IF(CE5=DE4,"*",IF(CE5=DF4,"*",CO5))))))) -> • | CJ5: =IF(CF5=DG4,"*",IF(CF5=DH4,"*",CI5)) -> • | CK5: ⁿ | CL5: 250 | CM5: 250 | CN5: 0 | CO5: • | CP5: =ROUND(50*CA5,0) -> 250 | CQ5: =IF(DI4=1,DJ5,DQ5) -> ¹∕₂₀ | CR5: =IF(DI4=1,DK5,DR5) -> ¹∕₁₂ | CS5: =IF(DI4=1,DL5,DS5) -> ¹∕₇ | CT5: =IF(DI4=1,DM5,DT5) -> ⅕ | CU5: =IF(DI4=1,DN5,DU5) -> ⁴∕₁₅ | CV5: =IF(DI4=1,DO5,DV5) -> ⁶∕₁₉ | CW5: =IF(DI4=1,DP5,DW5) -> ⁵∕₁₃ | CX5: =IF(DI4=1,DQ5,DX5) -> ⁴∕₉ | CY5: =IF(DI4=1,DR5,DY5) -> ¹º∕₁₉ | CZ5: =IF(DI5=1,DZ5,EG5) -> ¹∕₂₀ | DA5: =IF(DI5=1,EA5,EH5) -> ¹∕₁₂ | DB5: =IF(DI5=1,EB5,EI5) -> ¹∕₇ | DC5: =IF(DI5=1,EC5,EJ5) -> ⅕ | DD5: =IF(DI5=1,ED5,EK5) -> ⁴∕₁₅ | DE5: =IF(DI5=1,EE5,EL5) -> ⁶∕₁₉ | DF5: =IF(DI5=1,EF5,EM5) -> ⁵∕₁₃ | DG5: =IF(DI5=1,EG5,EN5) -> ⁴∕₉ | DH5: =IF(DI5=1,EH5,EO5) -> ¹º∕₁₉ | DI5: 1 | DJ5: =IF(CE4<$EW$2,$EV$2,IF(CE4<$EW$3,$EV$3,IF(CE4<$EW$4,$EV$4,IF(CE4<$EW$5,$EV$5,IF(CE4<$EW$6,$EV$6,IF(CE4<$EW$7,$EV$7,IF(CE4<$EW$8,$EV$8,$EV$9))))))) -> ¹∕₂₀ | DK5: =IF(CE4<$EW$10,$EV$10,IF(CE4<$EW$11,$EV$11,IF(CE4<$EW$12,$EV$12,IF(CE4<$EW$13,$EV$13,IF(CE4<$EW$14,$EV$14,IF(CE4<$EW$15,$EV$15,IF(CE4<$EW$16,$EV$16,$EV$17))))))) -> ¹∕₁₂ | DL5: =IF(CE4<$EW$18,$EV$18,IF(CE4<$EW$19,$EV$19,IF(CE4<$EW$20,$EV$20,IF(CE4<$EW$21,$EV$21,IF(CE4<$EW$22,$EV$22,IF(CE4<$EW$23,$EV$23,IF(CE4<$EW$24,$EV$24,$EV$25))))))) -> ¹∕₇ | DM5: =IF(CE4<$EW$26,$EV$26,IF(CE4<$EW$27,$EV$27,IF(CE4<$EW$28,$EV$28,IF(CE4<$EW$29,$EV$29,IF(CE4<$EW$30,$EV$30,IF(CE4<$EW$31,$EV$31,IF(CE4<$EW$32,$EV$32,$EV$33))))))) -> ⅕ | DN5: =IF(CE4<$EW$34,$EV$34,IF(CE4<$EW$35,$EV$35,IF(CE4<$EW$36,$EV$36,IF(CE4<$EW$37,$EV$37,IF(CE4<$EW$38,$EV$38,IF(CE4<$EW$39,$EV$39,IF(CE4<$EW$40,$EV$40,$EV$41))))))) -> ⁴∕₁₅ | DO5: =IF(CE4<$EW$42,$EV$42,IF(CE4<$EW$43,$EV$43,IF(CE4<$EW$44,$EV$44,IF(CE4<$EW$45,$EV$45,IF(CE4<$EW$46,$EV$46,IF(CE4<$EW$47,$EV$47,IF(CE4<$EW$48,$EV$48,$EV$49))))))) -> ⁶∕₁₉ | DP5: =IF(CE4<$EW$50,$EV$50,IF(CE4<$EW$51,$EV$51,IF(CE4<$EW$52,$EV$52,IF(CE4<$EW$53,$EV$53,IF(CE4<$EW$54,$EV$54,IF(CE4<$EW$55,$EV$55,IF(CE4<$EW$56,$EV$56,$EV$57))))))) -> ⁵∕₁₃ | DQ5: =IF(CE4<$EW$58,$EV$58,IF(CE4<$EW$59,$EV$59,IF(CE4<$EW$60,$EV$60,IF(CE4<$EW$61,$EV$61,IF(CE4<$EW$62,$EV$62,IF(CE4<$EW$63,$EV$63,IF(CE4<$EW$64,$EV$64,$EV$65))))))) -> ⁴∕₉ | DR5: =IF(CE4<$EW$66,$EV$66,IF(CE4<$EW$67,$EV$67,IF(CE4<$EW$68,$EV$68,IF(CE4<$EW$69,$EV$69,IF(CE4<$EW$70,$EV$70,IF(CE4<$EW$71,$EV$71,IF(CE4<$EW$72,$EV$72,$EV$73))))))) -> ¹º∕₁₉ | DS5: =IF(CE4<$EW$74,$EV$74,IF(CE4<$EW$75,$EV$75,IF(CE4<$EW$76,$EV$76,IF(CE4<$EW$77,$EV$77,IF(CE4<$EW$78,$EV$78,IF(CE4<$EW$79,$EV$79,IF(CE4<$EW$80,$EV$80,$EV$81))))))) -> ⁴∕₇ | DT5: =IF(CE4<$EW$82,$EV$82,IF(CE4<$EW$83,$EV$83,IF(CE4<$EW$84,$EV$84,IF(CE4<$EW$85,$EV$85,IF(CE4<$EW$86,$EV$86,IF(CE4<$EW$87,$EV$87,IF(CE4<$EW$88,$EV$88,$EV$89))))))) -> ¹²∕₁₉ | DU5: =IF(CE4<$EW$90,$EV$90,IF(CE4<$EW$91,$EV$91,IF(CE4<$EW$92,$EV$92,IF(CE4<$EW$93,$EV$93,IF(CE4<$EW$94,$EV$94,IF(CE4<$EW$95,$EV$95,IF(CE4<$EW$96,$EV$96,$EV$97))))))) -> ⁹∕₁₃ | DV5: =IF(CE4<$EW$98,$EV$98,IF(CE4<$EW$99,$EV$99,IF(CE4<$EW$100,$EV$100,IF(CE4<$EW$101,$EV$101,IF(CE4<$EW$102,$EV$102,IF(CE4<$EW$103,$EV$103,IF(CE4<$EW$104,$EV$104,$EV$105))))))) -> ¾ | DW5: =IF(CE4<$EW$106,$EV$106,IF(CE4<$EW$107,$EV$107,IF(CE4<$EW$108,$EV$108,IF(CE4<$EW$109,$EV$109,IF(CE4<$EW$110,$EV$110,IF(CE4<$EW$111,$EV$111,IF(CE4<$EW$112,$EV$112,$EV$113))))))) -> ⁹∕₁₁ | DX5: =IF(CE4<$EW$114,$EV$114,IF(CE4<$EW$115,$EV$115,IF(CE4<$EW$116,$EV$116,IF(CE4<$EW$117,$EV$117,IF(CE4<$EW$118,$EV$118,IF(CE4<$EW$119,$EV$119,IF(CE4<$EW$120,$EV$120,$EV$121))))))) -> ⅞ | DY5: =IF(CE4<$EW$122,$EV$122,IF(CE4<$EW$123,$EV$123,IF(CE4<$EW$124,$EV$124,IF(CE4<$EW$125,$EV$125,IF(CE4<$EW$126,$EV$126,IF(CE4<$EW$127,$EV$127,$EV$128)))))) -> ¹³∕₁₄ | DZ5: =IF(CE5<$EW$2,$EV$2,IF(CE5<$EW$3,$EV$3,IF(CE5<$EW$4,$EV$4,IF(CE5<$EW$5,$EV$5,IF(CE5<$EW$6,$EV$6,IF(CE5<$EW$7,$EV$7,IF(CE5<$EW$8,$EV$8,$EV$9))))))) -> ¹∕₂₀ | EA5: =IF(CE5<$EW$10,$EV$10,IF(CE5<$EW$11,$EV$11,IF(CE5<$EW$12,$EV$12,IF(CE5<$EW$13,$EV$13,IF(CE5<$EW$14,$EV$14,IF(CE5<$EW$15,$EV$15,IF(CE5<$EW$16,$EV$16,$EV$17))))))) -> ¹∕₁₂ | EB5: =IF(CE5<$EW$18,$EV$18,IF(CE5<$EW$19,$EV$19,IF(CE5<$EW$20,$EV$20,IF(CE5<$EW$21,$EV$21,IF(CE5<$EW$22,$EV$22,IF(CE5<$EW$23,$EV$23,IF(CE5<$EW$24,$EV$24,$EV$25))))))) -> ¹∕₇ | EC5: =IF(CE5<$EW$26,$EV$26,IF(CE5<$EW$27,$EV$27,IF(CE5<$EW$28,$EV$28,IF(CE5<$EW$29,$EV$29,IF(CE5<$EW$30,$EV$30,IF(CE5<$EW$31,$EV$31,IF(CE5<$EW$32,$EV$32,$EV$33))))))) -> ⅕ | ED5: =IF(CE5<$EW$34,$EV$34,IF(CE5<$EW$35,$EV$35,IF(CE5<$EW$36,$EV$36,IF(CE5<$EW$37,$EV$37,IF(CE5<$EW$38,$EV$38,IF(CE5<$EW$39,$EV$39,IF(CE5<$EW$40,$EV$40,$EV$41))))))) -> ⁴∕₁₅ | EE5: =IF(CE5<$EW$42,$EV$42,IF(CE5<$EW$43,$EV$43,IF(CE5<$EW$44,$EV$44,IF(CE5<$EW$45,$EV$45,IF(CE5<$EW$46,$EV$46,IF(CE5<$EW$47,$EV$47,IF(CE5<$EW$48,$EV$48,$EV$49))))))) -> ⁶∕₁₉ | EF5: =IF(CE5<$EW$50,$EV$50,IF(CE5<$EW$51,$EV$51,IF(CE5<$EW$52,$EV$52,IF(CE5<$EW$53,$EV$53,IF(CE5<$EW$54,$EV$54,IF(CE5<$EW$55,$EV$55,IF(CE5<$EW$56,$EV$56,$EV$57))))))) -> ⁵∕₁₃ | EG5: =IF(CE5<$EW$58,$EV$58,IF(CE5<$EW$59,$EV$59,IF(CE5<$EW$60,$EV$60,IF(CE5<$EW$61,$EV$61,IF(CE5<$EW$62,$EV$62,IF(CE5<$EW$63,$EV$63,IF(CE5<$EW$64,$EV$64,$EV$65))))))) -> ⁴∕₉ | EH5: =IF(CE5<$EW$66,$EV$66,IF(CE5<$EW$67,$EV$67,IF(CE5<$EW$68,$EV$68,IF(CE5<$EW$69,$EV$69,IF(CE5<$EW$70,$EV$70,IF(CE5<$EW$71,$EV$71,IF(CE5<$EW$72,$EV$72,$EV$73))))))) -> ¹º∕₁₉ | EI5: =IF(CE5<$EW$74,$EV$74,IF(CE5<$EW$75,$EV$75,IF(CE5<$EW$76,$EV$76,IF(CE5<$EW$77,$EV$77,IF(CE5<$EW$78,$EV$78,IF(CE5<$EW$79,$EV$79,IF(CE5<$EW$80,$EV$80,$EV$81))))))) -> ⁴∕₇ | EJ5: =IF(CE5<$EW$82,$EV$82,IF(CE5<$EW$83,$EV$83,IF(CE5<$EW$84,$EV$84,IF(CE5<$EW$85,$EV$85,IF(CE5<$EW$86,$EV$86,IF(CE5<$EW$87,$EV$87,IF(CE5<$EW$88,$EV$88,$EV$89))))))) -> ¹²∕₁₉ | EK5: =IF(CE5<$EW$90,$EV$90,IF(CE5<$EW$91,$EV$91,IF(CE5<$EW$92,$EV$92,IF(CE5<$EW$93,$EV$93,IF(CE5<$EW$94,$EV$94,IF(CE5<$EW$95,$EV$95,IF(CE5<$EW$96,$EV$96,$EV$97))))))) -> ⁹∕₁₃ | EL5: =IF(CE5<$EW$98,$EV$98,IF(CE5<$EW$99,$EV$99,IF(CE5<$EW$100,$EV$100,IF(CE5<$EW$101,$EV$101,IF(CE5<$EW$102,$EV$102,IF(CE5<$EW$103,$EV$103,IF(CE5<$EW$104,$EV$104,$EV$105))))))) -> ¾ | EM5: =IF(CE5<$EW$106,$EV$106,IF(CE5<$EW$107,$EV$107,IF(CE5<$EW$108,$EV$108,IF(CE5<$EW$109,$EV$109,IF(CE5<$EW$110,$EV$110,IF(CE5<$EW$111,$EV$111,IF(CE5<$EW$112,$EV$112,$EV$113))))))) -> ⁹∕₁₁ | EN5: =IF(CE5<$EW$114,$EV$114,IF(CE5<$EW$115,$EV$115,IF(CE5<$EW$116,$EV$116,IF(CE5<$EW$117,$EV$117,IF(CE5<$EW$118,$EV$118,IF(CE5<$EW$119,$EV$119,IF(CE5<$EW$120,$EV$120,$EV$121))))))) -> ⅞ | EO5: =IF(CE5<$EW$122,$EV$122,IF(CE5<$EW$123,$EV$123,IF(CE5<$EW$124,$EV$124,IF(CE5<$EW$125,$EV$125,IF(CE5<$EW$126,$EV$126,IF(CE5<$EW$127,$EV$127,$EV$128)))))) -> ¹³∕₁₄ | EP5: 4 | EQ5: 1 | ER5: 17 | ES5: 0.059 | ET5: ¹ | EU5: ₁₇ | EV5: ¹∕₁₇ | EW5: 0.061 | EX5: 4 | EY5: ⁴
M6: =CONCATENATE(IF(BA15=1,S2,T2),"-intercept",IF(BA15=1,""," c")) -> y-intercept c | N6: =IF(D9=1,CONCATENATE("= ",IF(BB7<0,"−",""),ABS(BB7)),"=") -> = | S6: =S3 -> 0 | T6: =T3 -> 100 | U6: =VLOOKUP($BA$15,$BD$5:$BW$67,13) -> 2 | V6: =VLOOKUP($BA$15,$BD$5:$BW$67,14) -> 1 | W6: =VLOOKUP($BB$15,$BD$5:$BW$67,12) -> 1 | X6: -9.8 | Y6: -85.2 | AE6: -9.8 | AF6: -30.4 | AL6: -9.8 | AM6: -9.8 | AV6: -9.8 | AW6: -18.6 | BD6: 2 | BE6: 8x³ | BF6: + 8x² | BG6: 8x² | BH6: x | BI6: =CONCATENATE(8,$S$2," ") -> 8𝒙 | BJ6: + 8½ | BK6: 8½ | BL6: 8 | BM6: 8 | BN6: 8 | BO6: 8.5 | BP6: 8 | BQ6: 1 | BU6: 8 | CA6: =GRAPHEQN!T26 -> 2 | CB6: 2 | CD6: 2 | CE6: 0 | CF6: =IF(CE6=CQ6,CQ7,IF(CE6=CR6,CR7,IF(CE6=CS6,CS7,IF(CE6=CT6,CT7,IF(CE6=CU6,CU7,IF(CE6=CV6,CV7,IF(CE6=CW6,CW7,CE6))))))) -> 0 | CG6: =IF(CF6=CX6,CX7,IF(CF6=CY6,CY7,CF6)) -> 0 | CH6: 2 | CI6: =IF(CE6=CQ6,"*",IF(CE6=CR6,"*",IF(CE6=CS6,"*",IF(CE6=CT6,"*",IF(CE6=CU6,"*",IF(CE6=CV6,"*",IF(CE6=CW6,"*",CO6))))))) -> • | CJ6: =IF(CF6=CX6,"*",IF(CF6=CY6,"*",CI6)) -> • | CK6: ⁿ | CL6: 100 | CM6: 100 | CN6: 0 | CO6: • | CP6: =50*CA7 -> 250 | CQ6: =IF(DI6=1,DJ6,DQ6) -> 0.05 | CR6: =IF(DI6=1,DK6,DR6) -> 0.083 | CS6: =IF(DI6=1,DL6,DS6) -> 0.143 | CT6: =IF(DI6=1,DM6,DT6) -> 0.2 | CU6: =IF(DI6=1,DN6,DU6) -> 0.267 | CV6: =IF(DI6=1,DO6,DV6) -> 0.316 | CW6: =IF(DI6=1,DP6,DW6) -> 0.385 | CX6: =IF(DI6=1,DQ6,DX6) -> 0.444 | CY6: =IF(DI6=1,DR6,DY6) -> 0.526 | CZ6: =IF(DI7=1,DZ6,EG6) -> 0.05 | DA6: =IF(DI7=1,EA6,EH6) -> 0.083 | DB6: =IF(DI7=1,EB6,EI6) -> 0.143 | DC6: =IF(DI7=1,EC6,EJ6) -> 0.2 | DD6: =IF(DI7=1,ED6,EK6) -> 0.267 | DE6: =IF(DI7=1,EE6,EL6) -> 0.316 | DF6: =IF(DI7=1,EF6,EM6) -> 0.385 | DG6: =IF(DI7=1,EG6,EN6) -> 0.444 | DH6: =IF(DI7=1,EH6,EO6) -> 0.526 | DI6: 1 | DJ6: =IF(CE6<$EW$2,$ES$2,IF(CE6<$EW$3,$ES$3,IF(CE6<$EW$4,$ES$4,IF(CE6<$EW$5,$ES$5,IF(CE6<$EW$6,$ES$6,IF(CE6<$EW$7,$ES$7,IF(CE6<$EW$8,$ES$8,$ES$9))))))) -> 0.05 | DK6: =IF(CE6<$EW$10,$ES$10,IF(CE6<$EW$11,$ES$11,IF(CE6<$EW$12,$ES$12,IF(CE6<$EW$13,$ES$13,IF(CE6<$EW$14,$ES$14,IF(CE6<$EW$15,$ES$15,IF(CE6<$EW$16,$ES$16,$ES$17))))))) -> 0.083 | DL6: =IF(CE6<$EW$18,$ES$18,IF(CE6<$EW$19,$ES$19,IF(CE6<$EW$20,$ES$20,IF(CE6<$EW$21,$ES$21,IF(CE6<$EW$22,$ES$22,IF(CE6<$EW$23,$ES$23,IF(CE6<$EW$24,$ES$24,$ES$25))))))) -> 0.143 | DM6: =IF(CE6<$EW$26,$ES$26,IF(CE6<$EW$27,$ES$27,IF(CE6<$EW$28,$ES$28,IF(CE6<$EW$29,$ES$29,IF(CE6<$EW$30,$ES$30,IF(CE6<$EW$31,$ES$31,IF(CE6<$EW$32,$ES$32,$ES$33))))))) -> 0.2 | DN6: =IF(CE6<$EW$34,$ES$34,IF(CE6<$EW$35,$ES$35,IF(CE6<$EW$36,$ES$36,IF(CE6<$EW$37,$ES$37,IF(CE6<$EW$38,$ES$38,IF(CE6<$EW$39,$ES$39,IF(CE6<$EW$40,$ES$40,$ES$41))))))) -> 0.267 | DO6: =IF(CE6<$EW$42,$ES$42,IF(CE6<$EW$43,$ES$43,IF(CE6<$EW$44,$ES$44,IF(CE6<$EW$45,$ES$45,IF(CE6<$EW$46,$ES$46,IF(CE6<$EW$47,$ES$47,IF(CE6<$EW$48,$ES$48,$ES$49))))))) -> 0.316 | DP6: =IF(CE6<$EW$50,$ES$50,IF(CE6<$EW$51,$ES$51,IF(CE6<$EW$52,$ES$52,IF(CE6<$EW$53,$ES$53,IF(CE6<$EW$54,$ES$54,IF(CE6<$EW$55,$ES$55,IF(CE6<$EW$56,$ES$56,$ES$57))))))) -> 0.385 | DQ6: =IF(CE6<$EW$58,$ES$58,IF(CE6<$EW$59,$ES$59,IF(CE6<$EW$60,$ES$60,IF(CE6<$EW$61,$ES$61,IF(CE6<$EW$62,$ES$62,IF(CE6<$EW$63,$ES$63,IF(CE6<$EW$64,$ES$64,$ES$65))))))) -> 0.444 | DR6: =IF(CE6<$EW$66,$ES$66,IF(CE6<$EW$67,$ES$67,IF(CE6<$EW$68,$ES$68,IF(CE6<$EW$69,$ES$69,IF(CE6<$EW$70,$ES$70,IF(CE6<$EW$71,$ES$71,IF(CE6<$EW$72,$ES$72,$ES$73))))))) -> 0.526 | DS6: =IF(CE6<$EW$74,$ES$74,IF(CE6<$EW$75,$ES$75,IF(CE6<$EW$76,$ES$76,IF(CE6<$EW$77,$ES$77,IF(CE6<$EW$78,$ES$78,IF(CE6<$EW$79,$ES$79,IF(CE6<$EW$80,$ES$80,$ES$81))))))) -> 0.571 | DT6: =IF(CE6<$EW$82,$ES$82,IF(CE6<$EW$83,$ES$83,IF(CE6<$EW$84,$ES$84,IF(CE6<$EW$85,$ES$85,IF(CE6<$EW$86,$ES$86,IF(CE6<$EW$87,$ES$87,IF(CE6<$EW$88,$ES$88,$ES$89))))))) -> 0.632 | DU6: =IF(CE6<$EW$90,$ES$90,IF(CE6<$EW$91,$ES$91,IF(CE6<$EW$92,$ES$92,IF(CE6<$EW$93,$ES$93,IF(CE6<$EW$94,$ES$94,IF(CE6<$EW$95,$ES$95,IF(CE6<$EW$96,$ES$96,$ES$97))))))) -> 0.692 | DV6: =IF(CE6<$EW$98,$ES$98,IF(CE6<$EW$99,$ES$99,IF(CE6<$EW$100,$ES$100,IF(CE6<$EW$101,$ES$101,IF(CE6<$EW$102,$ES$102,IF(CE6<$EW$103,$ES$103,IF(CE6<$EW$104,$ES$104,$ES$105))))))) -> 0.75 | DW6: =IF(CE6<$EW$106,$ES$106,IF(CE6<$EW$107,$ES$107,IF(CE6<$EW$108,$ES$108,IF(CE6<$EW$109,$ES$109,IF(CE6<$EW$110,$ES$110,IF(CE6<$EW$111,$ES$111,IF(CE6<$EW$112,$ES$112,$ES$113))))))) -> 0.818 | DX6: =IF(CE6<$EW$114,$ES$114,IF(CE6<$EW$115,$ES$115,IF(CE6<$EW$116,$ES$116,IF(CE6<$EW$117,$ES$117,IF(CE6<$EW$118,$ES$118,IF(CE6<$EW$119,$ES$119,IF(CE6<$EW$120,$ES$120,$ES$121))))))) -> 0.875 | DY6: =IF(CE6<$EW$122,$ES$122,IF(CE6<$EW$123,$ES$123,IF(CE6<$EW$124,$ES$124,IF(CE6<$EW$125,$ES$125,IF(CE6<$EW$126,$ES$126,IF(CE6<$EW$127,$ES$127,$ES$128)))))) -> 0.929 | DZ6: =IF(CE7<$EW$2,$ES$2,IF(CE7<$EW$3,$ES$3,IF(CE7<$EW$4,$ES$4,IF(CE7<$EW$5,$ES$5,IF(CE7<$EW$6,$ES$6,IF(CE7<$EW$7,$ES$7,IF(CE7<$EW$8,$ES$8,$ES$9))))))) -> 0.05 | EA6: =IF(CE7<$EW$10,$ES$10,IF(CE7<$EW$11,$ES$11,IF(CE7<$EW$12,$ES$12,IF(CE7<$EW$13,$ES$13,IF(CE7<$EW$14,$ES$14,IF(CE7<$EW$15,$ES$15,IF(CE7<$EW$16,$ES$16,$ES$17))))))) -> 0.083 | EB6: =IF(CE7<$EW$18,$ES$18,IF(CE7<$EW$19,$ES$19,IF(CE7<$EW$20,$ES$20,IF(CE7<$EW$21,$ES$21,IF(CE7<$EW$22,$ES$22,IF(CE7<$EW$23,$ES$23,IF(CE7<$EW$24,$ES$24,$ES$25))))))) -> 0.143 | EC6: =IF(CE7<$EW$26,$ES$26,IF(CE7<$EW$27,$ES$27,IF(CE7<$EW$28,$ES$28,IF(CE7<$EW$29,$ES$29,IF(CE7<$EW$30,$ES$30,IF(CE7<$EW$31,$ES$31,IF(CE7<$EW$32,$ES$32,$ES$33))))))) -> 0.2 | ED6: =IF(CE7<$EW$34,$ES$34,IF(CE7<$EW$35,$ES$35,IF(CE7<$EW$36,$ES$36,IF(CE7<$EW$37,$ES$37,IF(CE7<$EW$38,$ES$38,IF(CE7<$EW$39,$ES$39,IF(CE7<$EW$40,$ES$40,$ES$41))))))) -> 0.267 | EE6: =IF(CE7<$EW$42,$ES$42,IF(CE7<$EW$43,$ES$43,IF(CE7<$EW$44,$ES$44,IF(CE7<$EW$45,$ES$45,IF(CE7<$EW$46,$ES$46,IF(CE7<$EW$47,$ES$47,IF(CE7<$EW$48,$ES$48,$ES$49))))))) -> 0.316 | EF6: =IF(CE7<$EW$50,$ES$50,IF(CE7<$EW$51,$ES$51,IF(CE7<$EW$52,$ES$52,IF(CE7<$EW$53,$ES$53,IF(CE7<$EW$54,$ES$54,IF(CE7<$EW$55,$ES$55,IF(CE7<$EW$56,$ES$56,$ES$57))))))) -> 0.385 | EG6: =IF(CE7<$EW$58,$ES$58,IF(CE7<$EW$59,$ES$59,IF(CE7<$EW$60,$ES$60,IF(CE7<$EW$61,$ES$61,IF(CE7<$EW$62,$ES$62,IF(CE7<$EW$63,$ES$63,IF(CE7<$EW$64,$ES$64,$ES$65))))))) -> 0.444 | EH6: =IF(CE7<$EW$66,$ES$66,IF(CE7<$EW$67,$ES$67,IF(CE7<$EW$68,$ES$68,IF(CE7<$EW$69,$ES$69,IF(CE7<$EW$70,$ES$70,IF(CE7<$EW$71,$ES$71,IF(CE7<$EW$72,$ES$72,$ES$73))))))) -> 0.526 | EI6: =IF(CE7<$EW$74,$ES$74,IF(CE7<$EW$75,$ES$75,IF(CE7<$EW$76,$ES$76,IF(CE7<$EW$77,$ES$77,IF(CE7<$EW$78,$ES$78,IF(CE7<$EW$79,$ES$79,IF(CE7<$EW$80,$ES$80,$ES$81))))))) -> 0.571 | EJ6: =IF(CE7<$EW$82,$ES$82,IF(CE7<$EW$83,$ES$83,IF(CE7<$EW$84,$ES$84,IF(CE7<$EW$85,$ES$85,IF(CE7<$EW$86,$ES$86,IF(CE7<$EW$87,$ES$87,IF(CE7<$EW$88,$ES$88,$ES$89))))))) -> 0.632 | EK6: =IF(CE7<$EW$90,$ES$90,IF(CE7<$EW$91,$ES$91,IF(CE7<$EW$92,$ES$92,IF(CE7<$EW$93,$ES$93,IF(CE7<$EW$94,$ES$94,IF(CE7<$EW$95,$ES$95,IF(CE7<$EW$96,$ES$96,$ES$97))))))) -> 0.692 | EL6: =IF(CE7<$EW$98,$ES$98,IF(CE7<$EW$99,$ES$99,IF(CE7<$EW$100,$ES$100,IF(CE7<$EW$101,$ES$101,IF(CE7<$EW$102,$ES$102,IF(CE7<$EW$103,$ES$103,IF(CE7<$EW$104,$ES$104,$ES$105))))))) -> 0.75 | EM6: =IF(CE7<$EW$106,$ES$106,IF(CE7<$EW$107,$ES$107,IF(CE7<$EW$108,$ES$108,IF(CE7<$EW$109,$ES$109,IF(CE7<$EW$110,$ES$110,IF(CE7<$EW$111,$ES$111,IF(CE7<$EW$112,$ES$112,$ES$113))))))) -> 0.818 | EN6: =IF(CE7<$EW$114,$ES$114,IF(CE7<$EW$115,$ES$115,IF(CE7<$EW$116,$ES$116,IF(CE7<$EW$117,$ES$117,IF(CE7<$EW$118,$ES$118,IF(CE7<$EW$119,$ES$119,IF(CE7<$EW$120,$ES$120,$ES$121))))))) -> 0.875 | EO6: =IF(CE7<$EW$122,$ES$122,IF(CE7<$EW$123,$ES$123,IF(CE7<$EW$124,$ES$124,IF(CE7<$EW$125,$ES$125,IF(CE7<$EW$126,$ES$126,IF(CE7<$EW$127,$ES$127,$ES$128)))))) -> 0.929 | EP6: 5 | EQ6: 1 | ER6: 16 | ES6: 0.063 | ET6: ¹ | EU6: ₁₆ | EV6: ¹∕₁₆ | EW6: 0.065 | EX6: 5 | EY6: ⁵
S7: 0 | T7: =IF(AQ15=1,W10+99,W10+U7) -> 99 | U7: 99 | X7: -9.7 | Y7: -84.3 | AA7: =VLOOKUP(AA15,$BD$5:$BW$67,9) -> 0 | AB7: =VLOOKUP(AB15,$BD$5:$BW$67,10) -> 0 | AC7: =VLOOKUP(AC15,$BD$5:$BW$67,11) -> 9 | AD7: =VLOOKUP(AD15,$BD$5:$BW$67,12) -> 3 | AE7: -9.7 | AF7: -30.1 | AH7: =VLOOKUP(AH15,$BD$5:$BW$67,9) -> 0 | AI7: =VLOOKUP(AI15,$BD$5:$BW$67,10) -> 0 | AJ7: =VLOOKUP(AJ15,$BD$5:$BW$67,11) -> 3 | AK7: =VLOOKUP(AK15,$BD$5:$BW$67,12) -> -1 | AL7: -9.7 | AM7: -9.7 | AO7: =VLOOKUP(AO15,$BD$5:$BW$67,9) -> 0 | AP7: =VLOOKUP(AP15,$BD$5:$BW$67,10) -> 0 | AQ7: =VLOOKUP(AQ15,$BD$5:$BW$67,11) -> 1 | AR7: =VLOOKUP(AR15,$BD$5:$BW$67,12) -> 0 | AV7: -9.7 | AW7: -18.4 | AY7: =VLOOKUP(AY15,$BD$5:$BW$67,9) -> 0 | AZ7: =VLOOKUP(AZ15,$BD$5:$BW$67,10) -> 0 | BA7: =VLOOKUP(BA15,$BD$5:$BW$67,11) -> 2 | BB7: =VLOOKUP(BB15,$BD$5:$BW$67,12) -> 1 | BC7: =VLOOKUP(BA15,$BD$5:$BW$67,18) -> 2 | BD7: 3 | BE7: 7x³ | BF7: + 7x² | BG7: 7x² | BH7: x | BI7: =CONCATENATE(7,$S$2," ") -> 7𝒙 | BJ7: + 8 | BK7: 8 | BL7: 7 | BM7: 7 | BN7: 7 | BO7: 8 | BP7: 7 | BQ7: 1 | BU7: 7 | CA7: =GRAPHEQN!T27 -> 5 | CB7: 5 | CD7: 5 | CE7: 0 | CF7: =IF(CE7=CZ6,CZ7,IF(CE7=DA6,DA7,IF(CE7=DB6,DB7,IF(CE7=DC6,DC7,IF(CE7=DD6,DD7,IF(CE7=DE6,DE7,IF(CE7=DF6,DF7,CE7))))))) -> 0 | CG7: =IF(CF7=DG6,DG7,IF(CF7=DH6,DH7,CF7)) -> 0 | CH7: 5 | CI7: =IF(CE7=CZ6,"*",IF(CE7=DA6,"*",IF(CE7=DB6,"*",IF(CE7=DC6,"*",IF(CE7=DD6,"*",IF(CE7=DE6,"*",IF(CE7=DF6,"*",CO7))))))) -> • | CJ7: =IF(CF7=DG6,"*",IF(CF7=DH6,"*",CI7)) -> • | CK7: ⁿ | CL7: 250 | CM7: 250 | CN7: 0 | CO7: • | CP7: =ROUND(50*CA7,0) -> 250 | CQ7: =IF(DI6=1,DJ7,DQ7) -> ¹∕₂₀ | CR7: =IF(DI6=1,DK7,DR7) -> ¹∕₁₂ | CS7: =IF(DI6=1,DL7,DS7) -> ¹∕₇ | CT7: =IF(DI6=1,DM7,DT7) -> ⅕ | CU7: =IF(DI6=1,DN7,DU7) -> ⁴∕₁₅ | CV7: =IF(DI6=1,DO7,DV7) -> ⁶∕₁₉ | CW7: =IF(DI6=1,DP7,DW7) -> ⁵∕₁₃ | CX7: =IF(DI6=1,DQ7,DX7) -> ⁴∕₉ | CY7: =IF(DI6=1,DR7,DY7) -> ¹º∕₁₉ | CZ7: =IF(DI7=1,DZ7,EG7) -> ¹∕₂₀ | DA7: =IF(DI7=1,EA7,EH7) -> ¹∕₁₂ | DB7: =IF(DI7=1,EB7,EI7) -> ¹∕₇ | DC7: =IF(DI7=1,EC7,EJ7) -> ⅕ | DD7: =IF(DI7=1,ED7,EK7) -> ⁴∕₁₅ | DE7: =IF(DI7=1,EE7,EL7) -> ⁶∕₁₉ | DF7: =IF(DI7=1,EF7,EM7) -> ⁵∕₁₃ | DG7: =IF(DI7=1,EG7,EN7) -> ⁴∕₉ | DH7: =IF(DI7=1,EH7,EO7) -> ¹º∕₁₉ | DI7: 1 | DJ7: =IF(CE6<$EW$2,$EV$2,IF(CE6<$EW$3,$EV$3,IF(CE6<$EW$4,$EV$4,IF(CE6<$EW$5,$EV$5,IF(CE6<$EW$6,$EV$6,IF(CE6<$EW$7,$EV$7,IF(CE6<$EW$8,$EV$8,$EV$9))))))) -> ¹∕₂₀ | DK7: =IF(CE6<$EW$10,$EV$10,IF(CE6<$EW$11,$EV$11,IF(CE6<$EW$12,$EV$12,IF(CE6<$EW$13,$EV$13,IF(CE6<$EW$14,$EV$14,IF(CE6<$EW$15,$EV$15,IF(CE6<$EW$16,$EV$16,$EV$17))))))) -> ¹∕₁₂ | DL7: =IF(CE6<$EW$18,$EV$18,IF(CE6<$EW$19,$EV$19,IF(CE6<$EW$20,$EV$20,IF(CE6<$EW$21,$EV$21,IF(CE6<$EW$22,$EV$22,IF(CE6<$EW$23,$EV$23,IF(CE6<$EW$24,$EV$24,$EV$25))))))) -> ¹∕₇ | DM7: =IF(CE6<$EW$26,$EV$26,IF(CE6<$EW$27,$EV$27,IF(CE6<$EW$28,$EV$28,IF(CE6<$EW$29,$EV$29,IF(CE6<$EW$30,$EV$30,IF(CE6<$EW$31,$EV$31,IF(CE6<$EW$32,$EV$32,$EV$33))))))) -> ⅕ | DN7: =IF(CE6<$EW$34,$EV$34,IF(CE6<$EW$35,$EV$35,IF(CE6<$EW$36,$EV$36,IF(CE6<$EW$37,$EV$37,IF(CE6<$EW$38,$EV$38,IF(CE6<$EW$39,$EV$39,IF(CE6<$EW$40,$EV$40,$EV$41))))))) -> ⁴∕₁₅ | DO7: =IF(CE6<$EW$42,$EV$42,IF(CE6<$EW$43,$EV$43,IF(CE6<$EW$44,$EV$44,IF(CE6<$EW$45,$EV$45,IF(CE6<$EW$46,$EV$46,IF(CE6<$EW$47,$EV$47,IF(CE6<$EW$48,$EV$48,$EV$49))))))) -> ⁶∕₁₉ | DP7: =IF(CE6<$EW$50,$EV$50,IF(CE6<$EW$51,$EV$51,IF(CE6<$EW$52,$EV$52,IF(CE6<$EW$53,$EV$53,IF(CE6<$EW$54,$EV$54,IF(CE6<$EW$55,$EV$55,IF(CE6<$EW$56,$EV$56,$EV$57))))))) -> ⁵∕₁₃ | DQ7: =IF(CE6<$EW$58,$EV$58,IF(CE6<$EW$59,$EV$59,IF(CE6<$EW$60,$EV$60,IF(CE6<$EW$61,$EV$61,IF(CE6<$EW$62,$EV$62,IF(CE6<$EW$63,$EV$63,IF(CE6<$EW$64,$EV$64,$EV$65))))))) -> ⁴∕₉ | DR7: =IF(CE6<$EW$66,$EV$66,IF(CE6<$EW$67,$EV$67,IF(CE6<$EW$68,$EV$68,IF(CE6<$EW$69,$EV$69,IF(CE6<$EW$70,$EV$70,IF(CE6<$EW$71,$EV$71,IF(CE6<$EW$72,$EV$72,$EV$73))))))) -> ¹º∕₁₉ | DS7: =IF(CE6<$EW$74,$EV$74,IF(CE6<$EW$75,$EV$75,IF(CE6<$EW$76,$EV$76,IF(CE6<$EW$77,$EV$77,IF(CE6<$EW$78,$EV$78,IF(CE6<$EW$79,$EV$79,IF(CE6<$EW$80,$EV$80,$EV$81))))))) -> ⁴∕₇ | DT7: =IF(CE6<$EW$82,$EV$82,IF(CE6<$EW$83,$EV$83,IF(CE6<$EW$84,$EV$84,IF(CE6<$EW$85,$EV$85,IF(CE6<$EW$86,$EV$86,IF(CE6<$EW$87,$EV$87,IF(CE6<$EW$88,$EV$88,$EV$89))))))) -> ¹²∕₁₉ | DU7: =IF(CE6<$EW$90,$EV$90,IF(CE6<$EW$91,$EV$91,IF(CE6<$EW$92,$EV$92,IF(CE6<$EW$93,$EV$93,IF(CE6<$EW$94,$EV$94,IF(CE6<$EW$95,$EV$95,IF(CE6<$EW$96,$EV$96,$EV$97))))))) -> ⁹∕₁₃ | DV7: =IF(CE6<$EW$98,$EV$98,IF(CE6<$EW$99,$EV$99,IF(CE6<$EW$100,$EV$100,IF(CE6<$EW$101,$EV$101,IF(CE6<$EW$102,$EV$102,IF(CE6<$EW$103,$EV$103,IF(CE6<$EW$104,$EV$104,$EV$105))))))) -> ¾ | DW7: =IF(CE6<$EW$106,$EV$106,IF(CE6<$EW$107,$EV$107,IF(CE6<$EW$108,$EV$108,IF(CE6<$EW$109,$EV$109,IF(CE6<$EW$110,$EV$110,IF(CE6<$EW$111,$EV$111,IF(CE6<$EW$112,$EV$112,$EV$113))))))) -> ⁹∕₁₁ | DX7: =IF(CE6<$EW$114,$EV$114,IF(CE6<$EW$115,$EV$115,IF(CE6<$EW$116,$EV$116,IF(CE6<$EW$117,$EV$117,IF(CE6<$EW$118,$EV$118,IF(CE6<$EW$119,$EV$119,IF(CE6<$EW$120,$EV$120,$EV$121))))))) -> ⅞ | DY7: =IF(CE6<$EW$122,$EV$122,IF(CE6<$EW$123,$EV$123,IF(CE6<$EW$124,$EV$124,IF(CE6<$EW$125,$EV$125,IF(CE6<$EW$126,$EV$126,IF(CE6<$EW$127,$EV$127,$EV$128)))))) -> ¹³∕₁₄ | DZ7: =IF(CE7<$EW$2,$EV$2,IF(CE7<$EW$3,$EV$3,IF(CE7<$EW$4,$EV$4,IF(CE7<$EW$5,$EV$5,IF(CE7<$EW$6,$EV$6,IF(CE7<$EW$7,$EV$7,IF(CE7<$EW$8,$EV$8,$EV$9))))))) -> ¹∕₂₀ | EA7: =IF(CE7<$EW$10,$EV$10,IF(CE7<$EW$11,$EV$11,IF(CE7<$EW$12,$EV$12,IF(CE7<$EW$13,$EV$13,IF(CE7<$EW$14,$EV$14,IF(CE7<$EW$15,$EV$15,IF(CE7<$EW$16,$EV$16,$EV$17))))))) -> ¹∕₁₂ | EB7: =IF(CE7<$EW$18,$EV$18,IF(CE7<$EW$19,$EV$19,IF(CE7<$EW$20,$EV$20,IF(CE7<$EW$21,$EV$21,IF(CE7<$EW$22,$EV$22,IF(CE7<$EW$23,$EV$23,IF(CE7<$EW$24,$EV$24,$EV$25))))))) -> ¹∕₇ | EC7: =IF(CE7<$EW$26,$EV$26,IF(CE7<$EW$27,$EV$27,IF(CE7<$EW$28,$EV$28,IF(CE7<$EW$29,$EV$29,IF(CE7<$EW$30,$EV$30,IF(CE7<$EW$31,$EV$31,IF(CE7<$EW$32,$EV$32,$EV$33))))))) -> ⅕ | ED7: =IF(CE7<$EW$34,$EV$34,IF(CE7<$EW$35,$EV$35,IF(CE7<$EW$36,$EV$36,IF(CE7<$EW$37,$EV$37,IF(CE7<$EW$38,$EV$38,IF(CE7<$EW$39,$EV$39,IF(CE7<$EW$40,$EV$40,$EV$41))))))) -> ⁴∕₁₅ | EE7: =IF(CE7<$EW$42,$EV$42,IF(CE7<$EW$43,$EV$43,IF(CE7<$EW$44,$EV$44,IF(CE7<$EW$45,$EV$45,IF(CE7<$EW$46,$EV$46,IF(CE7<$EW$47,$EV$47,IF(CE7<$EW$48,$EV$48,$EV$49))))))) -> ⁶∕₁₉ | EF7: =IF(CE7<$EW$50,$EV$50,IF(CE7<$EW$51,$EV$51,IF(CE7<$EW$52,$EV$52,IF(CE7<$EW$53,$EV$53,IF(CE7<$EW$54,$EV$54,IF(CE7<$EW$55,$EV$55,IF(CE7<$EW$56,$EV$56,$EV$57))))))) -> ⁵∕₁₃ | EG7: =IF(CE7<$EW$58,$EV$58,IF(CE7<$EW$59,$EV$59,IF(CE7<$EW$60,$EV$60,IF(CE7<$EW$61,$EV$61,IF(CE7<$EW$62,$EV$62,IF(CE7<$EW$63,$EV$63,IF(CE7<$EW$64,$EV$64,$EV$65))))))) -> ⁴∕₉ | EH7: =IF(CE7<$EW$66,$EV$66,IF(CE7<$EW$67,$EV$67,IF(CE7<$EW$68,$EV$68,IF(CE7<$EW$69,$EV$69,IF(CE7<$EW$70,$EV$70,IF(CE7<$EW$71,$EV$71,IF(CE7<$EW$72,$EV$72,$EV$73))))))) -> ¹º∕₁₉ | EI7: =IF(CE7<$EW$74,$EV$74,IF(CE7<$EW$75,$EV$75,IF(CE7<$EW$76,$EV$76,IF(CE7<$EW$77,$EV$77,IF(CE7<$EW$78,$EV$78,IF(CE7<$EW$79,$EV$79,IF(CE7<$EW$80,$EV$80,$EV$81))))))) -> ⁴∕₇ | EJ7: =IF(CE7<$EW$82,$EV$82,IF(CE7<$EW$83,$EV$83,IF(CE7<$EW$84,$EV$84,IF(CE7<$EW$85,$EV$85,IF(CE7<$EW$86,$EV$86,IF(CE7<$EW$87,$EV$87,IF(CE7<$EW$88,$EV$88,$EV$89))))))) -> ¹²∕₁₉ | EK7: =IF(CE7<$EW$90,$EV$90,IF(CE7<$EW$91,$EV$91,IF(CE7<$EW$92,$EV$92,IF(CE7<$EW$93,$EV$93,IF(CE7<$EW$94,$EV$94,IF(CE7<$EW$95,$EV$95,IF(CE7<$EW$96,$EV$96,$EV$97))))))) -> ⁹∕₁₃ | EL7: =IF(CE7<$EW$98,$EV$98,IF(CE7<$EW$99,$EV$99,IF(CE7<$EW$100,$EV$100,IF(CE7<$EW$101,$EV$101,IF(CE7<$EW$102,$EV$102,IF(CE7<$EW$103,$EV$103,IF(CE7<$EW$104,$EV$104,$EV$105))))))) -> ¾ | EM7: =IF(CE7<$EW$106,$EV$106,IF(CE7<$EW$107,$EV$107,IF(CE7<$EW$108,$EV$108,IF(CE7<$EW$109,$EV$109,IF(CE7<$EW$110,$EV$110,IF(CE7<$EW$111,$EV$111,IF(CE7<$EW$112,$EV$112,$EV$113))))))) -> ⁹∕₁₁ | EN7: =IF(CE7<$EW$114,$EV$114,IF(CE7<$EW$115,$EV$115,IF(CE7<$EW$116,$EV$116,IF(CE7<$EW$117,$EV$117,IF(CE7<$EW$118,$EV$118,IF(CE7<$EW$119,$EV$119,IF(CE7<$EW$120,$EV$120,$EV$121))))))) -> ⅞ | EO7: =IF(CE7<$EW$122,$EV$122,IF(CE7<$EW$123,$EV$123,IF(CE7<$EW$124,$EV$124,IF(CE7<$EW$125,$EV$125,IF(CE7<$EW$126,$EV$126,IF(CE7<$EW$127,$EV$127,$EV$128)))))) -> ¹³∕₁₄ | EP7: 6 | EQ7: 1 | ER7: 15 | ES7: 0.067 | ET7: ¹ | EU7: ₁₅ | EV7: ¹∕₁₅ | EW7: 0.069 | EX7: 6 | EY7: ⁶
C8: =IF(AND(AQ15=14,AI4=1),CONCATENATE("",T2," = ",S2,""),IF(AND(AQ15=34,AI4=1),CONCATENATE(" ",T2," = −",S2,""),"")) ->  | H8: =I8*10+J8 -> 14 | I8: 1 | J8: 4 | L8: =IF(B1=0,AT228," =") -> = | O8: =IF(BA15=8,"*",IF(AND(BA15>=10,BA15<=13),"*",IF(AND(BA15>=15,BA15<=23),"*",IF(AND(BA15>=25,BA15<=33),"*",IF(AND(BA15>=35,BA15<=38),"*",IF(BA15=40,"*","")))))) ->  | S8: =IF(U9=1,S7+V10,S7-V10) -> 1 | T8: =IF(U9=1,T7+U10,T7-U10) -> 100 | X8: -9.6 | Y8: -83.4 | AA8: =IF(AA9=0,AA10,AA9) ->  | AB8: =IF(AND(AA9=0,AB9=0),"",IF(AA9=0,AB10,IF(AB9=0,"",AB9))) ->  | AC8: =IF(AND(AA9=0,AB9=0,AC9=0),"",IF(AND(AA9=0,AB9=0),AC10,IF(AC9=0,"",AC9))) -> 9𝒙 | AD8: =IF(AND(AA9=0,AB9=0,AC9=0),AD10,IF(AD9=0,"",AD9)) -> + 3 | AE8: -9.6 | AF8: -29.8 | AH8: =IF(AH9=0,AH10,AH9) ->  | AI8: =IF(AND(AH9=0,AI9=0),"",IF(AH9=0,AI10,IF(AI9=0,"",AI9))) ->  | AJ8: =IF(AND(AH9=0,AI9=0,AJ9=0),"",IF(AND(AH9=0,AI9=0),AJ10,IF(AJ9=0,"",AJ9))) -> 3𝒙 | AK8: =IF(AND(AH9=0,AI9=0,AJ9=0),AK10,IF(AK9=0,"",AK9)) -> − 1 | AL8: -9.6 | AM8: -9.6 | AO8: =IF(AO9=0,AO10,AO9) ->  | AP8: =IF(AND(AO9=0,AP9=0),"",IF(AO9=0,AP10,IF(AP9=0,"",AP9))) ->  | AQ8: =IF(AND(AO9=0,AP9=0,AQ9=0),"",IF(AND(AO9=0,AP9=0),AQ10,IF(AQ9=0,"",AQ9))) -> 𝒙 | AR8: =IF(AND(AO9=0,AP9=0,AQ9=0),AR10,IF(AR9=0,"",AR9)) ->  | AV8: -9.6 | AW8: -18.2 | AY8: =IF(AY9=0,AY10,AY9) ->  | AZ8: =IF(AND(AY9=0,AZ9=0),"",IF(AY9=0,AZ10,IF(AZ9=0,"",AZ9))) ->  | BA8: =IF(AND(AY9=0,AZ9=0,BA9=0),"",IF(AND(AY9=0,AZ9=0),BA10,IF(BA9=0,"",BA9))) -> 2𝒙 | BB8: =IF(AND(AY9=0,AZ9=0,BA9=0),CONCATENATE(IF(BB10<0,"−",""),ABS(BB10)),IF(BB9=0,"",BB9)) -> + 1 | BC8: =VLOOKUP(AC15,$BD$5:$BW$67,18) -> ∞ | BD8: 4 | BE8: 6x³ | BF8: + 6x² | BG8: 6x² | BH8: x | BI8: =CONCATENATE(6,$S$2," ") -> 6𝒙 | BJ8: + 7½ | BK8: 7½ | BL8: 6 | BM8: 6 | BN8: 6 | BO8: 7.5 | BP8: 6 | BQ8: 1 | BU8: 6 | CA8: =((INT(801*RAND())-400))/((INT(19*RAND())+2)) -> 26.53846154 | CB8: 26.53846154 | CD8: 26 | CE8: 0.538 | CF8: =IF(CE8=CQ8,CQ9,IF(CE8=CR8,CR9,IF(CE8=CS8,CS9,IF(CE8=CT8,CT9,IF(CE8=CU8,CU9,IF(CE8=CV8,CV9,IF(CE8=CW8,CW9,CE8))))))) -> ⁷∕₁₃ | CG8: =IF(CF8=CX8,CX9,IF(CF8=CY8,CY9,CF8)) -> ⁷∕₁₃ | CH8: 26⁷∕₁₃ | CI8: =IF(CE8=CQ8,"*",IF(CE8=CR8,"*",IF(CE8=CS8,"*",IF(CE8=CT8,"*",IF(CE8=CU8,"*",IF(CE8=CV8,"*",IF(CE8=CW8,"*",CO8))))))) -> * | CJ8: =IF(CF8=CX8,"*",IF(CF8=CY8,"*",CI8)) -> * | CK8: * | CL8: 1326.923077 | CM8: 1327 | CN8: -0.0769230769230944 | CO8: · | CP8: =50*CA9 -> -1550 | CQ8: =IF(DI8=1,DJ8,DQ8) -> 0.5 | CR8: =IF(DI8=1,DK8,DR8) -> 0.538 | CS8: =IF(DI8=1,DL8,DS8) -> 0.571 | CT8: =IF(DI8=1,DM8,DT8) -> 0.632 | CU8: =IF(DI8=1,DN8,DU8) -> 0.692 | CV8: =IF(DI8=1,DO8,DV8) -> 0.75 | CW8: =IF(DI8=1,DP8,DW8) -> 0.818 | CX8: =IF(DI8=1,DQ8,DX8) -> 0.875 | CY8: =IF(DI8=1,DR8,DY8) -> 0.929 | CZ8: =IF(DI9=1,DZ8,EG8) -> 0.05 | DA8: =IF(DI9=1,EA8,EH8) -> 0.083 | DB8: =IF(DI9=1,EB8,EI8) -> 0.143 | DC8: =IF(DI9=1,EC8,EJ8) -> 0.2 | DD8: =IF(DI9=1,ED8,EK8) -> 0.267 | DE8: =IF(DI9=1,EE8,EL8) -> 0.316 | DF8: =IF(DI9=1,EF8,EM8) -> 0.385 | DG8: =IF(DI9=1,EG8,EN8) -> 0.444 | DH8: =IF(DI9=1,EH8,EO8) -> 0.526 | DI8: 2 | DJ8: =IF(CE8<$EW$2,$ES$2,IF(CE8<$EW$3,$ES$3,IF(CE8<$EW$4,$ES$4,IF(CE8<$EW$5,$ES$5,IF(CE8<$EW$6,$ES$6,IF(CE8<$EW$7,$ES$7,IF(CE8<$EW$8,$ES$8,$ES$9))))))) -> 0.077 | DK8: =IF(CE8<$EW$10,$ES$10,IF(CE8<$EW$11,$ES$11,IF(CE8<$EW$12,$ES$12,IF(CE8<$EW$13,$ES$13,IF(CE8<$EW$14,$ES$14,IF(CE8<$EW$15,$ES$15,IF(CE8<$EW$16,$ES$16,$ES$17))))))) -> 0.133 | DL8: =IF(CE8<$EW$18,$ES$18,IF(CE8<$EW$19,$ES$19,IF(CE8<$EW$20,$ES$20,IF(CE8<$EW$21,$ES$21,IF(CE8<$EW$22,$ES$22,IF(CE8<$EW$23,$ES$23,IF(CE8<$EW$24,$ES$24,$ES$25))))))) -> 0.188 | DM8: =IF(CE8<$EW$26,$ES$26,IF(CE8<$EW$27,$ES$27,IF(CE8<$EW$28,$ES$28,IF(CE8<$EW$29,$ES$29,IF(CE8<$EW$30,$ES$30,IF(CE8<$EW$31,$ES$31,IF(CE8<$EW$32,$ES$32,$ES$33))))))) -> 0.263 | DN8: =IF(CE8<$EW$34,$ES$34,IF(CE8<$EW$35,$ES$35,IF(CE8<$EW$36,$ES$36,IF(CE8<$EW$37,$ES$37,IF(CE8<$EW$38,$ES$38,IF(CE8<$EW$39,$ES$39,IF(CE8<$EW$40,$ES$40,$ES$41))))))) -> 0.313 | DO8: =IF(CE8<$EW$42,$ES$42,IF(CE8<$EW$43,$ES$43,IF(CE8<$EW$44,$ES$44,IF(CE8<$EW$45,$ES$45,IF(CE8<$EW$46,$ES$46,IF(CE8<$EW$47,$ES$47,IF(CE8<$EW$48,$ES$48,$ES$49))))))) -> 0.375 | DP8: =IF(CE8<$EW$50,$ES$50,IF(CE8<$EW$51,$ES$51,IF(CE8<$EW$52,$ES$52,IF(CE8<$EW$53,$ES$53,IF(CE8<$EW$54,$ES$54,IF(CE8<$EW$55,$ES$55,IF(CE8<$EW$56,$ES$56,$ES$57))))))) -> 0.438 | DQ8: =IF(CE8<$EW$58,$ES$58,IF(CE8<$EW$59,$ES$59,IF(CE8<$EW$60,$ES$60,IF(CE8<$EW$61,$ES$61,IF(CE8<$EW$62,$ES$62,IF(CE8<$EW$63,$ES$63,IF(CE8<$EW$64,$ES$64,$ES$65))))))) -> 0.5 | DR8: =IF(CE8<$EW$66,$ES$66,IF(CE8<$EW$67,$ES$67,IF(CE8<$EW$68,$ES$68,IF(CE8<$EW$69,$ES$69,IF(CE8<$EW$70,$ES$70,IF(CE8<$EW$71,$ES$71,IF(CE8<$EW$72,$ES$72,$ES$73))))))) -> 0.538 | DS8: =IF(CE8<$EW$74,$ES$74,IF(CE8<$EW$75,$ES$75,IF(CE8<$EW$76,$ES$76,IF(CE8<$EW$77,$ES$77,IF(CE8<$EW$78,$ES$78,IF(CE8<$EW$79,$ES$79,IF(CE8<$EW$80,$ES$80,$ES$81))))))) -> 0.571 | DT8: =IF(CE8<$EW$82,$ES$82,IF(CE8<$EW$83,$ES$83,IF(CE8<$EW$84,$ES$84,IF(CE8<$EW$85,$ES$85,IF(CE8<$EW$86,$ES$86,IF(CE8<$EW$87,$ES$87,IF(CE8<$EW$88,$ES$88,$ES$89))))))) -> 0.632 | DU8: =IF(CE8<$EW$90,$ES$90,IF(CE8<$EW$91,$ES$91,IF(CE8<$EW$92,$ES$92,IF(CE8<$EW$93,$ES$93,IF(CE8<$EW$94,$ES$94,IF(CE8<$EW$95,$ES$95,IF(CE8<$EW$96,$ES$96,$ES$97))))))) -> 0.692 | DV8: =IF(CE8<$EW$98,$ES$98,IF(CE8<$EW$99,$ES$99,IF(CE8<$EW$100,$ES$100,IF(CE8<$EW$101,$ES$101,IF(CE8<$EW$102,$ES$102,IF(CE8<$EW$103,$ES$103,IF(CE8<$EW$104,$ES$104,$ES$105))))))) -> 0.75 | DW8: =IF(CE8<$EW$106,$ES$106,IF(CE8<$EW$107,$ES$107,IF(CE8<$EW$108,$ES$108,IF(CE8<$EW$109,$ES$109,IF(CE8<$EW$110,$ES$110,IF(CE8<$EW$111,$ES$111,IF(CE8<$EW$112,$ES$112,$ES$113))))))) -> 0.818 | DX8: =IF(CE8<$EW$114,$ES$114,IF(CE8<$EW$115,$ES$115,IF(CE8<$EW$116,$ES$116,IF(CE8<$EW$117,$ES$117,IF(CE8<$EW$118,$ES$118,IF(CE8<$EW$119,$ES$119,IF(CE8<$EW$120,$ES$120,$ES$121))))))) -> 0.875 | DY8: =IF(CE8<$EW$122,$ES$122,IF(CE8<$EW$123,$ES$123,IF(CE8<$EW$124,$ES$124,IF(CE8<$EW$125,$ES$125,IF(CE8<$EW$126,$ES$126,IF(CE8<$EW$127,$ES$127,$ES$128)))))) -> 0.929 | DZ8: =IF(CE9<$EW$2,$ES$2,IF(CE9<$EW$3,$ES$3,IF(CE9<$EW$4,$ES$4,IF(CE9<$EW$5,$ES$5,IF(CE9<$EW$6,$ES$6,IF(CE9<$EW$7,$ES$7,IF(CE9<$EW$8,$ES$8,$ES$9))))))) -> 0.05 | EA8: =IF(CE9<$EW$10,$ES$10,IF(CE9<$EW$11,$ES$11,IF(CE9<$EW$12,$ES$12,IF(CE9<$EW$13,$ES$13,IF(CE9<$EW$14,$ES$14,IF(CE9<$EW$15,$ES$15,IF(CE9<$EW$16,$ES$16,$ES$17))))))) -> 0.083 | EB8: =IF(CE9<$EW$18,$ES$18,IF(CE9<$EW$19,$ES$19,IF(CE9<$EW$20,$ES$20,IF(CE9<$EW$21,$ES$21,IF(CE9<$EW$22,$ES$22,IF(CE9<$EW$23,$ES$23,IF(CE9<$EW$24,$ES$24,$ES$25))))))) -> 0.143 | EC8: =IF(CE9<$EW$26,$ES$26,IF(CE9<$EW$27,$ES$27,IF(CE9<$EW$28,$ES$28,IF(CE9<$EW$29,$ES$29,IF(CE9<$EW$30,$ES$30,IF(CE9<$EW$31,$ES$31,IF(CE9<$EW$32,$ES$32,$ES$33))))))) -> 0.2 | ED8: =IF(CE9<$EW$34,$ES$34,IF(CE9<$EW$35,$ES$35,IF(CE9<$EW$36,$ES$36,IF(CE9<$EW$37,$ES$37,IF(CE9<$EW$38,$ES$38,IF(CE9<$EW$39,$ES$39,IF(CE9<$EW$40,$ES$40,$ES$41))))))) -> 0.267 | EE8: =IF(CE9<$EW$42,$ES$42,IF(CE9<$EW$43,$ES$43,IF(CE9<$EW$44,$ES$44,IF(CE9<$EW$45,$ES$45,IF(CE9<$EW$46,$ES$46,IF(CE9<$EW$47,$ES$47,IF(CE9<$EW$48,$ES$48,$ES$49))))))) -> 0.316 | EF8: =IF(CE9<$EW$50,$ES$50,IF(CE9<$EW$51,$ES$51,IF(CE9<$EW$52,$ES$52,IF(CE9<$EW$53,$ES$53,IF(CE9<$EW$54,$ES$54,IF(CE9<$EW$55,$ES$55,IF(CE9<$EW$56,$ES$56,$ES$57))))))) -> 0.385 | EG8: =IF(CE9<$EW$58,$ES$58,IF(CE9<$EW$59,$ES$59,IF(CE9<$EW$60,$ES$60,IF(CE9<$EW$61,$ES$61,IF(CE9<$EW$62,$ES$62,IF(CE9<$EW$63,$ES$63,IF(CE9<$EW$64,$ES$64,$ES$65))))))) -> 0.444 | EH8: =IF(CE9<$EW$66,$ES$66,IF(CE9<$EW$67,$ES$67,IF(CE9<$EW$68,$ES$68,IF(CE9<$EW$69,$ES$69,IF(CE9<$EW$70,$ES$70,IF(CE9<$EW$71,$ES$71,IF(CE9<$EW$72,$ES$72,$ES$73))))))) -> 0.526 | EI8: =IF(CE9<$EW$74,$ES$74,IF(CE9<$EW$75,$ES$75,IF(CE9<$EW$76,$ES$76,IF(CE9<$EW$77,$ES$77,IF(CE9<$EW$78,$ES$78,IF(CE9<$EW$79,$ES$79,IF(CE9<$EW$80,$ES$80,$ES$81))))))) -> 0.571 | EJ8: =IF(CE9<$EW$82,$ES$82,IF(CE9<$EW$83,$ES$83,IF(CE9<$EW$84,$ES$84,IF(CE9<$EW$85,$ES$85,IF(CE9<$EW$86,$ES$86,IF(CE9<$EW$87,$ES$87,IF(CE9<$EW$88,$ES$88,$ES$89))))))) -> 0.632 | EK8: =IF(CE9<$EW$90,$ES$90,IF(CE9<$EW$91,$ES$91,IF(CE9<$EW$92,$ES$92,IF(CE9<$EW$93,$ES$93,IF(CE9<$EW$94,$ES$94,IF(CE9<$EW$95,$ES$95,IF(CE9<$EW$96,$ES$96,$ES$97))))))) -> 0.692 | EL8: =IF(CE9<$EW$98,$ES$98,IF(CE9<$EW$99,$ES$99,IF(CE9<$EW$100,$ES$100,IF(CE9<$EW$101,$ES$101,IF(CE9<$EW$102,$ES$102,IF(CE9<$EW$103,$ES$103,IF(CE9<$EW$104,$ES$104,$ES$105))))))) -> 0.75 | EM8: =IF(CE9<$EW$106,$ES$106,IF(CE9<$EW$107,$ES$107,IF(CE9<$EW$108,$ES$108,IF(CE9<$EW$109,$ES$109,IF(CE9<$EW$110,$ES$110,IF(CE9<$EW$111,$ES$111,IF(CE9<$EW$112,$ES$112,$ES$113))))))) -> 0.818 | EN8: =IF(CE9<$EW$114,$ES$114,IF(CE9<$EW$115,$ES$115,IF(CE9<$EW$116,$ES$116,IF(CE9<$EW$117,$ES$117,IF(CE9<$EW$118,$ES$118,IF(CE9<$EW$119,$ES$119,IF(CE9<$EW$120,$ES$120,$ES$121))))))) -> 0.875 | EO8: =IF(CE9<$EW$122,$ES$122,IF(CE9<$EW$123,$ES$123,IF(CE9<$EW$124,$ES$124,IF(CE9<$EW$125,$ES$125,IF(CE9<$EW$126,$ES$126,IF(CE9<$EW$127,$ES$127,$ES$128)))))) -> 0.929 | EP8: 7 | EQ8: 1 | ER8: 14 | ES8: 0.071 | ET8: ¹ | EU8: ₁₄ | EV8: ¹∕₁₄ | EW8: 0.074 | EX8: 7 | EY8: ⁷
C9: 0 | D9: 0 | E9: 1 | F9: 1 | S9: =IF(U9=1,S8,S7) -> 1 | T9: =IF(U9=1,T7,T8) -> 99 | U9: =IF(AND(ABS(T7+U10)>ABS(T7-U10),ABS(T7+U10)>5,ABS(T7-U10)<=5),2,1) -> 1 | X9: -9.5 | Y9: -82.5 | AA9: =VLOOKUP(AA15,$BD$5:$BW$67,2) -> 0 | AB9: =VLOOKUP(AB15,$BD$5:$BW$67,3) -> 0 | AC9: =VLOOKUP(AC15,$BD$5:$BW$67,5) -> x | AD9: =VLOOKUP(AD15,$BD$5:$BW$67,7) -> + 3 | AE9: -9.5 | AF9: -29.5 | AH9: =VLOOKUP(AH15,$BD$5:$BW$67,2) -> 0 | AI9: =VLOOKUP(AI15,$BD$5:$BW$67,3) -> 0 | AJ9: =VLOOKUP(AJ15,$BD$5:$BW$67,5) -> x | AK9: =VLOOKUP(AK15,$BD$5:$BW$67,7) -> − 1 | AL9: -9.5 | AM9: -9.5 | AO9: =VLOOKUP(AO15,$BD$5:$BW$67,2) -> 0 | AP9: =VLOOKUP(AP15,$BD$5:$BW$67,3) -> 0 | AQ9: =VLOOKUP(AQ15,$BD$5:$BW$67,5) -> x | AR9: =VLOOKUP(AR15,$BD$5:$BW$67,7) -> 0 | AV9: -9.5 | AW9: -18 | AY9: =VLOOKUP(AY15,$BD$5:$BW$67,2) -> 0 | AZ9: =VLOOKUP(AZ15,$BD$5:$BW$67,3) -> 0 | BA9: =VLOOKUP(BA15,$BD$5:$BW$67,5) -> x | BB9: =VLOOKUP(BB15,$BD$5:$BW$67,7) -> + 1 | BD9: 5 | BE9: 5x³ | BF9: + 5x² | BG9: 5x² | BH9: x | BI9: =CONCATENATE(5,$S$2," ") -> 5𝒙 | BJ9: + 7 | BK9: 7 | BL9: 5 | BM9: 5 | BN9: 5 | BO9: 7 | BP9: 5 | BQ9: 1 | BU9: 5 | CA9: -31 | CB9: 31 | CC9: − | CD9: 31 | CE9: 0 | CF9: =IF(CE9=CZ8,CZ9,IF(CE9=DA8,DA9,IF(CE9=DB8,DB9,IF(CE9=DC8,DC9,IF(CE9=DD8,DD9,IF(CE9=DE8,DE9,IF(CE9=DF8,DF9,CE9))))))) -> 0 | CG9: =IF(CF9=DG8,DG9,IF(CF9=DH8,DH9,CF9)) -> 0 | CH9: −31 | CI9: =IF(CE9=CZ8,"*",IF(CE9=DA8,"*",IF(CE9=DB8,"*",IF(CE9=DC8,"*",IF(CE9=DD8,"*",IF(CE9=DE8,"*",IF(CE9=DF8,"*",CO9))))))) -> • | CJ9: =IF(CF9=DG8,"*",IF(CF9=DH8,"*",CI9)) -> • | CK9: ⁿ | CL9: -1550 | CM9: -1550 | CN9: 0 | CO9: • | CP9: =ROUND(50*CA9,0) -> -1550 | CQ9: =IF(DI8=1,DJ9,DQ9) -> ½ | CR9: =IF(DI8=1,DK9,DR9) -> ⁷∕₁₃ | CS9: =IF(DI8=1,DL9,DS9) -> ⁴∕₇ | CT9: =IF(DI8=1,DM9,DT9) -> ¹²∕₁₉ | CU9: =IF(DI8=1,DN9,DU9) -> ⁹∕₁₃ | CV9: =IF(DI8=1,DO9,DV9) -> ¾ | CW9: =IF(DI8=1,DP9,DW9) -> ⁹∕₁₁ | CX9: =IF(DI8=1,DQ9,DX9) -> ⅞ | CY9: =IF(DI8=1,DR9,DY9) -> ¹³∕₁₄ | CZ9: =IF(DI9=1,DZ9,EG9) -> ¹∕₂₀ | DA9: =IF(DI9=1,EA9,EH9) -> ¹∕₁₂ | DB9: =IF(DI9=1,EB9,EI9) -> ¹∕₇ | DC9: =IF(DI9=1,EC9,EJ9) -> ⅕ | DD9: =IF(DI9=1,ED9,EK9) -> ⁴∕₁₅ | DE9: =IF(DI9=1,EE9,EL9) -> ⁶∕₁₉ | DF9: =IF(DI9=1,EF9,EM9) -> ⁵∕₁₃ | DG9: =IF(DI9=1,EG9,EN9) -> ⁴∕₉ | DH9: =IF(DI9=1,EH9,EO9) -> ¹º∕₁₉ | DI9: 1 | DJ9: =IF(CE8<$EW$2,$EV$2,IF(CE8<$EW$3,$EV$3,IF(CE8<$EW$4,$EV$4,IF(CE8<$EW$5,$EV$5,IF(CE8<$EW$6,$EV$6,IF(CE8<$EW$7,$EV$7,IF(CE8<$EW$8,$EV$8,$EV$9))))))) -> ¹∕₁₃ | DK9: =IF(CE8<$EW$10,$EV$10,IF(CE8<$EW$11,$EV$11,IF(CE8<$EW$12,$EV$12,IF(CE8<$EW$13,$EV$13,IF(CE8<$EW$14,$EV$14,IF(CE8<$EW$15,$EV$15,IF(CE8<$EW$16,$EV$16,$EV$17))))))) -> ²∕₁₅ | DL9: =IF(CE8<$EW$18,$EV$18,IF(CE8<$EW$19,$EV$19,IF(CE8<$EW$20,$EV$20,IF(CE8<$EW$21,$EV$21,IF(CE8<$EW$22,$EV$22,IF(CE8<$EW$23,$EV$23,IF(CE8<$EW$24,$EV$24,$EV$25))))))) -> ³∕₁₆ | DM9: =IF(CE8<$EW$26,$EV$26,IF(CE8<$EW$27,$EV$27,IF(CE8<$EW$28,$EV$28,IF(CE8<$EW$29,$EV$29,IF(CE8<$EW$30,$EV$30,IF(CE8<$EW$31,$EV$31,IF(CE8<$EW$32,$EV$32,$EV$33))))))) -> ⁵∕₁₉ | DN9: =IF(CE8<$EW$34,$EV$34,IF(CE8<$EW$35,$EV$35,IF(CE8<$EW$36,$EV$36,IF(CE8<$EW$37,$EV$37,IF(CE8<$EW$38,$EV$38,IF(CE8<$EW$39,$EV$39,IF(CE8<$EW$40,$EV$40,$EV$41))))))) -> ⁵∕₁₆ | DO9: =IF(CE8<$EW$42,$EV$42,IF(CE8<$EW$43,$EV$43,IF(CE8<$EW$44,$EV$44,IF(CE8<$EW$45,$EV$45,IF(CE8<$EW$46,$EV$46,IF(CE8<$EW$47,$EV$47,IF(CE8<$EW$48,$EV$48,$EV$49))))))) -> ⅜ | DP9: =IF(CE8<$EW$50,$EV$50,IF(CE8<$EW$51,$EV$51,IF(CE8<$EW$52,$EV$52,IF(CE8<$EW$53,$EV$53,IF(CE8<$EW$54,$EV$54,IF(CE8<$EW$55,$EV$55,IF(CE8<$EW$56,$EV$56,$EV$57))))))) -> ⁷∕₁₆ | DQ9: =IF(CE8<$EW$58,$EV$58,IF(CE8<$EW$59,$EV$59,IF(CE8<$EW$60,$EV$60,IF(CE8<$EW$61,$EV$61,IF(CE8<$EW$62,$EV$62,IF(CE8<$EW$63,$EV$63,IF(CE8<$EW$64,$EV$64,$EV$65))))))) -> ½ | DR9: =IF(CE8<$EW$66,$EV$66,IF(CE8<$EW$67,$EV$67,IF(CE8<$EW$68,$EV$68,IF(CE8<$EW$69,$EV$69,IF(CE8<$EW$70,$EV$70,IF(CE8<$EW$71,$EV$71,IF(CE8<$EW$72,$EV$72,$EV$73))))))) -> ⁷∕₁₃ | DS9: =IF(CE8<$EW$74,$EV$74,IF(CE8<$EW$75,$EV$75,IF(CE8<$EW$76,$EV$76,IF(CE8<$EW$77,$EV$77,IF(CE8<$EW$78,$EV$78,IF(CE8<$EW$79,$EV$79,IF(CE8<$EW$80,$EV$80,$EV$81))))))) -> ⁴∕₇ | DT9: =IF(CE8<$EW$82,$EV$82,IF(CE8<$EW$83,$EV$83,IF(CE8<$EW$84,$EV$84,IF(CE8<$EW$85,$EV$85,IF(CE8<$EW$86,$EV$86,IF(CE8<$EW$87,$EV$87,IF(CE8<$EW$88,$EV$88,$EV$89))))))) -> ¹²∕₁₉ | DU9: =IF(CE8<$EW$90,$EV$90,IF(CE8<$EW$91,$EV$91,IF(CE8<$EW$92,$EV$92,IF(CE8<$EW$93,$EV$93,IF(CE8<$EW$94,$EV$94,IF(CE8<$EW$95,$EV$95,IF(CE8<$EW$96,$EV$96,$EV$97))))))) -> ⁹∕₁₃ | DV9: =IF(CE8<$EW$98,$EV$98,IF(CE8<$EW$99,$EV$99,IF(CE8<$EW$100,$EV$100,IF(CE8<$EW$101,$EV$101,IF(CE8<$EW$102,$EV$102,IF(CE8<$EW$103,$EV$103,IF(CE8<$EW$104,$EV$104,$EV$105))))))) -> ¾ | DW9: =IF(CE8<$EW$106,$EV$106,IF(CE8<$EW$107,$EV$107,IF(CE8<$EW$108,$EV$108,IF(CE8<$EW$109,$EV$109,IF(CE8<$EW$110,$EV$110,IF(CE8<$EW$111,$EV$111,IF(CE8<$EW$112,$EV$112,$EV$113))))))) -> ⁹∕₁₁ | DX9: =IF(CE8<$EW$114,$EV$114,IF(CE8<$EW$115,$EV$115,IF(CE8<$EW$116,$EV$116,IF(CE8<$EW$117,$EV$117,IF(CE8<$EW$118,$EV$118,IF(CE8<$EW$119,$EV$119,IF(CE8<$EW$120,$EV$120,$EV$121))))))) -> ⅞ | DY9: =IF(CE8<$EW$122,$EV$122,IF(CE8<$EW$123,$EV$123,IF(CE8<$EW$124,$EV$124,IF(CE8<$EW$125,$EV$125,IF(CE8<$EW$126,$EV$126,IF(CE8<$EW$127,$EV$127,$EV$128)))))) -> ¹³∕₁₄ | DZ9: =IF(CE9<$EW$2,$EV$2,IF(CE9<$EW$3,$EV$3,IF(CE9<$EW$4,$EV$4,IF(CE9<$EW$5,$EV$5,IF(CE9<$EW$6,$EV$6,IF(CE9<$EW$7,$EV$7,IF(CE9<$EW$8,$EV$8,$EV$9))))))) -> ¹∕₂₀ | EA9: =IF(CE9<$EW$10,$EV$10,IF(CE9<$EW$11,$EV$11,IF(CE9<$EW$12,$EV$12,IF(CE9<$EW$13,$EV$13,IF(CE9<$EW$14,$EV$14,IF(CE9<$EW$15,$EV$15,IF(CE9<$EW$16,$EV$16,$EV$17))))))) -> ¹∕₁₂ | EB9: =IF(CE9<$EW$18,$EV$18,IF(CE9<$EW$19,$EV$19,IF(CE9<$EW$20,$EV$20,IF(CE9<$EW$21,$EV$21,IF(CE9<$EW$22,$EV$22,IF(CE9<$EW$23,$EV$23,IF(CE9<$EW$24,$EV$24,$EV$25))))))) -> ¹∕₇ | EC9: =IF(CE9<$EW$26,$EV$26,IF(CE9<$EW$27,$EV$27,IF(CE9<$EW$28,$EV$28,IF(CE9<$EW$29,$EV$29,IF(CE9<$EW$30,$EV$30,IF(CE9<$EW$31,$EV$31,IF(CE9<$EW$32,$EV$32,$EV$33))))))) -> ⅕ | ED9: =IF(CE9<$EW$34,$EV$34,IF(CE9<$EW$35,$EV$35,IF(CE9<$EW$36,$EV$36,IF(CE9<$EW$37,$EV$37,IF(CE9<$EW$38,$EV$38,IF(CE9<$EW$39,$EV$39,IF(CE9<$EW$40,$EV$40,$EV$41))))))) -> ⁴∕₁₅ | EE9: =IF(CE9<$EW$42,$EV$42,IF(CE9<$EW$43,$EV$43,IF(CE9<$EW$44,$EV$44,IF(CE9<$EW$45,$EV$45,IF(CE9<$EW$46,$EV$46,IF(CE9<$EW$47,$EV$47,IF(CE9<$EW$48,$EV$48,$EV$49))))))) -> ⁶∕₁₉ | EF9: =IF(CE9<$EW$50,$EV$50,IF(CE9<$EW$51,$EV$51,IF(CE9<$EW$52,$EV$52,IF(CE9<$EW$53,$EV$53,IF(CE9<$EW$54,$EV$54,IF(CE9<$EW$55,$EV$55,IF(CE9<$EW$56,$EV$56,$EV$57))))))) -> ⁵∕₁₃ | EG9: =IF(CE9<$EW$58,$EV$58,IF(CE9<$EW$59,$EV$59,IF(CE9<$EW$60,$EV$60,IF(CE9<$EW$61,$EV$61,IF(CE9<$EW$62,$EV$62,IF(CE9<$EW$63,$EV$63,IF(CE9<$EW$64,$EV$64,$EV$65))))))) -> ⁴∕₉ | EH9: =IF(CE9<$EW$66,$EV$66,IF(CE9<$EW$67,$EV$67,IF(CE9<$EW$68,$EV$68,IF(CE9<$EW$69,$EV$69,IF(CE9<$EW$70,$EV$70,IF(CE9<$EW$71,$EV$71,IF(CE9<$EW$72,$EV$72,$EV$73))))))) -> ¹º∕₁₉ | EI9: =IF(CE9<$EW$74,$EV$74,IF(CE9<$EW$75,$EV$75,IF(CE9<$EW$76,$EV$76,IF(CE9<$EW$77,$EV$77,IF(CE9<$EW$78,$EV$78,IF(CE9<$EW$79,$EV$79,IF(CE9<$EW$80,$EV$80,$EV$81))))))) -> ⁴∕₇ | EJ9: =IF(CE9<$EW$82,$EV$82,IF(CE9<$EW$83,$EV$83,IF(CE9<$EW$84,$EV$84,IF(CE9<$EW$85,$EV$85,IF(CE9<$EW$86,$EV$86,IF(CE9<$EW$87,$EV$87,IF(CE9<$EW$88,$EV$88,$EV$89))))))) -> ¹²∕₁₉ | EK9: =IF(CE9<$EW$90,$EV$90,IF(CE9<$EW$91,$EV$91,IF(CE9<$EW$92,$EV$92,IF(CE9<$EW$93,$EV$93,IF(CE9<$EW$94,$EV$94,IF(CE9<$EW$95,$EV$95,IF(CE9<$EW$96,$EV$96,$EV$97))))))) -> ⁹∕₁₃ | EL9: =IF(CE9<$EW$98,$EV$98,IF(CE9<$EW$99,$EV$99,IF(CE9<$EW$100,$EV$100,IF(CE9<$EW$101,$EV$101,IF(CE9<$EW$102,$EV$102,IF(CE9<$EW$103,$EV$103,IF(CE9<$EW$104,$EV$104,$EV$105))))))) -> ¾ | EM9: =IF(CE9<$EW$106,$EV$106,IF(CE9<$EW$107,$EV$107,IF(CE9<$EW$108,$EV$108,IF(CE9<$EW$109,$EV$109,IF(CE9<$EW$110,$EV$110,IF(CE9<$EW$111,$EV$111,IF(CE9<$EW$112,$EV$112,$EV$113))))))) -> ⁹∕₁₁ | EN9: =IF(CE9<$EW$114,$EV$114,IF(CE9<$EW$115,$EV$115,IF(CE9<$EW$116,$EV$116,IF(CE9<$EW$117,$EV$117,IF(CE9<$EW$118,$EV$118,IF(CE9<$EW$119,$EV$119,IF(CE9<$EW$120,$EV$120,$EV$121))))))) -> ⅞ | EO9: =IF(CE9<$EW$122,$EV$122,IF(CE9<$EW$123,$EV$123,IF(CE9<$EW$124,$EV$124,IF(CE9<$EW$125,$EV$125,IF(CE9<$EW$126,$EV$126,IF(CE9<$EW$127,$EV$127,$EV$128)))))) -> ¹³∕₁₄ | EP9: 8 | EQ9: 1 | ER9: 13 | ES9: 0.077 | ET9: ¹ | EU9: ₁₃ | EV9: ¹∕₁₃ | EW9: 0.08 | EX9: 8 | EY9: ⁸
J10: -5 | K10: -5 | S10: =S7 -> 0 | T10: =T7 -> 99 | U10: =VLOOKUP($AQ$15,$BD$5:$BW$67,13) -> 1 | V10: =VLOOKUP($AQ$15,$BD$5:$BW$67,14) -> 1 | W10: =VLOOKUP($AR$15,$BD$5:$BW$67,12) -> 0 | X10: -9.4 | Y10: -81.6 | AB10: =VLOOKUP(AB15,$BD$5:$BW$67,4) -> 0 | AC10: =VLOOKUP(AC15,$BD$5:$BW$67,6) -> 9𝒙 | AD10: =VLOOKUP(AD15,$BD$5:$BW$67,8) -> 3 | AE10: -9.4 | AF10: -29.2 | AI10: =VLOOKUP(AI15,$BD$5:$BW$67,4) -> 0 | AJ10: =VLOOKUP(AJ15,$BD$5:$BW$67,6) -> 3𝒙 | AK10: =VLOOKUP(AK15,$BD$5:$BW$67,8) -> -1 | AL10: -9.4 | AM10: -9.4 | AP10: =VLOOKUP(AP15,$BD$5:$BW$67,4) -> 0 | AQ10: =VLOOKUP(AQ15,$BD$5:$BW$67,6) -> 𝒙 | AR10: =VLOOKUP(AR15,$BD$5:$BW$67,8) -> 0 | AV10: -9.4 | AW10: -17.8 | AZ10: =VLOOKUP(AZ15,$BD$5:$BW$67,4) -> 0 | BA10: =VLOOKUP(BA15,$BD$5:$BW$67,6) -> 2𝒙 | BB10: =VLOOKUP(BB15,$BD$5:$BW$67,8) -> 1 | BD10: 6 | BE10: 4x³ | BF10: + 4x² | BG10: 4x² | BH10: x | BI10: =CONCATENATE(4,$S$2," ") -> 4𝒙 | BJ10: + 6½ | BK10: 6½ | BL10: 4 | BM10: 4 | BN10: 4 | BO10: 6.5 | BP10: 4 | BQ10: 1 | BU10: 4 | CA10: -23.23529412 | CB10: 23.23529412 | CC10: − | CD10: 23 | CE10: 0.235 | CF10: =IF(CE10=CQ10,CQ11,IF(CE10=CR10,CR11,IF(CE10=CS10,CS11,IF(CE10=CT10,CT11,IF(CE10=CU10,CU11,IF(CE10=CV10,CV11,IF(CE10=CW10,CW11,CE10))))))) -> ⁴∕₁₇ | CG10: =IF(CF10=CX10,CX11,IF(CF10=CY10,CY11,CF10)) -> ⁴∕₁₇ | CH10: −23⁴∕₁₇ | CI10: =IF(CE10=CQ10,"*",IF(CE10=CR10,"*",IF(CE10=CS10,"*",IF(CE10=CT10,"*",IF(CE10=CU10,"*",IF(CE10=CV10,"*",IF(CE10=CW10,"*",CO10))))))) -> * | CJ10: =IF(CF10=CX10,"*",IF(CF10=CY10,"*",CI10)) -> * | CK10: * | CL10: -1161.764706 | CM10: -1162 | CN10: 0.235294117647072 | CO10: · | CP10: =50*CA11 -> -91.66666667 | CQ10: =IF(DI10=1,DJ10,DQ10) -> 0.077 | CR10: =IF(DI10=1,DK10,DR10) -> 0.133 | CS10: =IF(DI10=1,DL10,DS10) -> 0.188 | CT10: =IF(DI10=1,DM10,DT10) -> 0.235 | CU10: =IF(DI10=1,DN10,DU10) -> 0.267 | CV10: =IF(DI10=1,DO10,DV10) -> 0.316 | CW10: =IF(DI10=1,DP10,DW10) -> 0.385 | CX10: =IF(DI10=1,DQ10,DX10) -> 0.444 | CY10: =IF(DI10=1,DR10,DY10) -> 0.526 | CZ10: =IF(DI11=1,DZ10,EG10) -> 0.5 | DA10: =IF(DI11=1,EA10,EH10) -> 0.563 | DB10: =IF(DI11=1,EB10,EI10) -> 0.625 | DC10: =IF(DI11=1,EC10,EJ10) -> 0.688 | DD10: =IF(DI11=1,ED10,EK10) -> 0.737 | DE10: =IF(DI11=1,EE10,EL10) -> 0.813 | DF10: =IF(DI11=1,EF10,EM10) -> 0.833 | DG10: =IF(DI11=1,EG10,EN10) -> 0.875 | DH10: =IF(DI11=1,EH10,EO10) -> 0.929 | DI10: 1 | DJ10: =IF(CE10<$EW$2,$ES$2,IF(CE10<$EW$3,$ES$3,IF(CE10<$EW$4,$ES$4,IF(CE10<$EW$5,$ES$5,IF(CE10<$EW$6,$ES$6,IF(CE10<$EW$7,$ES$7,IF(CE10<$EW$8,$ES$8,$ES$9))))))) -> 0.077 | DK10: =IF(CE10<$EW$10,$ES$10,IF(CE10<$EW$11,$ES$11,IF(CE10<$EW$12,$ES$12,IF(CE10<$EW$13,$ES$13,IF(CE10<$EW$14,$ES$14,IF(CE10<$EW$15,$ES$15,IF(CE10<$EW$16,$ES$16,$ES$17))))))) -> 0.133 | DL10: =IF(CE10<$EW$18,$ES$18,IF(CE10<$EW$19,$ES$19,IF(CE10<$EW$20,$ES$20,IF(CE10<$EW$21,$ES$21,IF(CE10<$EW$22,$ES$22,IF(CE10<$EW$23,$ES$23,IF(CE10<$EW$24,$ES$24,$ES$25))))))) -> 0.188 | DM10: =IF(CE10<$EW$26,$ES$26,IF(CE10<$EW$27,$ES$27,IF(CE10<$EW$28,$ES$28,IF(CE10<$EW$29,$ES$29,IF(CE10<$EW$30,$ES$30,IF(CE10<$EW$31,$ES$31,IF(CE10<$EW$32,$ES$32,$ES$33))))))) -> 0.235 | DN10: =IF(CE10<$EW$34,$ES$34,IF(CE10<$EW$35,$ES$35,IF(CE10<$EW$36,$ES$36,IF(CE10<$EW$37,$ES$37,IF(CE10<$EW$38,$ES$38,IF(CE10<$EW$39,$ES$39,IF(CE10<$EW$40,$ES$40,$ES$41))))))) -> 0.267 | DO10: =IF(CE10<$EW$42,$ES$42,IF(CE10<$EW$43,$ES$43,IF(CE10<$EW$44,$ES$44,IF(CE10<$EW$45,$ES$45,IF(CE10<$EW$46,$ES$46,IF(CE10<$EW$47,$ES$47,IF(CE10<$EW$48,$ES$48,$ES$49))))))) -> 0.316 | DP10: =IF(CE10<$EW$50,$ES$50,IF(CE10<$EW$51,$ES$51,IF(CE10<$EW$52,$ES$52,IF(CE10<$EW$53,$ES$53,IF(CE10<$EW$54,$ES$54,IF(CE10<$EW$55,$ES$55,IF(CE10<$EW$56,$ES$56,$ES$57))))))) -> 0.385 | DQ10: =IF(CE10<$EW$58,$ES$58,IF(CE10<$EW$59,$ES$59,IF(CE10<$EW$60,$ES$60,IF(CE10<$EW$61,$ES$61,IF(CE10<$EW$62,$ES$62,IF(CE10<$EW$63,$ES$63,IF(CE10<$EW$64,$ES$64,$ES$65))))))) -> 0.444 | DR10: =IF(CE10<$EW$66,$ES$66,IF(CE10<$EW$67,$ES$67,IF(CE10<$EW$68,$ES$68,IF(CE10<$EW$69,$ES$69,IF(CE10<$EW$70,$ES$70,IF(CE10<$EW$71,$ES$71,IF(CE10<$EW$72,$ES$72,$ES$73))))))) -> 0.526 | DS10: =IF(CE10<$EW$74,$ES$74,IF(CE10<$EW$75,$ES$75,IF(CE10<$EW$76,$ES$76,IF(CE10<$EW$77,$ES$77,IF(CE10<$EW$78,$ES$78,IF(CE10<$EW$79,$ES$79,IF(CE10<$EW$80,$ES$80,$ES$81))))))) -> 0.571 | DT10: =IF(CE10<$EW$82,$ES$82,IF(CE10<$EW$83,$ES$83,IF(CE10<$EW$84,$ES$84,IF(CE10<$EW$85,$ES$85,IF(CE10<$EW$86,$ES$86,IF(CE10<$EW$87,$ES$87,IF(CE10<$EW$88,$ES$88,$ES$89))))))) -> 0.632 | DU10: =IF(CE10<$EW$90,$ES$90,IF(CE10<$EW$91,$ES$91,IF(CE10<$EW$92,$ES$92,IF(CE10<$EW$93,$ES$93,IF(CE10<$EW$94,$ES$94,IF(CE10<$EW$95,$ES$95,IF(CE10<$EW$96,$ES$96,$ES$97))))))) -> 0.692 | DV10: =IF(CE10<$EW$98,$ES$98,IF(CE10<$EW$99,$ES$99,IF(CE10<$EW$100,$ES$100,IF(CE10<$EW$101,$ES$101,IF(CE10<$EW$102,$ES$102,IF(CE10<$EW$103,$ES$103,IF(CE10<$EW$104,$ES$104,$ES$105))))))) -> 0.75 | DW10: =IF(CE10<$EW$106,$ES$106,IF(CE10<$EW$107,$ES$107,IF(CE10<$EW$108,$ES$108,IF(CE10<$EW$109,$ES$109,IF(CE10<$EW$110,$ES$110,IF(CE10<$EW$111,$ES$111,IF(CE10<$EW$112,$ES$112,$ES$113))))))) -> 0.818 | DX10: =IF(CE10<$EW$114,$ES$114,IF(CE10<$EW$115,$ES$115,IF(CE10<$EW$116,$ES$116,IF(CE10<$EW$117,$ES$117,IF(CE10<$EW$118,$ES$118,IF(CE10<$EW$119,$ES$119,IF(CE10<$EW$120,$ES$120,$ES$121))))))) -> 0.875 | DY10: =IF(CE10<$EW$122,$ES$122,IF(CE10<$EW$123,$ES$123,IF(CE10<$EW$124,$ES$124,IF(CE10<$EW$125,$ES$125,IF(CE10<$EW$126,$ES$126,IF(CE10<$EW$127,$ES$127,$ES$128)))))) -> 0.929 | DZ10: =IF(CE11<$EW$2,$ES$2,IF(CE11<$EW$3,$ES$3,IF(CE11<$EW$4,$ES$4,IF(CE11<$EW$5,$ES$5,IF(CE11<$EW$6,$ES$6,IF(CE11<$EW$7,$ES$7,IF(CE11<$EW$8,$ES$8,$ES$9))))))) -> 0.077 | EA10: =IF(CE11<$EW$10,$ES$10,IF(CE11<$EW$11,$ES$11,IF(CE11<$EW$12,$ES$12,IF(CE11<$EW$13,$ES$13,IF(CE11<$EW$14,$ES$14,IF(CE11<$EW$15,$ES$15,IF(CE11<$EW$16,$ES$16,$ES$17))))))) -> 0.133 | EB10: =IF(CE11<$EW$18,$ES$18,IF(CE11<$EW$19,$ES$19,IF(CE11<$EW$20,$ES$20,IF(CE11<$EW$21,$ES$21,IF(CE11<$EW$22,$ES$22,IF(CE11<$EW$23,$ES$23,IF(CE11<$EW$24,$ES$24,$ES$25))))))) -> 0.188 | EC10: =IF(CE11<$EW$26,$ES$26,IF(CE11<$EW$27,$ES$27,IF(CE11<$EW$28,$ES$28,IF(CE11<$EW$29,$ES$29,IF(CE11<$EW$30,$ES$30,IF(CE11<$EW$31,$ES$31,IF(CE11<$EW$32,$ES$32,$ES$33))))))) -> 0.263 | ED10: =IF(CE11<$EW$34,$ES$34,IF(CE11<$EW$35,$ES$35,IF(CE11<$EW$36,$ES$36,IF(CE11<$EW$37,$ES$37,IF(CE11<$EW$38,$ES$38,IF(CE11<$EW$39,$ES$39,IF(CE11<$EW$40,$ES$40,$ES$41))))))) -> 0.313 | EE10: =IF(CE11<$EW$42,$ES$42,IF(CE11<$EW$43,$ES$43,IF(CE11<$EW$44,$ES$44,IF(CE11<$EW$45,$ES$45,IF(CE11<$EW$46,$ES$46,IF(CE11<$EW$47,$ES$47,IF(CE11<$EW$48,$ES$48,$ES$49))))))) -> 0.375 | EF10: =IF(CE11<$EW$50,$ES$50,IF(CE11<$EW$51,$ES$51,IF(CE11<$EW$52,$ES$52,IF(CE11<$EW$53,$ES$53,IF(CE11<$EW$54,$ES$54,IF(CE11<$EW$55,$ES$55,IF(CE11<$EW$56,$ES$56,$ES$57))))))) -> 0.438 | EG10: =IF(CE11<$EW$58,$ES$58,IF(CE11<$EW$59,$ES$59,IF(CE11<$EW$60,$ES$60,IF(CE11<$EW$61,$ES$61,IF(CE11<$EW$62,$ES$62,IF(CE11<$EW$63,$ES$63,IF(CE11<$EW$64,$ES$64,$ES$65))))))) -> 0.5 | EH10: =IF(CE11<$EW$66,$ES$66,IF(CE11<$EW$67,$ES$67,IF(CE11<$EW$68,$ES$68,IF(CE11<$EW$69,$ES$69,IF(CE11<$EW$70,$ES$70,IF(CE11<$EW$71,$ES$71,IF(CE11<$EW$72,$ES$72,$ES$73))))))) -> 0.563 | EI10: =IF(CE11<$EW$74,$ES$74,IF(CE11<$EW$75,$ES$75,IF(CE11<$EW$76,$ES$76,IF(CE11<$EW$77,$ES$77,IF(CE11<$EW$78,$ES$78,IF(CE11<$EW$79,$ES$79,IF(CE11<$EW$80,$ES$80,$ES$81))))))) -> 0.625 | EJ10: =IF(CE11<$EW$82,$ES$82,IF(CE11<$EW$83,$ES$83,IF(CE11<$EW$84,$ES$84,IF(CE11<$EW$85,$ES$85,IF(CE11<$EW$86,$ES$86,IF(CE11<$EW$87,$ES$87,IF(CE11<$EW$88,$ES$88,$ES$89))))))) -> 0.688 | EK10: =IF(CE11<$EW$90,$ES$90,IF(CE11<$EW$91,$ES$91,IF(CE11<$EW$92,$ES$92,IF(CE11<$EW$93,$ES$93,IF(CE11<$EW$94,$ES$94,IF(CE11<$EW$95,$ES$95,IF(CE11<$EW$96,$ES$96,$ES$97))))))) -> 0.737 | EL10: =IF(CE11<$EW$98,$ES$98,IF(CE11<$EW$99,$ES$99,IF(CE11<$EW$100,$ES$100,IF(CE11<$EW$101,$ES$101,IF(CE11<$EW$102,$ES$102,IF(CE11<$EW$103,$ES$103,IF(CE11<$EW$104,$ES$104,$ES$105))))))) -> 0.813 | EM10: =IF(CE11<$EW$106,$ES$106,IF(CE11<$EW$107,$ES$107,IF(CE11<$EW$108,$ES$108,IF(CE11<$EW$109,$ES$109,IF(CE11<$EW$110,$ES$110,IF(CE11<$EW$111,$ES$111,IF(CE11<$EW$112,$ES$112,$ES$113))))))) -> 0.833 | EN10: =IF(CE11<$EW$114,$ES$114,IF(CE11<$EW$115,$ES$115,IF(CE11<$EW$116,$ES$116,IF(CE11<$EW$117,$ES$117,IF(CE11<$EW$118,$ES$118,IF(CE11<$EW$119,$ES$119,IF(CE11<$EW$120,$ES$120,$ES$121))))))) -> 0.875 | EO10: =IF(CE11<$EW$122,$ES$122,IF(CE11<$EW$123,$ES$123,IF(CE11<$EW$124,$ES$124,IF(CE11<$EW$125,$ES$125,IF(CE11<$EW$126,$ES$126,IF(CE11<$EW$127,$ES$127,$ES$128)))))) -> 0.929 | EP10: 9 | EQ10: 1 | ER10: 12 | ES10: 0.083 | ET10: ¹ | EU10: ₁₂ | EV10: ¹∕₁₂ | EW10: 0.087 | EX10: 9 | EY10: ⁹
D11: xi | E11: yi | F11: //? | J11: -5 | K11: 5 | S11: 0 | T11: =IF(AJ15=1,W14+99,W14+U11) -> 98 | U11: 99 | X11: -9.3 | Y11: -80.7 | AE11: -9.3 | AF11: -28.9 | AL11: -9.3 | AM11: -9.3 | AV11: -9.3 | AW11: -17.6 | BD11: 7 | BE11: 3x³ | BF11: + 3x² | BG11: 3x² | BH11: x | BI11: =CONCATENATE(3,$S$2," ") -> 3𝒙 | BJ11: + 6 | BK11: 6 | BL11: 3 | BM11: 3 | BN11: 3 | BO11: 6 | BP11: 3 | BQ11: 1 | BU11: 3 | CA11: -1.833333333 | CB11: 1.833333333 | CC11: − | CD11: 1 | CE11: 0.833 | CF11: =IF(CE11=CZ10,CZ11,IF(CE11=DA10,DA11,IF(CE11=DB10,DB11,IF(CE11=DC10,DC11,IF(CE11=DD10,DD11,IF(CE11=DE10,DE11,IF(CE11=DF10,DF11,CE11))))))) -> ⅚ | CG11: =IF(CF11=DG10,DG11,IF(CF11=DH10,DH11,CF11)) -> ⅚ | CH11: −1⅚ | CI11: =IF(CE11=CZ10,"*",IF(CE11=DA10,"*",IF(CE11=DB10,"*",IF(CE11=DC10,"*",IF(CE11=DD10,"*",IF(CE11=DE10,"*",IF(CE11=DF10,"*",CO11))))))) -> * | CJ11: =IF(CF11=DG10,"*",IF(CF11=DH10,"*",CI11)) -> * | CK11: * | CL11: -91.66666667 | CM11: -92 | CN11: 0.333333333333343 | CO11: · | CP11: =ROUND(50*CA11,0) -> -92 | CQ11: =IF(DI10=1,DJ11,DQ11) -> ¹∕₁₃ | CR11: =IF(DI10=1,DK11,DR11) -> ²∕₁₅ | CS11: =IF(DI10=1,DL11,DS11) -> ³∕₁₆ | CT11: =IF(DI10=1,DM11,DT11) -> ⁴∕₁₇ | CU11: =IF(DI10=1,DN11,DU11) -> ⁴∕₁₅ | CV11: =IF(DI10=1,DO11,DV11) -> ⁶∕₁₉ | CW11: =IF(DI10=1,DP11,DW11) -> ⁵∕₁₃ | CX11: =IF(DI10=1,DQ11,DX11) -> ⁴∕₉ | CY11: =IF(DI10=1,DR11,DY11) -> ¹º∕₁₉ | CZ11: =IF(DI11=1,DZ11,EG11) -> ½ | DA11: =IF(DI11=1,EA11,EH11) -> ⁹∕₁₆ | DB11: =IF(DI11=1,EB11,EI11) -> ⅝ | DC11: =IF(DI11=1,EC11,EJ11) -> ¹¹∕₁₆ | DD11: =IF(DI11=1,ED11,EK11) -> ¹⁴∕₁₉ | DE11: =IF(DI11=1,EE11,EL11) -> ¹³∕₁₆ | DF11: =IF(DI11=1,EF11,EM11) -> ⅚ | DG11: =IF(DI11=1,EG11,EN11) -> ⅞ | DH11: =IF(DI11=1,EH11,EO11) -> ¹³∕₁₄ | DI11: 2 | DJ11: =IF(CE10<$EW$2,$EV$2,IF(CE10<$EW$3,$EV$3,IF(CE10<$EW$4,$EV$4,IF(CE10<$EW$5,$EV$5,IF(CE10<$EW$6,$EV$6,IF(CE10<$EW$7,$EV$7,IF(CE10<$EW$8,$EV$8,$EV$9))))))) -> ¹∕₁₃ | DK11: =IF(CE10<$EW$10,$EV$10,IF(CE10<$EW$11,$EV$11,IF(CE10<$EW$12,$EV$12,IF(CE10<$EW$13,$EV$13,IF(CE10<$EW$14,$EV$14,IF(CE10<$EW$15,$EV$15,IF(CE10<$EW$16,$EV$16,$EV$17))))))) -> ²∕₁₅ | DL11: =IF(CE10<$EW$18,$EV$18,IF(CE10<$EW$19,$EV$19,IF(CE10<$EW$20,$EV$20,IF(CE10<$EW$21,$EV$21,IF(CE10<$EW$22,$EV$22,IF(CE10<$EW$23,$EV$23,IF(CE10<$EW$24,$EV$24,$EV$25))))))) -> ³∕₁₆ | DM11: =IF(CE10<$EW$26,$EV$26,IF(CE10<$EW$27,$EV$27,IF(CE10<$EW$28,$EV$28,IF(CE10<$EW$29,$EV$29,IF(CE10<$EW$30,$EV$30,IF(CE10<$EW$31,$EV$31,IF(CE10<$EW$32,$EV$32,$EV$33))))))) -> ⁴∕₁₇ | DN11: =IF(CE10<$EW$34,$EV$34,IF(CE10<$EW$35,$EV$35,IF(CE10<$EW$36,$EV$36,IF(CE10<$EW$37,$EV$37,IF(CE10<$EW$38,$EV$38,IF(CE10<$EW$39,$EV$39,IF(CE10<$EW$40,$EV$40,$EV$41))))))) -> ⁴∕₁₅ | DO11: =IF(CE10<$EW$42,$EV$42,IF(CE10<$EW$43,$EV$43,IF(CE10<$EW$44,$EV$44,IF(CE10<$EW$45,$EV$45,IF(CE10<$EW$46,$EV$46,IF(CE10<$EW$47,$EV$47,IF(CE10<$EW$48,$EV$48,$EV$49))))))) -> ⁶∕₁₉ | DP11: =IF(CE10<$EW$50,$EV$50,IF(CE10<$EW$51,$EV$51,IF(CE10<$EW$52,$EV$52,IF(CE10<$EW$53,$EV$53,IF(CE10<$EW$54,$EV$54,IF(CE10<$EW$55,$EV$55,IF(CE10<$EW$56,$EV$56,$EV$57))))))) -> ⁵∕₁₃ | DQ11: =IF(CE10<$EW$58,$EV$58,IF(CE10<$EW$59,$EV$59,IF(CE10<$EW$60,$EV$60,IF(CE10<$EW$61,$EV$61,IF(CE10<$EW$62,$EV$62,IF(CE10<$EW$63,$EV$63,IF(CE10<$EW$64,$EV$64,$EV$65))))))) -> ⁴∕₉ | DR11: =IF(CE10<$EW$66,$EV$66,IF(CE10<$EW$67,$EV$67,IF(CE10<$EW$68,$EV$68,IF(CE10<$EW$69,$EV$69,IF(CE10<$EW$70,$EV$70,IF(CE10<$EW$71,$EV$71,IF(CE10<$EW$72,$EV$72,$EV$73))))))) -> ¹º∕₁₉ | DS11: =IF(CE10<$EW$74,$EV$74,IF(CE10<$EW$75,$EV$75,IF(CE10<$EW$76,$EV$76,IF(CE10<$EW$77,$EV$77,IF(CE10<$EW$78,$EV$78,IF(CE10<$EW$79,$EV$79,IF(CE10<$EW$80,$EV$80,$EV$81))))))) -> ⁴∕₇ | DT11: =IF(CE10<$EW$82,$EV$82,IF(CE10<$EW$83,$EV$83,IF(CE10<$EW$84,$EV$84,IF(CE10<$EW$85,$EV$85,IF(CE10<$EW$86,$EV$86,IF(CE10<$EW$87,$EV$87,IF(CE10<$EW$88,$EV$88,$EV$89))))))) -> ¹²∕₁₉ | DU11: =IF(CE10<$EW$90,$EV$90,IF(CE10<$EW$91,$EV$91,IF(CE10<$EW$92,$EV$92,IF(CE10<$EW$93,$EV$93,IF(CE10<$EW$94,$EV$94,IF(CE10<$EW$95,$EV$95,IF(CE10<$EW$96,$EV$96,$EV$97))))))) -> ⁹∕₁₃ | DV11: =IF(CE10<$EW$98,$EV$98,IF(CE10<$EW$99,$EV$99,IF(CE10<$EW$100,$EV$100,IF(CE10<$EW$101,$EV$101,IF(CE10<$EW$102,$EV$102,IF(CE10<$EW$103,$EV$103,IF(CE10<$EW$104,$EV$104,$EV$105))))))) -> ¾ | DW11: =IF(CE10<$EW$106,$EV$106,IF(CE10<$EW$107,$EV$107,IF(CE10<$EW$108,$EV$108,IF(CE10<$EW$109,$EV$109,IF(CE10<$EW$110,$EV$110,IF(CE10<$EW$111,$EV$111,IF(CE10<$EW$112,$EV$112,$EV$113))))))) -> ⁹∕₁₁ | DX11: =IF(CE10<$EW$114,$EV$114,IF(CE10<$EW$115,$EV$115,IF(CE10<$EW$116,$EV$116,IF(CE10<$EW$117,$EV$117,IF(CE10<$EW$118,$EV$118,IF(CE10<$EW$119,$EV$119,IF(CE10<$EW$120,$EV$120,$EV$121))))))) -> ⅞ | DY11: =IF(CE10<$EW$122,$EV$122,IF(CE10<$EW$123,$EV$123,IF(CE10<$EW$124,$EV$124,IF(CE10<$EW$125,$EV$125,IF(CE10<$EW$126,$EV$126,IF(CE10<$EW$127,$EV$127,$EV$128)))))) -> ¹³∕₁₄ | DZ11: =IF(CE11<$EW$2,$EV$2,IF(CE11<$EW$3,$EV$3,IF(CE11<$EW$4,$EV$4,IF(CE11<$EW$5,$EV$5,IF(CE11<$EW$6,$EV$6,IF(CE11<$EW$7,$EV$7,IF(CE11<$EW$8,$EV$8,$EV$9))))))) -> ¹∕₁₃ | EA11: =IF(CE11<$EW$10,$EV$10,IF(CE11<$EW$11,$EV$11,IF(CE11<$EW$12,$EV$12,IF(CE11<$EW$13,$EV$13,IF(CE11<$EW$14,$EV$14,IF(CE11<$EW$15,$EV$15,IF(CE11<$EW$16,$EV$16,$EV$17))))))) -> ²∕₁₅ | EB11: =IF(CE11<$EW$18,$EV$18,IF(CE11<$EW$19,$EV$19,IF(CE11<$EW$20,$EV$20,IF(CE11<$EW$21,$EV$21,IF(CE11<$EW$22,$EV$22,IF(CE11<$EW$23,$EV$23,IF(CE11<$EW$24,$EV$24,$EV$25))))))) -> ³∕₁₆ | EC11: =IF(CE11<$EW$26,$EV$26,IF(CE11<$EW$27,$EV$27,IF(CE11<$EW$28,$EV$28,IF(CE11<$EW$29,$EV$29,IF(CE11<$EW$30,$EV$30,IF(CE11<$EW$31,$EV$31,IF(CE11<$EW$32,$EV$32,$EV$33))))))) -> ⁵∕₁₉ | ED11: =IF(CE11<$EW$34,$EV$34,IF(CE11<$EW$35,$EV$35,IF(CE11<$EW$36,$EV$36,IF(CE11<$EW$37,$EV$37,IF(CE11<$EW$38,$EV$38,IF(CE11<$EW$39,$EV$39,IF(CE11<$EW$40,$EV$40,$EV$41))))))) -> ⁵∕₁₆ | EE11: =IF(CE11<$EW$42,$EV$42,IF(CE11<$EW$43,$EV$43,IF(CE11<$EW$44,$EV$44,IF(CE11<$EW$45,$EV$45,IF(CE11<$EW$46,$EV$46,IF(CE11<$EW$47,$EV$47,IF(CE11<$EW$48,$EV$48,$EV$49))))))) -> ⅜ | EF11: =IF(CE11<$EW$50,$EV$50,IF(CE11<$EW$51,$EV$51,IF(CE11<$EW$52,$EV$52,IF(CE11<$EW$53,$EV$53,IF(CE11<$EW$54,$EV$54,IF(CE11<$EW$55,$EV$55,IF(CE11<$EW$56,$EV$56,$EV$57))))))) -> ⁷∕₁₆ | EG11: =IF(CE11<$EW$58,$EV$58,IF(CE11<$EW$59,$EV$59,IF(CE11<$EW$60,$EV$60,IF(CE11<$EW$61,$EV$61,IF(CE11<$EW$62,$EV$62,IF(CE11<$EW$63,$EV$63,IF(CE11<$EW$64,$EV$64,$EV$65))))))) -> ½ | EH11: =IF(CE11<$EW$66,$EV$66,IF(CE11<$EW$67,$EV$67,IF(CE11<$EW$68,$EV$68,IF(CE11<$EW$69,$EV$69,IF(CE11<$EW$70,$EV$70,IF(CE11<$EW$71,$EV$71,IF(CE11<$EW$72,$EV$72,$EV$73))))))) -> ⁹∕₁₆ | EI11: =IF(CE11<$EW$74,$EV$74,IF(CE11<$EW$75,$EV$75,IF(CE11<$EW$76,$EV$76,IF(CE11<$EW$77,$EV$77,IF(CE11<$EW$78,$EV$78,IF(CE11<$EW$79,$EV$79,IF(CE11<$EW$80,$EV$80,$EV$81))))))) -> ⅝ | EJ11: =IF(CE11<$EW$82,$EV$82,IF(CE11<$EW$83,$EV$83,IF(CE11<$EW$84,$EV$84,IF(CE11<$EW$85,$EV$85,IF(CE11<$EW$86,$EV$86,IF(CE11<$EW$87,$EV$87,IF(CE11<$EW$88,$EV$88,$EV$89))))))) -> ¹¹∕₁₆ | EK11: =IF(CE11<$EW$90,$EV$90,IF(CE11<$EW$91,$EV$91,IF(CE11<$EW$92,$EV$92,IF(CE11<$EW$93,$EV$93,IF(CE11<$EW$94,$EV$94,IF(CE11<$EW$95,$EV$95,IF(CE11<$EW$96,$EV$96,$EV$97))))))) -> ¹⁴∕₁₉ | EL11: =IF(CE11<$EW$98,$EV$98,IF(CE11<$EW$99,$EV$99,IF(CE11<$EW$100,$EV$100,IF(CE11<$EW$101,$EV$101,IF(CE11<$EW$102,$EV$102,IF(CE11<$EW$103,$EV$103,IF(CE11<$EW$104,$EV$104,$EV$105))))))) -> ¹³∕₁₆ | EM11: =IF(CE11<$EW$106,$EV$106,IF(CE11<$EW$107,$EV$107,IF(CE11<$EW$108,$EV$108,IF(CE11<$EW$109,$EV$109,IF(CE11<$EW$110,$EV$110,IF(CE11<$EW$111,$EV$111,IF(CE11<$EW$112,$EV$112,$EV$113))))))) -> ⅚ | EN11: =IF(CE11<$EW$114,$EV$114,IF(CE11<$EW$115,$EV$115,IF(CE11<$EW$116,$EV$116,IF(CE11<$EW$117,$EV$117,IF(CE11<$EW$118,$EV$118,IF(CE11<$EW$119,$EV$119,IF(CE11<$EW$120,$EV$120,$EV$121))))))) -> ⅞ | EO11: =IF(CE11<$EW$122,$EV$122,IF(CE11<$EW$123,$EV$123,IF(CE11<$EW$124,$EV$124,IF(CE11<$EW$125,$EV$125,IF(CE11<$EW$126,$EV$126,IF(CE11<$EW$127,$EV$127,$EV$128)))))) -> ¹³∕₁₄ | EP11: 10 | EQ11: 1 | ER11: 11 | ES11: 0.091 | ET11: ¹ | EU11: ₁₁ | EV11: ¹∕₁₁ | EW11: 0.096 | EX11: 10 | EY11: ¹º
C12: 12 | D12: =IF(BA15=1,AU225,IF(AQ15=1,AS225,(W10-W6)/(U6/V6-U10/V10))) -> -1 | E12: =IF(BA15=1,U10*D12/V10+W10,U6*D12/V6+W6) -> -1 | F12: =IF(AND((U6/V6)=(U10/V10),W6=W10),11,IF((U6/V6)=(U10/V10),10,1)) -> 1 | J12: -4 | K12: 5 | S12: =IF(U13=1,S11+V14,S11-V14) -> 1 | T12: =IF(U13=1,T11+U14,T11-U14) -> 101 | X12: -9.2 | Y12: -79.8 | AE12: -9.2 | AF12: -28.6 | AL12: -9.2 | AM12: -9.2 | AV12: -9.2 | AW12: -17.4 | BD12: 8 | BE12: 2½x³ | BF12: + 2½x² | BG12: 2½x² | BH12: x | BI12: =CONCATENATE(BU12,S2," ") -> ⁵∕₂𝒙 | BJ12: + 5½ | BK12: 5½ | BL12: 2.5 | BM12: 2.5 | BN12: =5/2 -> 2.5 | BO12: 5.5 | BP12: 5 | BQ12: 2 | BR12: 5 | BS12: 2 | BT12: =BR12/BS12 -> 2.5 | BU12: =CONCATENATE("⁵",$BI$3,"₂") -> ⁵∕₂ | CA12: 9.666666667 | CB12: 9.666666667 | CD12: 9 | CE12: 0.667 | CF12: =IF(CE12=CQ12,CQ13,IF(CE12=CR12,CR13,IF(CE12=CS12,CS13,IF(CE12=CT12,CT13,IF(CE12=CU12,CU13,IF(CE12=CV12,CV13,IF(CE12=CW12,CW13,CE12))))))) -> ⅔ | CG12: =IF(CF12=CX12,CX13,IF(CF12=CY12,CY13,CF12)) -> ⅔ | CH12: 9⅔ | CI12: =IF(CE12=CQ12,"*",IF(CE12=CR12,"*",IF(CE12=CS12,"*",IF(CE12=CT12,"*",IF(CE12=CU12,"*",IF(CE12=CV12,"*",IF(CE12=CW12,"*",CO12))))))) -> * | CJ12: =IF(CF12=CX12,"*",IF(CF12=CY12,"*",CI12)) -> * | CK12: * | CL12: 483.3333333 | CM12: 483 | CN12: 0.333333333333314 | CO12: · | CP12: =50*CA13 -> 1200 | CQ12: =IF(DI12=1,DJ12,DQ12) -> 0.5 | CR12: =IF(DI12=1,DK12,DR12) -> 0.563 | CS12: =IF(DI12=1,DL12,DS12) -> 0.625 | CT12: =IF(DI12=1,DM12,DT12) -> 0.667 | CU12: =IF(DI12=1,DN12,DU12) -> 0.692 | CV12: =IF(DI12=1,DO12,DV12) -> 0.75 | CW12: =IF(DI12=1,DP12,DW12) -> 0.818 | CX12: =IF(DI12=1,DQ12,DX12) -> 0.875 | CY12: =IF(DI12=1,DR12,DY12) -> 0.929 | CZ12: =IF(DI13=1,DZ12,EG12) -> 0.05 | DA12: =IF(DI13=1,EA12,EH12) -> 0.083 | DB12: =IF(DI13=1,EB12,EI12) -> 0.143 | DC12: =IF(DI13=1,EC12,EJ12) -> 0.2 | DD12: =IF(DI13=1,ED12,EK12) -> 0.267 | DE12: =IF(DI13=1,EE12,EL12) -> 0.316 | DF12: =IF(DI13=1,EF12,EM12) -> 0.385 | DG12: =IF(DI13=1,EG12,EN12) -> 0.444 | DH12: =IF(DI13=1,EH12,EO12) -> 0.526 | DI12: 2 | DJ12: =IF(CE12<$EW$2,$ES$2,IF(CE12<$EW$3,$ES$3,IF(CE12<$EW$4,$ES$4,IF(CE12<$EW$5,$ES$5,IF(CE12<$EW$6,$ES$6,IF(CE12<$EW$7,$ES$7,IF(CE12<$EW$8,$ES$8,$ES$9))))))) -> 0.077 | DK12: =IF(CE12<$EW$10,$ES$10,IF(CE12<$EW$11,$ES$11,IF(CE12<$EW$12,$ES$12,IF(CE12<$EW$13,$ES$13,IF(CE12<$EW$14,$ES$14,IF(CE12<$EW$15,$ES$15,IF(CE12<$EW$16,$ES$16,$ES$17))))))) -> 0.133 | DL12: =IF(CE12<$EW$18,$ES$18,IF(CE12<$EW$19,$ES$19,IF(CE12<$EW$20,$ES$20,IF(CE12<$EW$21,$ES$21,IF(CE12<$EW$22,$ES$22,IF(CE12<$EW$23,$ES$23,IF(CE12<$EW$24,$ES$24,$ES$25))))))) -> 0.188 | DM12: =IF(CE12<$EW$26,$ES$26,IF(CE12<$EW$27,$ES$27,IF(CE12<$EW$28,$ES$28,IF(CE12<$EW$29,$ES$29,IF(CE12<$EW$30,$ES$30,IF(CE12<$EW$31,$ES$31,IF(CE12<$EW$32,$ES$32,$ES$33))))))) -> 0.263 | DN12: =IF(CE12<$EW$34,$ES$34,IF(CE12<$EW$35,$ES$35,IF(CE12<$EW$36,$ES$36,IF(CE12<$EW$37,$ES$37,IF(CE12<$EW$38,$ES$38,IF(CE12<$EW$39,$ES$39,IF(CE12<$EW$40,$ES$40,$ES$41))))))) -> 0.313 | DO12: =IF(CE12<$EW$42,$ES$42,IF(CE12<$EW$43,$ES$43,IF(CE12<$EW$44,$ES$44,IF(CE12<$EW$45,$ES$45,IF(CE12<$EW$46,$ES$46,IF(CE12<$EW$47,$ES$47,IF(CE12<$EW$48,$ES$48,$ES$49))))))) -> 0.375 | DP12: =IF(CE12<$EW$50,$ES$50,IF(CE12<$EW$51,$ES$51,IF(CE12<$EW$52,$ES$52,IF(CE12<$EW$53,$ES$53,IF(CE12<$EW$54,$ES$54,IF(CE12<$EW$55,$ES$55,IF(CE12<$EW$56,$ES$56,$ES$57))))))) -> 0.438 | DQ12: =IF(CE12<$EW$58,$ES$58,IF(CE12<$EW$59,$ES$59,IF(CE12<$EW$60,$ES$60,IF(CE12<$EW$61,$ES$61,IF(CE12<$EW$62,$ES$62,IF(CE12<$EW$63,$ES$63,IF(CE12<$EW$64,$ES$64,$ES$65))))))) -> 0.5 | DR12: =IF(CE12<$EW$66,$ES$66,IF(CE12<$EW$67,$ES$67,IF(CE12<$EW$68,$ES$68,IF(CE12<$EW$69,$ES$69,IF(CE12<$EW$70,$ES$70,IF(CE12<$EW$71,$ES$71,IF(CE12<$EW$72,$ES$72,$ES$73))))))) -> 0.563 | DS12: =IF(CE12<$EW$74,$ES$74,IF(CE12<$EW$75,$ES$75,IF(CE12<$EW$76,$ES$76,IF(CE12<$EW$77,$ES$77,IF(CE12<$EW$78,$ES$78,IF(CE12<$EW$79,$ES$79,IF(CE12<$EW$80,$ES$80,$ES$81))))))) -> 0.625 | DT12: =IF(CE12<$EW$82,$ES$82,IF(CE12<$EW$83,$ES$83,IF(CE12<$EW$84,$ES$84,IF(CE12<$EW$85,$ES$85,IF(CE12<$EW$86,$ES$86,IF(CE12<$EW$87,$ES$87,IF(CE12<$EW$88,$ES$88,$ES$89))))))) -> 0.667 | DU12: =IF(CE12<$EW$90,$ES$90,IF(CE12<$EW$91,$ES$91,IF(CE12<$EW$92,$ES$92,IF(CE12<$EW$93,$ES$93,IF(CE12<$EW$94,$ES$94,IF(CE12<$EW$95,$ES$95,IF(CE12<$EW$96,$ES$96,$ES$97))))))) -> 0.692 | DV12: =IF(CE12<$EW$98,$ES$98,IF(CE12<$EW$99,$ES$99,IF(CE12<$EW$100,$ES$100,IF(CE12<$EW$101,$ES$101,IF(CE12<$EW$102,$ES$102,IF(CE12<$EW$103,$ES$103,IF(CE12<$EW$104,$ES$104,$ES$105))))))) -> 0.75 | DW12: =IF(CE12<$EW$106,$ES$106,IF(CE12<$EW$107,$ES$107,IF(CE12<$EW$108,$ES$108,IF(CE12<$EW$109,$ES$109,IF(CE12<$EW$110,$ES$110,IF(CE12<$EW$111,$ES$111,IF(CE12<$EW$112,$ES$112,$ES$113))))))) -> 0.818 | DX12: =IF(CE12<$EW$114,$ES$114,IF(CE12<$EW$115,$ES$115,IF(CE12<$EW$116,$ES$116,IF(CE12<$EW$117,$ES$117,IF(CE12<$EW$118,$ES$118,IF(CE12<$EW$119,$ES$119,IF(CE12<$EW$120,$ES$120,$ES$121))))))) -> 0.875 | DY12: =IF(CE12<$EW$122,$ES$122,IF(CE12<$EW$123,$ES$123,IF(CE12<$EW$124,$ES$124,IF(CE12<$EW$125,$ES$125,IF(CE12<$EW$126,$ES$126,IF(CE12<$EW$127,$ES$127,$ES$128)))))) -> 0.929 | DZ12: =IF(CE13<$EW$2,$ES$2,IF(CE13<$EW$3,$ES$3,IF(CE13<$EW$4,$ES$4,IF(CE13<$EW$5,$ES$5,IF(CE13<$EW$6,$ES$6,IF(CE13<$EW$7,$ES$7,IF(CE13<$EW$8,$ES$8,$ES$9))))))) -> 0.05 | EA12: =IF(CE13<$EW$10,$ES$10,IF(CE13<$EW$11,$ES$11,IF(CE13<$EW$12,$ES$12,IF(CE13<$EW$13,$ES$13,IF(CE13<$EW$14,$ES$14,IF(CE13<$EW$15,$ES$15,IF(CE13<$EW$16,$ES$16,$ES$17))))))) -> 0.083 | EB12: =IF(CE13<$EW$18,$ES$18,IF(CE13<$EW$19,$ES$19,IF(CE13<$EW$20,$ES$20,IF(CE13<$EW$21,$ES$21,IF(CE13<$EW$22,$ES$22,IF(CE13<$EW$23,$ES$23,IF(CE13<$EW$24,$ES$24,$ES$25))))))) -> 0.143 | EC12: =IF(CE13<$EW$26,$ES$26,IF(CE13<$EW$27,$ES$27,IF(CE13<$EW$28,$ES$28,IF(CE13<$EW$29,$ES$29,IF(CE13<$EW$30,$ES$30,IF(CE13<$EW$31,$ES$31,IF(CE13<$EW$32,$ES$32,$ES$33))))))) -> 0.2 | ED12: =IF(CE13<$EW$34,$ES$34,IF(CE13<$EW$35,$ES$35,IF(CE13<$EW$36,$ES$36,IF(CE13<$EW$37,$ES$37,IF(CE13<$EW$38,$ES$38,IF(CE13<$EW$39,$ES$39,IF(CE13<$EW$40,$ES$40,$ES$41))))))) -> 0.267 | EE12: =IF(CE13<$EW$42,$ES$42,IF(CE13<$EW$43,$ES$43,IF(CE13<$EW$44,$ES$44,IF(CE13<$EW$45,$ES$45,IF(CE13<$EW$46,$ES$46,IF(CE13<$EW$47,$ES$47,IF(CE13<$EW$48,$ES$48,$ES$49))))))) -> 0.316 | EF12: =IF(CE13<$EW$50,$ES$50,IF(CE13<$EW$51,$ES$51,IF(CE13<$EW$52,$ES$52,IF(CE13<$EW$53,$ES$53,IF(CE13<$EW$54,$ES$54,IF(CE13<$EW$55,$ES$55,IF(CE13<$EW$56,$ES$56,$ES$57))))))) -> 0.385 | EG12: =IF(CE13<$EW$58,$ES$58,IF(CE13<$EW$59,$ES$59,IF(CE13<$EW$60,$ES$60,IF(CE13<$EW$61,$ES$61,IF(CE13<$EW$62,$ES$62,IF(CE13<$EW$63,$ES$63,IF(CE13<$EW$64,$ES$64,$ES$65))))))) -> 0.444 | EH12: =IF(CE13<$EW$66,$ES$66,IF(CE13<$EW$67,$ES$67,IF(CE13<$EW$68,$ES$68,IF(CE13<$EW$69,$ES$69,IF(CE13<$EW$70,$ES$70,IF(CE13<$EW$71,$ES$71,IF(CE13<$EW$72,$ES$72,$ES$73))))))) -> 0.526 | EI12: =IF(CE13<$EW$74,$ES$74,IF(CE13<$EW$75,$ES$75,IF(CE13<$EW$76,$ES$76,IF(CE13<$EW$77,$ES$77,IF(CE13<$EW$78,$ES$78,IF(CE13<$EW$79,$ES$79,IF(CE13<$EW$80,$ES$80,$ES$81))))))) -> 0.571 | EJ12: =IF(CE13<$EW$82,$ES$82,IF(CE13<$EW$83,$ES$83,IF(CE13<$EW$84,$ES$84,IF(CE13<$EW$85,$ES$85,IF(CE13<$EW$86,$ES$86,IF(CE13<$EW$87,$ES$87,IF(CE13<$EW$88,$ES$88,$ES$89))))))) -> 0.632 | EK12: =IF(CE13<$EW$90,$ES$90,IF(CE13<$EW$91,$ES$91,IF(CE13<$EW$92,$ES$92,IF(CE13<$EW$93,$ES$93,IF(CE13<$EW$94,$ES$94,IF(CE13<$EW$95,$ES$95,IF(CE13<$EW$96,$ES$96,$ES$97))))))) -> 0.692 | EL12: =IF(CE13<$EW$98,$ES$98,IF(CE13<$EW$99,$ES$99,IF(CE13<$EW$100,$ES$100,IF(CE13<$EW$101,$ES$101,IF(CE13<$EW$102,$ES$102,IF(CE13<$EW$103,$ES$103,IF(CE13<$EW$104,$ES$104,$ES$105))))))) -> 0.75 | EM12: =IF(CE13<$EW$106,$ES$106,IF(CE13<$EW$107,$ES$107,IF(CE13<$EW$108,$ES$108,IF(CE13<$EW$109,$ES$109,IF(CE13<$EW$110,$ES$110,IF(CE13<$EW$111,$ES$111,IF(CE13<$EW$112,$ES$112,$ES$113))))))) -> 0.818 | EN12: =IF(CE13<$EW$114,$ES$114,IF(CE13<$EW$115,$ES$115,IF(CE13<$EW$116,$ES$116,IF(CE13<$EW$117,$ES$117,IF(CE13<$EW$118,$ES$118,IF(CE13<$EW$119,$ES$119,IF(CE13<$EW$120,$ES$120,$ES$121))))))) -> 0.875 | EO12: =IF(CE13<$EW$122,$ES$122,IF(CE13<$EW$123,$ES$123,IF(CE13<$EW$124,$ES$124,IF(CE13<$EW$125,$ES$125,IF(CE13<$EW$126,$ES$126,IF(CE13<$EW$127,$ES$127,$ES$128)))))) -> 0.929 | EP12: 11 | EQ12: 1 | ER12: 10 | ES12: 0.1 | ET12: ¹ | EU12: ₁₀ | EV12: ¹∕₁₀ | EW12: 0.103 | EX12: 11 | EY12: ¹¹
C13: 13 | D13: =IF(BA15=1,AU225,IF(AJ15=1,AQ225,(W14-W6)/(U6/V6-U14/V14))) -> 2 | E13: =IF(BA15=1,U14*D13/V14+W14,U6*D13/V6+W6) -> 5 | F13: =IF(AND((U6/V6)=(U14/V14),W6=W14),11,IF((U6/V6)=(U14/V14),10,1)) -> 1 | J13: -4 | K13: -5 | S13: =IF(U13=1,S12,S11) -> 1 | T13: =IF(U13=1,T11,T12) -> 98 | U13: =IF(AND(ABS(T11+U14)>ABS(T11-U14),ABS(T11+U14)>5,ABS(T11-U14)<=5),2,1) -> 1 | X13: -9.1 | Y13: -78.9 | AE13: -9.1 | AF13: -28.3 | AL13: -9.1 | AM13: -9.1 | AV13: -9.1 | AW13: -17.2 | BD13: 9 | BE13: 2x³ | BF13: + 2x² | BG13: 2x² | BH13: x | BI13: =CONCATENATE(2,$S$2," ") -> 2𝒙 | BJ13: + 5 | BK13: 5 | BL13: 2 | BM13: 2 | BN13: 2 | BO13: 5 | BP13: 2 | BQ13: 1 | BU13: 2 | CA13: 24 | CB13: 24 | CD13: 24 | CE13: 0 | CF13: =IF(CE13=CZ12,CZ13,IF(CE13=DA12,DA13,IF(CE13=DB12,DB13,IF(CE13=DC12,DC13,IF(CE13=DD12,DD13,IF(CE13=DE12,DE13,IF(CE13=DF12,DF13,CE13))))))) -> 0 | CG13: =IF(CF13=DG12,DG13,IF(CF13=DH12,DH13,CF13)) -> 0 | CH13: 24 | CI13: =IF(CE13=CZ12,"*",IF(CE13=DA12,"*",IF(CE13=DB12,"*",IF(CE13=DC12,"*",IF(CE13=DD12,"*",IF(CE13=DE12,"*",IF(CE13=DF12,"*",CO13))))))) -> • | CJ13: =IF(CF13=DG12,"*",IF(CF13=DH12,"*",CI13)) -> • | CK13: ⁿ | CL13: 1200 | CM13: 1200 | CN13: 0 | CO13: • | CP13: =ROUND(50*CA13,0) -> 1200 | CQ13: =IF(DI12=1,DJ13,DQ13) -> ½ | CR13: =IF(DI12=1,DK13,DR13) -> ⁹∕₁₆ | CS13: =IF(DI12=1,DL13,DS13) -> ⅝ | CT13: =IF(DI12=1,DM13,DT13) -> ⅔ | CU13: =IF(DI12=1,DN13,DU13) -> ⁹∕₁₃ | CV13: =IF(DI12=1,DO13,DV13) -> ¾ | CW13: =IF(DI12=1,DP13,DW13) -> ⁹∕₁₁ | CX13: =IF(DI12=1,DQ13,DX13) -> ⅞ | CY13: =IF(DI12=1,DR13,DY13) -> ¹³∕₁₄ | CZ13: =IF(DI13=1,DZ13,EG13) -> ¹∕₂₀ | DA13: =IF(DI13=1,EA13,EH13) -> ¹∕₁₂ | DB13: =IF(DI13=1,EB13,EI13) -> ¹∕₇ | DC13: =IF(DI13=1,EC13,EJ13) -> ⅕ | DD13: =IF(DI13=1,ED13,EK13) -> ⁴∕₁₅ | DE13: =IF(DI13=1,EE13,EL13) -> ⁶∕₁₉ | DF13: =IF(DI13=1,EF13,EM13) -> ⁵∕₁₃ | DG13: =IF(DI13=1,EG13,EN13) -> ⁴∕₉ | DH13: =IF(DI13=1,EH13,EO13) -> ¹º∕₁₉ | DI13: 1 | DJ13: =IF(CE12<$EW$2,$EV$2,IF(CE12<$EW$3,$EV$3,IF(CE12<$EW$4,$EV$4,IF(CE12<$EW$5,$EV$5,IF(CE12<$EW$6,$EV$6,IF(CE12<$EW$7,$EV$7,IF(CE12<$EW$8,$EV$8,$EV$9))))))) -> ¹∕₁₃ | DK13: =IF(CE12<$EW$10,$EV$10,IF(CE12<$EW$11,$EV$11,IF(CE12<$EW$12,$EV$12,IF(CE12<$EW$13,$EV$13,IF(CE12<$EW$14,$EV$14,IF(CE12<$EW$15,$EV$15,IF(CE12<$EW$16,$EV$16,$EV$17))))))) -> ²∕₁₅ | DL13: =IF(CE12<$EW$18,$EV$18,IF(CE12<$EW$19,$EV$19,IF(CE12<$EW$20,$EV$20,IF(CE12<$EW$21,$EV$21,IF(CE12<$EW$22,$EV$22,IF(CE12<$EW$23,$EV$23,IF(CE12<$EW$24,$EV$24,$EV$25))))))) -> ³∕₁₆ | DM13: =IF(CE12<$EW$26,$EV$26,IF(CE12<$EW$27,$EV$27,IF(CE12<$EW$28,$EV$28,IF(CE12<$EW$29,$EV$29,IF(CE12<$EW$30,$EV$30,IF(CE12<$EW$31,$EV$31,IF(CE12<$EW$32,$EV$32,$EV$33))))))) -> ⁵∕₁₉ | DN13: =IF(CE12<$EW$34,$EV$34,IF(CE12<$EW$35,$EV$35,IF(CE12<$EW$36,$EV$36,IF(CE12<$EW$37,$EV$37,IF(CE12<$EW$38,$EV$38,IF(CE12<$EW$39,$EV$39,IF(CE12<$EW$40,$EV$40,$EV$41))))))) -> ⁵∕₁₆ | DO13: =IF(CE12<$EW$42,$EV$42,IF(CE12<$EW$43,$EV$43,IF(CE12<$EW$44,$EV$44,IF(CE12<$EW$45,$EV$45,IF(CE12<$EW$46,$EV$46,IF(CE12<$EW$47,$EV$47,IF(CE12<$EW$48,$EV$48,$EV$49))))))) -> ⅜ | DP13: =IF(CE12<$EW$50,$EV$50,IF(CE12<$EW$51,$EV$51,IF(CE12<$EW$52,$EV$52,IF(CE12<$EW$53,$EV$53,IF(CE12<$EW$54,$EV$54,IF(CE12<$EW$55,$EV$55,IF(CE12<$EW$56,$EV$56,$EV$57))))))) -> ⁷∕₁₆ | DQ13: =IF(CE12<$EW$58,$EV$58,IF(CE12<$EW$59,$EV$59,IF(CE12<$EW$60,$EV$60,IF(CE12<$EW$61,$EV$61,IF(CE12<$EW$62,$EV$62,IF(CE12<$EW$63,$EV$63,IF(CE12<$EW$64,$EV$64,$EV$65))))))) -> ½ | DR13: =IF(CE12<$EW$66,$EV$66,IF(CE12<$EW$67,$EV$67,IF(CE12<$EW$68,$EV$68,IF(CE12<$EW$69,$EV$69,IF(CE12<$EW$70,$EV$70,IF(CE12<$EW$71,$EV$71,IF(CE12<$EW$72,$EV$72,$EV$73))))))) -> ⁹∕₁₆ | DS13: =IF(CE12<$EW$74,$EV$74,IF(CE12<$EW$75,$EV$75,IF(CE12<$EW$76,$EV$76,IF(CE12<$EW$77,$EV$77,IF(CE12<$EW$78,$EV$78,IF(CE12<$EW$79,$EV$79,IF(CE12<$EW$80,$EV$80,$EV$81))))))) -> ⅝ | DT13: =IF(CE12<$EW$82,$EV$82,IF(CE12<$EW$83,$EV$83,IF(CE12<$EW$84,$EV$84,IF(CE12<$EW$85,$EV$85,IF(CE12<$EW$86,$EV$86,IF(CE12<$EW$87,$EV$87,IF(CE12<$EW$88,$EV$88,$EV$89))))))) -> ⅔ | DU13: =IF(CE12<$EW$90,$EV$90,IF(CE12<$EW$91,$EV$91,IF(CE12<$EW$92,$EV$92,IF(CE12<$EW$93,$EV$93,IF(CE12<$EW$94,$EV$94,IF(CE12<$EW$95,$EV$95,IF(CE12<$EW$96,$EV$96,$EV$97))))))) -> ⁹∕₁₃ | DV13: =IF(CE12<$EW$98,$EV$98,IF(CE12<$EW$99,$EV$99,IF(CE12<$EW$100,$EV$100,IF(CE12<$EW$101,$EV$101,IF(CE12<$EW$102,$EV$102,IF(CE12<$EW$103,$EV$103,IF(CE12<$EW$104,$EV$104,$EV$105))))))) -> ¾ | DW13: =IF(CE12<$EW$106,$EV$106,IF(CE12<$EW$107,$EV$107,IF(CE12<$EW$108,$EV$108,IF(CE12<$EW$109,$EV$109,IF(CE12<$EW$110,$EV$110,IF(CE12<$EW$111,$EV$111,IF(CE12<$EW$112,$EV$112,$EV$113))))))) -> ⁹∕₁₁ | DX13: =IF(CE12<$EW$114,$EV$114,IF(CE12<$EW$115,$EV$115,IF(CE12<$EW$116,$EV$116,IF(CE12<$EW$117,$EV$117,IF(CE12<$EW$118,$EV$118,IF(CE12<$EW$119,$EV$119,IF(CE12<$EW$120,$EV$120,$EV$121))))))) -> ⅞ | DY13: =IF(CE12<$EW$122,$EV$122,IF(CE12<$EW$123,$EV$123,IF(CE12<$EW$124,$EV$124,IF(CE12<$EW$125,$EV$125,IF(CE12<$EW$126,$EV$126,IF(CE12<$EW$127,$EV$127,$EV$128)))))) -> ¹³∕₁₄ | DZ13: =IF(CE13<$EW$2,$EV$2,IF(CE13<$EW$3,$EV$3,IF(CE13<$EW$4,$EV$4,IF(CE13<$EW$5,$EV$5,IF(CE13<$EW$6,$EV$6,IF(CE13<$EW$7,$EV$7,IF(CE13<$EW$8,$EV$8,$EV$9))))))) -> ¹∕₂₀ | EA13: =IF(CE13<$EW$10,$EV$10,IF(CE13<$EW$11,$EV$11,IF(CE13<$EW$12,$EV$12,IF(CE13<$EW$13,$EV$13,IF(CE13<$EW$14,$EV$14,IF(CE13<$EW$15,$EV$15,IF(CE13<$EW$16,$EV$16,$EV$17))))))) -> ¹∕₁₂ | EB13: =IF(CE13<$EW$18,$EV$18,IF(CE13<$EW$19,$EV$19,IF(CE13<$EW$20,$EV$20,IF(CE13<$EW$21,$EV$21,IF(CE13<$EW$22,$EV$22,IF(CE13<$EW$23,$EV$23,IF(CE13<$EW$24,$EV$24,$EV$25))))))) -> ¹∕₇ | EC13: =IF(CE13<$EW$26,$EV$26,IF(CE13<$EW$27,$EV$27,IF(CE13<$EW$28,$EV$28,IF(CE13<$EW$29,$EV$29,IF(CE13<$EW$30,$EV$30,IF(CE13<$EW$31,$EV$31,IF(CE13<$EW$32,$EV$32,$EV$33))))))) -> ⅕ | ED13: =IF(CE13<$EW$34,$EV$34,IF(CE13<$EW$35,$EV$35,IF(CE13<$EW$36,$EV$36,IF(CE13<$EW$37,$EV$37,IF(CE13<$EW$38,$EV$38,IF(CE13<$EW$39,$EV$39,IF(CE13<$EW$40,$EV$40,$EV$41))))))) -> ⁴∕₁₅ | EE13: =IF(CE13<$EW$42,$EV$42,IF(CE13<$EW$43,$EV$43,IF(CE13<$EW$44,$EV$44,IF(CE13<$EW$45,$EV$45,IF(CE13<$EW$46,$EV$46,IF(CE13<$EW$47,$EV$47,IF(CE13<$EW$48,$EV$48,$EV$49))))))) -> ⁶∕₁₉ | EF13: =IF(CE13<$EW$50,$EV$50,IF(CE13<$EW$51,$EV$51,IF(CE13<$EW$52,$EV$52,IF(CE13<$EW$53,$EV$53,IF(CE13<$EW$54,$EV$54,IF(CE13<$EW$55,$EV$55,IF(CE13<$EW$56,$EV$56,$EV$57))))))) -> ⁵∕₁₃ | EG13: =IF(CE13<$EW$58,$EV$58,IF(CE13<$EW$59,$EV$59,IF(CE13<$EW$60,$EV$60,IF(CE13<$EW$61,$EV$61,IF(CE13<$EW$62,$EV$62,IF(CE13<$EW$63,$EV$63,IF(CE13<$EW$64,$EV$64,$EV$65))))))) -> ⁴∕₉ | EH13: =IF(CE13<$EW$66,$EV$66,IF(CE13<$EW$67,$EV$67,IF(CE13<$EW$68,$EV$68,IF(CE13<$EW$69,$EV$69,IF(CE13<$EW$70,$EV$70,IF(CE13<$EW$71,$EV$71,IF(CE13<$EW$72,$EV$72,$EV$73))))))) -> ¹º∕₁₉ | EI13: =IF(CE13<$EW$74,$EV$74,IF(CE13<$EW$75,$EV$75,IF(CE13<$EW$76,$EV$76,IF(CE13<$EW$77,$EV$77,IF(CE13<$EW$78,$EV$78,IF(CE13<$EW$79,$EV$79,IF(CE13<$EW$80,$EV$80,$EV$81))))))) -> ⁴∕₇ | EJ13: =IF(CE13<$EW$82,$EV$82,IF(CE13<$EW$83,$EV$83,IF(CE13<$EW$84,$EV$84,IF(CE13<$EW$85,$EV$85,IF(CE13<$EW$86,$EV$86,IF(CE13<$EW$87,$EV$87,IF(CE13<$EW$88,$EV$88,$EV$89))))))) -> ¹²∕₁₉ | EK13: =IF(CE13<$EW$90,$EV$90,IF(CE13<$EW$91,$EV$91,IF(CE13<$EW$92,$EV$92,IF(CE13<$EW$93,$EV$93,IF(CE13<$EW$94,$EV$94,IF(CE13<$EW$95,$EV$95,IF(CE13<$EW$96,$EV$96,$EV$97))))))) -> ⁹∕₁₃ | EL13: =IF(CE13<$EW$98,$EV$98,IF(CE13<$EW$99,$EV$99,IF(CE13<$EW$100,$EV$100,IF(CE13<$EW$101,$EV$101,IF(CE13<$EW$102,$EV$102,IF(CE13<$EW$103,$EV$103,IF(CE13<$EW$104,$EV$104,$EV$105))))))) -> ¾ | EM13: =IF(CE13<$EW$106,$EV$106,IF(CE13<$EW$107,$EV$107,IF(CE13<$EW$108,$EV$108,IF(CE13<$EW$109,$EV$109,IF(CE13<$EW$110,$EV$110,IF(CE13<$EW$111,$EV$111,IF(CE13<$EW$112,$EV$112,$EV$113))))))) -> ⁹∕₁₁ | EN13: =IF(CE13<$EW$114,$EV$114,IF(CE13<$EW$115,$EV$115,IF(CE13<$EW$116,$EV$116,IF(CE13<$EW$117,$EV$117,IF(CE13<$EW$118,$EV$118,IF(CE13<$EW$119,$EV$119,IF(CE13<$EW$120,$EV$120,$EV$121))))))) -> ⅞ | EO13: =IF(CE13<$EW$122,$EV$122,IF(CE13<$EW$123,$EV$123,IF(CE13<$EW$124,$EV$124,IF(CE13<$EW$125,$EV$125,IF(CE13<$EW$126,$EV$126,IF(CE13<$EW$127,$EV$127,$EV$128)))))) -> ¹³∕₁₄ | EP13: 12 | EQ13: 2 | ER13: 19 | ES13: 0.105 | ET13: ² | EU13: ₁₉ | EV13: ²∕₁₉ | EW13: 0.108 | EX13: 12 | EY13: ¹²
C14: 14 | D14: =IF(BA15=1,AU225,IF(AC15=1,AO225,(W18-W6)/(U6/V6-U18/V18))) -> 3 | E14: =IF(BA15=1,U18*D14/V18+W18,U6*D14/V6+W6) -> 7 | F14: =IF(AND((U6/V6)=(U18/V18),W6=W18),11,IF((U6/V6)=(U18/V18),10,1)) -> 1 | J14: -3 | K14: -5 | S14: =S11 -> 0 | T14: =T11 -> 98 | U14: =VLOOKUP($AJ$15,$BD$5:$BW$67,13) -> 3 | V14: =VLOOKUP($AJ$15,$BD$5:$BW$67,14) -> 1 | W14: =VLOOKUP($AK$15,$BD$5:$BW$67,12) -> -1 | X14: -9 | Y14: -78 | AE14: -9 | AF14: -28 | AL14: -9 | AM14: -9 | AV14: -9 | AW14: -17 | AY14: a³ | AZ14: a² | BA14: b | BB14: c | BD14: 10 | BE14: 1½x³ | BF14: + 1½x² | BG14: 1½x² | BH14: x | BI14: =CONCATENATE(BU14,S2," ") -> ⁵∕₃𝒙 | BJ14: + 4½ | BK14: 4½ | BL14: 1.5 | BM14: 1.5 | BN14: =5/3 -> 1.666666667 | BO14: 4.5 | BP14: 5 | BQ14: 3 | BR14: 5 | BS14: 3 | BT14: =BR14/BS14 -> 1.666666667 | BU14: =CONCATENATE("⁵",$BI$3,"₃") -> ⁵∕₃ | CA14: -31.1 | CB14: 31.1 | CC14: − | CD14: 31 | CE14: 0.1 | CF14: =IF(CE14=CQ14,CQ15,IF(CE14=CR14,CR15,IF(CE14=CS14,CS15,IF(CE14=CT14,CT15,IF(CE14=CU14,CU15,IF(CE14=CV14,CV15,IF(CE14=CW14,CW15,CE14))))))) -> ¹∕₁₀ | CG14: =IF(CF14=CX14,CX15,IF(CF14=CY14,CY15,CF14)) -> ¹∕₁₀ | CH14: −31¹∕₁₀ | CI14: =IF(CE14=CQ14,"*",IF(CE14=CR14,"*",IF(CE14=CS14,"*",IF(CE14=CT14,"*",IF(CE14=CU14,"*",IF(CE14=CV14,"*",IF(CE14=CW14,"*",CO14))))))) -> * | CJ14: =IF(CF14=CX14,"*",IF(CF14=CY14,"*",CI14)) -> * | CK14: * | CL14: -1555 | CM14: -1555 | CN14: 0 | CO14: • | CP14: =50*CA15 -> -640 | CQ14: =IF(DI14=1,DJ14,DQ14) -> 0.077 | CR14: =IF(DI14=1,DK14,DR14) -> 0.1 | CS14: =IF(DI14=1,DL14,DS14) -> 0.143 | CT14: =IF(DI14=1,DM14,DT14) -> 0.2 | CU14: =IF(DI14=1,DN14,DU14) -> 0.267 | CV14: =IF(DI14=1,DO14,DV14) -> 0.316 | CW14: =IF(DI14=1,DP14,DW14) -> 0.385 | CX14: =IF(DI14=1,DQ14,DX14) -> 0.444 | CY14: =IF(DI14=1,DR14,DY14) -> 0.526 | CZ14: =IF(DI15=1,DZ14,EG14) -> 0.5 | DA14: =IF(DI15=1,EA14,EH14) -> 0.563 | DB14: =IF(DI15=1,EB14,EI14) -> 0.625 | DC14: =IF(DI15=1,EC14,EJ14) -> 0.688 | DD14: =IF(DI15=1,ED14,EK14) -> 0.737 | DE14: =IF(DI15=1,EE14,EL14) -> 0.8 | DF14: =IF(DI15=1,EF14,EM14) -> 0.818 | DG14: =IF(DI15=1,EG14,EN14) -> 0.875 | DH14: =IF(DI15=1,EH14,EO14) -> 0.929 | DI14: 1 | DJ14: =IF(CE14<$EW$2,$ES$2,IF(CE14<$EW$3,$ES$3,IF(CE14<$EW$4,$ES$4,IF(CE14<$EW$5,$ES$5,IF(CE14<$EW$6,$ES$6,IF(CE14<$EW$7,$ES$7,IF(CE14<$EW$8,$ES$8,$ES$9))))))) -> 0.077 | DK14: =IF(CE14<$EW$10,$ES$10,IF(CE14<$EW$11,$ES$11,IF(CE14<$EW$12,$ES$12,IF(CE14<$EW$13,$ES$13,IF(CE14<$EW$14,$ES$14,IF(CE14<$EW$15,$ES$15,IF(CE14<$EW$16,$ES$16,$ES$17))))))) -> 0.1 | DL14: =IF(CE14<$EW$18,$ES$18,IF(CE14<$EW$19,$ES$19,IF(CE14<$EW$20,$ES$20,IF(CE14<$EW$21,$ES$21,IF(CE14<$EW$22,$ES$22,IF(CE14<$EW$23,$ES$23,IF(CE14<$EW$24,$ES$24,$ES$25))))))) -> 0.143 | DM14: =IF(CE14<$EW$26,$ES$26,IF(CE14<$EW$27,$ES$27,IF(CE14<$EW$28,$ES$28,IF(CE14<$EW$29,$ES$29,IF(CE14<$EW$30,$ES$30,IF(CE14<$EW$31,$ES$31,IF(CE14<$EW$32,$ES$32,$ES$33))))))) -> 0.2 | DN14: =IF(CE14<$EW$34,$ES$34,IF(CE14<$EW$35,$ES$35,IF(CE14<$EW$36,$ES$36,IF(CE14<$EW$37,$ES$37,IF(CE14<$EW$38,$ES$38,IF(CE14<$EW$39,$ES$39,IF(CE14<$EW$40,$ES$40,$ES$41))))))) -> 0.267 | DO14: =IF(CE14<$EW$42,$ES$42,IF(CE14<$EW$43,$ES$43,IF(CE14<$EW$44,$ES$44,IF(CE14<$EW$45,$ES$45,IF(CE14<$EW$46,$ES$46,IF(CE14<$EW$47,$ES$47,IF(CE14<$EW$48,$ES$48,$ES$49))))))) -> 0.316 | DP14: =IF(CE14<$EW$50,$ES$50,IF(CE14<$EW$51,$ES$51,IF(CE14<$EW$52,$ES$52,IF(CE14<$EW$53,$ES$53,IF(CE14<$EW$54,$ES$54,IF(CE14<$EW$55,$ES$55,IF(CE14<$EW$56,$ES$56,$ES$57))))))) -> 0.385 | DQ14: =IF(CE14<$EW$58,$ES$58,IF(CE14<$EW$59,$ES$59,IF(CE14<$EW$60,$ES$60,IF(CE14<$EW$61,$ES$61,IF(CE14<$EW$62,$ES$62,IF(CE14<$EW$63,$ES$63,IF(CE14<$EW$64,$ES$64,$ES$65))))))) -> 0.444 | DR14: =IF(CE14<$EW$66,$ES$66,IF(CE14<$EW$67,$ES$67,IF(CE14<$EW$68,$ES$68,IF(CE14<$EW$69,$ES$69,IF(CE14<$EW$70,$ES$70,IF(CE14<$EW$71,$ES$71,IF(CE14<$EW$72,$ES$72,$ES$73))))))) -> 0.526 | DS14: =IF(CE14<$EW$74,$ES$74,IF(CE14<$EW$75,$ES$75,IF(CE14<$EW$76,$ES$76,IF(CE14<$EW$77,$ES$77,IF(CE14<$EW$78,$ES$78,IF(CE14<$EW$79,$ES$79,IF(CE14<$EW$80,$ES$80,$ES$81))))))) -> 0.571 | DT14: =IF(CE14<$EW$82,$ES$82,IF(CE14<$EW$83,$ES$83,IF(CE14<$EW$84,$ES$84,IF(CE14<$EW$85,$ES$85,IF(CE14<$EW$86,$ES$86,IF(CE14<$EW$87,$ES$87,IF(CE14<$EW$88,$ES$88,$ES$89))))))) -> 0.632 | DU14: =IF(CE14<$EW$90,$ES$90,IF(CE14<$EW$91,$ES$91,IF(CE14<$EW$92,$ES$92,IF(CE14<$EW$93,$ES$93,IF(CE14<$EW$94,$ES$94,IF(CE14<$EW$95,$ES$95,IF(CE14<$EW$96,$ES$96,$ES$97))))))) -> 0.692 | DV14: =IF(CE14<$EW$98,$ES$98,IF(CE14<$EW$99,$ES$99,IF(CE14<$EW$100,$ES$100,IF(CE14<$EW$101,$ES$101,IF(CE14<$EW$102,$ES$102,IF(CE14<$EW$103,$ES$103,IF(CE14<$EW$104,$ES$104,$ES$105))))))) -> 0.75 | DW14: =IF(CE14<$EW$106,$ES$106,IF(CE14<$EW$107,$ES$107,IF(CE14<$EW$108,$ES$108,IF(CE14<$EW$109,$ES$109,IF(CE14<$EW$110,$ES$110,IF(CE14<$EW$111,$ES$111,IF(CE14<$EW$112,$ES$112,$ES$113))))))) -> 0.818 | DX14: =IF(CE14<$EW$114,$ES$114,IF(CE14<$EW$115,$ES$115,IF(CE14<$EW$116,$ES$116,IF(CE14<$EW$117,$ES$117,IF(CE14<$EW$118,$ES$118,IF(CE14<$EW$119,$ES$119,IF(CE14<$EW$120,$ES$120,$ES$121))))))) -> 0.875 | DY14: =IF(CE14<$EW$122,$ES$122,IF(CE14<$EW$123,$ES$123,IF(CE14<$EW$124,$ES$124,IF(CE14<$EW$125,$ES$125,IF(CE14<$EW$126,$ES$126,IF(CE14<$EW$127,$ES$127,$ES$128)))))) -> 0.929 | DZ14: =IF(CE15<$EW$2,$ES$2,IF(CE15<$EW$3,$ES$3,IF(CE15<$EW$4,$ES$4,IF(CE15<$EW$5,$ES$5,IF(CE15<$EW$6,$ES$6,IF(CE15<$EW$7,$ES$7,IF(CE15<$EW$8,$ES$8,$ES$9))))))) -> 0.077 | EA14: =IF(CE15<$EW$10,$ES$10,IF(CE15<$EW$11,$ES$11,IF(CE15<$EW$12,$ES$12,IF(CE15<$EW$13,$ES$13,IF(CE15<$EW$14,$ES$14,IF(CE15<$EW$15,$ES$15,IF(CE15<$EW$16,$ES$16,$ES$17))))))) -> 0.133 | EB14: =IF(CE15<$EW$18,$ES$18,IF(CE15<$EW$19,$ES$19,IF(CE15<$EW$20,$ES$20,IF(CE15<$EW$21,$ES$21,IF(CE15<$EW$22,$ES$22,IF(CE15<$EW$23,$ES$23,IF(CE15<$EW$24,$ES$24,$ES$25))))))) -> 0.188 | EC14: =IF(CE15<$EW$26,$ES$26,IF(CE15<$EW$27,$ES$27,IF(CE15<$EW$28,$ES$28,IF(CE15<$EW$29,$ES$29,IF(CE15<$EW$30,$ES$30,IF(CE15<$EW$31,$ES$31,IF(CE15<$EW$32,$ES$32,$ES$33))))))) -> 0.263 | ED14: =IF(CE15<$EW$34,$ES$34,IF(CE15<$EW$35,$ES$35,IF(CE15<$EW$36,$ES$36,IF(CE15<$EW$37,$ES$37,IF(CE15<$EW$38,$ES$38,IF(CE15<$EW$39,$ES$39,IF(CE15<$EW$40,$ES$40,$ES$41))))))) -> 0.313 | EE14: =IF(CE15<$EW$42,$ES$42,IF(CE15<$EW$43,$ES$43,IF(CE15<$EW$44,$ES$44,IF(CE15<$EW$45,$ES$45,IF(CE15<$EW$46,$ES$46,IF(CE15<$EW$47,$ES$47,IF(CE15<$EW$48,$ES$48,$ES$49))))))) -> 0.375 | EF14: =IF(CE15<$EW$50,$ES$50,IF(CE15<$EW$51,$ES$51,IF(CE15<$EW$52,$ES$52,IF(CE15<$EW$53,$ES$53,IF(CE15<$EW$54,$ES$54,IF(CE15<$EW$55,$ES$55,IF(CE15<$EW$56,$ES$56,$ES$57))))))) -> 0.438 | EG14: =IF(CE15<$EW$58,$ES$58,IF(CE15<$EW$59,$ES$59,IF(CE15<$EW$60,$ES$60,IF(CE15<$EW$61,$ES$61,IF(CE15<$EW$62,$ES$62,IF(CE15<$EW$63,$ES$63,IF(CE15<$EW$64,$ES$64,$ES$65))))))) -> 0.5 | EH14: =IF(CE15<$EW$66,$ES$66,IF(CE15<$EW$67,$ES$67,IF(CE15<$EW$68,$ES$68,IF(CE15<$EW$69,$ES$69,IF(CE15<$EW$70,$ES$70,IF(CE15<$EW$71,$ES$71,IF(CE15<$EW$72,$ES$72,$ES$73))))))) -> 0.563 | EI14: =IF(CE15<$EW$74,$ES$74,IF(CE15<$EW$75,$ES$75,IF(CE15<$EW$76,$ES$76,IF(CE15<$EW$77,$ES$77,IF(CE15<$EW$78,$ES$78,IF(CE15<$EW$79,$ES$79,IF(CE15<$EW$80,$ES$80,$ES$81))))))) -> 0.625 | EJ14: =IF(CE15<$EW$82,$ES$82,IF(CE15<$EW$83,$ES$83,IF(CE15<$EW$84,$ES$84,IF(CE15<$EW$85,$ES$85,IF(CE15<$EW$86,$ES$86,IF(CE15<$EW$87,$ES$87,IF(CE15<$EW$88,$ES$88,$ES$89))))))) -> 0.688 | EK14: =IF(CE15<$EW$90,$ES$90,IF(CE15<$EW$91,$ES$91,IF(CE15<$EW$92,$ES$92,IF(CE15<$EW$93,$ES$93,IF(CE15<$EW$94,$ES$94,IF(CE15<$EW$95,$ES$95,IF(CE15<$EW$96,$ES$96,$ES$97))))))) -> 0.737 | EL14: =IF(CE15<$EW$98,$ES$98,IF(CE15<$EW$99,$ES$99,IF(CE15<$EW$100,$ES$100,IF(CE15<$EW$101,$ES$101,IF(CE15<$EW$102,$ES$102,IF(CE15<$EW$103,$ES$103,IF(CE15<$EW$104,$ES$104,$ES$105))))))) -> 0.8 | EM14: =IF(CE15<$EW$106,$ES$106,IF(CE15<$EW$107,$ES$107,IF(CE15<$EW$108,$ES$108,IF(CE15<$EW$109,$ES$109,IF(CE15<$EW$110,$ES$110,IF(CE15<$EW$111,$ES$111,IF(CE15<$EW$112,$ES$112,$ES$113))))))) -> 0.818 | EN14: =IF(CE15<$EW$114,$ES$114,IF(CE15<$EW$115,$ES$115,IF(CE15<$EW$116,$ES$116,IF(CE15<$EW$117,$ES$117,IF(CE15<$EW$118,$ES$118,IF(CE15<$EW$119,$ES$119,IF(CE15<$EW$120,$ES$120,$ES$121))))))) -> 0.875 | EO14: =IF(CE15<$EW$122,$ES$122,IF(CE15<$EW$123,$ES$123,IF(CE15<$EW$124,$ES$124,IF(CE15<$EW$125,$ES$125,IF(CE15<$EW$126,$ES$126,IF(CE15<$EW$127,$ES$127,$ES$128)))))) -> 0.929 | EP14: 13 | EQ14: 1 | ER14: 9 | ES14: 0.111 | ET14: ¹ | EU14: ₉ | EV14: ¹∕₉ | EW14: 0.115 | EX14: 13 | EY14: ¹³
C15: 21 | D15: =D12 -> -1 | E15: =E12 -> -1 | F15: =F12 -> 1 | J15: -3 | K15: 5 | S15: 0 | T15: =IF(AC15=1,W18+99,W18+U15) -> 102 | U15: 99 | X15: -8.9 | Y15: -77.1 | AA15: 18 | AB15: 18 | AC15: 1 | AD15: 13 | AE15: -8.9 | AF15: -27.7 | AH15: 18 | AI15: 18 | AJ15: 7 | AK15: 21 | AL15: -8.9 | AM15: -8.9 | AO15: 18 | AP15: 18 | AQ15: 14 | AR15: 19 | AV15: -8.9 | AW15: -16.8 | AY15: 18 | AZ15: 18 | BA15: 9 | BB15: 17 | BD15: 11 | BE15: x³ | BF15: + x² | BG15: x² | BH15: x | BI15: =CONCATENATE(BU15,S2," ") -> ³∕₂𝒙 | BJ15: + 4 | BK15: 4 | BL15: 1 | BM15: 1 | BN15: =3/2 -> 1.5 | BO15: 4 | BP15: 3 | BQ15: 2 | BR15: 3 | BS15: 2 | BT15: =BR15/BS15 -> 1.5 | BU15: =CONCATENATE("³",$BI$3,"₂") -> ³∕₂ | CA15: -12.8 | CB15: 12.8 | CC15: − | CD15: 12 | CE15: 0.8 | CF15: =IF(CE15=CZ14,CZ15,IF(CE15=DA14,DA15,IF(CE15=DB14,DB15,IF(CE15=DC14,DC15,IF(CE15=DD14,DD15,IF(CE15=DE14,DE15,IF(CE15=DF14,DF15,CE15))))))) -> ⅘ | CG15: =IF(CF15=DG14,DG15,IF(CF15=DH14,DH15,CF15)) -> ⅘ | CH15: −12⅘ | CI15: =IF(CE15=CZ14,"*",IF(CE15=DA14,"*",IF(CE15=DB14,"*",IF(CE15=DC14,"*",IF(CE15=DD14,"*",IF(CE15=DE14,"*",IF(CE15=DF14,"*",CO15))))))) -> * | CJ15: =IF(CF15=DG14,"*",IF(CF15=DH14,"*",CI15)) -> * | CK15: * | CL15: -640 | CM15: -640 | CN15: 0 | CO15: • | CP15: =ROUND(50*CA15,0) -> -640 | CQ15: =IF(DI14=1,DJ15,DQ15) -> ¹∕₁₃ | CR15: =IF(DI14=1,DK15,DR15) -> ¹∕₁₀ | CS15: =IF(DI14=1,DL15,DS15) -> ¹∕₇ | CT15: =IF(DI14=1,DM15,DT15) -> ⅕ | CU15: =IF(DI14=1,DN15,DU15) -> ⁴∕₁₅ | CV15: =IF(DI14=1,DO15,DV15) -> ⁶∕₁₉ | CW15: =IF(DI14=1,DP15,DW15) -> ⁵∕₁₃ | CX15: =IF(DI14=1,DQ15,DX15) -> ⁴∕₉ | CY15: =IF(DI14=1,DR15,DY15) -> ¹º∕₁₉ | CZ15: =IF(DI15=1,DZ15,EG15) -> ½ | DA15: =IF(DI15=1,EA15,EH15) -> ⁹∕₁₆ | DB15: =IF(DI15=1,EB15,EI15) -> ⅝ | DC15: =IF(DI15=1,EC15,EJ15) -> ¹¹∕₁₆ | DD15: =IF(DI15=1,ED15,EK15) -> ¹⁴∕₁₉ | DE15: =IF(DI15=1,EE15,EL15) -> ⅘ | DF15: =IF(DI15=1,EF15,EM15) -> ⁹∕₁₁ | DG15: =IF(DI15=1,EG15,EN15) -> ⅞ | DH15: =IF(DI15=1,EH15,EO15) -> ¹³∕₁₄ | DI15: 2 | DJ15: =IF(CE14<$EW$2,$EV$2,IF(CE14<$EW$3,$EV$3,IF(CE14<$EW$4,$EV$4,IF(CE14<$EW$5,$EV$5,IF(CE14<$EW$6,$EV$6,IF(CE14<$EW$7,$EV$7,IF(CE14<$EW$8,$EV$8,$EV$9))))))) -> ¹∕₁₃ | DK15: =IF(CE14<$EW$10,$EV$10,IF(CE14<$EW$11,$EV$11,IF(CE14<$EW$12,$EV$12,IF(CE14<$EW$13,$EV$13,IF(CE14<$EW$14,$EV$14,IF(CE14<$EW$15,$EV$15,IF(CE14<$EW$16,$EV$16,$EV$17))))))) -> ¹∕₁₀ | DL15: =IF(CE14<$EW$18,$EV$18,IF(CE14<$EW$19,$EV$19,IF(CE14<$EW$20,$EV$20,IF(CE14<$EW$21,$EV$21,IF(CE14<$EW$22,$EV$22,IF(CE14<$EW$23,$EV$23,IF(CE14<$EW$24,$EV$24,$EV$25))))))) -> ¹∕₇ | DM15: =IF(CE14<$EW$26,$EV$26,IF(CE14<$EW$27,$EV$27,IF(CE14<$EW$28,$EV$28,IF(CE14<$EW$29,$EV$29,IF(CE14<$EW$30,$EV$30,IF(CE14<$EW$31,$EV$31,IF(CE14<$EW$32,$EV$32,$EV$33))))))) -> ⅕ | DN15: =IF(CE14<$EW$34,$EV$34,IF(CE14<$EW$35,$EV$35,IF(CE14<$EW$36,$EV$36,IF(CE14<$EW$37,$EV$37,IF(CE14<$EW$38,$EV$38,IF(CE14<$EW$39,$EV$39,IF(CE14<$EW$40,$EV$40,$EV$41))))))) -> ⁴∕₁₅ | DO15: =IF(CE14<$EW$42,$EV$42,IF(CE14<$EW$43,$EV$43,IF(CE14<$EW$44,$EV$44,IF(CE14<$EW$45,$EV$45,IF(CE14<$EW$46,$EV$46,IF(CE14<$EW$47,$EV$47,IF(CE14<$EW$48,$EV$48,$EV$49))))))) -> ⁶∕₁₉ | DP15: =IF(CE14<$EW$50,$EV$50,IF(CE14<$EW$51,$EV$51,IF(CE14<$EW$52,$EV$52,IF(CE14<$EW$53,$EV$53,IF(CE14<$EW$54,$EV$54,IF(CE14<$EW$55,$EV$55,IF(CE14<$EW$56,$EV$56,$EV$57))))))) -> ⁵∕₁₃ | DQ15: =IF(CE14<$EW$58,$EV$58,IF(CE14<$EW$59,$EV$59,IF(CE14<$EW$60,$EV$60,IF(CE14<$EW$61,$EV$61,IF(CE14<$EW$62,$EV$62,IF(CE14<$EW$63,$EV$63,IF(CE14<$EW$64,$EV$64,$EV$65))))))) -> ⁴∕₉ | DR15: =IF(CE14<$EW$66,$EV$66,IF(CE14<$EW$67,$EV$67,IF(CE14<$EW$68,$EV$68,IF(CE14<$EW$69,$EV$69,IF(CE14<$EW$70,$EV$70,IF(CE14<$EW$71,$EV$71,IF(CE14<$EW$72,$EV$72,$EV$73))))))) -> ¹º∕₁₉ | DS15: =IF(CE14<$EW$74,$EV$74,IF(CE14<$EW$75,$EV$75,IF(CE14<$EW$76,$EV$76,IF(CE14<$EW$77,$EV$77,IF(CE14<$EW$78,$EV$78,IF(CE14<$EW$79,$EV$79,IF(CE14<$EW$80,$EV$80,$EV$81))))))) -> ⁴∕₇ | DT15: =IF(CE14<$EW$82,$EV$82,IF(CE14<$EW$83,$EV$83,IF(CE14<$EW$84,$EV$84,IF(CE14<$EW$85,$EV$85,IF(CE14<$EW$86,$EV$86,IF(CE14<$EW$87,$EV$87,IF(CE14<$EW$88,$EV$88,$EV$89))))))) -> ¹²∕₁₉ | DU15: =IF(CE14<$EW$90,$EV$90,IF(CE14<$EW$91,$EV$91,IF(CE14<$EW$92,$EV$92,IF(CE14<$EW$93,$EV$93,IF(CE14<$EW$94,$EV$94,IF(CE14<$EW$95,$EV$95,IF(CE14<$EW$96,$EV$96,$EV$97))))))) -> ⁹∕₁₃ | DV15: =IF(CE14<$EW$98,$EV$98,IF(CE14<$EW$99,$EV$99,IF(CE14<$EW$100,$EV$100,IF(CE14<$EW$101,$EV$101,IF(CE14<$EW$102,$EV$102,IF(CE14<$EW$103,$EV$103,IF(CE14<$EW$104,$EV$104,$EV$105))))))) -> ¾ | DW15: =IF(CE14<$EW$106,$EV$106,IF(CE14<$EW$107,$EV$107,IF(CE14<$EW$108,$EV$108,IF(CE14<$EW$109,$EV$109,IF(CE14<$EW$110,$EV$110,IF(CE14<$EW$111,$EV$111,IF(CE14<$EW$112,$EV$112,$EV$113))))))) -> ⁹∕₁₁ | DX15: =IF(CE14<$EW$114,$EV$114,IF(CE14<$EW$115,$EV$115,IF(CE14<$EW$116,$EV$116,IF(CE14<$EW$117,$EV$117,IF(CE14<$EW$118,$EV$118,IF(CE14<$EW$119,$EV$119,IF(CE14<$EW$120,$EV$120,$EV$121))))))) -> ⅞ | DY15: =IF(CE14<$EW$122,$EV$122,IF(CE14<$EW$123,$EV$123,IF(CE14<$EW$124,$EV$124,IF(CE14<$EW$125,$EV$125,IF(CE14<$EW$126,$EV$126,IF(CE14<$EW$127,$EV$127,$EV$128)))))) -> ¹³∕₁₄ | DZ15: =IF(CE15<$EW$2,$EV$2,IF(CE15<$EW$3,$EV$3,IF(CE15<$EW$4,$EV$4,IF(CE15<$EW$5,$EV$5,IF(CE15<$EW$6,$EV$6,IF(CE15<$EW$7,$EV$7,IF(CE15<$EW$8,$EV$8,$EV$9))))))) -> ¹∕₁₃ | EA15: =IF(CE15<$EW$10,$EV$10,IF(CE15<$EW$11,$EV$11,IF(CE15<$EW$12,$EV$12,IF(CE15<$EW$13,$EV$13,IF(CE15<$EW$14,$EV$14,IF(CE15<$EW$15,$EV$15,IF(CE15<$EW$16,$EV$16,$EV$17))))))) -> ²∕₁₅ | EB15: =IF(CE15<$EW$18,$EV$18,IF(CE15<$EW$19,$EV$19,IF(CE15<$EW$20,$EV$20,IF(CE15<$EW$21,$EV$21,IF(CE15<$EW$22,$EV$22,IF(CE15<$EW$23,$EV$23,IF(CE15<$EW$24,$EV$24,$EV$25))))))) -> ³∕₁₆ | EC15: =IF(CE15<$EW$26,$EV$26,IF(CE15<$EW$27,$EV$27,IF(CE15<$EW$28,$EV$28,IF(CE15<$EW$29,$EV$29,IF(CE15<$EW$30,$EV$30,IF(CE15<$EW$31,$EV$31,IF(CE15<$EW$32,$EV$32,$EV$33))))))) -> ⁵∕₁₉ | ED15: =IF(CE15<$EW$34,$EV$34,IF(CE15<$EW$35,$EV$35,IF(CE15<$EW$36,$EV$36,IF(CE15<$EW$37,$EV$37,IF(CE15<$EW$38,$EV$38,IF(CE15<$EW$39,$EV$39,IF(CE15<$EW$40,$EV$40,$EV$41))))))) -> ⁵∕₁₆ | EE15: =IF(CE15<$EW$42,$EV$42,IF(CE15<$EW$43,$EV$43,IF(CE15<$EW$44,$EV$44,IF(CE15<$EW$45,$EV$45,IF(CE15<$EW$46,$EV$46,IF(CE15<$EW$47,$EV$47,IF(CE15<$EW$48,$EV$48,$EV$49))))))) -> ⅜ | EF15: =IF(CE15<$EW$50,$EV$50,IF(CE15<$EW$51,$EV$51,IF(CE15<$EW$52,$EV$52,IF(CE15<$EW$53,$EV$53,IF(CE15<$EW$54,$EV$54,IF(CE15<$EW$55,$EV$55,IF(CE15<$EW$56,$EV$56,$EV$57))))))) -> ⁷∕₁₆ | EG15: =IF(CE15<$EW$58,$EV$58,IF(CE15<$EW$59,$EV$59,IF(CE15<$EW$60,$EV$60,IF(CE15<$EW$61,$EV$61,IF(CE15<$EW$62,$EV$62,IF(CE15<$EW$63,$EV$63,IF(CE15<$EW$64,$EV$64,$EV$65))))))) -> ½ | EH15: =IF(CE15<$EW$66,$EV$66,IF(CE15<$EW$67,$EV$67,IF(CE15<$EW$68,$EV$68,IF(CE15<$EW$69,$EV$69,IF(CE15<$EW$70,$EV$70,IF(CE15<$EW$71,$EV$71,IF(CE15<$EW$72,$EV$72,$EV$73))))))) -> ⁹∕₁₆ | EI15: =IF(CE15<$EW$74,$EV$74,IF(CE15<$EW$75,$EV$75,IF(CE15<$EW$76,$EV$76,IF(CE15<$EW$77,$EV$77,IF(CE15<$EW$78,$EV$78,IF(CE15<$EW$79,$EV$79,IF(CE15<$EW$80,$EV$80,$EV$81))))))) -> ⅝ | EJ15: =IF(CE15<$EW$82,$EV$82,IF(CE15<$EW$83,$EV$83,IF(CE15<$EW$84,$EV$84,IF(CE15<$EW$85,$EV$85,IF(CE15<$EW$86,$EV$86,IF(CE15<$EW$87,$EV$87,IF(CE15<$EW$88,$EV$88,$EV$89))))))) -> ¹¹∕₁₆ | EK15: =IF(CE15<$EW$90,$EV$90,IF(CE15<$EW$91,$EV$91,IF(CE15<$EW$92,$EV$92,IF(CE15<$EW$93,$EV$93,IF(CE15<$EW$94,$EV$94,IF(CE15<$EW$95,$EV$95,IF(CE15<$EW$96,$EV$96,$EV$97))))))) -> ¹⁴∕₁₉ | EL15: =IF(CE15<$EW$98,$EV$98,IF(CE15<$EW$99,$EV$99,IF(CE15<$EW$100,$EV$100,IF(CE15<$EW$101,$EV$101,IF(CE15<$EW$102,$EV$102,IF(CE15<$EW$103,$EV$103,IF(CE15<$EW$104,$EV$104,$EV$105))))))) -> ⅘ | EM15: =IF(CE15<$EW$106,$EV$106,IF(CE15<$EW$107,$EV$107,IF(CE15<$EW$108,$EV$108,IF(CE15<$EW$109,$EV$109,IF(CE15<$EW$110,$EV$110,IF(CE15<$EW$111,$EV$111,IF(CE15<$EW$112,$EV$112,$EV$113))))))) -> ⁹∕₁₁ | EN15: =IF(CE15<$EW$114,$EV$114,IF(CE15<$EW$115,$EV$115,IF(CE15<$EW$116,$EV$116,IF(CE15<$EW$117,$EV$117,IF(CE15<$EW$118,$EV$118,IF(CE15<$EW$119,$EV$119,IF(CE15<$EW$120,$EV$120,$EV$121))))))) -> ⅞ | EO15: =IF(CE15<$EW$122,$EV$122,IF(CE15<$EW$123,$EV$123,IF(CE15<$EW$124,$EV$124,IF(CE15<$EW$125,$EV$125,IF(CE15<$EW$126,$EV$126,IF(CE15<$EW$127,$EV$127,$EV$128)))))) -> ¹³∕₁₄ | EP15: 14 | EQ15: 2 | ER15: 17 | ES15: 0.118 | ET15: ² | EU15: ₁₇ | EV15: ²∕₁₇ | EW15: 0.122 | EX15: 14 | EY15: ¹⁴
C16: 23 | D16: =IF(AQ15=1,AS225,IF(AJ15=1,AQ225,(W14-W10)/(U10/V10-U14/V14))) -> 0.5 | E16: =IF(AQ15=1,U14*D16/V14+W14,U10*D16/V10+W10) -> 0.5 | F16: =IF(AND((U10/V10)=(U14/V14),W10=W14),11,IF((U10/V10)=(U14/V14),10,1)) -> 1 | J16: -2 | K16: 5 | S16: =IF(U17=1,S15+V18,S15-V18) -> 1 | T16: =IF(U17=1,T15+U18,T15-U18) -> 111 | X16: -8.8 | Y16: -76.2 | AE16: -8.8 | AF16: -27.4 | AL16: -8.8 | AM16: -8.8 | AV16: -8.8 | AW16: -16.6 | BD16: 12 | BE16: ¾x³ | BF16: + ¾x² | BG16: ¾x² | BH16: x | BI16: =CONCATENATE(BU16,S2," ") -> ⁴∕₃𝒙 | BJ16: + 3½ | BK16: 3½ | BL16: 0.75 | BM16: 0.75 | BN16: =4/3 -> 1.333333333 | BO16: 3.5 | BP16: 4 | BQ16: 3 | BR16: 4 | BS16: 3 | BT16: =BR16/BS16 -> 1.333333333 | BU16: =CONCATENATE("⁴",$BI$3,"₃") -> ⁴∕₃ | CA16: 14.55 | CB16: 14.55 | CD16: 14 | CE16: 0.55 | CF16: =IF(CE16=CQ16,CQ17,IF(CE16=CR16,CR17,IF(CE16=CS16,CS17,IF(CE16=CT16,CT17,IF(CE16=CU16,CU17,IF(CE16=CV16,CV17,IF(CE16=CW16,CW17,CE16))))))) -> ¹¹∕₂₀ | CG16: =IF(CF16=CX16,CX17,IF(CF16=CY16,CY17,CF16)) -> ¹¹∕₂₀ | CH16: 14¹¹∕₂₀ | CI16: =IF(CE16=CQ16,"*",IF(CE16=CR16,"*",IF(CE16=CS16,"*",IF(CE16=CT16,"*",IF(CE16=CU16,"*",IF(CE16=CV16,"*",IF(CE16=CW16,"*",CO16))))))) -> * | CJ16: =IF(CF16=CX16,"*",IF(CF16=CY16,"*",CI16)) -> * | CK16: * | CL16: 727.5 | CM16: 728 | CN16: -0.5 | CO16: • | CP16: =50*CA17 -> 2975 | CQ16: =IF(DI16=1,DJ16,DQ16) -> 0.5 | CR16: =IF(DI16=1,DK16,DR16) -> 0.55 | CS16: =IF(DI16=1,DL16,DS16) -> 0.571 | CT16: =IF(DI16=1,DM16,DT16) -> 0.632 | CU16: =IF(DI16=1,DN16,DU16) -> 0.692 | CV16: =IF(DI16=1,DO16,DV16) -> 0.75 | CW16: =IF(DI16=1,DP16,DW16) -> 0.818 | CX16: =IF(DI16=1,DQ16,DX16) -> 0.875 | CY16: =IF(DI16=1,DR16,DY16) -> 0.929 | CZ16: =IF(DI17=1,DZ16,EG16) -> 0.5 | DA16: =IF(DI17=1,EA16,EH16) -> 0.526 | DB16: =IF(DI17=1,EB16,EI16) -> 0.571 | DC16: =IF(DI17=1,EC16,EJ16) -> 0.632 | DD16: =IF(DI17=1,ED16,EK16) -> 0.692 | DE16: =IF(DI17=1,EE16,EL16) -> 0.75 | DF16: =IF(DI17=1,EF16,EM16) -> 0.818 | DG16: =IF(DI17=1,EG16,EN16) -> 0.875 | DH16: =IF(DI17=1,EH16,EO16) -> 0.929 | DI16: 2 | DJ16: =IF(CE16<$EW$2,$ES$2,IF(CE16<$EW$3,$ES$3,IF(CE16<$EW$4,$ES$4,IF(CE16<$EW$5,$ES$5,IF(CE16<$EW$6,$ES$6,IF(CE16<$EW$7,$ES$7,IF(CE16<$EW$8,$ES$8,$ES$9))))))) -> 0.077 | DK16: =IF(CE16<$EW$10,$ES$10,IF(CE16<$EW$11,$ES$11,IF(CE16<$EW$12,$ES$12,IF(CE16<$EW$13,$ES$13,IF(CE16<$EW$14,$ES$14,IF(CE16<$EW$15,$ES$15,IF(CE16<$EW$16,$ES$16,$ES$17))))))) -> 0.133 | DL16: =IF(CE16<$EW$18,$ES$18,IF(CE16<$EW$19,$ES$19,IF(CE16<$EW$20,$ES$20,IF(CE16<$EW$21,$ES$21,IF(CE16<$EW$22,$ES$22,IF(CE16<$EW$23,$ES$23,IF(CE16<$EW$24,$ES$24,$ES$25))))))) -> 0.188 | DM16: =IF(CE16<$EW$26,$ES$26,IF(CE16<$EW$27,$ES$27,IF(CE16<$EW$28,$ES$28,IF(CE16<$EW$29,$ES$29,IF(CE16<$EW$30,$ES$30,IF(CE16<$EW$31,$ES$31,IF(CE16<$EW$32,$ES$32,$ES$33))))))) -> 0.263 | DN16: =IF(CE16<$EW$34,$ES$34,IF(CE16<$EW$35,$ES$35,IF(CE16<$EW$36,$ES$36,IF(CE16<$EW$37,$ES$37,IF(CE16<$EW$38,$ES$38,IF(CE16<$EW$39,$ES$39,IF(CE16<$EW$40,$ES$40,$ES$41))))))) -> 0.313 | DO16: =IF(CE16<$EW$42,$ES$42,IF(CE16<$EW$43,$ES$43,IF(CE16<$EW$44,$ES$44,IF(CE16<$EW$45,$ES$45,IF(CE16<$EW$46,$ES$46,IF(CE16<$EW$47,$ES$47,IF(CE16<$EW$48,$ES$48,$ES$49))))))) -> 0.375 | DP16: =IF(CE16<$EW$50,$ES$50,IF(CE16<$EW$51,$ES$51,IF(CE16<$EW$52,$ES$52,IF(CE16<$EW$53,$ES$53,IF(CE16<$EW$54,$ES$54,IF(CE16<$EW$55,$ES$55,IF(CE16<$EW$56,$ES$56,$ES$57))))))) -> 0.438 | DQ16: =IF(CE16<$EW$58,$ES$58,IF(CE16<$EW$59,$ES$59,IF(CE16<$EW$60,$ES$60,IF(CE16<$EW$61,$ES$61,IF(CE16<$EW$62,$ES$62,IF(CE16<$EW$63,$ES$63,IF(CE16<$EW$64,$ES$64,$ES$65))))))) -> 0.5 | DR16: =IF(CE16<$EW$66,$ES$66,IF(CE16<$EW$67,$ES$67,IF(CE16<$EW$68,$ES$68,IF(CE16<$EW$69,$ES$69,IF(CE16<$EW$70,$ES$70,IF(CE16<$EW$71,$ES$71,IF(CE16<$EW$72,$ES$72,$ES$73))))))) -> 0.55 | DS16: =IF(CE16<$EW$74,$ES$74,IF(CE16<$EW$75,$ES$75,IF(CE16<$EW$76,$ES$76,IF(CE16<$EW$77,$ES$77,IF(CE16<$EW$78,$ES$78,IF(CE16<$EW$79,$ES$79,IF(CE16<$EW$80,$ES$80,$ES$81))))))) -> 0.571 | DT16: =IF(CE16<$EW$82,$ES$82,IF(CE16<$EW$83,$ES$83,IF(CE16<$EW$84,$ES$84,IF(CE16<$EW$85,$ES$85,IF(CE16<$EW$86,$ES$86,IF(CE16<$EW$87,$ES$87,IF(CE16<$EW$88,$ES$88,$ES$89))))))) -> 0.632 | DU16: =IF(CE16<$EW$90,$ES$90,IF(CE16<$EW$91,$ES$91,IF(CE16<$EW$92,$ES$92,IF(CE16<$EW$93,$ES$93,IF(CE16<$EW$94,$ES$94,IF(CE16<$EW$95,$ES$95,IF(CE16<$EW$96,$ES$96,$ES$97))))))) -> 0.692 | DV16: =IF(CE16<$EW$98,$ES$98,IF(CE16<$EW$99,$ES$99,IF(CE16<$EW$100,$ES$100,IF(CE16<$EW$101,$ES$101,IF(CE16<$EW$102,$ES$102,IF(CE16<$EW$103,$ES$103,IF(CE16<$EW$104,$ES$104,$ES$105))))))) -> 0.75 | DW16: =IF(CE16<$EW$106,$ES$106,IF(CE16<$EW$107,$ES$107,IF(CE16<$EW$108,$ES$108,IF(CE16<$EW$109,$ES$109,IF(CE16<$EW$110,$ES$110,IF(CE16<$EW$111,$ES$111,IF(CE16<$EW$112,$ES$112,$ES$113))))))) -> 0.818 | DX16: =IF(CE16<$EW$114,$ES$114,IF(CE16<$EW$115,$ES$115,IF(CE16<$EW$116,$ES$116,IF(CE16<$EW$117,$ES$117,IF(CE16<$EW$118,$ES$118,IF(CE16<$EW$119,$ES$119,IF(CE16<$EW$120,$ES$120,$ES$121))))))) -> 0.875 | DY16: =IF(CE16<$EW$122,$ES$122,IF(CE16<$EW$123,$ES$123,IF(CE16<$EW$124,$ES$124,IF(CE16<$EW$125,$ES$125,IF(CE16<$EW$126,$ES$126,IF(CE16<$EW$127,$ES$127,$ES$128)))))) -> 0.929 | DZ16: =IF(CE17<$EW$2,$ES$2,IF(CE17<$EW$3,$ES$3,IF(CE17<$EW$4,$ES$4,IF(CE17<$EW$5,$ES$5,IF(CE17<$EW$6,$ES$6,IF(CE17<$EW$7,$ES$7,IF(CE17<$EW$8,$ES$8,$ES$9))))))) -> 0.077 | EA16: =IF(CE17<$EW$10,$ES$10,IF(CE17<$EW$11,$ES$11,IF(CE17<$EW$12,$ES$12,IF(CE17<$EW$13,$ES$13,IF(CE17<$EW$14,$ES$14,IF(CE17<$EW$15,$ES$15,IF(CE17<$EW$16,$ES$16,$ES$17))))))) -> 0.133 | EB16: =IF(CE17<$EW$18,$ES$18,IF(CE17<$EW$19,$ES$19,IF(CE17<$EW$20,$ES$20,IF(CE17<$EW$21,$ES$21,IF(CE17<$EW$22,$ES$22,IF(CE17<$EW$23,$ES$23,IF(CE17<$EW$24,$ES$24,$ES$25))))))) -> 0.188 | EC16: =IF(CE17<$EW$26,$ES$26,IF(CE17<$EW$27,$ES$27,IF(CE17<$EW$28,$ES$28,IF(CE17<$EW$29,$ES$29,IF(CE17<$EW$30,$ES$30,IF(CE17<$EW$31,$ES$31,IF(CE17<$EW$32,$ES$32,$ES$33))))))) -> 0.263 | ED16: =IF(CE17<$EW$34,$ES$34,IF(CE17<$EW$35,$ES$35,IF(CE17<$EW$36,$ES$36,IF(CE17<$EW$37,$ES$37,IF(CE17<$EW$38,$ES$38,IF(CE17<$EW$39,$ES$39,IF(CE17<$EW$40,$ES$40,$ES$41))))))) -> 0.313 | EE16: =IF(CE17<$EW$42,$ES$42,IF(CE17<$EW$43,$ES$43,IF(CE17<$EW$44,$ES$44,IF(CE17<$EW$45,$ES$45,IF(CE17<$EW$46,$ES$46,IF(CE17<$EW$47,$ES$47,IF(CE17<$EW$48,$ES$48,$ES$49))))))) -> 0.375 | EF16: =IF(CE17<$EW$50,$ES$50,IF(CE17<$EW$51,$ES$51,IF(CE17<$EW$52,$ES$52,IF(CE17<$EW$53,$ES$53,IF(CE17<$EW$54,$ES$54,IF(CE17<$EW$55,$ES$55,IF(CE17<$EW$56,$ES$56,$ES$57))))))) -> 0.438 | EG16: =IF(CE17<$EW$58,$ES$58,IF(CE17<$EW$59,$ES$59,IF(CE17<$EW$60,$ES$60,IF(CE17<$EW$61,$ES$61,IF(CE17<$EW$62,$ES$62,IF(CE17<$EW$63,$ES$63,IF(CE17<$EW$64,$ES$64,$ES$65))))))) -> 0.5 | EH16: =IF(CE17<$EW$66,$ES$66,IF(CE17<$EW$67,$ES$67,IF(CE17<$EW$68,$ES$68,IF(CE17<$EW$69,$ES$69,IF(CE17<$EW$70,$ES$70,IF(CE17<$EW$71,$ES$71,IF(CE17<$EW$72,$ES$72,$ES$73))))))) -> 0.526 | EI16: =IF(CE17<$EW$74,$ES$74,IF(CE17<$EW$75,$ES$75,IF(CE17<$EW$76,$ES$76,IF(CE17<$EW$77,$ES$77,IF(CE17<$EW$78,$ES$78,IF(CE17<$EW$79,$ES$79,IF(CE17<$EW$80,$ES$80,$ES$81))))))) -> 0.571 | EJ16: =IF(CE17<$EW$82,$ES$82,IF(CE17<$EW$83,$ES$83,IF(CE17<$EW$84,$ES$84,IF(CE17<$EW$85,$ES$85,IF(CE17<$EW$86,$ES$86,IF(CE17<$EW$87,$ES$87,IF(CE17<$EW$88,$ES$88,$ES$89))))))) -> 0.632 | EK16: =IF(CE17<$EW$90,$ES$90,IF(CE17<$EW$91,$ES$91,IF(CE17<$EW$92,$ES$92,IF(CE17<$EW$93,$ES$93,IF(CE17<$EW$94,$ES$94,IF(CE17<$EW$95,$ES$95,IF(CE17<$EW$96,$ES$96,$ES$97))))))) -> 0.692 | EL16: =IF(CE17<$EW$98,$ES$98,IF(CE17<$EW$99,$ES$99,IF(CE17<$EW$100,$ES$100,IF(CE17<$EW$101,$ES$101,IF(CE17<$EW$102,$ES$102,IF(CE17<$EW$103,$ES$103,IF(CE17<$EW$104,$ES$104,$ES$105))))))) -> 0.75 | EM16: =IF(CE17<$EW$106,$ES$106,IF(CE17<$EW$107,$ES$107,IF(CE17<$EW$108,$ES$108,IF(CE17<$EW$109,$ES$109,IF(CE17<$EW$110,$ES$110,IF(CE17<$EW$111,$ES$111,IF(CE17<$EW$112,$ES$112,$ES$113))))))) -> 0.818 | EN16: =IF(CE17<$EW$114,$ES$114,IF(CE17<$EW$115,$ES$115,IF(CE17<$EW$116,$ES$116,IF(CE17<$EW$117,$ES$117,IF(CE17<$EW$118,$ES$118,IF(CE17<$EW$119,$ES$119,IF(CE17<$EW$120,$ES$120,$ES$121))))))) -> 0.875 | EO16: =IF(CE17<$EW$122,$ES$122,IF(CE17<$EW$123,$ES$123,IF(CE17<$EW$124,$ES$124,IF(CE17<$EW$125,$ES$125,IF(CE17<$EW$126,$ES$126,IF(CE17<$EW$127,$ES$127,$ES$128)))))) -> 0.929 | EP16: 15 | EQ16: 1 | ER16: 8 | ES16: 0.125 | ET16: ¹ | EU16: ₈ | EV16: ⅛ | EW16: 0.129 | EX16: 15 | EY16: ¹⁵
C17: 24 | D17: =IF(AQ15=1,AS225,IF(AC15=1,AO225,(W18-W10)/(U10/V10-U18/V18))) -> 3 | E17: =IF(AQ15=1,U18*D17/V18+W18,U10*D17/V10+W10) -> 3 | F17: =IF(AND((U10/V10)=(U18/V18),W10=W18),11,IF((U10/V10)=(U18/V18),10,1)) -> 1 | J17: -2 | K17: -5 | S17: =IF(U17=1,S16,S15) -> 1 | T17: =IF(U17=1,T15,T16) -> 102 | U17: =IF(AND(ABS(T15+U18)>ABS(T15-U18),ABS(T15+U18)>5,ABS(T15-U18)<=5),2,1) -> 1 | X17: -8.7 | Y17: -75.3 | AE17: -8.7 | AF17: -27.1 | AL17: -8.7 | AM17: -8.7 | AV17: -8.7 | AW17: -16.4 | BD17: 13 | BE17: ⅔x³ | BF17: + ⅔x² | BG17: ⅔x² | BH17: x | BI17: =CONCATENATE(BU17,S2," ") -> ⁵∕₄𝒙 | BJ17: + 3 | BK17: 3 | BL17: =2/3 -> 0.6666666667 | BM17: =2/3 -> 0.6666666667 | BN17: =5/4 -> 1.25 | BO17: 3 | BP17: 5 | BQ17: 4 | BR17: 5 | BS17: 4 | BT17: =BR17/BS17 -> 1.25 | BU17: =CONCATENATE("⁵",$BI$3,"₄") -> ⁵∕₄ | CA17: 59.5 | CB17: 59.5 | CD17: 59 | CE17: 0.5 | CF17: =IF(CE17=CZ16,CZ17,IF(CE17=DA16,DA17,IF(CE17=DB16,DB17,IF(CE17=DC16,DC17,IF(CE17=DD16,DD17,IF(CE17=DE16,DE17,IF(CE17=DF16,DF17,CE17))))))) -> ½ | CG17: =IF(CF17=DG16,DG17,IF(CF17=DH16,DH17,CF17)) -> ½ | CH17: 59½ | CI17: =IF(CE17=CZ16,"*",IF(CE17=DA16,"*",IF(CE17=DB16,"*",IF(CE17=DC16,"*",IF(CE17=DD16,"*",IF(CE17=DE16,"*",IF(CE17=DF16,"*",CO17))))))) -> * | CJ17: =IF(CF17=DG16,"*",IF(CF17=DH16,"*",CI17)) -> * | CK17: * | CL17: 2975 | CM17: 2975 | CN17: 0 | CO17: • | CP17: =ROUND(50*CA17,0) -> 2975 | CQ17: =IF(DI16=1,DJ17,DQ17) -> ½ | CR17: =IF(DI16=1,DK17,DR17) -> ¹¹∕₂₀ | CS17: =IF(DI16=1,DL17,DS17) -> ⁴∕₇ | CT17: =IF(DI16=1,DM17,DT17) -> ¹²∕₁₉ | CU17: =IF(DI16=1,DN17,DU17) -> ⁹∕₁₃ | CV17: =IF(DI16=1,DO17,DV17) -> ¾ | CW17: =IF(DI16=1,DP17,DW17) -> ⁹∕₁₁ | CX17: =IF(DI16=1,DQ17,DX17) -> ⅞ | CY17: =IF(DI16=1,DR17,DY17) -> ¹³∕₁₄ | CZ17: =IF(DI17=1,DZ17,EG17) -> ½ | DA17: =IF(DI17=1,EA17,EH17) -> ¹º∕₁₉ | DB17: =IF(DI17=1,EB17,EI17) -> ⁴∕₇ | DC17: =IF(DI17=1,EC17,EJ17) -> ¹²∕₁₉ | DD17: =IF(DI17=1,ED17,EK17) -> ⁹∕₁₃ | DE17: =IF(DI17=1,EE17,EL17) -> ¾ | DF17: =IF(DI17=1,EF17,EM17) -> ⁹∕₁₁ | DG17: =IF(DI17=1,EG17,EN17) -> ⅞ | DH17: =IF(DI17=1,EH17,EO17) -> ¹³∕₁₄ | DI17: 2 | DJ17: =IF(CE16<$EW$2,$EV$2,IF(CE16<$EW$3,$EV$3,IF(CE16<$EW$4,$EV$4,IF(CE16<$EW$5,$EV$5,IF(CE16<$EW$6,$EV$6,IF(CE16<$EW$7,$EV$7,IF(CE16<$EW$8,$EV$8,$EV$9))))))) -> ¹∕₁₃ | DK17: =IF(CE16<$EW$10,$EV$10,IF(CE16<$EW$11,$EV$11,IF(CE16<$EW$12,$EV$12,IF(CE16<$EW$13,$EV$13,IF(CE16<$EW$14,$EV$14,IF(CE16<$EW$15,$EV$15,IF(CE16<$EW$16,$EV$16,$EV$17))))))) -> ²∕₁₅ | DL17: =IF(CE16<$EW$18,$EV$18,IF(CE16<$EW$19,$EV$19,IF(CE16<$EW$20,$EV$20,IF(CE16<$EW$21,$EV$21,IF(CE16<$EW$22,$EV$22,IF(CE16<$EW$23,$EV$23,IF(CE16<$EW$24,$EV$24,$EV$25))))))) -> ³∕₁₆ | DM17: =IF(CE16<$EW$26,$EV$26,IF(CE16<$EW$27,$EV$27,IF(CE16<$EW$28,$EV$28,IF(CE16<$EW$29,$EV$29,IF(CE16<$EW$30,$EV$30,IF(CE16<$EW$31,$EV$31,IF(CE16<$EW$32,$EV$32,$EV$33))))))) -> ⁵∕₁₉ | DN17: =IF(CE16<$EW$34,$EV$34,IF(CE16<$EW$35,$EV$35,IF(CE16<$EW$36,$EV$36,IF(CE16<$EW$37,$EV$37,IF(CE16<$EW$38,$EV$38,IF(CE16<$EW$39,$EV$39,IF(CE16<$EW$40,$EV$40,$EV$41))))))) -> ⁵∕₁₆ | DO17: =IF(CE16<$EW$42,$EV$42,IF(CE16<$EW$43,$EV$43,IF(CE16<$EW$44,$EV$44,IF(CE16<$EW$45,$EV$45,IF(CE16<$EW$46,$EV$46,IF(CE16<$EW$47,$EV$47,IF(CE16<$EW$48,$EV$48,$EV$49))))))) -> ⅜ | DP17: =IF(CE16<$EW$50,$EV$50,IF(CE16<$EW$51,$EV$51,IF(CE16<$EW$52,$EV$52,IF(CE16<$EW$53,$EV$53,IF(CE16<$EW$54,$EV$54,IF(CE16<$EW$55,$EV$55,IF(CE16<$EW$56,$EV$56,$EV$57))))))) -> ⁷∕₁₆ | DQ17: =IF(CE16<$EW$58,$EV$58,IF(CE16<$EW$59,$EV$59,IF(CE16<$EW$60,$EV$60,IF(CE16<$EW$61,$EV$61,IF(CE16<$EW$62,$EV$62,IF(CE16<$EW$63,$EV$63,IF(CE16<$EW$64,$EV$64,$EV$65))))))) -> ½ | DR17: =IF(CE16<$EW$66,$EV$66,IF(CE16<$EW$67,$EV$67,IF(CE16<$EW$68,$EV$68,IF(CE16<$EW$69,$EV$69,IF(CE16<$EW$70,$EV$70,IF(CE16<$EW$71,$EV$71,IF(CE16<$EW$72,$EV$72,$EV$73))))))) -> ¹¹∕₂₀ | DS17: =IF(CE16<$EW$74,$EV$74,IF(CE16<$EW$75,$EV$75,IF(CE16<$EW$76,$EV$76,IF(CE16<$EW$77,$EV$77,IF(CE16<$EW$78,$EV$78,IF(CE16<$EW$79,$EV$79,IF(CE16<$EW$80,$EV$80,$EV$81))))))) -> ⁴∕₇ | DT17: =IF(CE16<$EW$82,$EV$82,IF(CE16<$EW$83,$EV$83,IF(CE16<$EW$84,$EV$84,IF(CE16<$EW$85,$EV$85,IF(CE16<$EW$86,$EV$86,IF(CE16<$EW$87,$EV$87,IF(CE16<$EW$88,$EV$88,$EV$89))))))) -> ¹²∕₁₉ | DU17: =IF(CE16<$EW$90,$EV$90,IF(CE16<$EW$91,$EV$91,IF(CE16<$EW$92,$EV$92,IF(CE16<$EW$93,$EV$93,IF(CE16<$EW$94,$EV$94,IF(CE16<$EW$95,$EV$95,IF(CE16<$EW$96,$EV$96,$EV$97))))))) -> ⁹∕₁₃ | DV17: =IF(CE16<$EW$98,$EV$98,IF(CE16<$EW$99,$EV$99,IF(CE16<$EW$100,$EV$100,IF(CE16<$EW$101,$EV$101,IF(CE16<$EW$102,$EV$102,IF(CE16<$EW$103,$EV$103,IF(CE16<$EW$104,$EV$104,$EV$105))))))) -> ¾ | DW17: =IF(CE16<$EW$106,$EV$106,IF(CE16<$EW$107,$EV$107,IF(CE16<$EW$108,$EV$108,IF(CE16<$EW$109,$EV$109,IF(CE16<$EW$110,$EV$110,IF(CE16<$EW$111,$EV$111,IF(CE16<$EW$112,$EV$112,$EV$113))))))) -> ⁹∕₁₁ | DX17: =IF(CE16<$EW$114,$EV$114,IF(CE16<$EW$115,$EV$115,IF(CE16<$EW$116,$EV$116,IF(CE16<$EW$117,$EV$117,IF(CE16<$EW$118,$EV$118,IF(CE16<$EW$119,$EV$119,IF(CE16<$EW$120,$EV$120,$EV$121))))))) -> ⅞ | DY17: =IF(CE16<$EW$122,$EV$122,IF(CE16<$EW$123,$EV$123,IF(CE16<$EW$124,$EV$124,IF(CE16<$EW$125,$EV$125,IF(CE16<$EW$126,$EV$126,IF(CE16<$EW$127,$EV$127,$EV$128)))))) -> ¹³∕₁₄ | DZ17: =IF(CE17<$EW$2,$EV$2,IF(CE17<$EW$3,$EV$3,IF(CE17<$EW$4,$EV$4,IF(CE17<$EW$5,$EV$5,IF(CE17<$EW$6,$EV$6,IF(CE17<$EW$7,$EV$7,IF(CE17<$EW$8,$EV$8,$EV$9))))))) -> ¹∕₁₃ | EA17: =IF(CE17<$EW$10,$EV$10,IF(CE17<$EW$11,$EV$11,IF(CE17<$EW$12,$EV$12,IF(CE17<$EW$13,$EV$13,IF(CE17<$EW$14,$EV$14,IF(CE17<$EW$15,$EV$15,IF(CE17<$EW$16,$EV$16,$EV$17))))))) -> ²∕₁₅ | EB17: =IF(CE17<$EW$18,$EV$18,IF(CE17<$EW$19,$EV$19,IF(CE17<$EW$20,$EV$20,IF(CE17<$EW$21,$EV$21,IF(CE17<$EW$22,$EV$22,IF(CE17<$EW$23,$EV$23,IF(CE17<$EW$24,$EV$24,$EV$25))))))) -> ³∕₁₆ | EC17: =IF(CE17<$EW$26,$EV$26,IF(CE17<$EW$27,$EV$27,IF(CE17<$EW$28,$EV$28,IF(CE17<$EW$29,$EV$29,IF(CE17<$EW$30,$EV$30,IF(CE17<$EW$31,$EV$31,IF(CE17<$EW$32,$EV$32,$EV$33))))))) -> ⁵∕₁₉ | ED17: =IF(CE17<$EW$34,$EV$34,IF(CE17<$EW$35,$EV$35,IF(CE17<$EW$36,$EV$36,IF(CE17<$EW$37,$EV$37,IF(CE17<$EW$38,$EV$38,IF(CE17<$EW$39,$EV$39,IF(CE17<$EW$40,$EV$40,$EV$41))))))) -> ⁵∕₁₆ | EE17: =IF(CE17<$EW$42,$EV$42,IF(CE17<$EW$43,$EV$43,IF(CE17<$EW$44,$EV$44,IF(CE17<$EW$45,$EV$45,IF(CE17<$EW$46,$EV$46,IF(CE17<$EW$47,$EV$47,IF(CE17<$EW$48,$EV$48,$EV$49))))))) -> ⅜ | EF17: =IF(CE17<$EW$50,$EV$50,IF(CE17<$EW$51,$EV$51,IF(CE17<$EW$52,$EV$52,IF(CE17<$EW$53,$EV$53,IF(CE17<$EW$54,$EV$54,IF(CE17<$EW$55,$EV$55,IF(CE17<$EW$56,$EV$56,$EV$57))))))) -> ⁷∕₁₆ | EG17: =IF(CE17<$EW$58,$EV$58,IF(CE17<$EW$59,$EV$59,IF(CE17<$EW$60,$EV$60,IF(CE17<$EW$61,$EV$61,IF(CE17<$EW$62,$EV$62,IF(CE17<$EW$63,$EV$63,IF(CE17<$EW$64,$EV$64,$EV$65))))))) -> ½ | EH17: =IF(CE17<$EW$66,$EV$66,IF(CE17<$EW$67,$EV$67,IF(CE17<$EW$68,$EV$68,IF(CE17<$EW$69,$EV$69,IF(CE17<$EW$70,$EV$70,IF(CE17<$EW$71,$EV$71,IF(CE17<$EW$72,$EV$72,$EV$73))))))) -> ¹º∕₁₉ | EI17: =IF(CE17<$EW$74,$EV$74,IF(CE17<$EW$75,$EV$75,IF(CE17<$EW$76,$EV$76,IF(CE17<$EW$77,$EV$77,IF(CE17<$EW$78,$EV$78,IF(CE17<$EW$79,$EV$79,IF(CE17<$EW$80,$EV$80,$EV$81))))))) -> ⁴∕₇ | EJ17: =IF(CE17<$EW$82,$EV$82,IF(CE17<$EW$83,$EV$83,IF(CE17<$EW$84,$EV$84,IF(CE17<$EW$85,$EV$85,IF(CE17<$EW$86,$EV$86,IF(CE17<$EW$87,$EV$87,IF(CE17<$EW$88,$EV$88,$EV$89))))))) -> ¹²∕₁₉ | EK17: =IF(CE17<$EW$90,$EV$90,IF(CE17<$EW$91,$EV$91,IF(CE17<$EW$92,$EV$92,IF(CE17<$EW$93,$EV$93,IF(CE17<$EW$94,$EV$94,IF(CE17<$EW$95,$EV$95,IF(CE17<$EW$96,$EV$96,$EV$97))))))) -> ⁹∕₁₃ | EL17: =IF(CE17<$EW$98,$EV$98,IF(CE17<$EW$99,$EV$99,IF(CE17<$EW$100,$EV$100,IF(CE17<$EW$101,$EV$101,IF(CE17<$EW$102,$EV$102,IF(CE17<$EW$103,$EV$103,IF(CE17<$EW$104,$EV$104,$EV$105))))))) -> ¾ | EM17: =IF(CE17<$EW$106,$EV$106,IF(CE17<$EW$107,$EV$107,IF(CE17<$EW$108,$EV$108,IF(CE17<$EW$109,$EV$109,IF(CE17<$EW$110,$EV$110,IF(CE17<$EW$111,$EV$111,IF(CE17<$EW$112,$EV$112,$EV$113))))))) -> ⁹∕₁₁ | EN17: =IF(CE17<$EW$114,$EV$114,IF(CE17<$EW$115,$EV$115,IF(CE17<$EW$116,$EV$116,IF(CE17<$EW$117,$EV$117,IF(CE17<$EW$118,$EV$118,IF(CE17<$EW$119,$EV$119,IF(CE17<$EW$120,$EV$120,$EV$121))))))) -> ⅞ | EO17: =IF(CE17<$EW$122,$EV$122,IF(CE17<$EW$123,$EV$123,IF(CE17<$EW$124,$EV$124,IF(CE17<$EW$125,$EV$125,IF(CE17<$EW$126,$EV$126,IF(CE17<$EW$127,$EV$127,$EV$128)))))) -> ¹³∕₁₄ | EP17: 16 | EQ17: 2 | ER17: 15 | ES17: 0.133 | ET17: ² | EU17: ₁₅ | EV17: =CONCATENATE(ET17,$EX$22,EU17) -> ²∕₁₅ | EW17: 0.138 | EX17: 16 | EY17: ¹⁶
C18: 31 | D18: =D13 -> 2 | E18: =E13 -> 5 | F18: =F13 -> 1 | J18: -1 | K18: -5 | S18: =S15 -> 0 | T18: =T15 -> 102 | U18: =VLOOKUP($AC$15,$BD$5:$BW$67,13) -> 9 | V18: =VLOOKUP($AC$15,$BD$5:$BW$67,14) -> 1 | W18: =VLOOKUP($AD$15,$BD$5:$BW$67,12) -> 3 | X18: -8.6 | Y18: -74.4 | AE18: -8.6 | AF18: -26.8 | AL18: -8.6 | AM18: -8.6 | AV18: -8.6 | AW18: -16.2 | BD18: 14 | BE18: ½x³ | BF18: + ½x² | BG18: ½x² | BH18: x | BI18: =CONCATENATE($S$2," ") -> 𝒙 | BJ18: + 2½ | BK18: 2½ | BL18: =1/2 -> 0.5 | BM18: =1/2 -> 0.5 | BN18: 1 | BO18: 2.5 | BP18: 1 | BQ18: 1 | BU18: 1 | CA18: 29.625 | CB18: 29.625 | CD18: 29 | CE18: 0.625 | CF18: =IF(CE18=CQ18,CQ19,IF(CE18=CR18,CR19,IF(CE18=CS18,CS19,IF(CE18=CT18,CT19,IF(CE18=CU18,CU19,IF(CE18=CV18,CV19,IF(CE18=CW18,CW19,CE18))))))) -> ⅝ | CG18: =IF(CF18=CX18,CX19,IF(CF18=CY18,CY19,CF18)) -> ⅝ | CH18: 29⅝ | CI18: =IF(CE18=CQ18,"*",IF(CE18=CR18,"*",IF(CE18=CS18,"*",IF(CE18=CT18,"*",IF(CE18=CU18,"*",IF(CE18=CV18,"*",IF(CE18=CW18,"*",CO18))))))) -> * | CJ18: =IF(CF18=CX18,"*",IF(CF18=CY18,"*",CI18)) -> * | CK18: * | CL18: 1481.25 | CM18: 1481 | CN18: 0.25 | CO18: · | CP18: =50*CA19 -> 61.53846154 | CQ18: =IF(DI18=1,DJ18,DQ18) -> 0.5 | CR18: =IF(DI18=1,DK18,DR18) -> 0.563 | CS18: =IF(DI18=1,DL18,DS18) -> 0.625 | CT18: =IF(DI18=1,DM18,DT18) -> 0.632 | CU18: =IF(DI18=1,DN18,DU18) -> 0.692 | CV18: =IF(DI18=1,DO18,DV18) -> 0.75 | CW18: =IF(DI18=1,DP18,DW18) -> 0.818 | CX18: =IF(DI18=1,DQ18,DX18) -> 0.875 | CY18: =IF(DI18=1,DR18,DY18) -> 0.929 | CZ18: =IF(DI19=1,DZ18,EG18) -> 0.077 | DA18: =IF(DI19=1,EA18,EH18) -> 0.133 | DB18: =IF(DI19=1,EB18,EI18) -> 0.188 | DC18: =IF(DI19=1,EC18,EJ18) -> 0.231 | DD18: =IF(DI19=1,ED18,EK18) -> 0.267 | DE18: =IF(DI19=1,EE18,EL18) -> 0.316 | DF18: =IF(DI19=1,EF18,EM18) -> 0.385 | DG18: =IF(DI19=1,EG18,EN18) -> 0.444 | DH18: =IF(DI19=1,EH18,EO18) -> 0.526 | DI18: 2 | DJ18: =IF(CE18<$EW$2,$ES$2,IF(CE18<$EW$3,$ES$3,IF(CE18<$EW$4,$ES$4,IF(CE18<$EW$5,$ES$5,IF(CE18<$EW$6,$ES$6,IF(CE18<$EW$7,$ES$7,IF(CE18<$EW$8,$ES$8,$ES$9))))))) -> 0.077 | DK18: =IF(CE18<$EW$10,$ES$10,IF(CE18<$EW$11,$ES$11,IF(CE18<$EW$12,$ES$12,IF(CE18<$EW$13,$ES$13,IF(CE18<$EW$14,$ES$14,IF(CE18<$EW$15,$ES$15,IF(CE18<$EW$16,$ES$16,$ES$17))))))) -> 0.133 | DL18: =IF(CE18<$EW$18,$ES$18,IF(CE18<$EW$19,$ES$19,IF(CE18<$EW$20,$ES$20,IF(CE18<$EW$21,$ES$21,IF(CE18<$EW$22,$ES$22,IF(CE18<$EW$23,$ES$23,IF(CE18<$EW$24,$ES$24,$ES$25))))))) -> 0.188 | DM18: =IF(CE18<$EW$26,$ES$26,IF(CE18<$EW$27,$ES$27,IF(CE18<$EW$28,$ES$28,IF(CE18<$EW$29,$ES$29,IF(CE18<$EW$30,$ES$30,IF(CE18<$EW$31,$ES$31,IF(CE18<$EW$32,$ES$32,$ES$33))))))) -> 0.263 | DN18: =IF(CE18<$EW$34,$ES$34,IF(CE18<$EW$35,$ES$35,IF(CE18<$EW$36,$ES$36,IF(CE18<$EW$37,$ES$37,IF(CE18<$EW$38,$ES$38,IF(CE18<$EW$39,$ES$39,IF(CE18<$EW$40,$ES$40,$ES$41))))))) -> 0.313 | DO18: =IF(CE18<$EW$42,$ES$42,IF(CE18<$EW$43,$ES$43,IF(CE18<$EW$44,$ES$44,IF(CE18<$EW$45,$ES$45,IF(CE18<$EW$46,$ES$46,IF(CE18<$EW$47,$ES$47,IF(CE18<$EW$48,$ES$48,$ES$49))))))) -> 0.375 | DP18: =IF(CE18<$EW$50,$ES$50,IF(CE18<$EW$51,$ES$51,IF(CE18<$EW$52,$ES$52,IF(CE18<$EW$53,$ES$53,IF(CE18<$EW$54,$ES$54,IF(CE18<$EW$55,$ES$55,IF(CE18<$EW$56,$ES$56,$ES$57))))))) -> 0.438 | DQ18: =IF(CE18<$EW$58,$ES$58,IF(CE18<$EW$59,$ES$59,IF(CE18<$EW$60,$ES$60,IF(CE18<$EW$61,$ES$61,IF(CE18<$EW$62,$ES$62,IF(CE18<$EW$63,$ES$63,IF(CE18<$EW$64,$ES$64,$ES$65))))))) -> 0.5 | DR18: =IF(CE18<$EW$66,$ES$66,IF(CE18<$EW$67,$ES$67,IF(CE18<$EW$68,$ES$68,IF(CE18<$EW$69,$ES$69,IF(CE18<$EW$70,$ES$70,IF(CE18<$EW$71,$ES$71,IF(CE18<$EW$72,$ES$72,$ES$73))))))) -> 0.563 | DS18: =IF(CE18<$EW$74,$ES$74,IF(CE18<$EW$75,$ES$75,IF(CE18<$EW$76,$ES$76,IF(CE18<$EW$77,$ES$77,IF(CE18<$EW$78,$ES$78,IF(CE18<$EW$79,$ES$79,IF(CE18<$EW$80,$ES$80,$ES$81))))))) -> 0.625 | DT18: =IF(CE18<$EW$82,$ES$82,IF(CE18<$EW$83,$ES$83,IF(CE18<$EW$84,$ES$84,IF(CE18<$EW$85,$ES$85,IF(CE18<$EW$86,$ES$86,IF(CE18<$EW$87,$ES$87,IF(CE18<$EW$88,$ES$88,$ES$89))))))) -> 0.632 | DU18: =IF(CE18<$EW$90,$ES$90,IF(CE18<$EW$91,$ES$91,IF(CE18<$EW$92,$ES$92,IF(CE18<$EW$93,$ES$93,IF(CE18<$EW$94,$ES$94,IF(CE18<$EW$95,$ES$95,IF(CE18<$EW$96,$ES$96,$ES$97))))))) -> 0.692 | DV18: =IF(CE18<$EW$98,$ES$98,IF(CE18<$EW$99,$ES$99,IF(CE18<$EW$100,$ES$100,IF(CE18<$EW$101,$ES$101,IF(CE18<$EW$102,$ES$102,IF(CE18<$EW$103,$ES$103,IF(CE18<$EW$104,$ES$104,$ES$105))))))) -> 0.75 | DW18: =IF(CE18<$EW$106,$ES$106,IF(CE18<$EW$107,$ES$107,IF(CE18<$EW$108,$ES$108,IF(CE18<$EW$109,$ES$109,IF(CE18<$EW$110,$ES$110,IF(CE18<$EW$111,$ES$111,IF(CE18<$EW$112,$ES$112,$ES$113))))))) -> 0.818 | DX18: =IF(CE18<$EW$114,$ES$114,IF(CE18<$EW$115,$ES$115,IF(CE18<$EW$116,$ES$116,IF(CE18<$EW$117,$ES$117,IF(CE18<$EW$118,$ES$118,IF(CE18<$EW$119,$ES$119,IF(CE18<$EW$120,$ES$120,$ES$121))))))) -> 0.875 | DY18: =IF(CE18<$EW$122,$ES$122,IF(CE18<$EW$123,$ES$123,IF(CE18<$EW$124,$ES$124,IF(CE18<$EW$125,$ES$125,IF(CE18<$EW$126,$ES$126,IF(CE18<$EW$127,$ES$127,$ES$128)))))) -> 0.929 | DZ18: =IF(CE19<$EW$2,$ES$2,IF(CE19<$EW$3,$ES$3,IF(CE19<$EW$4,$ES$4,IF(CE19<$EW$5,$ES$5,IF(CE19<$EW$6,$ES$6,IF(CE19<$EW$7,$ES$7,IF(CE19<$EW$8,$ES$8,$ES$9))))))) -> 0.077 | EA18: =IF(CE19<$EW$10,$ES$10,IF(CE19<$EW$11,$ES$11,IF(CE19<$EW$12,$ES$12,IF(CE19<$EW$13,$ES$13,IF(CE19<$EW$14,$ES$14,IF(CE19<$EW$15,$ES$15,IF(CE19<$EW$16,$ES$16,$ES$17))))))) -> 0.133 | EB18: =IF(CE19<$EW$18,$ES$18,IF(CE19<$EW$19,$ES$19,IF(CE19<$EW$20,$ES$20,IF(CE19<$EW$21,$ES$21,IF(CE19<$EW$22,$ES$22,IF(CE19<$EW$23,$ES$23,IF(CE19<$EW$24,$ES$24,$ES$25))))))) -> 0.188 | EC18: =IF(CE19<$EW$26,$ES$26,IF(CE19<$EW$27,$ES$27,IF(CE19<$EW$28,$ES$28,IF(CE19<$EW$29,$ES$29,IF(CE19<$EW$30,$ES$30,IF(CE19<$EW$31,$ES$31,IF(CE19<$EW$32,$ES$32,$ES$33))))))) -> 0.231 | ED18: =IF(CE19<$EW$34,$ES$34,IF(CE19<$EW$35,$ES$35,IF(CE19<$EW$36,$ES$36,IF(CE19<$EW$37,$ES$37,IF(CE19<$EW$38,$ES$38,IF(CE19<$EW$39,$ES$39,IF(CE19<$EW$40,$ES$40,$ES$41))))))) -> 0.267 | EE18: =IF(CE19<$EW$42,$ES$42,IF(CE19<$EW$43,$ES$43,IF(CE19<$EW$44,$ES$44,IF(CE19<$EW$45,$ES$45,IF(CE19<$EW$46,$ES$46,IF(CE19<$EW$47,$ES$47,IF(CE19<$EW$48,$ES$48,$ES$49))))))) -> 0.316 | EF18: =IF(CE19<$EW$50,$ES$50,IF(CE19<$EW$51,$ES$51,IF(CE19<$EW$52,$ES$52,IF(CE19<$EW$53,$ES$53,IF(CE19<$EW$54,$ES$54,IF(CE19<$EW$55,$ES$55,IF(CE19<$EW$56,$ES$56,$ES$57))))))) -> 0.385 | EG18: =IF(CE19<$EW$58,$ES$58,IF(CE19<$EW$59,$ES$59,IF(CE19<$EW$60,$ES$60,IF(CE19<$EW$61,$ES$61,IF(CE19<$EW$62,$ES$62,IF(CE19<$EW$63,$ES$63,IF(CE19<$EW$64,$ES$64,$ES$65))))))) -> 0.444 | EH18: =IF(CE19<$EW$66,$ES$66,IF(CE19<$EW$67,$ES$67,IF(CE19<$EW$68,$ES$68,IF(CE19<$EW$69,$ES$69,IF(CE19<$EW$70,$ES$70,IF(CE19<$EW$71,$ES$71,IF(CE19<$EW$72,$ES$72,$ES$73))))))) -> 0.526 | EI18: =IF(CE19<$EW$74,$ES$74,IF(CE19<$EW$75,$ES$75,IF(CE19<$EW$76,$ES$76,IF(CE19<$EW$77,$ES$77,IF(CE19<$EW$78,$ES$78,IF(CE19<$EW$79,$ES$79,IF(CE19<$EW$80,$ES$80,$ES$81))))))) -> 0.571 | EJ18: =IF(CE19<$EW$82,$ES$82,IF(CE19<$EW$83,$ES$83,IF(CE19<$EW$84,$ES$84,IF(CE19<$EW$85,$ES$85,IF(CE19<$EW$86,$ES$86,IF(CE19<$EW$87,$ES$87,IF(CE19<$EW$88,$ES$88,$ES$89))))))) -> 0.632 | EK18: =IF(CE19<$EW$90,$ES$90,IF(CE19<$EW$91,$ES$91,IF(CE19<$EW$92,$ES$92,IF(CE19<$EW$93,$ES$93,IF(CE19<$EW$94,$ES$94,IF(CE19<$EW$95,$ES$95,IF(CE19<$EW$96,$ES$96,$ES$97))))))) -> 0.692 | EL18: =IF(CE19<$EW$98,$ES$98,IF(CE19<$EW$99,$ES$99,IF(CE19<$EW$100,$ES$100,IF(CE19<$EW$101,$ES$101,IF(CE19<$EW$102,$ES$102,IF(CE19<$EW$103,$ES$103,IF(CE19<$EW$104,$ES$104,$ES$105))))))) -> 0.75 | EM18: =IF(CE19<$EW$106,$ES$106,IF(CE19<$EW$107,$ES$107,IF(CE19<$EW$108,$ES$108,IF(CE19<$EW$109,$ES$109,IF(CE19<$EW$110,$ES$110,IF(CE19<$EW$111,$ES$111,IF(CE19<$EW$112,$ES$112,$ES$113))))))) -> 0.818 | EN18: =IF(CE19<$EW$114,$ES$114,IF(CE19<$EW$115,$ES$115,IF(CE19<$EW$116,$ES$116,IF(CE19<$EW$117,$ES$117,IF(CE19<$EW$118,$ES$118,IF(CE19<$EW$119,$ES$119,IF(CE19<$EW$120,$ES$120,$ES$121))))))) -> 0.875 | EO18: =IF(CE19<$EW$122,$ES$122,IF(CE19<$EW$123,$ES$123,IF(CE19<$EW$124,$ES$124,IF(CE19<$EW$125,$ES$125,IF(CE19<$EW$126,$ES$126,IF(CE19<$EW$127,$ES$127,$ES$128)))))) -> 0.929 | EP18: 17 | EQ18: 1 | ER18: 7 | ES18: 0.143 | ET18: ¹ | EU18: ₇ | EV18: =CONCATENATE(ET18,$EX$22,EU18) -> ¹∕₇ | EW18: 0.147 | EX18: 17 | EY18: ¹⁷
C19: 32 | D19: =D16 -> 0.5 | E19: =E16 -> 0.5 | F19: =F16 -> 1 | J19: -1 | K19: 5 | X19: -8.5 | Y19: -73.5 | AE19: -8.5 | AF19: -26.5 | AL19: -8.5 | AM19: -8.5 | AV19: -8.5 | AW19: -16 | BD19: 15 | BE19: ⅓x³ | BF19: + ⅓x² | BG19: ⅓x² | BH19: x | BI19: =CONCATENATE("⅘",$S$2," ") -> ⅘𝒙 | BJ19: + 2 | BK19: 2 | BL19: =1/3 -> 0.3333333333 | BM19: =1/3 -> 0.3333333333 | BN19: 0.8 | BO19: 2 | BP19: 4 | BQ19: 5 | BR19: 4 | BS19: 5 | BT19: =BR19/BS19 -> 0.8 | BU19: ⅘ | CA19: 1.230769231 | CB19: 1.230769231 | CD19: 1 | CE19: 0.231 | CF19: =IF(CE19=CZ18,CZ19,IF(CE19=DA18,DA19,IF(CE19=DB18,DB19,IF(CE19=DC18,DC19,IF(CE19=DD18,DD19,IF(CE19=DE18,DE19,IF(CE19=DF18,DF19,CE19))))))) -> ³∕₁₃ | CG19: =IF(CF19=DG18,DG19,IF(CF19=DH18,DH19,CF19)) -> ³∕₁₃ | CH19: 1³∕₁₃ | CI19: =IF(CE19=CZ18,"*",IF(CE19=DA18,"*",IF(CE19=DB18,"*",IF(CE19=DC18,"*",IF(CE19=DD18,"*",IF(CE19=DE18,"*",IF(CE19=DF18,"*",CO19))))))) -> * | CJ19: =IF(CF19=DG18,"*",IF(CF19=DH18,"*",CI19)) -> * | CK19: * | CL19: 61.53846154 | CM19: 62 | CN19: -0.46153846153846 | CO19: · | CP19: =ROUND(50*CA19,0) -> 62 | CQ19: =IF(DI18=1,DJ19,DQ19) -> ½ | CR19: =IF(DI18=1,DK19,DR19) -> ⁹∕₁₆ | CS19: =IF(DI18=1,DL19,DS19) -> ⅝ | CT19: =IF(DI18=1,DM19,DT19) -> ¹²∕₁₉ | CU19: =IF(DI18=1,DN19,DU19) -> ⁹∕₁₃ | CV19: =IF(DI18=1,DO19,DV19) -> ¾ | CW19: =IF(DI18=1,DP19,DW19) -> ⁹∕₁₁ | CX19: =IF(DI18=1,DQ19,DX19) -> ⅞ | CY19: =IF(DI18=1,DR19,DY19) -> ¹³∕₁₄ | CZ19: =IF(DI19=1,DZ19,EG19) -> ¹∕₁₃ | DA19: =IF(DI19=1,EA19,EH19) -> ²∕₁₅ | DB19: =IF(DI19=1,EB19,EI19) -> ³∕₁₆ | DC19: =IF(DI19=1,EC19,EJ19) -> ³∕₁₃ | DD19: =IF(DI19=1,ED19,EK19) -> ⁴∕₁₅ | DE19: =IF(DI19=1,EE19,EL19) -> ⁶∕₁₉ | DF19: =IF(DI19=1,EF19,EM19) -> ⁵∕₁₃ | DG19: =IF(DI19=1,EG19,EN19) -> ⁴∕₉ | DH19: =IF(DI19=1,EH19,EO19) -> ¹º∕₁₉ | DI19: 1 | DJ19: =IF(CE18<$EW$2,$EV$2,IF(CE18<$EW$3,$EV$3,IF(CE18<$EW$4,$EV$4,IF(CE18<$EW$5,$EV$5,IF(CE18<$EW$6,$EV$6,IF(CE18<$EW$7,$EV$7,IF(CE18<$EW$8,$EV$8,$EV$9))))))) -> ¹∕₁₃ | DK19: =IF(CE18<$EW$10,$EV$10,IF(CE18<$EW$11,$EV$11,IF(CE18<$EW$12,$EV$12,IF(CE18<$EW$13,$EV$13,IF(CE18<$EW$14,$EV$14,IF(CE18<$EW$15,$EV$15,IF(CE18<$EW$16,$EV$16,$EV$17))))))) -> ²∕₁₅ | DL19: =IF(CE18<$EW$18,$EV$18,IF(CE18<$EW$19,$EV$19,IF(CE18<$EW$20,$EV$20,IF(CE18<$EW$21,$EV$21,IF(CE18<$EW$22,$EV$22,IF(CE18<$EW$23,$EV$23,IF(CE18<$EW$24,$EV$24,$EV$25))))))) -> ³∕₁₆ | DM19: =IF(CE18<$EW$26,$EV$26,IF(CE18<$EW$27,$EV$27,IF(CE18<$EW$28,$EV$28,IF(CE18<$EW$29,$EV$29,IF(CE18<$EW$30,$EV$30,IF(CE18<$EW$31,$EV$31,IF(CE18<$EW$32,$EV$32,$EV$33))))))) -> ⁵∕₁₉ | DN19: =IF(CE18<$EW$34,$EV$34,IF(CE18<$EW$35,$EV$35,IF(CE18<$EW$36,$EV$36,IF(CE18<$EW$37,$EV$37,IF(CE18<$EW$38,$EV$38,IF(CE18<$EW$39,$EV$39,IF(CE18<$EW$40,$EV$40,$EV$41))))))) -> ⁵∕₁₆ | DO19: =IF(CE18<$EW$42,$EV$42,IF(CE18<$EW$43,$EV$43,IF(CE18<$EW$44,$EV$44,IF(CE18<$EW$45,$EV$45,IF(CE18<$EW$46,$EV$46,IF(CE18<$EW$47,$EV$47,IF(CE18<$EW$48,$EV$48,$EV$49))))))) -> ⅜ | DP19: =IF(CE18<$EW$50,$EV$50,IF(CE18<$EW$51,$EV$51,IF(CE18<$EW$52,$EV$52,IF(CE18<$EW$53,$EV$53,IF(CE18<$EW$54,$EV$54,IF(CE18<$EW$55,$EV$55,IF(CE18<$EW$56,$EV$56,$EV$57))))))) -> ⁷∕₁₆ | DQ19: =IF(CE18<$EW$58,$EV$58,IF(CE18<$EW$59,$EV$59,IF(CE18<$EW$60,$EV$60,IF(CE18<$EW$61,$EV$61,IF(CE18<$EW$62,$EV$62,IF(CE18<$EW$63,$EV$63,IF(CE18<$EW$64,$EV$64,$EV$65))))))) -> ½ | DR19: =IF(CE18<$EW$66,$EV$66,IF(CE18<$EW$67,$EV$67,IF(CE18<$EW$68,$EV$68,IF(CE18<$EW$69,$EV$69,IF(CE18<$EW$70,$EV$70,IF(CE18<$EW$71,$EV$71,IF(CE18<$EW$72,$EV$72,$EV$73))))))) -> ⁹∕₁₆ | DS19: =IF(CE18<$EW$74,$EV$74,IF(CE18<$EW$75,$EV$75,IF(CE18<$EW$76,$EV$76,IF(CE18<$EW$77,$EV$77,IF(CE18<$EW$78,$EV$78,IF(CE18<$EW$79,$EV$79,IF(CE18<$EW$80,$EV$80,$EV$81))))))) -> ⅝ | DT19: =IF(CE18<$EW$82,$EV$82,IF(CE18<$EW$83,$EV$83,IF(CE18<$EW$84,$EV$84,IF(CE18<$EW$85,$EV$85,IF(CE18<$EW$86,$EV$86,IF(CE18<$EW$87,$EV$87,IF(CE18<$EW$88,$EV$88,$EV$89))))))) -> ¹²∕₁₉ | DU19: =IF(CE18<$EW$90,$EV$90,IF(CE18<$EW$91,$EV$91,IF(CE18<$EW$92,$EV$92,IF(CE18<$EW$93,$EV$93,IF(CE18<$EW$94,$EV$94,IF(CE18<$EW$95,$EV$95,IF(CE18<$EW$96,$EV$96,$EV$97))))))) -> ⁹∕₁₃ | DV19: =IF(CE18<$EW$98,$EV$98,IF(CE18<$EW$99,$EV$99,IF(CE18<$EW$100,$EV$100,IF(CE18<$EW$101,$EV$101,IF(CE18<$EW$102,$EV$102,IF(CE18<$EW$103,$EV$103,IF(CE18<$EW$104,$EV$104,$EV$105))))))) -> ¾ | DW19: =IF(CE18<$EW$106,$EV$106,IF(CE18<$EW$107,$EV$107,IF(CE18<$EW$108,$EV$108,IF(CE18<$EW$109,$EV$109,IF(CE18<$EW$110,$EV$110,IF(CE18<$EW$111,$EV$111,IF(CE18<$EW$112,$EV$112,$EV$113))))))) -> ⁹∕₁₁ | DX19: =IF(CE18<$EW$114,$EV$114,IF(CE18<$EW$115,$EV$115,IF(CE18<$EW$116,$EV$116,IF(CE18<$EW$117,$EV$117,IF(CE18<$EW$118,$EV$118,IF(CE18<$EW$119,$EV$119,IF(CE18<$EW$120,$EV$120,$EV$121))))))) -> ⅞ | DY19: =IF(CE18<$EW$122,$EV$122,IF(CE18<$EW$123,$EV$123,IF(CE18<$EW$124,$EV$124,IF(CE18<$EW$125,$EV$125,IF(CE18<$EW$126,$EV$126,IF(CE18<$EW$127,$EV$127,$EV$128)))))) -> ¹³∕₁₄ | DZ19: =IF(CE19<$EW$2,$EV$2,IF(CE19<$EW$3,$EV$3,IF(CE19<$EW$4,$EV$4,IF(CE19<$EW$5,$EV$5,IF(CE19<$EW$6,$EV$6,IF(CE19<$EW$7,$EV$7,IF(CE19<$EW$8,$EV$8,$EV$9))))))) -> ¹∕₁₃ | EA19: =IF(CE19<$EW$10,$EV$10,IF(CE19<$EW$11,$EV$11,IF(CE19<$EW$12,$EV$12,IF(CE19<$EW$13,$EV$13,IF(CE19<$EW$14,$EV$14,IF(CE19<$EW$15,$EV$15,IF(CE19<$EW$16,$EV$16,$EV$17))))))) -> ²∕₁₅ | EB19: =IF(CE19<$EW$18,$EV$18,IF(CE19<$EW$19,$EV$19,IF(CE19<$EW$20,$EV$20,IF(CE19<$EW$21,$EV$21,IF(CE19<$EW$22,$EV$22,IF(CE19<$EW$23,$EV$23,IF(CE19<$EW$24,$EV$24,$EV$25))))))) -> ³∕₁₆ | EC19: =IF(CE19<$EW$26,$EV$26,IF(CE19<$EW$27,$EV$27,IF(CE19<$EW$28,$EV$28,IF(CE19<$EW$29,$EV$29,IF(CE19<$EW$30,$EV$30,IF(CE19<$EW$31,$EV$31,IF(CE19<$EW$32,$EV$32,$EV$33))))))) -> ³∕₁₃ | ED19: =IF(CE19<$EW$34,$EV$34,IF(CE19<$EW$35,$EV$35,IF(CE19<$EW$36,$EV$36,IF(CE19<$EW$37,$EV$37,IF(CE19<$EW$38,$EV$38,IF(CE19<$EW$39,$EV$39,IF(CE19<$EW$40,$EV$40,$EV$41))))))) -> ⁴∕₁₅ | EE19: =IF(CE19<$EW$42,$EV$42,IF(CE19<$EW$43,$EV$43,IF(CE19<$EW$44,$EV$44,IF(CE19<$EW$45,$EV$45,IF(CE19<$EW$46,$EV$46,IF(CE19<$EW$47,$EV$47,IF(CE19<$EW$48,$EV$48,$EV$49))))))) -> ⁶∕₁₉ | EF19: =IF(CE19<$EW$50,$EV$50,IF(CE19<$EW$51,$EV$51,IF(CE19<$EW$52,$EV$52,IF(CE19<$EW$53,$EV$53,IF(CE19<$EW$54,$EV$54,IF(CE19<$EW$55,$EV$55,IF(CE19<$EW$56,$EV$56,$EV$57))))))) -> ⁵∕₁₃ | EG19: =IF(CE19<$EW$58,$EV$58,IF(CE19<$EW$59,$EV$59,IF(CE19<$EW$60,$EV$60,IF(CE19<$EW$61,$EV$61,IF(CE19<$EW$62,$EV$62,IF(CE19<$EW$63,$EV$63,IF(CE19<$EW$64,$EV$64,$EV$65))))))) -> ⁴∕₉ | EH19: =IF(CE19<$EW$66,$EV$66,IF(CE19<$EW$67,$EV$67,IF(CE19<$EW$68,$EV$68,IF(CE19<$EW$69,$EV$69,IF(CE19<$EW$70,$EV$70,IF(CE19<$EW$71,$EV$71,IF(CE19<$EW$72,$EV$72,$EV$73))))))) -> ¹º∕₁₉ | EI19: =IF(CE19<$EW$74,$EV$74,IF(CE19<$EW$75,$EV$75,IF(CE19<$EW$76,$EV$76,IF(CE19<$EW$77,$EV$77,IF(CE19<$EW$78,$EV$78,IF(CE19<$EW$79,$EV$79,IF(CE19<$EW$80,$EV$80,$EV$81))))))) -> ⁴∕₇ | EJ19: =IF(CE19<$EW$82,$EV$82,IF(CE19<$EW$83,$EV$83,IF(CE19<$EW$84,$EV$84,IF(CE19<$EW$85,$EV$85,IF(CE19<$EW$86,$EV$86,IF(CE19<$EW$87,$EV$87,IF(CE19<$EW$88,$EV$88,$EV$89))))))) -> ¹²∕₁₉ | EK19: =IF(CE19<$EW$90,$EV$90,IF(CE19<$EW$91,$EV$91,IF(CE19<$EW$92,$EV$92,IF(CE19<$EW$93,$EV$93,IF(CE19<$EW$94,$EV$94,IF(CE19<$EW$95,$EV$95,IF(CE19<$EW$96,$EV$96,$EV$97))))))) -> ⁹∕₁₃ | EL19: =IF(CE19<$EW$98,$EV$98,IF(CE19<$EW$99,$EV$99,IF(CE19<$EW$100,$EV$100,IF(CE19<$EW$101,$EV$101,IF(CE19<$EW$102,$EV$102,IF(CE19<$EW$103,$EV$103,IF(CE19<$EW$104,$EV$104,$EV$105))))))) -> ¾ | EM19: =IF(CE19<$EW$106,$EV$106,IF(CE19<$EW$107,$EV$107,IF(CE19<$EW$108,$EV$108,IF(CE19<$EW$109,$EV$109,IF(CE19<$EW$110,$EV$110,IF(CE19<$EW$111,$EV$111,IF(CE19<$EW$112,$EV$112,$EV$113))))))) -> ⁹∕₁₁ | EN19: =IF(CE19<$EW$114,$EV$114,IF(CE19<$EW$115,$EV$115,IF(CE19<$EW$116,$EV$116,IF(CE19<$EW$117,$EV$117,IF(CE19<$EW$118,$EV$118,IF(CE19<$EW$119,$EV$119,IF(CE19<$EW$120,$EV$120,$EV$121))))))) -> ⅞ | EO19: =IF(CE19<$EW$122,$EV$122,IF(CE19<$EW$123,$EV$123,IF(CE19<$EW$124,$EV$124,IF(CE19<$EW$125,$EV$125,IF(CE19<$EW$126,$EV$126,IF(CE19<$EW$127,$EV$127,$EV$128)))))) -> ¹³∕₁₄ | EP19: 18 | EQ19: 3 | ER19: 20 | ES19: 0.15 | ET19: ³ | EU19: ₂₀ | EV19: =CONCATENATE(ET19,$EX$22,EU19) -> ³∕₂₀ | EW19: 0.152 | EX19: 18 | EY19: ¹⁸
C20: 34 | D20: =IF(AJ15=1,AQ225,IF(AC15=1,AO225,(W18-W14)/(U14/V14-U18/V18))) -> 3 | E20: =IF(AJ15=1,U18*D20/V18+W18,U14*D20/V14+W14) -> 8 | F20: =IF(AND((U14/V14)=(U18/V18),W14=W18),11,IF((U14/V14)=(U18/V18),10,1)) -> 1 | J20: 0 | K20: 5 | S20: =V2 ->  | T20: =IF(U5=1,S4/2+S5/2+0.5,0.5) -> 1.5 | X20: -8.4 | Y20: -72.6 | AE20: -8.4 | AF20: -26.2 | AL20: -8.4 | AM20: -8.4 | AV20: -8.4 | AW20: -15.8 | BD20: 16 | BE20: ¼x³ | BF20: + ¼x² | BG20: ¼x² | BH20: x | BI20: =CONCATENATE("¾",$S$2," ") -> ¾𝒙 | BJ20: + 1½ | BK20: 1½ | BL20: =1/4 -> 0.25 | BM20: =1/4 -> 0.25 | BN20: 0.75 | BO20: 1.5 | BP20: 3 | BQ20: 4 | BR20: 3 | BS20: 4 | BT20: =BR20/BS20 -> 0.75 | BU20: ¾ | CA20: 7.692307692 | CB20: 7.692307692 | CD20: 7 | CE20: 0.692 | CF20: =IF(CE20=CQ20,CQ21,IF(CE20=CR20,CR21,IF(CE20=CS20,CS21,IF(CE20=CT20,CT21,IF(CE20=CU20,CU21,IF(CE20=CV20,CV21,IF(CE20=CW20,CW21,CE20))))))) -> ⁹∕₁₃ | CG20: =IF(CF20=CX20,CX21,IF(CF20=CY20,CY21,CF20)) -> ⁹∕₁₃ | CH20: 7⁹∕₁₃ | CI20: =IF(CE20=CQ20,"*",IF(CE20=CR20,"*",IF(CE20=CS20,"*",IF(CE20=CT20,"*",IF(CE20=CU20,"*",IF(CE20=CV20,"*",IF(CE20=CW20,"*",CO20))))))) -> * | CJ20: =IF(CF20=CX20,"*",IF(CF20=CY20,"*",CI20)) -> * | CK20: * | CL20: 384.6153846 | CM20: 385 | CN20: -0.384615384615358 | CO20: · | CP20: =50*CA21 -> -994.4444444 | CQ20: =IF(DI20=1,DJ20,DQ20) -> 0.5 | CR20: =IF(DI20=1,DK20,DR20) -> 0.563 | CS20: =IF(DI20=1,DL20,DS20) -> 0.625 | CT20: =IF(DI20=1,DM20,DT20) -> 0.688 | CU20: =IF(DI20=1,DN20,DU20) -> 0.692 | CV20: =IF(DI20=1,DO20,DV20) -> 0.75 | CW20: =IF(DI20=1,DP20,DW20) -> 0.818 | CX20: =IF(DI20=1,DQ20,DX20) -> 0.875 | CY20: =IF(DI20=1,DR20,DY20) -> 0.929 | CZ20: =IF(DI21=1,DZ20,EG20) -> 0.5 | DA20: =IF(DI21=1,EA20,EH20) -> 0.563 | DB20: =IF(DI21=1,EB20,EI20) -> 0.625 | DC20: =IF(DI21=1,EC20,EJ20) -> 0.688 | DD20: =IF(DI21=1,ED20,EK20) -> 0.737 | DE20: =IF(DI21=1,EE20,EL20) -> 0.813 | DF20: =IF(DI21=1,EF20,EM20) -> 0.867 | DG20: =IF(DI21=1,EG20,EN20) -> 0.889 | DH20: =IF(DI21=1,EH20,EO20) -> 0.929 | DI20: 2 | DJ20: =IF(CE20<$EW$2,$ES$2,IF(CE20<$EW$3,$ES$3,IF(CE20<$EW$4,$ES$4,IF(CE20<$EW$5,$ES$5,IF(CE20<$EW$6,$ES$6,IF(CE20<$EW$7,$ES$7,IF(CE20<$EW$8,$ES$8,$ES$9))))))) -> 0.077 | DK20: =IF(CE20<$EW$10,$ES$10,IF(CE20<$EW$11,$ES$11,IF(CE20<$EW$12,$ES$12,IF(CE20<$EW$13,$ES$13,IF(CE20<$EW$14,$ES$14,IF(CE20<$EW$15,$ES$15,IF(CE20<$EW$16,$ES$16,$ES$17))))))) -> 0.133 | DL20: =IF(CE20<$EW$18,$ES$18,IF(CE20<$EW$19,$ES$19,IF(CE20<$EW$20,$ES$20,IF(CE20<$EW$21,$ES$21,IF(CE20<$EW$22,$ES$22,IF(CE20<$EW$23,$ES$23,IF(CE20<$EW$24,$ES$24,$ES$25))))))) -> 0.188 | DM20: =IF(CE20<$EW$26,$ES$26,IF(CE20<$EW$27,$ES$27,IF(CE20<$EW$28,$ES$28,IF(CE20<$EW$29,$ES$29,IF(CE20<$EW$30,$ES$30,IF(CE20<$EW$31,$ES$31,IF(CE20<$EW$32,$ES$32,$ES$33))))))) -> 0.263 | DN20: =IF(CE20<$EW$34,$ES$34,IF(CE20<$EW$35,$ES$35,IF(CE20<$EW$36,$ES$36,IF(CE20<$EW$37,$ES$37,IF(CE20<$EW$38,$ES$38,IF(CE20<$EW$39,$ES$39,IF(CE20<$EW$40,$ES$40,$ES$41))))))) -> 0.313 | DO20: =IF(CE20<$EW$42,$ES$42,IF(CE20<$EW$43,$ES$43,IF(CE20<$EW$44,$ES$44,IF(CE20<$EW$45,$ES$45,IF(CE20<$EW$46,$ES$46,IF(CE20<$EW$47,$ES$47,IF(CE20<$EW$48,$ES$48,$ES$49))))))) -> 0.375 | DP20: =IF(CE20<$EW$50,$ES$50,IF(CE20<$EW$51,$ES$51,IF(CE20<$EW$52,$ES$52,IF(CE20<$EW$53,$ES$53,IF(CE20<$EW$54,$ES$54,IF(CE20<$EW$55,$ES$55,IF(CE20<$EW$56,$ES$56,$ES$57))))))) -> 0.438 | DQ20: =IF(CE20<$EW$58,$ES$58,IF(CE20<$EW$59,$ES$59,IF(CE20<$EW$60,$ES$60,IF(CE20<$EW$61,$ES$61,IF(CE20<$EW$62,$ES$62,IF(CE20<$EW$63,$ES$63,IF(CE20<$EW$64,$ES$64,$ES$65))))))) -> 0.5 | DR20: =IF(CE20<$EW$66,$ES$66,IF(CE20<$EW$67,$ES$67,IF(CE20<$EW$68,$ES$68,IF(CE20<$EW$69,$ES$69,IF(CE20<$EW$70,$ES$70,IF(CE20<$EW$71,$ES$71,IF(CE20<$EW$72,$ES$72,$ES$73))))))) -> 0.563 | DS20: =IF(CE20<$EW$74,$ES$74,IF(CE20<$EW$75,$ES$75,IF(CE20<$EW$76,$ES$76,IF(CE20<$EW$77,$ES$77,IF(CE20<$EW$78,$ES$78,IF(CE20<$EW$79,$ES$79,IF(CE20<$EW$80,$ES$80,$ES$81))))))) -> 0.625 | DT20: =IF(CE20<$EW$82,$ES$82,IF(CE20<$EW$83,$ES$83,IF(CE20<$EW$84,$ES$84,IF(CE20<$EW$85,$ES$85,IF(CE20<$EW$86,$ES$86,IF(CE20<$EW$87,$ES$87,IF(CE20<$EW$88,$ES$88,$ES$89))))))) -> 0.688 | DU20: =IF(CE20<$EW$90,$ES$90,IF(CE20<$EW$91,$ES$91,IF(CE20<$EW$92,$ES$92,IF(CE20<$EW$93,$ES$93,IF(CE20<$EW$94,$ES$94,IF(CE20<$EW$95,$ES$95,IF(CE20<$EW$96,$ES$96,$ES$97))))))) -> 0.692 | DV20: =IF(CE20<$EW$98,$ES$98,IF(CE20<$EW$99,$ES$99,IF(CE20<$EW$100,$ES$100,IF(CE20<$EW$101,$ES$101,IF(CE20<$EW$102,$ES$102,IF(CE20<$EW$103,$ES$103,IF(CE20<$EW$104,$ES$104,$ES$105))))))) -> 0.75 | DW20: =IF(CE20<$EW$106,$ES$106,IF(CE20<$EW$107,$ES$107,IF(CE20<$EW$108,$ES$108,IF(CE20<$EW$109,$ES$109,IF(CE20<$EW$110,$ES$110,IF(CE20<$EW$111,$ES$111,IF(CE20<$EW$112,$ES$112,$ES$113))))))) -> 0.818 | DX20: =IF(CE20<$EW$114,$ES$114,IF(CE20<$EW$115,$ES$115,IF(CE20<$EW$116,$ES$116,IF(CE20<$EW$117,$ES$117,IF(CE20<$EW$118,$ES$118,IF(CE20<$EW$119,$ES$119,IF(CE20<$EW$120,$ES$120,$ES$121))))))) -> 0.875 | DY20: =IF(CE20<$EW$122,$ES$122,IF(CE20<$EW$123,$ES$123,IF(CE20<$EW$124,$ES$124,IF(CE20<$EW$125,$ES$125,IF(CE20<$EW$126,$ES$126,IF(CE20<$EW$127,$ES$127,$ES$128)))))) -> 0.929 | DZ20: =IF(CE21<$EW$2,$ES$2,IF(CE21<$EW$3,$ES$3,IF(CE21<$EW$4,$ES$4,IF(CE21<$EW$5,$ES$5,IF(CE21<$EW$6,$ES$6,IF(CE21<$EW$7,$ES$7,IF(CE21<$EW$8,$ES$8,$ES$9))))))) -> 0.077 | EA20: =IF(CE21<$EW$10,$ES$10,IF(CE21<$EW$11,$ES$11,IF(CE21<$EW$12,$ES$12,IF(CE21<$EW$13,$ES$13,IF(CE21<$EW$14,$ES$14,IF(CE21<$EW$15,$ES$15,IF(CE21<$EW$16,$ES$16,$ES$17))))))) -> 0.133 | EB20: =IF(CE21<$EW$18,$ES$18,IF(CE21<$EW$19,$ES$19,IF(CE21<$EW$20,$ES$20,IF(CE21<$EW$21,$ES$21,IF(CE21<$EW$22,$ES$22,IF(CE21<$EW$23,$ES$23,IF(CE21<$EW$24,$ES$24,$ES$25))))))) -> 0.188 | EC20: =IF(CE21<$EW$26,$ES$26,IF(CE21<$EW$27,$ES$27,IF(CE21<$EW$28,$ES$28,IF(CE21<$EW$29,$ES$29,IF(CE21<$EW$30,$ES$30,IF(CE21<$EW$31,$ES$31,IF(CE21<$EW$32,$ES$32,$ES$33))))))) -> 0.263 | ED20: =IF(CE21<$EW$34,$ES$34,IF(CE21<$EW$35,$ES$35,IF(CE21<$EW$36,$ES$36,IF(CE21<$EW$37,$ES$37,IF(CE21<$EW$38,$ES$38,IF(CE21<$EW$39,$ES$39,IF(CE21<$EW$40,$ES$40,$ES$41))))))) -> 0.313 | EE20: =IF(CE21<$EW$42,$ES$42,IF(CE21<$EW$43,$ES$43,IF(CE21<$EW$44,$ES$44,IF(CE21<$EW$45,$ES$45,IF(CE21<$EW$46,$ES$46,IF(CE21<$EW$47,$ES$47,IF(CE21<$EW$48,$ES$48,$ES$49))))))) -> 0.375 | EF20: =IF(CE21<$EW$50,$ES$50,IF(CE21<$EW$51,$ES$51,IF(CE21<$EW$52,$ES$52,IF(CE21<$EW$53,$ES$53,IF(CE21<$EW$54,$ES$54,IF(CE21<$EW$55,$ES$55,IF(CE21<$EW$56,$ES$56,$ES$57))))))) -> 0.438 | EG20: =IF(CE21<$EW$58,$ES$58,IF(CE21<$EW$59,$ES$59,IF(CE21<$EW$60,$ES$60,IF(CE21<$EW$61,$ES$61,IF(CE21<$EW$62,$ES$62,IF(CE21<$EW$63,$ES$63,IF(CE21<$EW$64,$ES$64,$ES$65))))))) -> 0.5 | EH20: =IF(CE21<$EW$66,$ES$66,IF(CE21<$EW$67,$ES$67,IF(CE21<$EW$68,$ES$68,IF(CE21<$EW$69,$ES$69,IF(CE21<$EW$70,$ES$70,IF(CE21<$EW$71,$ES$71,IF(CE21<$EW$72,$ES$72,$ES$73))))))) -> 0.563 | EI20: =IF(CE21<$EW$74,$ES$74,IF(CE21<$EW$75,$ES$75,IF(CE21<$EW$76,$ES$76,IF(CE21<$EW$77,$ES$77,IF(CE21<$EW$78,$ES$78,IF(CE21<$EW$79,$ES$79,IF(CE21<$EW$80,$ES$80,$ES$81))))))) -> 0.625 | EJ20: =IF(CE21<$EW$82,$ES$82,IF(CE21<$EW$83,$ES$83,IF(CE21<$EW$84,$ES$84,IF(CE21<$EW$85,$ES$85,IF(CE21<$EW$86,$ES$86,IF(CE21<$EW$87,$ES$87,IF(CE21<$EW$88,$ES$88,$ES$89))))))) -> 0.688 | EK20: =IF(CE21<$EW$90,$ES$90,IF(CE21<$EW$91,$ES$91,IF(CE21<$EW$92,$ES$92,IF(CE21<$EW$93,$ES$93,IF(CE21<$EW$94,$ES$94,IF(CE21<$EW$95,$ES$95,IF(CE21<$EW$96,$ES$96,$ES$97))))))) -> 0.737 | EL20: =IF(CE21<$EW$98,$ES$98,IF(CE21<$EW$99,$ES$99,IF(CE21<$EW$100,$ES$100,IF(CE21<$EW$101,$ES$101,IF(CE21<$EW$102,$ES$102,IF(CE21<$EW$103,$ES$103,IF(CE21<$EW$104,$ES$104,$ES$105))))))) -> 0.813 | EM20: =IF(CE21<$EW$106,$ES$106,IF(CE21<$EW$107,$ES$107,IF(CE21<$EW$108,$ES$108,IF(CE21<$EW$109,$ES$109,IF(CE21<$EW$110,$ES$110,IF(CE21<$EW$111,$ES$111,IF(CE21<$EW$112,$ES$112,$ES$113))))))) -> 0.867 | EN20: =IF(CE21<$EW$114,$ES$114,IF(CE21<$EW$115,$ES$115,IF(CE21<$EW$116,$ES$116,IF(CE21<$EW$117,$ES$117,IF(CE21<$EW$118,$ES$118,IF(CE21<$EW$119,$ES$119,IF(CE21<$EW$120,$ES$120,$ES$121))))))) -> 0.889 | EO20: =IF(CE21<$EW$122,$ES$122,IF(CE21<$EW$123,$ES$123,IF(CE21<$EW$124,$ES$124,IF(CE21<$EW$125,$ES$125,IF(CE21<$EW$126,$ES$126,IF(CE21<$EW$127,$ES$127,$ES$128)))))) -> 0.929 | EP20: 19 | EQ20: 2 | ER20: 13 | ES20: 0.154 | ET20: ² | EU20: ₁₃ | EV20: =CONCATENATE(ET20,$EX$22,EU20) -> ²∕₁₃ | EW20: 0.156 | EX20: 19 | EY20: ¹⁹
C21: 41 | D21: =D14 -> 3 | E21: =E14 -> 7 | F21: =F14 -> 1 | J21: 0 | K21: -5 | S21: =IF(T20=5.5,4.5,T20) -> 1.5 | T21: =IF(U5=1,T4/2+T5/2,T4/2+T3/2) -> 101 | X21: -8.3 | Y21: -71.7 | AE21: -8.3 | AF21: -25.9 | AL21: -8.3 | AM21: -8.3 | AV21: -8.3 | AW21: -15.6 | BD21: 17 | BE21: ⅛x³ | BF21: + ⅛x² | BG21: ⅛x² | BH21: x | BI21: =CONCATENATE("⅔",$S$2," ") -> ⅔𝒙 | BJ21: + 1 | BK21: 1 | BL21: =1/8 -> 0.125 | BM21: =1/8 -> 0.125 | BN21: =2/3 -> 0.6666666667 | BO21: 1 | BP21: 2 | BQ21: 3 | BR21: 2 | BS21: 3 | BT21: 0.6666666667 | BU21: ⅔ | CA21: -19.88888889 | CB21: 19.88888889 | CC21: − | CD21: 19 | CE21: 0.889 | CF21: =IF(CE21=CZ20,CZ21,IF(CE21=DA20,DA21,IF(CE21=DB20,DB21,IF(CE21=DC20,DC21,IF(CE21=DD20,DD21,IF(CE21=DE20,DE21,IF(CE21=DF20,DF21,CE21))))))) -> 0.889 | CG21: =IF(CF21=DG20,DG21,IF(CF21=DH20,DH21,CF21)) -> ⁸∕₉ | CH21: −19⁸∕₉ | CI21: =IF(CE21=CZ20,"*",IF(CE21=DA20,"*",IF(CE21=DB20,"*",IF(CE21=DC20,"*",IF(CE21=DD20,"*",IF(CE21=DE20,"*",IF(CE21=DF20,"*",CO21))))))) -> · | CJ21: =IF(CF21=DG20,"*",IF(CF21=DH20,"*",CI21)) -> * | CK21: * | CL21: -994.4444444 | CM21: -994 | CN21: -0.444444444444457 | CO21: · | CP21: =ROUND(50*CA21,0) -> -994 | CQ21: =IF(DI20=1,DJ21,DQ21) -> ½ | CR21: =IF(DI20=1,DK21,DR21) -> ⁹∕₁₆ | CS21: =IF(DI20=1,DL21,DS21) -> ⅝ | CT21: =IF(DI20=1,DM21,DT21) -> ¹¹∕₁₆ | CU21: =IF(DI20=1,DN21,DU21) -> ⁹∕₁₃ | CV21: =IF(DI20=1,DO21,DV21) -> ¾ | CW21: =IF(DI20=1,DP21,DW21) -> ⁹∕₁₁ | CX21: =IF(DI20=1,DQ21,DX21) -> ⅞ | CY21: =IF(DI20=1,DR21,DY21) -> ¹³∕₁₄ | CZ21: =IF(DI21=1,DZ21,EG21) -> ½ | DA21: =IF(DI21=1,EA21,EH21) -> ⁹∕₁₆ | DB21: =IF(DI21=1,EB21,EI21) -> ⅝ | DC21: =IF(DI21=1,EC21,EJ21) -> ¹¹∕₁₆ | DD21: =IF(DI21=1,ED21,EK21) -> ¹⁴∕₁₉ | DE21: =IF(DI21=1,EE21,EL21) -> ¹³∕₁₆ | DF21: =IF(DI21=1,EF21,EM21) -> ¹³∕₁₅ | DG21: =IF(DI21=1,EG21,EN21) -> ⁸∕₉ | DH21: =IF(DI21=1,EH21,EO21) -> ¹³∕₁₄ | DI21: 2 | DJ21: =IF(CE20<$EW$2,$EV$2,IF(CE20<$EW$3,$EV$3,IF(CE20<$EW$4,$EV$4,IF(CE20<$EW$5,$EV$5,IF(CE20<$EW$6,$EV$6,IF(CE20<$EW$7,$EV$7,IF(CE20<$EW$8,$EV$8,$EV$9))))))) -> ¹∕₁₃ | DK21: =IF(CE20<$EW$10,$EV$10,IF(CE20<$EW$11,$EV$11,IF(CE20<$EW$12,$EV$12,IF(CE20<$EW$13,$EV$13,IF(CE20<$EW$14,$EV$14,IF(CE20<$EW$15,$EV$15,IF(CE20<$EW$16,$EV$16,$EV$17))))))) -> ²∕₁₅ | DL21: =IF(CE20<$EW$18,$EV$18,IF(CE20<$EW$19,$EV$19,IF(CE20<$EW$20,$EV$20,IF(CE20<$EW$21,$EV$21,IF(CE20<$EW$22,$EV$22,IF(CE20<$EW$23,$EV$23,IF(CE20<$EW$24,$EV$24,$EV$25))))))) -> ³∕₁₆ | DM21: =IF(CE20<$EW$26,$EV$26,IF(CE20<$EW$27,$EV$27,IF(CE20<$EW$28,$EV$28,IF(CE20<$EW$29,$EV$29,IF(CE20<$EW$30,$EV$30,IF(CE20<$EW$31,$EV$31,IF(CE20<$EW$32,$EV$32,$EV$33))))))) -> ⁵∕₁₉ | DN21: =IF(CE20<$EW$34,$EV$34,IF(CE20<$EW$35,$EV$35,IF(CE20<$EW$36,$EV$36,IF(CE20<$EW$37,$EV$37,IF(CE20<$EW$38,$EV$38,IF(CE20<$EW$39,$EV$39,IF(CE20<$EW$40,$EV$40,$EV$41))))))) -> ⁵∕₁₆ | DO21: =IF(CE20<$EW$42,$EV$42,IF(CE20<$EW$43,$EV$43,IF(CE20<$EW$44,$EV$44,IF(CE20<$EW$45,$EV$45,IF(CE20<$EW$46,$EV$46,IF(CE20<$EW$47,$EV$47,IF(CE20<$EW$48,$EV$48,$EV$49))))))) -> ⅜ | DP21: =IF(CE20<$EW$50,$EV$50,IF(CE20<$EW$51,$EV$51,IF(CE20<$EW$52,$EV$52,IF(CE20<$EW$53,$EV$53,IF(CE20<$EW$54,$EV$54,IF(CE20<$EW$55,$EV$55,IF(CE20<$EW$56,$EV$56,$EV$57))))))) -> ⁷∕₁₆ | DQ21: =IF(CE20<$EW$58,$EV$58,IF(CE20<$EW$59,$EV$59,IF(CE20<$EW$60,$EV$60,IF(CE20<$EW$61,$EV$61,IF(CE20<$EW$62,$EV$62,IF(CE20<$EW$63,$EV$63,IF(CE20<$EW$64,$EV$64,$EV$65))))))) -> ½ | DR21: =IF(CE20<$EW$66,$EV$66,IF(CE20<$EW$67,$EV$67,IF(CE20<$EW$68,$EV$68,IF(CE20<$EW$69,$EV$69,IF(CE20<$EW$70,$EV$70,IF(CE20<$EW$71,$EV$71,IF(CE20<$EW$72,$EV$72,$EV$73))))))) -> ⁹∕₁₆ | DS21: =IF(CE20<$EW$74,$EV$74,IF(CE20<$EW$75,$EV$75,IF(CE20<$EW$76,$EV$76,IF(CE20<$EW$77,$EV$77,IF(CE20<$EW$78,$EV$78,IF(CE20<$EW$79,$EV$79,IF(CE20<$EW$80,$EV$80,$EV$81))))))) -> ⅝ | DT21: =IF(CE20<$EW$82,$EV$82,IF(CE20<$EW$83,$EV$83,IF(CE20<$EW$84,$EV$84,IF(CE20<$EW$85,$EV$85,IF(CE20<$EW$86,$EV$86,IF(CE20<$EW$87,$EV$87,IF(CE20<$EW$88,$EV$88,$EV$89))))))) -> ¹¹∕₁₆ | DU21: =IF(CE20<$EW$90,$EV$90,IF(CE20<$EW$91,$EV$91,IF(CE20<$EW$92,$EV$92,IF(CE20<$EW$93,$EV$93,IF(CE20<$EW$94,$EV$94,IF(CE20<$EW$95,$EV$95,IF(CE20<$EW$96,$EV$96,$EV$97))))))) -> ⁹∕₁₃ | DV21: =IF(CE20<$EW$98,$EV$98,IF(CE20<$EW$99,$EV$99,IF(CE20<$EW$100,$EV$100,IF(CE20<$EW$101,$EV$101,IF(CE20<$EW$102,$EV$102,IF(CE20<$EW$103,$EV$103,IF(CE20<$EW$104,$EV$104,$EV$105))))))) -> ¾ | DW21: =IF(CE20<$EW$106,$EV$106,IF(CE20<$EW$107,$EV$107,IF(CE20<$EW$108,$EV$108,IF(CE20<$EW$109,$EV$109,IF(CE20<$EW$110,$EV$110,IF(CE20<$EW$111,$EV$111,IF(CE20<$EW$112,$EV$112,$EV$113))))))) -> ⁹∕₁₁ | DX21: =IF(CE20<$EW$114,$EV$114,IF(CE20<$EW$115,$EV$115,IF(CE20<$EW$116,$EV$116,IF(CE20<$EW$117,$EV$117,IF(CE20<$EW$118,$EV$118,IF(CE20<$EW$119,$EV$119,IF(CE20<$EW$120,$EV$120,$EV$121))))))) -> ⅞ | DY21: =IF(CE20<$EW$122,$EV$122,IF(CE20<$EW$123,$EV$123,IF(CE20<$EW$124,$EV$124,IF(CE20<$EW$125,$EV$125,IF(CE20<$EW$126,$EV$126,IF(CE20<$EW$127,$EV$127,$EV$128)))))) -> ¹³∕₁₄ | DZ21: =IF(CE21<$EW$2,$EV$2,IF(CE21<$EW$3,$EV$3,IF(CE21<$EW$4,$EV$4,IF(CE21<$EW$5,$EV$5,IF(CE21<$EW$6,$EV$6,IF(CE21<$EW$7,$EV$7,IF(CE21<$EW$8,$EV$8,$EV$9))))))) -> ¹∕₁₃ | EA21: =IF(CE21<$EW$10,$EV$10,IF(CE21<$EW$11,$EV$11,IF(CE21<$EW$12,$EV$12,IF(CE21<$EW$13,$EV$13,IF(CE21<$EW$14,$EV$14,IF(CE21<$EW$15,$EV$15,IF(CE21<$EW$16,$EV$16,$EV$17))))))) -> ²∕₁₅ | EB21: =IF(CE21<$EW$18,$EV$18,IF(CE21<$EW$19,$EV$19,IF(CE21<$EW$20,$EV$20,IF(CE21<$EW$21,$EV$21,IF(CE21<$EW$22,$EV$22,IF(CE21<$EW$23,$EV$23,IF(CE21<$EW$24,$EV$24,$EV$25))))))) -> ³∕₁₆ | EC21: =IF(CE21<$EW$26,$EV$26,IF(CE21<$EW$27,$EV$27,IF(CE21<$EW$28,$EV$28,IF(CE21<$EW$29,$EV$29,IF(CE21<$EW$30,$EV$30,IF(CE21<$EW$31,$EV$31,IF(CE21<$EW$32,$EV$32,$EV$33))))))) -> ⁵∕₁₉ | ED21: =IF(CE21<$EW$34,$EV$34,IF(CE21<$EW$35,$EV$35,IF(CE21<$EW$36,$EV$36,IF(CE21<$EW$37,$EV$37,IF(CE21<$EW$38,$EV$38,IF(CE21<$EW$39,$EV$39,IF(CE21<$EW$40,$EV$40,$EV$41))))))) -> ⁵∕₁₆ | EE21: =IF(CE21<$EW$42,$EV$42,IF(CE21<$EW$43,$EV$43,IF(CE21<$EW$44,$EV$44,IF(CE21<$EW$45,$EV$45,IF(CE21<$EW$46,$EV$46,IF(CE21<$EW$47,$EV$47,IF(CE21<$EW$48,$EV$48,$EV$49))))))) -> ⅜ | EF21: =IF(CE21<$EW$50,$EV$50,IF(CE21<$EW$51,$EV$51,IF(CE21<$EW$52,$EV$52,IF(CE21<$EW$53,$EV$53,IF(CE21<$EW$54,$EV$54,IF(CE21<$EW$55,$EV$55,IF(CE21<$EW$56,$EV$56,$EV$57))))))) -> ⁷∕₁₆ | EG21: =IF(CE21<$EW$58,$EV$58,IF(CE21<$EW$59,$EV$59,IF(CE21<$EW$60,$EV$60,IF(CE21<$EW$61,$EV$61,IF(CE21<$EW$62,$EV$62,IF(CE21<$EW$63,$EV$63,IF(CE21<$EW$64,$EV$64,$EV$65))))))) -> ½ | EH21: =IF(CE21<$EW$66,$EV$66,IF(CE21<$EW$67,$EV$67,IF(CE21<$EW$68,$EV$68,IF(CE21<$EW$69,$EV$69,IF(CE21<$EW$70,$EV$70,IF(CE21<$EW$71,$EV$71,IF(CE21<$EW$72,$EV$72,$EV$73))))))) -> ⁹∕₁₆ | EI21: =IF(CE21<$EW$74,$EV$74,IF(CE21<$EW$75,$EV$75,IF(CE21<$EW$76,$EV$76,IF(CE21<$EW$77,$EV$77,IF(CE21<$EW$78,$EV$78,IF(CE21<$EW$79,$EV$79,IF(CE21<$EW$80,$EV$80,$EV$81))))))) -> ⅝ | EJ21: =IF(CE21<$EW$82,$EV$82,IF(CE21<$EW$83,$EV$83,IF(CE21<$EW$84,$EV$84,IF(CE21<$EW$85,$EV$85,IF(CE21<$EW$86,$EV$86,IF(CE21<$EW$87,$EV$87,IF(CE21<$EW$88,$EV$88,$EV$89))))))) -> ¹¹∕₁₆ | EK21: =IF(CE21<$EW$90,$EV$90,IF(CE21<$EW$91,$EV$91,IF(CE21<$EW$92,$EV$92,IF(CE21<$EW$93,$EV$93,IF(CE21<$EW$94,$EV$94,IF(CE21<$EW$95,$EV$95,IF(CE21<$EW$96,$EV$96,$EV$97))))))) -> ¹⁴∕₁₉ | EL21: =IF(CE21<$EW$98,$EV$98,IF(CE21<$EW$99,$EV$99,IF(CE21<$EW$100,$EV$100,IF(CE21<$EW$101,$EV$101,IF(CE21<$EW$102,$EV$102,IF(CE21<$EW$103,$EV$103,IF(CE21<$EW$104,$EV$104,$EV$105))))))) -> ¹³∕₁₆ | EM21: =IF(CE21<$EW$106,$EV$106,IF(CE21<$EW$107,$EV$107,IF(CE21<$EW$108,$EV$108,IF(CE21<$EW$109,$EV$109,IF(CE21<$EW$110,$EV$110,IF(CE21<$EW$111,$EV$111,IF(CE21<$EW$112,$EV$112,$EV$113))))))) -> ¹³∕₁₅ | EN21: =IF(CE21<$EW$114,$EV$114,IF(CE21<$EW$115,$EV$115,IF(CE21<$EW$116,$EV$116,IF(CE21<$EW$117,$EV$117,IF(CE21<$EW$118,$EV$118,IF(CE21<$EW$119,$EV$119,IF(CE21<$EW$120,$EV$120,$EV$121))))))) -> ⁸∕₉ | EO21: =IF(CE21<$EW$122,$EV$122,IF(CE21<$EW$123,$EV$123,IF(CE21<$EW$124,$EV$124,IF(CE21<$EW$125,$EV$125,IF(CE21<$EW$126,$EV$126,IF(CE21<$EW$127,$EV$127,$EV$128)))))) -> ¹³∕₁₄ | EP21: 20 | EQ21: 3 | ER21: 19 | ES21: 0.158 | ET21: ³ | EU21: ₁₉ | EV21: =CONCATENATE(ET21,$EX$22,EU21) -> ³∕₁₉ | EW21: 0.163 | EX21: 20 | EY21: ²º
C22: 42 | D22: =D17 -> 3 | E22: =E17 -> 3 | F22: =F17 -> 1 | J22: 1 | K22: -5 | S22: =W2 ->  | T22: =IF(U5=1,IF(BA15>24,T3+0.35,T3-0.35),IF(BA15>24,T4+0.35,T4-0.35)) -> 99.65 | X22: -8.2 | Y22: -70.8 | AE22: -8.2 | AF22: -25.6 | AL22: -8.2 | AM22: -8.2 | AV22: -8.2 | AW22: -15.4 | BD22: 18 | BE22: 0 | BF22: 0 | BG22: 0 | BH22: x | BI22: =CONCATENATE("⅗",$S$2," ") -> ⅗𝒙 | BJ22: + ½ | BK22: ½ | BL22: 0 | BM22: 0 | BN22: 0.6 | BO22: 0.5 | BP22: 3 | BQ22: 5 | BR22: 3 | BS22: 5 | BT22: 0.6 | BU22: ⅗ | CA22: -15.22222222 | CB22: 15.22222222 | CC22: − | CD22: 15 | CE22: 0.222 | CF22: =IF(CE22=CQ22,CQ23,IF(CE22=CR22,CR23,IF(CE22=CS22,CS23,IF(CE22=CT22,CT23,IF(CE22=CU22,CU23,IF(CE22=CV22,CV23,IF(CE22=CW22,CW23,CE22))))))) -> ²∕₉ | CG22: =IF(CF22=CX22,CX23,IF(CF22=CY22,CY23,CF22)) -> ²∕₉ | CH22: −15²∕₉ | CI22: =IF(CE22=CQ22,"*",IF(CE22=CR22,"*",IF(CE22=CS22,"*",IF(CE22=CT22,"*",IF(CE22=CU22,"*",IF(CE22=CV22,"*",IF(CE22=CW22,"*",CO22))))))) -> * | CJ22: =IF(CF22=CX22,"*",IF(CF22=CY22,"*",CI22)) -> * | CK22: * | CL22: -761.1111111 | CM22: -761 | CN22: -0.111111111111086 | CO22: · | CP22: =50*CA23 -> -67.85714286 | CQ22: =IF(DI22=1,DJ22,DQ22) -> 0.077 | CR22: =IF(DI22=1,DK22,DR22) -> 0.133 | CS22: =IF(DI22=1,DL22,DS22) -> 0.188 | CT22: =IF(DI22=1,DM22,DT22) -> 0.222 | CU22: =IF(DI22=1,DN22,DU22) -> 0.267 | CV22: =IF(DI22=1,DO22,DV22) -> 0.316 | CW22: =IF(DI22=1,DP22,DW22) -> 0.385 | CX22: =IF(DI22=1,DQ22,DX22) -> 0.444 | CY22: =IF(DI22=1,DR22,DY22) -> 0.526 | CZ22: =IF(DI23=1,DZ22,EG22) -> 0.077 | DA22: =IF(DI23=1,EA22,EH22) -> 0.133 | DB22: =IF(DI23=1,EB22,EI22) -> 0.188 | DC22: =IF(DI23=1,EC22,EJ22) -> 0.263 | DD22: =IF(DI23=1,ED22,EK22) -> 0.313 | DE22: =IF(DI23=1,EE22,EL22) -> 0.357 | DF22: =IF(DI23=1,EF22,EM22) -> 0.385 | DG22: =IF(DI23=1,EG22,EN22) -> 0.444 | DH22: =IF(DI23=1,EH22,EO22) -> 0.526 | DI22: 1 | DJ22: =IF(CE22<$EW$2,$ES$2,IF(CE22<$EW$3,$ES$3,IF(CE22<$EW$4,$ES$4,IF(CE22<$EW$5,$ES$5,IF(CE22<$EW$6,$ES$6,IF(CE22<$EW$7,$ES$7,IF(CE22<$EW$8,$ES$8,$ES$9))))))) -> 0.077 | DK22: =IF(CE22<$EW$10,$ES$10,IF(CE22<$EW$11,$ES$11,IF(CE22<$EW$12,$ES$12,IF(CE22<$EW$13,$ES$13,IF(CE22<$EW$14,$ES$14,IF(CE22<$EW$15,$ES$15,IF(CE22<$EW$16,$ES$16,$ES$17))))))) -> 0.133 | DL22: =IF(CE22<$EW$18,$ES$18,IF(CE22<$EW$19,$ES$19,IF(CE22<$EW$20,$ES$20,IF(CE22<$EW$21,$ES$21,IF(CE22<$EW$22,$ES$22,IF(CE22<$EW$23,$ES$23,IF(CE22<$EW$24,$ES$24,$ES$25))))))) -> 0.188 | DM22: =IF(CE22<$EW$26,$ES$26,IF(CE22<$EW$27,$ES$27,IF(CE22<$EW$28,$ES$28,IF(CE22<$EW$29,$ES$29,IF(CE22<$EW$30,$ES$30,IF(CE22<$EW$31,$ES$31,IF(CE22<$EW$32,$ES$32,$ES$33))))))) -> 0.222 | DN22: =IF(CE22<$EW$34,$ES$34,IF(CE22<$EW$35,$ES$35,IF(CE22<$EW$36,$ES$36,IF(CE22<$EW$37,$ES$37,IF(CE22<$EW$38,$ES$38,IF(CE22<$EW$39,$ES$39,IF(CE22<$EW$40,$ES$40,$ES$41))))))) -> 0.267 | DO22: =IF(CE22<$EW$42,$ES$42,IF(CE22<$EW$43,$ES$43,IF(CE22<$EW$44,$ES$44,IF(CE22<$EW$45,$ES$45,IF(CE22<$EW$46,$ES$46,IF(CE22<$EW$47,$ES$47,IF(CE22<$EW$48,$ES$48,$ES$49))))))) -> 0.316 | DP22: =IF(CE22<$EW$50,$ES$50,IF(CE22<$EW$51,$ES$51,IF(CE22<$EW$52,$ES$52,IF(CE22<$EW$53,$ES$53,IF(CE22<$EW$54,$ES$54,IF(CE22<$EW$55,$ES$55,IF(CE22<$EW$56,$ES$56,$ES$57))))))) -> 0.385 | DQ22: =IF(CE22<$EW$58,$ES$58,IF(CE22<$EW$59,$ES$59,IF(CE22<$EW$60,$ES$60,IF(CE22<$EW$61,$ES$61,IF(CE22<$EW$62,$ES$62,IF(CE22<$EW$63,$ES$63,IF(CE22<$EW$64,$ES$64,$ES$65))))))) -> 0.444 | DR22: =IF(CE22<$EW$66,$ES$66,IF(CE22<$EW$67,$ES$67,IF(CE22<$EW$68,$ES$68,IF(CE22<$EW$69,$ES$69,IF(CE22<$EW$70,$ES$70,IF(CE22<$EW$71,$ES$71,IF(CE22<$EW$72,$ES$72,$ES$73))))))) -> 0.526 | DS22: =IF(CE22<$EW$74,$ES$74,IF(CE22<$EW$75,$ES$75,IF(CE22<$EW$76,$ES$76,IF(CE22<$EW$77,$ES$77,IF(CE22<$EW$78,$ES$78,IF(CE22<$EW$79,$ES$79,IF(CE22<$EW$80,$ES$80,$ES$81))))))) -> 0.571 | DT22: =IF(CE22<$EW$82,$ES$82,IF(CE22<$EW$83,$ES$83,IF(CE22<$EW$84,$ES$84,IF(CE22<$EW$85,$ES$85,IF(CE22<$EW$86,$ES$86,IF(CE22<$EW$87,$ES$87,IF(CE22<$EW$88,$ES$88,$ES$89))))))) -> 0.632 | DU22: =IF(CE22<$EW$90,$ES$90,IF(CE22<$EW$91,$ES$91,IF(CE22<$EW$92,$ES$92,IF(CE22<$EW$93,$ES$93,IF(CE22<$EW$94,$ES$94,IF(CE22<$EW$95,$ES$95,IF(CE22<$EW$96,$ES$96,$ES$97))))))) -> 0.692 | DV22: =IF(CE22<$EW$98,$ES$98,IF(CE22<$EW$99,$ES$99,IF(CE22<$EW$100,$ES$100,IF(CE22<$EW$101,$ES$101,IF(CE22<$EW$102,$ES$102,IF(CE22<$EW$103,$ES$103,IF(CE22<$EW$104,$ES$104,$ES$105))))))) -> 0.75 | DW22: =IF(CE22<$EW$106,$ES$106,IF(CE22<$EW$107,$ES$107,IF(CE22<$EW$108,$ES$108,IF(CE22<$EW$109,$ES$109,IF(CE22<$EW$110,$ES$110,IF(CE22<$EW$111,$ES$111,IF(CE22<$EW$112,$ES$112,$ES$113))))))) -> 0.818 | DX22: =IF(CE22<$EW$114,$ES$114,IF(CE22<$EW$115,$ES$115,IF(CE22<$EW$116,$ES$116,IF(CE22<$EW$117,$ES$117,IF(CE22<$EW$118,$ES$118,IF(CE22<$EW$119,$ES$119,IF(CE22<$EW$120,$ES$120,$ES$121))))))) -> 0.875 | DY22: =IF(CE22<$EW$122,$ES$122,IF(CE22<$EW$123,$ES$123,IF(CE22<$EW$124,$ES$124,IF(CE22<$EW$125,$ES$125,IF(CE22<$EW$126,$ES$126,IF(CE22<$EW$127,$ES$127,$ES$128)))))) -> 0.929 | DZ22: =IF(CE23<$EW$2,$ES$2,IF(CE23<$EW$3,$ES$3,IF(CE23<$EW$4,$ES$4,IF(CE23<$EW$5,$ES$5,IF(CE23<$EW$6,$ES$6,IF(CE23<$EW$7,$ES$7,IF(CE23<$EW$8,$ES$8,$ES$9))))))) -> 0.077 | EA22: =IF(CE23<$EW$10,$ES$10,IF(CE23<$EW$11,$ES$11,IF(CE23<$EW$12,$ES$12,IF(CE23<$EW$13,$ES$13,IF(CE23<$EW$14,$ES$14,IF(CE23<$EW$15,$ES$15,IF(CE23<$EW$16,$ES$16,$ES$17))))))) -> 0.133 | EB22: =IF(CE23<$EW$18,$ES$18,IF(CE23<$EW$19,$ES$19,IF(CE23<$EW$20,$ES$20,IF(CE23<$EW$21,$ES$21,IF(CE23<$EW$22,$ES$22,IF(CE23<$EW$23,$ES$23,IF(CE23<$EW$24,$ES$24,$ES$25))))))) -> 0.188 | EC22: =IF(CE23<$EW$26,$ES$26,IF(CE23<$EW$27,$ES$27,IF(CE23<$EW$28,$ES$28,IF(CE23<$EW$29,$ES$29,IF(CE23<$EW$30,$ES$30,IF(CE23<$EW$31,$ES$31,IF(CE23<$EW$32,$ES$32,$ES$33))))))) -> 0.263 | ED22: =IF(CE23<$EW$34,$ES$34,IF(CE23<$EW$35,$ES$35,IF(CE23<$EW$36,$ES$36,IF(CE23<$EW$37,$ES$37,IF(CE23<$EW$38,$ES$38,IF(CE23<$EW$39,$ES$39,IF(CE23<$EW$40,$ES$40,$ES$41))))))) -> 0.313 | EE22: =IF(CE23<$EW$42,$ES$42,IF(CE23<$EW$43,$ES$43,IF(CE23<$EW$44,$ES$44,IF(CE23<$EW$45,$ES$45,IF(CE23<$EW$46,$ES$46,IF(CE23<$EW$47,$ES$47,IF(CE23<$EW$48,$ES$48,$ES$49))))))) -> 0.357 | EF22: =IF(CE23<$EW$50,$ES$50,IF(CE23<$EW$51,$ES$51,IF(CE23<$EW$52,$ES$52,IF(CE23<$EW$53,$ES$53,IF(CE23<$EW$54,$ES$54,IF(CE23<$EW$55,$ES$55,IF(CE23<$EW$56,$ES$56,$ES$57))))))) -> 0.385 | EG22: =IF(CE23<$EW$58,$ES$58,IF(CE23<$EW$59,$ES$59,IF(CE23<$EW$60,$ES$60,IF(CE23<$EW$61,$ES$61,IF(CE23<$EW$62,$ES$62,IF(CE23<$EW$63,$ES$63,IF(CE23<$EW$64,$ES$64,$ES$65))))))) -> 0.444 | EH22: =IF(CE23<$EW$66,$ES$66,IF(CE23<$EW$67,$ES$67,IF(CE23<$EW$68,$ES$68,IF(CE23<$EW$69,$ES$69,IF(CE23<$EW$70,$ES$70,IF(CE23<$EW$71,$ES$71,IF(CE23<$EW$72,$ES$72,$ES$73))))))) -> 0.526 | EI22: =IF(CE23<$EW$74,$ES$74,IF(CE23<$EW$75,$ES$75,IF(CE23<$EW$76,$ES$76,IF(CE23<$EW$77,$ES$77,IF(CE23<$EW$78,$ES$78,IF(CE23<$EW$79,$ES$79,IF(CE23<$EW$80,$ES$80,$ES$81))))))) -> 0.571 | EJ22: =IF(CE23<$EW$82,$ES$82,IF(CE23<$EW$83,$ES$83,IF(CE23<$EW$84,$ES$84,IF(CE23<$EW$85,$ES$85,IF(CE23<$EW$86,$ES$86,IF(CE23<$EW$87,$ES$87,IF(CE23<$EW$88,$ES$88,$ES$89))))))) -> 0.632 | EK22: =IF(CE23<$EW$90,$ES$90,IF(CE23<$EW$91,$ES$91,IF(CE23<$EW$92,$ES$92,IF(CE23<$EW$93,$ES$93,IF(CE23<$EW$94,$ES$94,IF(CE23<$EW$95,$ES$95,IF(CE23<$EW$96,$ES$96,$ES$97))))))) -> 0.692 | EL22: =IF(CE23<$EW$98,$ES$98,IF(CE23<$EW$99,$ES$99,IF(CE23<$EW$100,$ES$100,IF(CE23<$EW$101,$ES$101,IF(CE23<$EW$102,$ES$102,IF(CE23<$EW$103,$ES$103,IF(CE23<$EW$104,$ES$104,$ES$105))))))) -> 0.75 | EM22: =IF(CE23<$EW$106,$ES$106,IF(CE23<$EW$107,$ES$107,IF(CE23<$EW$108,$ES$108,IF(CE23<$EW$109,$ES$109,IF(CE23<$EW$110,$ES$110,IF(CE23<$EW$111,$ES$111,IF(CE23<$EW$112,$ES$112,$ES$113))))))) -> 0.818 | EN22: =IF(CE23<$EW$114,$ES$114,IF(CE23<$EW$115,$ES$115,IF(CE23<$EW$116,$ES$116,IF(CE23<$EW$117,$ES$117,IF(CE23<$EW$118,$ES$118,IF(CE23<$EW$119,$ES$119,IF(CE23<$EW$120,$ES$120,$ES$121))))))) -> 0.875 | EO22: =IF(CE23<$EW$122,$ES$122,IF(CE23<$EW$123,$ES$123,IF(CE23<$EW$124,$ES$124,IF(CE23<$EW$125,$ES$125,IF(CE23<$EW$126,$ES$126,IF(CE23<$EW$127,$ES$127,$ES$128)))))) -> 0.929 | EP22: 21 | EQ22: 1 | ER22: 6 | ES22: 0.167 | ET22: ¹ | EU22: ₆ | EV22: ⅙ | EW22: 0.172 | EX22: ∕
C23: 43 | D23: =D20 -> 3 | E23: =E20 -> 8 | F23: =F20 -> 1 | J23: 1 | K23: 5 | S23: =S4/2+S3/2 -> 0.5 | T23: =IF(T22=-5.35,-4.65,IF(T22=5.35,4.65,T22)) -> 99.65 | X23: -8.1 | Y23: -69.9 | AE23: -8.1 | AF23: -25.3 | AL23: -8.1 | AM23: -8.1 | AV23: -8.1 | AW23: -15.2 | BD23: 19 | BE23: -⅛x³ | BF23: − ⅛x² | BG23: -⅛x² | BH23: x | BI23: =CONCATENATE("½",$S$2," ") -> ½𝒙 | BJ23: 0 | BK23: 0 | BL23: =-1/8 -> -0.125 | BM23: =-1/8 -> -0.125 | BN23: 0.5 | BO23: 0 | BP23: 1 | BQ23: 2 | BR23: 1 | BS23: 2 | BT23: 0.5 | BU23: ½ | CA23: -1.357142857 | CB23: 1.357142857 | CC23: − | CD23: 1 | CE23: 0.357 | CF23: =IF(CE23=CZ22,CZ23,IF(CE23=DA22,DA23,IF(CE23=DB22,DB23,IF(CE23=DC22,DC23,IF(CE23=DD22,DD23,IF(CE23=DE22,DE23,IF(CE23=DF22,DF23,CE23))))))) -> ⁵∕₁₄ | CG23: =IF(CF23=DG22,DG23,IF(CF23=DH22,DH23,CF23)) -> ⁵∕₁₄ | CH23: −1⁵∕₁₄ | CI23: =IF(CE23=CZ22,"*",IF(CE23=DA22,"*",IF(CE23=DB22,"*",IF(CE23=DC22,"*",IF(CE23=DD22,"*",IF(CE23=DE22,"*",IF(CE23=DF22,"*",CO23))))))) -> * | CJ23: =IF(CF23=DG22,"*",IF(CF23=DH22,"*",CI23)) -> * | CK23: * | CL23: -67.85714286 | CM23: -68 | CN23: 0.142857142857139 | CO23: · | CP23: =ROUND(50*CA23,0) -> -68 | CQ23: =IF(DI22=1,DJ23,DQ23) -> ¹∕₁₃ | CR23: =IF(DI22=1,DK23,DR23) -> ²∕₁₅ | CS23: =IF(DI22=1,DL23,DS23) -> ³∕₁₆ | CT23: =IF(DI22=1,DM23,DT23) -> ²∕₉ | CU23: =IF(DI22=1,DN23,DU23) -> ⁴∕₁₅ | CV23: =IF(DI22=1,DO23,DV23) -> ⁶∕₁₉ | CW23: =IF(DI22=1,DP23,DW23) -> ⁵∕₁₃ | CX23: =IF(DI22=1,DQ23,DX23) -> ⁴∕₉ | CY23: =IF(DI22=1,DR23,DY23) -> ¹º∕₁₉ | CZ23: =IF(DI23=1,DZ23,EG23) -> ¹∕₁₃ | DA23: =IF(DI23=1,EA23,EH23) -> ²∕₁₅ | DB23: =IF(DI23=1,EB23,EI23) -> ³∕₁₆ | DC23: =IF(DI23=1,EC23,EJ23) -> ⁵∕₁₉ | DD23: =IF(DI23=1,ED23,EK23) -> ⁵∕₁₆ | DE23: =IF(DI23=1,EE23,EL23) -> ⁵∕₁₄ | DF23: =IF(DI23=1,EF23,EM23) -> ⁵∕₁₃ | DG23: =IF(DI23=1,EG23,EN23) -> ⁴∕₉ | DH23: =IF(DI23=1,EH23,EO23) -> ¹º∕₁₉ | DI23: 1 | DJ23: =IF(CE22<$EW$2,$EV$2,IF(CE22<$EW$3,$EV$3,IF(CE22<$EW$4,$EV$4,IF(CE22<$EW$5,$EV$5,IF(CE22<$EW$6,$EV$6,IF(CE22<$EW$7,$EV$7,IF(CE22<$EW$8,$EV$8,$EV$9))))))) -> ¹∕₁₃ | DK23: =IF(CE22<$EW$10,$EV$10,IF(CE22<$EW$11,$EV$11,IF(CE22<$EW$12,$EV$12,IF(CE22<$EW$13,$EV$13,IF(CE22<$EW$14,$EV$14,IF(CE22<$EW$15,$EV$15,IF(CE22<$EW$16,$EV$16,$EV$17))))))) -> ²∕₁₅ | DL23: =IF(CE22<$EW$18,$EV$18,IF(CE22<$EW$19,$EV$19,IF(CE22<$EW$20,$EV$20,IF(CE22<$EW$21,$EV$21,IF(CE22<$EW$22,$EV$22,IF(CE22<$EW$23,$EV$23,IF(CE22<$EW$24,$EV$24,$EV$25))))))) -> ³∕₁₆ | DM23: =IF(CE22<$EW$26,$EV$26,IF(CE22<$EW$27,$EV$27,IF(CE22<$EW$28,$EV$28,IF(CE22<$EW$29,$EV$29,IF(CE22<$EW$30,$EV$30,IF(CE22<$EW$31,$EV$31,IF(CE22<$EW$32,$EV$32,$EV$33))))))) -> ²∕₉ | DN23: =IF(CE22<$EW$34,$EV$34,IF(CE22<$EW$35,$EV$35,IF(CE22<$EW$36,$EV$36,IF(CE22<$EW$37,$EV$37,IF(CE22<$EW$38,$EV$38,IF(CE22<$EW$39,$EV$39,IF(CE22<$EW$40,$EV$40,$EV$41))))))) -> ⁴∕₁₅ | DO23: =IF(CE22<$EW$42,$EV$42,IF(CE22<$EW$43,$EV$43,IF(CE22<$EW$44,$EV$44,IF(CE22<$EW$45,$EV$45,IF(CE22<$EW$46,$EV$46,IF(CE22<$EW$47,$EV$47,IF(CE22<$EW$48,$EV$48,$EV$49))))))) -> ⁶∕₁₉ | DP23: =IF(CE22<$EW$50,$EV$50,IF(CE22<$EW$51,$EV$51,IF(CE22<$EW$52,$EV$52,IF(CE22<$EW$53,$EV$53,IF(CE22<$EW$54,$EV$54,IF(CE22<$EW$55,$EV$55,IF(CE22<$EW$56,$EV$56,$EV$57))))))) -> ⁵∕₁₃ | DQ23: =IF(CE22<$EW$58,$EV$58,IF(CE22<$EW$59,$EV$59,IF(CE22<$EW$60,$EV$60,IF(CE22<$EW$61,$EV$61,IF(CE22<$EW$62,$EV$62,IF(CE22<$EW$63,$EV$63,IF(CE22<$EW$64,$EV$64,$EV$65))))))) -> ⁴∕₉ | DR23: =IF(CE22<$EW$66,$EV$66,IF(CE22<$EW$67,$EV$67,IF(CE22<$EW$68,$EV$68,IF(CE22<$EW$69,$EV$69,IF(CE22<$EW$70,$EV$70,IF(CE22<$EW$71,$EV$71,IF(CE22<$EW$72,$EV$72,$EV$73))))))) -> ¹º∕₁₉ | DS23: =IF(CE22<$EW$74,$EV$74,IF(CE22<$EW$75,$EV$75,IF(CE22<$EW$76,$EV$76,IF(CE22<$EW$77,$EV$77,IF(CE22<$EW$78,$EV$78,IF(CE22<$EW$79,$EV$79,IF(CE22<$EW$80,$EV$80,$EV$81))))))) -> ⁴∕₇ | DT23: =IF(CE22<$EW$82,$EV$82,IF(CE22<$EW$83,$EV$83,IF(CE22<$EW$84,$EV$84,IF(CE22<$EW$85,$EV$85,IF(CE22<$EW$86,$EV$86,IF(CE22<$EW$87,$EV$87,IF(CE22<$EW$88,$EV$88,$EV$89))))))) -> ¹²∕₁₉ | DU23: =IF(CE22<$EW$90,$EV$90,IF(CE22<$EW$91,$EV$91,IF(CE22<$EW$92,$EV$92,IF(CE22<$EW$93,$EV$93,IF(CE22<$EW$94,$EV$94,IF(CE22<$EW$95,$EV$95,IF(CE22<$EW$96,$EV$96,$EV$97))))))) -> ⁹∕₁₃ | DV23: =IF(CE22<$EW$98,$EV$98,IF(CE22<$EW$99,$EV$99,IF(CE22<$EW$100,$EV$100,IF(CE22<$EW$101,$EV$101,IF(CE22<$EW$102,$EV$102,IF(CE22<$EW$103,$EV$103,IF(CE22<$EW$104,$EV$104,$EV$105))))))) -> ¾ | DW23: =IF(CE22<$EW$106,$EV$106,IF(CE22<$EW$107,$EV$107,IF(CE22<$EW$108,$EV$108,IF(CE22<$EW$109,$EV$109,IF(CE22<$EW$110,$EV$110,IF(CE22<$EW$111,$EV$111,IF(CE22<$EW$112,$EV$112,$EV$113))))))) -> ⁹∕₁₁ | DX23: =IF(CE22<$EW$114,$EV$114,IF(CE22<$EW$115,$EV$115,IF(CE22<$EW$116,$EV$116,IF(CE22<$EW$117,$EV$117,IF(CE22<$EW$118,$EV$118,IF(CE22<$EW$119,$EV$119,IF(CE22<$EW$120,$EV$120,$EV$121))))))) -> ⅞ | DY23: =IF(CE22<$EW$122,$EV$122,IF(CE22<$EW$123,$EV$123,IF(CE22<$EW$124,$EV$124,IF(CE22<$EW$125,$EV$125,IF(CE22<$EW$126,$EV$126,IF(CE22<$EW$127,$EV$127,$EV$128)))))) -> ¹³∕₁₄ | DZ23: =IF(CE23<$EW$2,$EV$2,IF(CE23<$EW$3,$EV$3,IF(CE23<$EW$4,$EV$4,IF(CE23<$EW$5,$EV$5,IF(CE23<$EW$6,$EV$6,IF(CE23<$EW$7,$EV$7,IF(CE23<$EW$8,$EV$8,$EV$9))))))) -> ¹∕₁₃ | EA23: =IF(CE23<$EW$10,$EV$10,IF(CE23<$EW$11,$EV$11,IF(CE23<$EW$12,$EV$12,IF(CE23<$EW$13,$EV$13,IF(CE23<$EW$14,$EV$14,IF(CE23<$EW$15,$EV$15,IF(CE23<$EW$16,$EV$16,$EV$17))))))) -> ²∕₁₅ | EB23: =IF(CE23<$EW$18,$EV$18,IF(CE23<$EW$19,$EV$19,IF(CE23<$EW$20,$EV$20,IF(CE23<$EW$21,$EV$21,IF(CE23<$EW$22,$EV$22,IF(CE23<$EW$23,$EV$23,IF(CE23<$EW$24,$EV$24,$EV$25))))))) -> ³∕₁₆ | EC23: =IF(CE23<$EW$26,$EV$26,IF(CE23<$EW$27,$EV$27,IF(CE23<$EW$28,$EV$28,IF(CE23<$EW$29,$EV$29,IF(CE23<$EW$30,$EV$30,IF(CE23<$EW$31,$EV$31,IF(CE23<$EW$32,$EV$32,$EV$33))))))) -> ⁵∕₁₉ | ED23: =IF(CE23<$EW$34,$EV$34,IF(CE23<$EW$35,$EV$35,IF(CE23<$EW$36,$EV$36,IF(CE23<$EW$37,$EV$37,IF(CE23<$EW$38,$EV$38,IF(CE23<$EW$39,$EV$39,IF(CE23<$EW$40,$EV$40,$EV$41))))))) -> ⁵∕₁₆ | EE23: =IF(CE23<$EW$42,$EV$42,IF(CE23<$EW$43,$EV$43,IF(CE23<$EW$44,$EV$44,IF(CE23<$EW$45,$EV$45,IF(CE23<$EW$46,$EV$46,IF(CE23<$EW$47,$EV$47,IF(CE23<$EW$48,$EV$48,$EV$49))))))) -> ⁵∕₁₄ | EF23: =IF(CE23<$EW$50,$EV$50,IF(CE23<$EW$51,$EV$51,IF(CE23<$EW$52,$EV$52,IF(CE23<$EW$53,$EV$53,IF(CE23<$EW$54,$EV$54,IF(CE23<$EW$55,$EV$55,IF(CE23<$EW$56,$EV$56,$EV$57))))))) -> ⁵∕₁₃ | EG23: =IF(CE23<$EW$58,$EV$58,IF(CE23<$EW$59,$EV$59,IF(CE23<$EW$60,$EV$60,IF(CE23<$EW$61,$EV$61,IF(CE23<$EW$62,$EV$62,IF(CE23<$EW$63,$EV$63,IF(CE23<$EW$64,$EV$64,$EV$65))))))) -> ⁴∕₉ | EH23: =IF(CE23<$EW$66,$EV$66,IF(CE23<$EW$67,$EV$67,IF(CE23<$EW$68,$EV$68,IF(CE23<$EW$69,$EV$69,IF(CE23<$EW$70,$EV$70,IF(CE23<$EW$71,$EV$71,IF(CE23<$EW$72,$EV$72,$EV$73))))))) -> ¹º∕₁₉ | EI23: =IF(CE23<$EW$74,$EV$74,IF(CE23<$EW$75,$EV$75,IF(CE23<$EW$76,$EV$76,IF(CE23<$EW$77,$EV$77,IF(CE23<$EW$78,$EV$78,IF(CE23<$EW$79,$EV$79,IF(CE23<$EW$80,$EV$80,$EV$81))))))) -> ⁴∕₇ | EJ23: =IF(CE23<$EW$82,$EV$82,IF(CE23<$EW$83,$EV$83,IF(CE23<$EW$84,$EV$84,IF(CE23<$EW$85,$EV$85,IF(CE23<$EW$86,$EV$86,IF(CE23<$EW$87,$EV$87,IF(CE23<$EW$88,$EV$88,$EV$89))))))) -> ¹²∕₁₉ | EK23: =IF(CE23<$EW$90,$EV$90,IF(CE23<$EW$91,$EV$91,IF(CE23<$EW$92,$EV$92,IF(CE23<$EW$93,$EV$93,IF(CE23<$EW$94,$EV$94,IF(CE23<$EW$95,$EV$95,IF(CE23<$EW$96,$EV$96,$EV$97))))))) -> ⁹∕₁₃ | EL23: =IF(CE23<$EW$98,$EV$98,IF(CE23<$EW$99,$EV$99,IF(CE23<$EW$100,$EV$100,IF(CE23<$EW$101,$EV$101,IF(CE23<$EW$102,$EV$102,IF(CE23<$EW$103,$EV$103,IF(CE23<$EW$104,$EV$104,$EV$105))))))) -> ¾ | EM23: =IF(CE23<$EW$106,$EV$106,IF(CE23<$EW$107,$EV$107,IF(CE23<$EW$108,$EV$108,IF(CE23<$EW$109,$EV$109,IF(CE23<$EW$110,$EV$110,IF(CE23<$EW$111,$EV$111,IF(CE23<$EW$112,$EV$112,$EV$113))))))) -> ⁹∕₁₁ | EN23: =IF(CE23<$EW$114,$EV$114,IF(CE23<$EW$115,$EV$115,IF(CE23<$EW$116,$EV$116,IF(CE23<$EW$117,$EV$117,IF(CE23<$EW$118,$EV$118,IF(CE23<$EW$119,$EV$119,IF(CE23<$EW$120,$EV$120,$EV$121))))))) -> ⅞ | EO23: =IF(CE23<$EW$122,$EV$122,IF(CE23<$EW$123,$EV$123,IF(CE23<$EW$124,$EV$124,IF(CE23<$EW$125,$EV$125,IF(CE23<$EW$126,$EV$126,IF(CE23<$EW$127,$EV$127,$EV$128)))))) -> ¹³∕₁₄ | EP23: 22 | EQ23: 3 | ER23: 17 | ES23: 0.176 | ET23: ³ | EU23: ₁₇ | EV23: =CONCATENATE(ET23,$EX$22,EU23) -> ³∕₁₇ | EW23: 0.179 | EX23: 1 | EY23: ₁
C24: =H8 -> 14 | D24: =VLOOKUP(C24,C12:E23,2) -> 3 | E24: =VLOOKUP(C24,C12:E23,3) -> 7 | F24: =VLOOKUP(C24,C12:F23,4) -> 1 | J24: 2 | K24: 5 | V24: =IF($U$4=1,X4,11) -> 11 | W24: =IF($U$4=1,Y4,11) -> 11 | X24: -8 | Y24: -69 | AC24: =IF($AB$4=1,AE4,11) -> 11 | AD24: =IF($AB$4=1,AF4,11) -> 11 | AE24: -8 | AF24: -25 | AJ24: =IF($AI$4=1,AL4,11) -> 11 | AK24: =IF($AI$4=1,AM4,11) -> 11 | AL24: -8 | AM24: -8 | AT24: =IF($AS$4=1,AV4,11) -> -10 | AU24: =IF($AS$4=1,AW4,11) -> -19 | AV24: -8 | AW24: -15 | BD24: 20 | BE24: -¼x³ | BF24: − ¼x² | BG24: -¼x² | BH24: x | BI24: =CONCATENATE("⅖",$S$2," ") -> ⅖𝒙 | BJ24: − ½ | BK24: -½ | BL24: =-1/4 -> -0.25 | BM24: =-1/4 -> -0.25 | BN24: 0.4 | BO24: -0.5 | BP24: 2 | BQ24: 5 | BR24: 2 | BS24: 5 | BT24: 0.4 | BU24: ⅖ | CA24: -11.3125 | CB24: 11.3125 | CC24: − | CD24: 11 | CE24: 0.313 | CF24: =IF(CE24=CQ24,CQ25,IF(CE24=CR24,CR25,IF(CE24=CS24,CS25,IF(CE24=CT24,CT25,IF(CE24=CU24,CU25,IF(CE24=CV24,CV25,IF(CE24=CW24,CW25,CE24))))))) -> ⁵∕₁₆ | CG24: =IF(CF24=CX24,CX25,IF(CF24=CY24,CY25,CF24)) -> ⁵∕₁₆ | CH24: −11⁵∕₁₆ | CI24: =IF(CE24=CQ24,"*",IF(CE24=CR24,"*",IF(CE24=CS24,"*",IF(CE24=CT24,"*",IF(CE24=CU24,"*",IF(CE24=CV24,"*",IF(CE24=CW24,"*",CO24))))))) -> * | CJ24: =IF(CF24=CX24,"*",IF(CF24=CY24,"*",CI24)) -> * | CK24: * | CL24: -565.625 | CM24: -566 | CN24: 0.375 | CO24: · | CP24: =50*CA25 -> 667.5 | CQ24: =IF(DI24=1,DJ24,DQ24) -> 0.077 | CR24: =IF(DI24=1,DK24,DR24) -> 0.133 | CS24: =IF(DI24=1,DL24,DS24) -> 0.188 | CT24: =IF(DI24=1,DM24,DT24) -> 0.263 | CU24: =IF(DI24=1,DN24,DU24) -> 0.313 | CV24: =IF(DI24=1,DO24,DV24) -> 0.316 | CW24: =IF(DI24=1,DP24,DW24) -> 0.385 | CX24: =IF(DI24=1,DQ24,DX24) -> 0.444 | CY24: =IF(DI24=1,DR24,DY24) -> 0.526 | CZ24: =IF(DI25=1,DZ24,EG24) -> 0.077 | DA24: =IF(DI25=1,EA24,EH24) -> 0.133 | DB24: =IF(DI25=1,EB24,EI24) -> 0.188 | DC24: =IF(DI25=1,EC24,EJ24) -> 0.263 | DD24: =IF(DI25=1,ED24,EK24) -> 0.313 | DE24: =IF(DI25=1,EE24,EL24) -> 0.35 | DF24: =IF(DI25=1,EF24,EM24) -> 0.385 | DG24: =IF(DI25=1,EG24,EN24) -> 0.444 | DH24: =IF(DI25=1,EH24,EO24) -> 0.526 | DI24: 1 | DJ24: =IF(CE24<$EW$2,$ES$2,IF(CE24<$EW$3,$ES$3,IF(CE24<$EW$4,$ES$4,IF(CE24<$EW$5,$ES$5,IF(CE24<$EW$6,$ES$6,IF(CE24<$EW$7,$ES$7,IF(CE24<$EW$8,$ES$8,$ES$9))))))) -> 0.077 | DK24: =IF(CE24<$EW$10,$ES$10,IF(CE24<$EW$11,$ES$11,IF(CE24<$EW$12,$ES$12,IF(CE24<$EW$13,$ES$13,IF(CE24<$EW$14,$ES$14,IF(CE24<$EW$15,$ES$15,IF(CE24<$EW$16,$ES$16,$ES$17))))))) -> 0.133 | DL24: =IF(CE24<$EW$18,$ES$18,IF(CE24<$EW$19,$ES$19,IF(CE24<$EW$20,$ES$20,IF(CE24<$EW$21,$ES$21,IF(CE24<$EW$22,$ES$22,IF(CE24<$EW$23,$ES$23,IF(CE24<$EW$24,$ES$24,$ES$25))))))) -> 0.188 | DM24: =IF(CE24<$EW$26,$ES$26,IF(CE24<$EW$27,$ES$27,IF(CE24<$EW$28,$ES$28,IF(CE24<$EW$29,$ES$29,IF(CE24<$EW$30,$ES$30,IF(CE24<$EW$31,$ES$31,IF(CE24<$EW$32,$ES$32,$ES$33))))))) -> 0.263 | DN24: =IF(CE24<$EW$34,$ES$34,IF(CE24<$EW$35,$ES$35,IF(CE24<$EW$36,$ES$36,IF(CE24<$EW$37,$ES$37,IF(CE24<$EW$38,$ES$38,IF(CE24<$EW$39,$ES$39,IF(CE24<$EW$40,$ES$40,$ES$41))))))) -> 0.313 | DO24: =IF(CE24<$EW$42,$ES$42,IF(CE24<$EW$43,$ES$43,IF(CE24<$EW$44,$ES$44,IF(CE24<$EW$45,$ES$45,IF(CE24<$EW$46,$ES$46,IF(CE24<$EW$47,$ES$47,IF(CE24<$EW$48,$ES$48,$ES$49))))))) -> 0.316 | DP24: =IF(CE24<$EW$50,$ES$50,IF(CE24<$EW$51,$ES$51,IF(CE24<$EW$52,$ES$52,IF(CE24<$EW$53,$ES$53,IF(CE24<$EW$54,$ES$54,IF(CE24<$EW$55,$ES$55,IF(CE24<$EW$56,$ES$56,$ES$57))))))) -> 0.385 | DQ24: =IF(CE24<$EW$58,$ES$58,IF(CE24<$EW$59,$ES$59,IF(CE24<$EW$60,$ES$60,IF(CE24<$EW$61,$ES$61,IF(CE24<$EW$62,$ES$62,IF(CE24<$EW$63,$ES$63,IF(CE24<$EW$64,$ES$64,$ES$65))))))) -> 0.444 | DR24: =IF(CE24<$EW$66,$ES$66,IF(CE24<$EW$67,$ES$67,IF(CE24<$EW$68,$ES$68,IF(CE24<$EW$69,$ES$69,IF(CE24<$EW$70,$ES$70,IF(CE24<$EW$71,$ES$71,IF(CE24<$EW$72,$ES$72,$ES$73))))))) -> 0.526 | DS24: =IF(CE24<$EW$74,$ES$74,IF(CE24<$EW$75,$ES$75,IF(CE24<$EW$76,$ES$76,IF(CE24<$EW$77,$ES$77,IF(CE24<$EW$78,$ES$78,IF(CE24<$EW$79,$ES$79,IF(CE24<$EW$80,$ES$80,$ES$81))))))) -> 0.571 | DT24: =IF(CE24<$EW$82,$ES$82,IF(CE24<$EW$83,$ES$83,IF(CE24<$EW$84,$ES$84,IF(CE24<$EW$85,$ES$85,IF(CE24<$EW$86,$ES$86,IF(CE24<$EW$87,$ES$87,IF(CE24<$EW$88,$ES$88,$ES$89))))))) -> 0.632 | DU24: =IF(CE24<$EW$90,$ES$90,IF(CE24<$EW$91,$ES$91,IF(CE24<$EW$92,$ES$92,IF(CE24<$EW$93,$ES$93,IF(CE24<$EW$94,$ES$94,IF(CE24<$EW$95,$ES$95,IF(CE24<$EW$96,$ES$96,$ES$97))))))) -> 0.692 | DV24: =IF(CE24<$EW$98,$ES$98,IF(CE24<$EW$99,$ES$99,IF(CE24<$EW$100,$ES$100,IF(CE24<$EW$101,$ES$101,IF(CE24<$EW$102,$ES$102,IF(CE24<$EW$103,$ES$103,IF(CE24<$EW$104,$ES$104,$ES$105))))))) -> 0.75 | DW24: =IF(CE24<$EW$106,$ES$106,IF(CE24<$EW$107,$ES$107,IF(CE24<$EW$108,$ES$108,IF(CE24<$EW$109,$ES$109,IF(CE24<$EW$110,$ES$110,IF(CE24<$EW$111,$ES$111,IF(CE24<$EW$112,$ES$112,$ES$113))))))) -> 0.818 | DX24: =IF(CE24<$EW$114,$ES$114,IF(CE24<$EW$115,$ES$115,IF(CE24<$EW$116,$ES$116,IF(CE24<$EW$117,$ES$117,IF(CE24<$EW$118,$ES$118,IF(CE24<$EW$119,$ES$119,IF(CE24<$EW$120,$ES$120,$ES$121))))))) -> 0.875 | DY24: =IF(CE24<$EW$122,$ES$122,IF(CE24<$EW$123,$ES$123,IF(CE24<$EW$124,$ES$124,IF(CE24<$EW$125,$ES$125,IF(CE24<$EW$126,$ES$126,IF(CE24<$EW$127,$ES$127,$ES$128)))))) -> 0.929 | DZ24: =IF(CE25<$EW$2,$ES$2,IF(CE25<$EW$3,$ES$3,IF(CE25<$EW$4,$ES$4,IF(CE25<$EW$5,$ES$5,IF(CE25<$EW$6,$ES$6,IF(CE25<$EW$7,$ES$7,IF(CE25<$EW$8,$ES$8,$ES$9))))))) -> 0.077 | EA24: =IF(CE25<$EW$10,$ES$10,IF(CE25<$EW$11,$ES$11,IF(CE25<$EW$12,$ES$12,IF(CE25<$EW$13,$ES$13,IF(CE25<$EW$14,$ES$14,IF(CE25<$EW$15,$ES$15,IF(CE25<$EW$16,$ES$16,$ES$17))))))) -> 0.133 | EB24: =IF(CE25<$EW$18,$ES$18,IF(CE25<$EW$19,$ES$19,IF(CE25<$EW$20,$ES$20,IF(CE25<$EW$21,$ES$21,IF(CE25<$EW$22,$ES$22,IF(CE25<$EW$23,$ES$23,IF(CE25<$EW$24,$ES$24,$ES$25))))))) -> 0.188 | EC24: =IF(CE25<$EW$26,$ES$26,IF(CE25<$EW$27,$ES$27,IF(CE25<$EW$28,$ES$28,IF(CE25<$EW$29,$ES$29,IF(CE25<$EW$30,$ES$30,IF(CE25<$EW$31,$ES$31,IF(CE25<$EW$32,$ES$32,$ES$33))))))) -> 0.263 | ED24: =IF(CE25<$EW$34,$ES$34,IF(CE25<$EW$35,$ES$35,IF(CE25<$EW$36,$ES$36,IF(CE25<$EW$37,$ES$37,IF(CE25<$EW$38,$ES$38,IF(CE25<$EW$39,$ES$39,IF(CE25<$EW$40,$ES$40,$ES$41))))))) -> 0.313 | EE24: =IF(CE25<$EW$42,$ES$42,IF(CE25<$EW$43,$ES$43,IF(CE25<$EW$44,$ES$44,IF(CE25<$EW$45,$ES$45,IF(CE25<$EW$46,$ES$46,IF(CE25<$EW$47,$ES$47,IF(CE25<$EW$48,$ES$48,$ES$49))))))) -> 0.35 | EF24: =IF(CE25<$EW$50,$ES$50,IF(CE25<$EW$51,$ES$51,IF(CE25<$EW$52,$ES$52,IF(CE25<$EW$53,$ES$53,IF(CE25<$EW$54,$ES$54,IF(CE25<$EW$55,$ES$55,IF(CE25<$EW$56,$ES$56,$ES$57))))))) -> 0.385 | EG24: =IF(CE25<$EW$58,$ES$58,IF(CE25<$EW$59,$ES$59,IF(CE25<$EW$60,$ES$60,IF(CE25<$EW$61,$ES$61,IF(CE25<$EW$62,$ES$62,IF(CE25<$EW$63,$ES$63,IF(CE25<$EW$64,$ES$64,$ES$65))))))) -> 0.444 | EH24: =IF(CE25<$EW$66,$ES$66,IF(CE25<$EW$67,$ES$67,IF(CE25<$EW$68,$ES$68,IF(CE25<$EW$69,$ES$69,IF(CE25<$EW$70,$ES$70,IF(CE25<$EW$71,$ES$71,IF(CE25<$EW$72,$ES$72,$ES$73))))))) -> 0.526 | EI24: =IF(CE25<$EW$74,$ES$74,IF(CE25<$EW$75,$ES$75,IF(CE25<$EW$76,$ES$76,IF(CE25<$EW$77,$ES$77,IF(CE25<$EW$78,$ES$78,IF(CE25<$EW$79,$ES$79,IF(CE25<$EW$80,$ES$80,$ES$81))))))) -> 0.571 | EJ24: =IF(CE25<$EW$82,$ES$82,IF(CE25<$EW$83,$ES$83,IF(CE25<$EW$84,$ES$84,IF(CE25<$EW$85,$ES$85,IF(CE25<$EW$86,$ES$86,IF(CE25<$EW$87,$ES$87,IF(CE25<$EW$88,$ES$88,$ES$89))))))) -> 0.632 | EK24: =IF(CE25<$EW$90,$ES$90,IF(CE25<$EW$91,$ES$91,IF(CE25<$EW$92,$ES$92,IF(CE25<$EW$93,$ES$93,IF(CE25<$EW$94,$ES$94,IF(CE25<$EW$95,$ES$95,IF(CE25<$EW$96,$ES$96,$ES$97))))))) -> 0.692 | EL24: =IF(CE25<$EW$98,$ES$98,IF(CE25<$EW$99,$ES$99,IF(CE25<$EW$100,$ES$100,IF(CE25<$EW$101,$ES$101,IF(CE25<$EW$102,$ES$102,IF(CE25<$EW$103,$ES$103,IF(CE25<$EW$104,$ES$104,$ES$105))))))) -> 0.75 | EM24: =IF(CE25<$EW$106,$ES$106,IF(CE25<$EW$107,$ES$107,IF(CE25<$EW$108,$ES$108,IF(CE25<$EW$109,$ES$109,IF(CE25<$EW$110,$ES$110,IF(CE25<$EW$111,$ES$111,IF(CE25<$EW$112,$ES$112,$ES$113))))))) -> 0.818 | EN24: =IF(CE25<$EW$114,$ES$114,IF(CE25<$EW$115,$ES$115,IF(CE25<$EW$116,$ES$116,IF(CE25<$EW$117,$ES$117,IF(CE25<$EW$118,$ES$118,IF(CE25<$EW$119,$ES$119,IF(CE25<$EW$120,$ES$120,$ES$121))))))) -> 0.875 | EO24: =IF(CE25<$EW$122,$ES$122,IF(CE25<$EW$123,$ES$123,IF(CE25<$EW$124,$ES$124,IF(CE25<$EW$125,$ES$125,IF(CE25<$EW$126,$ES$126,IF(CE25<$EW$127,$ES$127,$ES$128)))))) -> 0.929 | EP24: 23 | EQ24: 2 | ER24: 11 | ES24: 0.182 | ET24: ² | EU24: ₁₁ | EV24: =CONCATENATE(ET24,$EX$22,EU24) -> ²∕₁₁ | EW24: 0.185 | EX24: 2 | EY24: ₂
J25: 2 | K25: -5 | V25: =IF($U$4=1,X5,11) -> 11 | W25: 11 | X25: -7.9 | Y25: -68.1 | AC25: =IF($AB$4=1,AE5,11) -> 11 | AD25: 11 | AE25: -7.9 | AF25: -24.7 | AJ25: =IF($AI$4=1,AL5,11) -> 11 | AK25: 11 | AL25: -7.9 | AM25: -7.9 | AT25: =IF($AS$4=1,AV5,11) -> -9.9 | AU25: -18.8 | AV25: -7.9 | AW25: -14.8 | BD25: 21 | BE25: -⅓x³ | BF25: − ⅓x² | BG25: -⅓x² | BH25: x | BI25: =CONCATENATE("⅓",$S$2," ") -> ⅓𝒙 | BJ25: − 1 | BK25: -1 | BL25: =-1/3 -> -0.3333333333 | BM25: =-1/3 -> -0.3333333333 | BN25: =1/3 -> 0.3333333333 | BO25: -1 | BP25: 1 | BQ25: 3 | BR25: 1 | BS25: 3 | BT25: 0.3333333333 | BU25: ⅓ | CA25: 13.35 | CB25: 13.35 | CD25: 13 | CE25: 0.35 | CF25: =IF(CE25=CZ24,CZ25,IF(CE25=DA24,DA25,IF(CE25=DB24,DB25,IF(CE25=DC24,DC25,IF(CE25=DD24,DD25,IF(CE25=DE24,DE25,IF(CE25=DF24,DF25,CE25))))))) -> ⁷∕₂₀ | CG25: =IF(CF25=DG24,DG25,IF(CF25=DH24,DH25,CF25)) -> ⁷∕₂₀ | CH25: 13⁷∕₂₀ | CI25: =IF(CE25=CZ24,"*",IF(CE25=DA24,"*",IF(CE25=DB24,"*",IF(CE25=DC24,"*",IF(CE25=DD24,"*",IF(CE25=DE24,"*",IF(CE25=DF24,"*",CO25))))))) -> * | CJ25: =IF(CF25=DG24,"*",IF(CF25=DH24,"*",CI25)) -> * | CK25: * | CL25: 667.5 | CM25: 668 | CN25: -0.5 | CO25: • | CP25: =ROUND(50*CA25,0) -> 668 | CQ25: =IF(DI24=1,DJ25,DQ25) -> ¹∕₁₃ | CR25: =IF(DI24=1,DK25,DR25) -> ²∕₁₅ | CS25: =IF(DI24=1,DL25,DS25) -> ³∕₁₆ | CT25: =IF(DI24=1,DM25,DT25) -> ⁵∕₁₉ | CU25: =IF(DI24=1,DN25,DU25) -> ⁵∕₁₆ | CV25: =IF(DI24=1,DO25,DV25) -> ⁶∕₁₉ | CW25: =IF(DI24=1,DP25,DW25) -> ⁵∕₁₃ | CX25: =IF(DI24=1,DQ25,DX25) -> ⁴∕₉ | CY25: =IF(DI24=1,DR25,DY25) -> ¹º∕₁₉ | CZ25: =IF(DI25=1,DZ25,EG25) -> ¹∕₁₃ | DA25: =IF(DI25=1,EA25,EH25) -> ²∕₁₅ | DB25: =IF(DI25=1,EB25,EI25) -> ³∕₁₆ | DC25: =IF(DI25=1,EC25,EJ25) -> ⁵∕₁₉ | DD25: =IF(DI25=1,ED25,EK25) -> ⁵∕₁₆ | DE25: =IF(DI25=1,EE25,EL25) -> ⁷∕₂₀ | DF25: =IF(DI25=1,EF25,EM25) -> ⁵∕₁₃ | DG25: =IF(DI25=1,EG25,EN25) -> ⁴∕₉ | DH25: =IF(DI25=1,EH25,EO25) -> ¹º∕₁₉ | DI25: 1 | DJ25: =IF(CE24<$EW$2,$EV$2,IF(CE24<$EW$3,$EV$3,IF(CE24<$EW$4,$EV$4,IF(CE24<$EW$5,$EV$5,IF(CE24<$EW$6,$EV$6,IF(CE24<$EW$7,$EV$7,IF(CE24<$EW$8,$EV$8,$EV$9))))))) -> ¹∕₁₃ | DK25: =IF(CE24<$EW$10,$EV$10,IF(CE24<$EW$11,$EV$11,IF(CE24<$EW$12,$EV$12,IF(CE24<$EW$13,$EV$13,IF(CE24<$EW$14,$EV$14,IF(CE24<$EW$15,$EV$15,IF(CE24<$EW$16,$EV$16,$EV$17))))))) -> ²∕₁₅ | DL25: =IF(CE24<$EW$18,$EV$18,IF(CE24<$EW$19,$EV$19,IF(CE24<$EW$20,$EV$20,IF(CE24<$EW$21,$EV$21,IF(CE24<$EW$22,$EV$22,IF(CE24<$EW$23,$EV$23,IF(CE24<$EW$24,$EV$24,$EV$25))))))) -> ³∕₁₆ | DM25: =IF(CE24<$EW$26,$EV$26,IF(CE24<$EW$27,$EV$27,IF(CE24<$EW$28,$EV$28,IF(CE24<$EW$29,$EV$29,IF(CE24<$EW$30,$EV$30,IF(CE24<$EW$31,$EV$31,IF(CE24<$EW$32,$EV$32,$EV$33))))))) -> ⁵∕₁₉ | DN25: =IF(CE24<$EW$34,$EV$34,IF(CE24<$EW$35,$EV$35,IF(CE24<$EW$36,$EV$36,IF(CE24<$EW$37,$EV$37,IF(CE24<$EW$38,$EV$38,IF(CE24<$EW$39,$EV$39,IF(CE24<$EW$40,$EV$40,$EV$41))))))) -> ⁵∕₁₆ | DO25: =IF(CE24<$EW$42,$EV$42,IF(CE24<$EW$43,$EV$43,IF(CE24<$EW$44,$EV$44,IF(CE24<$EW$45,$EV$45,IF(CE24<$EW$46,$EV$46,IF(CE24<$EW$47,$EV$47,IF(CE24<$EW$48,$EV$48,$EV$49))))))) -> ⁶∕₁₉ | DP25: =IF(CE24<$EW$50,$EV$50,IF(CE24<$EW$51,$EV$51,IF(CE24<$EW$52,$EV$52,IF(CE24<$EW$53,$EV$53,IF(CE24<$EW$54,$EV$54,IF(CE24<$EW$55,$EV$55,IF(CE24<$EW$56,$EV$56,$EV$57))))))) -> ⁵∕₁₃ | DQ25: =IF(CE24<$EW$58,$EV$58,IF(CE24<$EW$59,$EV$59,IF(CE24<$EW$60,$EV$60,IF(CE24<$EW$61,$EV$61,IF(CE24<$EW$62,$EV$62,IF(CE24<$EW$63,$EV$63,IF(CE24<$EW$64,$EV$64,$EV$65))))))) -> ⁴∕₉ | DR25: =IF(CE24<$EW$66,$EV$66,IF(CE24<$EW$67,$EV$67,IF(CE24<$EW$68,$EV$68,IF(CE24<$EW$69,$EV$69,IF(CE24<$EW$70,$EV$70,IF(CE24<$EW$71,$EV$71,IF(CE24<$EW$72,$EV$72,$EV$73))))))) -> ¹º∕₁₉ | DS25: =IF(CE24<$EW$74,$EV$74,IF(CE24<$EW$75,$EV$75,IF(CE24<$EW$76,$EV$76,IF(CE24<$EW$77,$EV$77,IF(CE24<$EW$78,$EV$78,IF(CE24<$EW$79,$EV$79,IF(CE24<$EW$80,$EV$80,$EV$81))))))) -> ⁴∕₇ | DT25: =IF(CE24<$EW$82,$EV$82,IF(CE24<$EW$83,$EV$83,IF(CE24<$EW$84,$EV$84,IF(CE24<$EW$85,$EV$85,IF(CE24<$EW$86,$EV$86,IF(CE24<$EW$87,$EV$87,IF(CE24<$EW$88,$EV$88,$EV$89))))))) -> ¹²∕₁₉ | DU25: =IF(CE24<$EW$90,$EV$90,IF(CE24<$EW$91,$EV$91,IF(CE24<$EW$92,$EV$92,IF(CE24<$EW$93,$EV$93,IF(CE24<$EW$94,$EV$94,IF(CE24<$EW$95,$EV$95,IF(CE24<$EW$96,$EV$96,$EV$97))))))) -> ⁹∕₁₃ | DV25: =IF(CE24<$EW$98,$EV$98,IF(CE24<$EW$99,$EV$99,IF(CE24<$EW$100,$EV$100,IF(CE24<$EW$101,$EV$101,IF(CE24<$EW$102,$EV$102,IF(CE24<$EW$103,$EV$103,IF(CE24<$EW$104,$EV$104,$EV$105))))))) -> ¾ | DW25: =IF(CE24<$EW$106,$EV$106,IF(CE24<$EW$107,$EV$107,IF(CE24<$EW$108,$EV$108,IF(CE24<$EW$109,$EV$109,IF(CE24<$EW$110,$EV$110,IF(CE24<$EW$111,$EV$111,IF(CE24<$EW$112,$EV$112,$EV$113))))))) -> ⁹∕₁₁ | DX25: =IF(CE24<$EW$114,$EV$114,IF(CE24<$EW$115,$EV$115,IF(CE24<$EW$116,$EV$116,IF(CE24<$EW$117,$EV$117,IF(CE24<$EW$118,$EV$118,IF(CE24<$EW$119,$EV$119,IF(CE24<$EW$120,$EV$120,$EV$121))))))) -> ⅞ | DY25: =IF(CE24<$EW$122,$EV$122,IF(CE24<$EW$123,$EV$123,IF(CE24<$EW$124,$EV$124,IF(CE24<$EW$125,$EV$125,IF(CE24<$EW$126,$EV$126,IF(CE24<$EW$127,$EV$127,$EV$128)))))) -> ¹³∕₁₄ | DZ25: =IF(CE25<$EW$2,$EV$2,IF(CE25<$EW$3,$EV$3,IF(CE25<$EW$4,$EV$4,IF(CE25<$EW$5,$EV$5,IF(CE25<$EW$6,$EV$6,IF(CE25<$EW$7,$EV$7,IF(CE25<$EW$8,$EV$8,$EV$9))))))) -> ¹∕₁₃ | EA25: =IF(CE25<$EW$10,$EV$10,IF(CE25<$EW$11,$EV$11,IF(CE25<$EW$12,$EV$12,IF(CE25<$EW$13,$EV$13,IF(CE25<$EW$14,$EV$14,IF(CE25<$EW$15,$EV$15,IF(CE25<$EW$16,$EV$16,$EV$17))))))) -> ²∕₁₅ | EB25: =IF(CE25<$EW$18,$EV$18,IF(CE25<$EW$19,$EV$19,IF(CE25<$EW$20,$EV$20,IF(CE25<$EW$21,$EV$21,IF(CE25<$EW$22,$EV$22,IF(CE25<$EW$23,$EV$23,IF(CE25<$EW$24,$EV$24,$EV$25))))))) -> ³∕₁₆ | EC25: =IF(CE25<$EW$26,$EV$26,IF(CE25<$EW$27,$EV$27,IF(CE25<$EW$28,$EV$28,IF(CE25<$EW$29,$EV$29,IF(CE25<$EW$30,$EV$30,IF(CE25<$EW$31,$EV$31,IF(CE25<$EW$32,$EV$32,$EV$33))))))) -> ⁵∕₁₉ | ED25: =IF(CE25<$EW$34,$EV$34,IF(CE25<$EW$35,$EV$35,IF(CE25<$EW$36,$EV$36,IF(CE25<$EW$37,$EV$37,IF(CE25<$EW$38,$EV$38,IF(CE25<$EW$39,$EV$39,IF(CE25<$EW$40,$EV$40,$EV$41))))))) -> ⁵∕₁₆ | EE25: =IF(CE25<$EW$42,$EV$42,IF(CE25<$EW$43,$EV$43,IF(CE25<$EW$44,$EV$44,IF(CE25<$EW$45,$EV$45,IF(CE25<$EW$46,$EV$46,IF(CE25<$EW$47,$EV$47,IF(CE25<$EW$48,$EV$48,$EV$49))))))) -> ⁷∕₂₀ | EF25: =IF(CE25<$EW$50,$EV$50,IF(CE25<$EW$51,$EV$51,IF(CE25<$EW$52,$EV$52,IF(CE25<$EW$53,$EV$53,IF(CE25<$EW$54,$EV$54,IF(CE25<$EW$55,$EV$55,IF(CE25<$EW$56,$EV$56,$EV$57))))))) -> ⁵∕₁₃ | EG25: =IF(CE25<$EW$58,$EV$58,IF(CE25<$EW$59,$EV$59,IF(CE25<$EW$60,$EV$60,IF(CE25<$EW$61,$EV$61,IF(CE25<$EW$62,$EV$62,IF(CE25<$EW$63,$EV$63,IF(CE25<$EW$64,$EV$64,$EV$65))))))) -> ⁴∕₉ | EH25: =IF(CE25<$EW$66,$EV$66,IF(CE25<$EW$67,$EV$67,IF(CE25<$EW$68,$EV$68,IF(CE25<$EW$69,$EV$69,IF(CE25<$EW$70,$EV$70,IF(CE25<$EW$71,$EV$71,IF(CE25<$EW$72,$EV$72,$EV$73))))))) -> ¹º∕₁₉ | EI25: =IF(CE25<$EW$74,$EV$74,IF(CE25<$EW$75,$EV$75,IF(CE25<$EW$76,$EV$76,IF(CE25<$EW$77,$EV$77,IF(CE25<$EW$78,$EV$78,IF(CE25<$EW$79,$EV$79,IF(CE25<$EW$80,$EV$80,$EV$81))))))) -> ⁴∕₇ | EJ25: =IF(CE25<$EW$82,$EV$82,IF(CE25<$EW$83,$EV$83,IF(CE25<$EW$84,$EV$84,IF(CE25<$EW$85,$EV$85,IF(CE25<$EW$86,$EV$86,IF(CE25<$EW$87,$EV$87,IF(CE25<$EW$88,$EV$88,$EV$89))))))) -> ¹²∕₁₉ | EK25: =IF(CE25<$EW$90,$EV$90,IF(CE25<$EW$91,$EV$91,IF(CE25<$EW$92,$EV$92,IF(CE25<$EW$93,$EV$93,IF(CE25<$EW$94,$EV$94,IF(CE25<$EW$95,$EV$95,IF(CE25<$EW$96,$EV$96,$EV$97))))))) -> ⁹∕₁₃ | EL25: =IF(CE25<$EW$98,$EV$98,IF(CE25<$EW$99,$EV$99,IF(CE25<$EW$100,$EV$100,IF(CE25<$EW$101,$EV$101,IF(CE25<$EW$102,$EV$102,IF(CE25<$EW$103,$EV$103,IF(CE25<$EW$104,$EV$104,$EV$105))))))) -> ¾ | EM25: =IF(CE25<$EW$106,$EV$106,IF(CE25<$EW$107,$EV$107,IF(CE25<$EW$108,$EV$108,IF(CE25<$EW$109,$EV$109,IF(CE25<$EW$110,$EV$110,IF(CE25<$EW$111,$EV$111,IF(CE25<$EW$112,$EV$112,$EV$113))))))) -> ⁹∕₁₁ | EN25: =IF(CE25<$EW$114,$EV$114,IF(CE25<$EW$115,$EV$115,IF(CE25<$EW$116,$EV$116,IF(CE25<$EW$117,$EV$117,IF(CE25<$EW$118,$EV$118,IF(CE25<$EW$119,$EV$119,IF(CE25<$EW$120,$EV$120,$EV$121))))))) -> ⅞ | EO25: =IF(CE25<$EW$122,$EV$122,IF(CE25<$EW$123,$EV$123,IF(CE25<$EW$124,$EV$124,IF(CE25<$EW$125,$EV$125,IF(CE25<$EW$126,$EV$126,IF(CE25<$EW$127,$EV$127,$EV$128)))))) -> ¹³∕₁₄ | EP25: 24 | EQ25: 3 | ER25: 16 | ES25: 0.188 | ET25: ³ | EU25: ₁₆ | EV25: =CONCATENATE(ET25,$EX$22,EU25) -> ³∕₁₆ | EW25: 0.194 | EX25: 3 | EY25: ₃
J26: 3 | K26: -5 | V26: 11 | W26: 11 | X26: -7.8 | Y26: -67.2 | AC26: 11 | AD26: 11 | AE26: -7.8 | AF26: -24.4 | AJ26: 11 | AK26: 11 | AL26: -7.8 | AM26: -7.8 | AT26: -9.8 | AU26: -18.6 | AV26: -7.8 | AW26: -14.6 | BD26: 22 | BE26: -½x³ | BF26: − ½x² | BG26: -½x² | BH26: x | BI26: =CONCATENATE("¼",$S$2," ") -> ¼𝒙 | BJ26: − 1½ | BK26: -1½ | BL26: =-1/2 -> -0.5 | BM26: =-1/2 -> -0.5 | BN26: =0.25 -> 0.25 | BO26: -1.5 | BP26: 1 | BQ26: 4 | BR26: 1 | BS26: 4 | BT26: 0.25 | BU26: ¼ | CA26: 55.25 | CB26: 55.25 | CD26: 55 | CE26: 0.25 | CF26: =IF(CE26=CQ26,CQ27,IF(CE26=CR26,CR27,IF(CE26=CS26,CS27,IF(CE26=CT26,CT27,IF(CE26=CU26,CU27,IF(CE26=CV26,CV27,IF(CE26=CW26,CW27,CE26))))))) -> ¼ | CG26: =IF(CF26=CX26,CX27,IF(CF26=CY26,CY27,CF26)) -> ¼ | CH26: 55¼ | CI26: =IF(CE26=CQ26,"*",IF(CE26=CR26,"*",IF(CE26=CS26,"*",IF(CE26=CT26,"*",IF(CE26=CU26,"*",IF(CE26=CV26,"*",IF(CE26=CW26,"*",CO26))))))) -> * | CJ26: =IF(CF26=CX26,"*",IF(CF26=CY26,"*",CI26)) -> * | CK26: * | CL26: 2762.5 | CM26: 2763 | CN26: -0.5 | CO26: • | CP26: =50*CA27 -> -583.3333333 | CQ26: =IF(DI26=1,DJ26,DQ26) -> 0.077 | CR26: =IF(DI26=1,DK26,DR26) -> 0.133 | CS26: =IF(DI26=1,DL26,DS26) -> 0.188 | CT26: =IF(DI26=1,DM26,DT26) -> 0.25 | CU26: =IF(DI26=1,DN26,DU26) -> 0.267 | CV26: =IF(DI26=1,DO26,DV26) -> 0.316 | CW26: =IF(DI26=1,DP26,DW26) -> 0.385 | CX26: =IF(DI26=1,DQ26,DX26) -> 0.444 | CY26: =IF(DI26=1,DR26,DY26) -> 0.526 | CZ26: =IF(DI27=1,DZ26,EG26) -> 0.5 | DA26: =IF(DI27=1,EA26,EH26) -> 0.563 | DB26: =IF(DI27=1,EB26,EI26) -> 0.625 | DC26: =IF(DI27=1,EC26,EJ26) -> 0.667 | DD26: =IF(DI27=1,ED26,EK26) -> 0.692 | DE26: =IF(DI27=1,EE26,EL26) -> 0.75 | DF26: =IF(DI27=1,EF26,EM26) -> 0.818 | DG26: =IF(DI27=1,EG26,EN26) -> 0.875 | DH26: =IF(DI27=1,EH26,EO26) -> 0.929 | DI26: 1 | DJ26: =IF(CE26<$EW$2,$ES$2,IF(CE26<$EW$3,$ES$3,IF(CE26<$EW$4,$ES$4,IF(CE26<$EW$5,$ES$5,IF(CE26<$EW$6,$ES$6,IF(CE26<$EW$7,$ES$7,IF(CE26<$EW$8,$ES$8,$ES$9))))))) -> 0.077 | DK26: =IF(CE26<$EW$10,$ES$10,IF(CE26<$EW$11,$ES$11,IF(CE26<$EW$12,$ES$12,IF(CE26<$EW$13,$ES$13,IF(CE26<$EW$14,$ES$14,IF(CE26<$EW$15,$ES$15,IF(CE26<$EW$16,$ES$16,$ES$17))))))) -> 0.133 | DL26: =IF(CE26<$EW$18,$ES$18,IF(CE26<$EW$19,$ES$19,IF(CE26<$EW$20,$ES$20,IF(CE26<$EW$21,$ES$21,IF(CE26<$EW$22,$ES$22,IF(CE26<$EW$23,$ES$23,IF(CE26<$EW$24,$ES$24,$ES$25))))))) -> 0.188 | DM26: =IF(CE26<$EW$26,$ES$26,IF(CE26<$EW$27,$ES$27,IF(CE26<$EW$28,$ES$28,IF(CE26<$EW$29,$ES$29,IF(CE26<$EW$30,$ES$30,IF(CE26<$EW$31,$ES$31,IF(CE26<$EW$32,$ES$32,$ES$33))))))) -> 0.25 | DN26: =IF(CE26<$EW$34,$ES$34,IF(CE26<$EW$35,$ES$35,IF(CE26<$EW$36,$ES$36,IF(CE26<$EW$37,$ES$37,IF(CE26<$EW$38,$ES$38,IF(CE26<$EW$39,$ES$39,IF(CE26<$EW$40,$ES$40,$ES$41))))))) -> 0.267 | DO26: =IF(CE26<$EW$42,$ES$42,IF(CE26<$EW$43,$ES$43,IF(CE26<$EW$44,$ES$44,IF(CE26<$EW$45,$ES$45,IF(CE26<$EW$46,$ES$46,IF(CE26<$EW$47,$ES$47,IF(CE26<$EW$48,$ES$48,$ES$49))))))) -> 0.316 | DP26: =IF(CE26<$EW$50,$ES$50,IF(CE26<$EW$51,$ES$51,IF(CE26<$EW$52,$ES$52,IF(CE26<$EW$53,$ES$53,IF(CE26<$EW$54,$ES$54,IF(CE26<$EW$55,$ES$55,IF(CE26<$EW$56,$ES$56,$ES$57))))))) -> 0.385 | DQ26: =IF(CE26<$EW$58,$ES$58,IF(CE26<$EW$59,$ES$59,IF(CE26<$EW$60,$ES$60,IF(CE26<$EW$61,$ES$61,IF(CE26<$EW$62,$ES$62,IF(CE26<$EW$63,$ES$63,IF(CE26<$EW$64,$ES$64,$ES$65))))))) -> 0.444 | DR26: =IF(CE26<$EW$66,$ES$66,IF(CE26<$EW$67,$ES$67,IF(CE26<$EW$68,$ES$68,IF(CE26<$EW$69,$ES$69,IF(CE26<$EW$70,$ES$70,IF(CE26<$EW$71,$ES$71,IF(CE26<$EW$72,$ES$72,$ES$73))))))) -> 0.526 | DS26: =IF(CE26<$EW$74,$ES$74,IF(CE26<$EW$75,$ES$75,IF(CE26<$EW$76,$ES$76,IF(CE26<$EW$77,$ES$77,IF(CE26<$EW$78,$ES$78,IF(CE26<$EW$79,$ES$79,IF(CE26<$EW$80,$ES$80,$ES$81))))))) -> 0.571 | DT26: =IF(CE26<$EW$82,$ES$82,IF(CE26<$EW$83,$ES$83,IF(CE26<$EW$84,$ES$84,IF(CE26<$EW$85,$ES$85,IF(CE26<$EW$86,$ES$86,IF(CE26<$EW$87,$ES$87,IF(CE26<$EW$88,$ES$88,$ES$89))))))) -> 0.632 | DU26: =IF(CE26<$EW$90,$ES$90,IF(CE26<$EW$91,$ES$91,IF(CE26<$EW$92,$ES$92,IF(CE26<$EW$93,$ES$93,IF(CE26<$EW$94,$ES$94,IF(CE26<$EW$95,$ES$95,IF(CE26<$EW$96,$ES$96,$ES$97))))))) -> 0.692 | DV26: =IF(CE26<$EW$98,$ES$98,IF(CE26<$EW$99,$ES$99,IF(CE26<$EW$100,$ES$100,IF(CE26<$EW$101,$ES$101,IF(CE26<$EW$102,$ES$102,IF(CE26<$EW$103,$ES$103,IF(CE26<$EW$104,$ES$104,$ES$105))))))) -> 0.75 | DW26: =IF(CE26<$EW$106,$ES$106,IF(CE26<$EW$107,$ES$107,IF(CE26<$EW$108,$ES$108,IF(CE26<$EW$109,$ES$109,IF(CE26<$EW$110,$ES$110,IF(CE26<$EW$111,$ES$111,IF(CE26<$EW$112,$ES$112,$ES$113))))))) -> 0.818 | DX26: =IF(CE26<$EW$114,$ES$114,IF(CE26<$EW$115,$ES$115,IF(CE26<$EW$116,$ES$116,IF(CE26<$EW$117,$ES$117,IF(CE26<$EW$118,$ES$118,IF(CE26<$EW$119,$ES$119,IF(CE26<$EW$120,$ES$120,$ES$121))))))) -> 0.875 | DY26: =IF(CE26<$EW$122,$ES$122,IF(CE26<$EW$123,$ES$123,IF(CE26<$EW$124,$ES$124,IF(CE26<$EW$125,$ES$125,IF(CE26<$EW$126,$ES$126,IF(CE26<$EW$127,$ES$127,$ES$128)))))) -> 0.929 | DZ26: =IF(CE27<$EW$2,$ES$2,IF(CE27<$EW$3,$ES$3,IF(CE27<$EW$4,$ES$4,IF(CE27<$EW$5,$ES$5,IF(CE27<$EW$6,$ES$6,IF(CE27<$EW$7,$ES$7,IF(CE27<$EW$8,$ES$8,$ES$9))))))) -> 0.077 | EA26: =IF(CE27<$EW$10,$ES$10,IF(CE27<$EW$11,$ES$11,IF(CE27<$EW$12,$ES$12,IF(CE27<$EW$13,$ES$13,IF(CE27<$EW$14,$ES$14,IF(CE27<$EW$15,$ES$15,IF(CE27<$EW$16,$ES$16,$ES$17))))))) -> 0.133 | EB26: =IF(CE27<$EW$18,$ES$18,IF(CE27<$EW$19,$ES$19,IF(CE27<$EW$20,$ES$20,IF(CE27<$EW$21,$ES$21,IF(CE27<$EW$22,$ES$22,IF(CE27<$EW$23,$ES$23,IF(CE27<$EW$24,$ES$24,$ES$25))))))) -> 0.188 | EC26: =IF(CE27<$EW$26,$ES$26,IF(CE27<$EW$27,$ES$27,IF(CE27<$EW$28,$ES$28,IF(CE27<$EW$29,$ES$29,IF(CE27<$EW$30,$ES$30,IF(CE27<$EW$31,$ES$31,IF(CE27<$EW$32,$ES$32,$ES$33))))))) -> 0.263 | ED26: =IF(CE27<$EW$34,$ES$34,IF(CE27<$EW$35,$ES$35,IF(CE27<$EW$36,$ES$36,IF(CE27<$EW$37,$ES$37,IF(CE27<$EW$38,$ES$38,IF(CE27<$EW$39,$ES$39,IF(CE27<$EW$40,$ES$40,$ES$41))))))) -> 0.313 | EE26: =IF(CE27<$EW$42,$ES$42,IF(CE27<$EW$43,$ES$43,IF(CE27<$EW$44,$ES$44,IF(CE27<$EW$45,$ES$45,IF(CE27<$EW$46,$ES$46,IF(CE27<$EW$47,$ES$47,IF(CE27<$EW$48,$ES$48,$ES$49))))))) -> 0.375 | EF26: =IF(CE27<$EW$50,$ES$50,IF(CE27<$EW$51,$ES$51,IF(CE27<$EW$52,$ES$52,IF(CE27<$EW$53,$ES$53,IF(CE27<$EW$54,$ES$54,IF(CE27<$EW$55,$ES$55,IF(CE27<$EW$56,$ES$56,$ES$57))))))) -> 0.438 | EG26: =IF(CE27<$EW$58,$ES$58,IF(CE27<$EW$59,$ES$59,IF(CE27<$EW$60,$ES$60,IF(CE27<$EW$61,$ES$61,IF(CE27<$EW$62,$ES$62,IF(CE27<$EW$63,$ES$63,IF(CE27<$EW$64,$ES$64,$ES$65))))))) -> 0.5 | EH26: =IF(CE27<$EW$66,$ES$66,IF(CE27<$EW$67,$ES$67,IF(CE27<$EW$68,$ES$68,IF(CE27<$EW$69,$ES$69,IF(CE27<$EW$70,$ES$70,IF(CE27<$EW$71,$ES$71,IF(CE27<$EW$72,$ES$72,$ES$73))))))) -> 0.563 | EI26: =IF(CE27<$EW$74,$ES$74,IF(CE27<$EW$75,$ES$75,IF(CE27<$EW$76,$ES$76,IF(CE27<$EW$77,$ES$77,IF(CE27<$EW$78,$ES$78,IF(CE27<$EW$79,$ES$79,IF(CE27<$EW$80,$ES$80,$ES$81))))))) -> 0.625 | EJ26: =IF(CE27<$EW$82,$ES$82,IF(CE27<$EW$83,$ES$83,IF(CE27<$EW$84,$ES$84,IF(CE27<$EW$85,$ES$85,IF(CE27<$EW$86,$ES$86,IF(CE27<$EW$87,$ES$87,IF(CE27<$EW$88,$ES$88,$ES$89))))))) -> 0.667 | EK26: =IF(CE27<$EW$90,$ES$90,IF(CE27<$EW$91,$ES$91,IF(CE27<$EW$92,$ES$92,IF(CE27<$EW$93,$ES$93,IF(CE27<$EW$94,$ES$94,IF(CE27<$EW$95,$ES$95,IF(CE27<$EW$96,$ES$96,$ES$97))))))) -> 0.692 | EL26: =IF(CE27<$EW$98,$ES$98,IF(CE27<$EW$99,$ES$99,IF(CE27<$EW$100,$ES$100,IF(CE27<$EW$101,$ES$101,IF(CE27<$EW$102,$ES$102,IF(CE27<$EW$103,$ES$103,IF(CE27<$EW$104,$ES$104,$ES$105))))))) -> 0.75 | EM26: =IF(CE27<$EW$106,$ES$106,IF(CE27<$EW$107,$ES$107,IF(CE27<$EW$108,$ES$108,IF(CE27<$EW$109,$ES$109,IF(CE27<$EW$110,$ES$110,IF(CE27<$EW$111,$ES$111,IF(CE27<$EW$112,$ES$112,$ES$113))))))) -> 0.818 | EN26: =IF(CE27<$EW$114,$ES$114,IF(CE27<$EW$115,$ES$115,IF(CE27<$EW$116,$ES$116,IF(CE27<$EW$117,$ES$117,IF(CE27<$EW$118,$ES$118,IF(CE27<$EW$119,$ES$119,IF(CE27<$EW$120,$ES$120,$ES$121))))))) -> 0.875 | EO26: =IF(CE27<$EW$122,$ES$122,IF(CE27<$EW$123,$ES$123,IF(CE27<$EW$124,$ES$124,IF(CE27<$EW$125,$ES$125,IF(CE27<$EW$126,$ES$126,IF(CE27<$EW$127,$ES$127,$ES$128)))))) -> 0.929 | EP26: 25 | EQ26: 1 | ER26: 5 | ES26: 0.2 | ET26: ¹ | EU26: ₅ | EV26: ⅕ | EW26: 0.206 | EX26: 4 | EY26: ₄
J27: 3 | K27: 5 | V27: 11 | W27: 11 | X27: -7.7 | Y27: -66.3 | AC27: 11 | AD27: 11 | AE27: -7.7 | AF27: -24.1 | AJ27: 11 | AK27: 11 | AL27: -7.7 | AM27: -7.7 | AT27: -9.7 | AU27: -18.4 | AV27: -7.7 | AW27: -14.4 | BD27: 23 | BE27: -⅔x³ | BF27: − ⅔x² | BG27: -⅔x² | BH27: x | BI27: =CONCATENATE("⅕",$S$2," ") -> ⅕𝒙 | BJ27: − 2 | BK27: -2 | BL27: =-2/3 -> -0.6666666667 | BM27: =-2/3 -> -0.6666666667 | BN27: =1/5 -> 0.2 | BO27: -2 | BP27: 1 | BQ27: 5 | BR27: 1 | BS27: 5 | BT27: 0.2 | BU27: ⅕ | CA27: -11.66666667 | CB27: 11.66666667 | CC27: − | CD27: 11 | CE27: 0.667 | CF27: =IF(CE27=CZ26,CZ27,IF(CE27=DA26,DA27,IF(CE27=DB26,DB27,IF(CE27=DC26,DC27,IF(CE27=DD26,DD27,IF(CE27=DE26,DE27,IF(CE27=DF26,DF27,CE27))))))) -> ⅔ | CG27: =IF(CF27=DG26,DG27,IF(CF27=DH26,DH27,CF27)) -> ⅔ | CH27: −11⅔ | CI27: =IF(CE27=CZ26,"*",IF(CE27=DA26,"*",IF(CE27=DB26,"*",IF(CE27=DC26,"*",IF(CE27=DD26,"*",IF(CE27=DE26,"*",IF(CE27=DF26,"*",CO27))))))) -> * | CJ27: =IF(CF27=DG26,"*",IF(CF27=DH26,"*",CI27)) -> * | CK27: * | CL27: -583.3333333 | CM27: -583 | CN27: -0.333333333333258 | CO27: · | CP27: =ROUND(50*CA27,0) -> -583 | CQ27: =IF(DI26=1,DJ27,DQ27) -> ¹∕₁₃ | CR27: =IF(DI26=1,DK27,DR27) -> ²∕₁₅ | CS27: =IF(DI26=1,DL27,DS27) -> ³∕₁₆ | CT27: =IF(DI26=1,DM27,DT27) -> ¼ | CU27: =IF(DI26=1,DN27,DU27) -> ⁴∕₁₅ | CV27: =IF(DI26=1,DO27,DV27) -> ⁶∕₁₉ | CW27: =IF(DI26=1,DP27,DW27) -> ⁵∕₁₃ | CX27: =IF(DI26=1,DQ27,DX27) -> ⁴∕₉ | CY27: =IF(DI26=1,DR27,DY27) -> ¹º∕₁₉ | CZ27: =IF(DI27=1,DZ27,EG27) -> ½ | DA27: =IF(DI27=1,EA27,EH27) -> ⁹∕₁₆ | DB27: =IF(DI27=1,EB27,EI27) -> ⅝ | DC27: =IF(DI27=1,EC27,EJ27) -> ⅔ | DD27: =IF(DI27=1,ED27,EK27) -> ⁹∕₁₃ | DE27: =IF(DI27=1,EE27,EL27) -> ¾ | DF27: =IF(DI27=1,EF27,EM27) -> ⁹∕₁₁ | DG27: =IF(DI27=1,EG27,EN27) -> ⅞ | DH27: =IF(DI27=1,EH27,EO27) -> ¹³∕₁₄ | DI27: 2 | DJ27: =IF(CE26<$EW$2,$EV$2,IF(CE26<$EW$3,$EV$3,IF(CE26<$EW$4,$EV$4,IF(CE26<$EW$5,$EV$5,IF(CE26<$EW$6,$EV$6,IF(CE26<$EW$7,$EV$7,IF(CE26<$EW$8,$EV$8,$EV$9))))))) -> ¹∕₁₃ | DK27: =IF(CE26<$EW$10,$EV$10,IF(CE26<$EW$11,$EV$11,IF(CE26<$EW$12,$EV$12,IF(CE26<$EW$13,$EV$13,IF(CE26<$EW$14,$EV$14,IF(CE26<$EW$15,$EV$15,IF(CE26<$EW$16,$EV$16,$EV$17))))))) -> ²∕₁₅ | DL27: =IF(CE26<$EW$18,$EV$18,IF(CE26<$EW$19,$EV$19,IF(CE26<$EW$20,$EV$20,IF(CE26<$EW$21,$EV$21,IF(CE26<$EW$22,$EV$22,IF(CE26<$EW$23,$EV$23,IF(CE26<$EW$24,$EV$24,$EV$25))))))) -> ³∕₁₆ | DM27: =IF(CE26<$EW$26,$EV$26,IF(CE26<$EW$27,$EV$27,IF(CE26<$EW$28,$EV$28,IF(CE26<$EW$29,$EV$29,IF(CE26<$EW$30,$EV$30,IF(CE26<$EW$31,$EV$31,IF(CE26<$EW$32,$EV$32,$EV$33))))))) -> ¼ | DN27: =IF(CE26<$EW$34,$EV$34,IF(CE26<$EW$35,$EV$35,IF(CE26<$EW$36,$EV$36,IF(CE26<$EW$37,$EV$37,IF(CE26<$EW$38,$EV$38,IF(CE26<$EW$39,$EV$39,IF(CE26<$EW$40,$EV$40,$EV$41))))))) -> ⁴∕₁₅ | DO27: =IF(CE26<$EW$42,$EV$42,IF(CE26<$EW$43,$EV$43,IF(CE26<$EW$44,$EV$44,IF(CE26<$EW$45,$EV$45,IF(CE26<$EW$46,$EV$46,IF(CE26<$EW$47,$EV$47,IF(CE26<$EW$48,$EV$48,$EV$49))))))) -> ⁶∕₁₉ | DP27: =IF(CE26<$EW$50,$EV$50,IF(CE26<$EW$51,$EV$51,IF(CE26<$EW$52,$EV$52,IF(CE26<$EW$53,$EV$53,IF(CE26<$EW$54,$EV$54,IF(CE26<$EW$55,$EV$55,IF(CE26<$EW$56,$EV$56,$EV$57))))))) -> ⁵∕₁₃ | DQ27: =IF(CE26<$EW$58,$EV$58,IF(CE26<$EW$59,$EV$59,IF(CE26<$EW$60,$EV$60,IF(CE26<$EW$61,$EV$61,IF(CE26<$EW$62,$EV$62,IF(CE26<$EW$63,$EV$63,IF(CE26<$EW$64,$EV$64,$EV$65))))))) -> ⁴∕₉ | DR27: =IF(CE26<$EW$66,$EV$66,IF(CE26<$EW$67,$EV$67,IF(CE26<$EW$68,$EV$68,IF(CE26<$EW$69,$EV$69,IF(CE26<$EW$70,$EV$70,IF(CE26<$EW$71,$EV$71,IF(CE26<$EW$72,$EV$72,$EV$73))))))) -> ¹º∕₁₉ | DS27: =IF(CE26<$EW$74,$EV$74,IF(CE26<$EW$75,$EV$75,IF(CE26<$EW$76,$EV$76,IF(CE26<$EW$77,$EV$77,IF(CE26<$EW$78,$EV$78,IF(CE26<$EW$79,$EV$79,IF(CE26<$EW$80,$EV$80,$EV$81))))))) -> ⁴∕₇ | DT27: =IF(CE26<$EW$82,$EV$82,IF(CE26<$EW$83,$EV$83,IF(CE26<$EW$84,$EV$84,IF(CE26<$EW$85,$EV$85,IF(CE26<$EW$86,$EV$86,IF(CE26<$EW$87,$EV$87,IF(CE26<$EW$88,$EV$88,$EV$89))))))) -> ¹²∕₁₉ | DU27: =IF(CE26<$EW$90,$EV$90,IF(CE26<$EW$91,$EV$91,IF(CE26<$EW$92,$EV$92,IF(CE26<$EW$93,$EV$93,IF(CE26<$EW$94,$EV$94,IF(CE26<$EW$95,$EV$95,IF(CE26<$EW$96,$EV$96,$EV$97))))))) -> ⁹∕₁₃ | DV27: =IF(CE26<$EW$98,$EV$98,IF(CE26<$EW$99,$EV$99,IF(CE26<$EW$100,$EV$100,IF(CE26<$EW$101,$EV$101,IF(CE26<$EW$102,$EV$102,IF(CE26<$EW$103,$EV$103,IF(CE26<$EW$104,$EV$104,$EV$105))))))) -> ¾ | DW27: =IF(CE26<$EW$106,$EV$106,IF(CE26<$EW$107,$EV$107,IF(CE26<$EW$108,$EV$108,IF(CE26<$EW$109,$EV$109,IF(CE26<$EW$110,$EV$110,IF(CE26<$EW$111,$EV$111,IF(CE26<$EW$112,$EV$112,$EV$113))))))) -> ⁹∕₁₁ | DX27: =IF(CE26<$EW$114,$EV$114,IF(CE26<$EW$115,$EV$115,IF(CE26<$EW$116,$EV$116,IF(CE26<$EW$117,$EV$117,IF(CE26<$EW$118,$EV$118,IF(CE26<$EW$119,$EV$119,IF(CE26<$EW$120,$EV$120,$EV$121))))))) -> ⅞ | DY27: =IF(CE26<$EW$122,$EV$122,IF(CE26<$EW$123,$EV$123,IF(CE26<$EW$124,$EV$124,IF(CE26<$EW$125,$EV$125,IF(CE26<$EW$126,$EV$126,IF(CE26<$EW$127,$EV$127,$EV$128)))))) -> ¹³∕₁₄ | DZ27: =IF(CE27<$EW$2,$EV$2,IF(CE27<$EW$3,$EV$3,IF(CE27<$EW$4,$EV$4,IF(CE27<$EW$5,$EV$5,IF(CE27<$EW$6,$EV$6,IF(CE27<$EW$7,$EV$7,IF(CE27<$EW$8,$EV$8,$EV$9))))))) -> ¹∕₁₃ | EA27: =IF(CE27<$EW$10,$EV$10,IF(CE27<$EW$11,$EV$11,IF(CE27<$EW$12,$EV$12,IF(CE27<$EW$13,$EV$13,IF(CE27<$EW$14,$EV$14,IF(CE27<$EW$15,$EV$15,IF(CE27<$EW$16,$EV$16,$EV$17))))))) -> ²∕₁₅ | EB27: =IF(CE27<$EW$18,$EV$18,IF(CE27<$EW$19,$EV$19,IF(CE27<$EW$20,$EV$20,IF(CE27<$EW$21,$EV$21,IF(CE27<$EW$22,$EV$22,IF(CE27<$EW$23,$EV$23,IF(CE27<$EW$24,$EV$24,$EV$25))))))) -> ³∕₁₆ | EC27: =IF(CE27<$EW$26,$EV$26,IF(CE27<$EW$27,$EV$27,IF(CE27<$EW$28,$EV$28,IF(CE27<$EW$29,$EV$29,IF(CE27<$EW$30,$EV$30,IF(CE27<$EW$31,$EV$31,IF(CE27<$EW$32,$EV$32,$EV$33))))))) -> ⁵∕₁₉ | ED27: =IF(CE27<$EW$34,$EV$34,IF(CE27<$EW$35,$EV$35,IF(CE27<$EW$36,$EV$36,IF(CE27<$EW$37,$EV$37,IF(CE27<$EW$38,$EV$38,IF(CE27<$EW$39,$EV$39,IF(CE27<$EW$40,$EV$40,$EV$41))))))) -> ⁵∕₁₆ | EE27: =IF(CE27<$EW$42,$EV$42,IF(CE27<$EW$43,$EV$43,IF(CE27<$EW$44,$EV$44,IF(CE27<$EW$45,$EV$45,IF(CE27<$EW$46,$EV$46,IF(CE27<$EW$47,$EV$47,IF(CE27<$EW$48,$EV$48,$EV$49))))))) -> ⅜ | EF27: =IF(CE27<$EW$50,$EV$50,IF(CE27<$EW$51,$EV$51,IF(CE27<$EW$52,$EV$52,IF(CE27<$EW$53,$EV$53,IF(CE27<$EW$54,$EV$54,IF(CE27<$EW$55,$EV$55,IF(CE27<$EW$56,$EV$56,$EV$57))))))) -> ⁷∕₁₆ | EG27: =IF(CE27<$EW$58,$EV$58,IF(CE27<$EW$59,$EV$59,IF(CE27<$EW$60,$EV$60,IF(CE27<$EW$61,$EV$61,IF(CE27<$EW$62,$EV$62,IF(CE27<$EW$63,$EV$63,IF(CE27<$EW$64,$EV$64,$EV$65))))))) -> ½ | EH27: =IF(CE27<$EW$66,$EV$66,IF(CE27<$EW$67,$EV$67,IF(CE27<$EW$68,$EV$68,IF(CE27<$EW$69,$EV$69,IF(CE27<$EW$70,$EV$70,IF(CE27<$EW$71,$EV$71,IF(CE27<$EW$72,$EV$72,$EV$73))))))) -> ⁹∕₁₆ | EI27: =IF(CE27<$EW$74,$EV$74,IF(CE27<$EW$75,$EV$75,IF(CE27<$EW$76,$EV$76,IF(CE27<$EW$77,$EV$77,IF(CE27<$EW$78,$EV$78,IF(CE27<$EW$79,$EV$79,IF(CE27<$EW$80,$EV$80,$EV$81))))))) -> ⅝ | EJ27: =IF(CE27<$EW$82,$EV$82,IF(CE27<$EW$83,$EV$83,IF(CE27<$EW$84,$EV$84,IF(CE27<$EW$85,$EV$85,IF(CE27<$EW$86,$EV$86,IF(CE27<$EW$87,$EV$87,IF(CE27<$EW$88,$EV$88,$EV$89))))))) -> ⅔ | EK27: =IF(CE27<$EW$90,$EV$90,IF(CE27<$EW$91,$EV$91,IF(CE27<$EW$92,$EV$92,IF(CE27<$EW$93,$EV$93,IF(CE27<$EW$94,$EV$94,IF(CE27<$EW$95,$EV$95,IF(CE27<$EW$96,$EV$96,$EV$97))))))) -> ⁹∕₁₃ | EL27: =IF(CE27<$EW$98,$EV$98,IF(CE27<$EW$99,$EV$99,IF(CE27<$EW$100,$EV$100,IF(CE27<$EW$101,$EV$101,IF(CE27<$EW$102,$EV$102,IF(CE27<$EW$103,$EV$103,IF(CE27<$EW$104,$EV$104,$EV$105))))))) -> ¾ | EM27: =IF(CE27<$EW$106,$EV$106,IF(CE27<$EW$107,$EV$107,IF(CE27<$EW$108,$EV$108,IF(CE27<$EW$109,$EV$109,IF(CE27<$EW$110,$EV$110,IF(CE27<$EW$111,$EV$111,IF(CE27<$EW$112,$EV$112,$EV$113))))))) -> ⁹∕₁₁ | EN27: =IF(CE27<$EW$114,$EV$114,IF(CE27<$EW$115,$EV$115,IF(CE27<$EW$116,$EV$116,IF(CE27<$EW$117,$EV$117,IF(CE27<$EW$118,$EV$118,IF(CE27<$EW$119,$EV$119,IF(CE27<$EW$120,$EV$120,$EV$121))))))) -> ⅞ | EO27: =IF(CE27<$EW$122,$EV$122,IF(CE27<$EW$123,$EV$123,IF(CE27<$EW$124,$EV$124,IF(CE27<$EW$125,$EV$125,IF(CE27<$EW$126,$EV$126,IF(CE27<$EW$127,$EV$127,$EV$128)))))) -> ¹³∕₁₄ | EP27: 26 | EQ27: 4 | ER27: 19 | ES27: 0.211 | ET27: ⁴ | EU27: ₁₉ | EV27: =CONCATENATE(ET27,$EX$22,EU27) -> ⁴∕₁₉ | EW27: 0.213 | EX27: 5 | EY27: ₅
J28: 4 | K28: 5 | V28: 11 | W28: 11 | X28: -7.6 | Y28: -65.4 | AC28: 11 | AD28: 11 | AE28: -7.6 | AF28: -23.8 | AJ28: 11 | AK28: 11 | AL28: -7.6 | AM28: -7.6 | AT28: -9.6 | AU28: -18.2 | AV28: -7.6 | AW28: -14.2 | BD28: 24 | BE28: -¾x³ | BF28: − ¾x² | BG28: -¾x² | BH28: 0 | BI28: 0 | BJ28: − 2½ | BK28: -2½ | BL28: -0.75 | BM28: -0.75 | BN28: 0 | BO28: -2.5 | BP28: 0 | BQ28: 1 | BR28: 0 | BS28: 1 | BT28: 0 | BU28: 0 | CA28: 49 | CB28: 49 | CD28: 49 | CE28: 0 | CF28: =IF(CE28=CQ28,CQ29,IF(CE28=CR28,CR29,IF(CE28=CS28,CS29,IF(CE28=CT28,CT29,IF(CE28=CU28,CU29,IF(CE28=CV28,CV29,IF(CE28=CW28,CW29,CE28))))))) -> 0 | CG28: =IF(CF28=CX28,CX29,IF(CF28=CY28,CY29,CF28)) -> 0 | CH28: 49 | CI28: =IF(CE28=CQ28,"*",IF(CE28=CR28,"*",IF(CE28=CS28,"*",IF(CE28=CT28,"*",IF(CE28=CU28,"*",IF(CE28=CV28,"*",IF(CE28=CW28,"*",CO28))))))) -> • | CJ28: =IF(CF28=CX28,"*",IF(CF28=CY28,"*",CI28)) -> • | CK28: ⁿ | CL28: 2450 | CM28: 2450 | CN28: 0 | CO28: • | CP28: =50*CA29 -> -1412.5 | CQ28: =IF(DI28=1,DJ28,DQ28) -> 0.05 | CR28: =IF(DI28=1,DK28,DR28) -> 0.083 | CS28: =IF(DI28=1,DL28,DS28) -> 0.143 | CT28: =IF(DI28=1,DM28,DT28) -> 0.2 | CU28: =IF(DI28=1,DN28,DU28) -> 0.267 | CV28: =IF(DI28=1,DO28,DV28) -> 0.316 | CW28: =IF(DI28=1,DP28,DW28) -> 0.385 | CX28: =IF(DI28=1,DQ28,DX28) -> 0.444 | CY28: =IF(DI28=1,DR28,DY28) -> 0.526 | CZ28: =IF(DI29=1,DZ28,EG28) -> 0.077 | DA28: =IF(DI29=1,EA28,EH28) -> 0.133 | DB28: =IF(DI29=1,EB28,EI28) -> 0.188 | DC28: =IF(DI29=1,EC28,EJ28) -> 0.25 | DD28: =IF(DI29=1,ED28,EK28) -> 0.267 | DE28: =IF(DI29=1,EE28,EL28) -> 0.316 | DF28: =IF(DI29=1,EF28,EM28) -> 0.385 | DG28: =IF(DI29=1,EG28,EN28) -> 0.444 | DH28: =IF(DI29=1,EH28,EO28) -> 0.526 | DI28: 1 | DJ28: =IF(CE28<$EW$2,$ES$2,IF(CE28<$EW$3,$ES$3,IF(CE28<$EW$4,$ES$4,IF(CE28<$EW$5,$ES$5,IF(CE28<$EW$6,$ES$6,IF(CE28<$EW$7,$ES$7,IF(CE28<$EW$8,$ES$8,$ES$9))))))) -> 0.05 | DK28: =IF(CE28<$EW$10,$ES$10,IF(CE28<$EW$11,$ES$11,IF(CE28<$EW$12,$ES$12,IF(CE28<$EW$13,$ES$13,IF(CE28<$EW$14,$ES$14,IF(CE28<$EW$15,$ES$15,IF(CE28<$EW$16,$ES$16,$ES$17))))))) -> 0.083 | DL28: =IF(CE28<$EW$18,$ES$18,IF(CE28<$EW$19,$ES$19,IF(CE28<$EW$20,$ES$20,IF(CE28<$EW$21,$ES$21,IF(CE28<$EW$22,$ES$22,IF(CE28<$EW$23,$ES$23,IF(CE28<$EW$24,$ES$24,$ES$25))))))) -> 0.143 | DM28: =IF(CE28<$EW$26,$ES$26,IF(CE28<$EW$27,$ES$27,IF(CE28<$EW$28,$ES$28,IF(CE28<$EW$29,$ES$29,IF(CE28<$EW$30,$ES$30,IF(CE28<$EW$31,$ES$31,IF(CE28<$EW$32,$ES$32,$ES$33))))))) -> 0.2 | DN28: =IF(CE28<$EW$34,$ES$34,IF(CE28<$EW$35,$ES$35,IF(CE28<$EW$36,$ES$36,IF(CE28<$EW$37,$ES$37,IF(CE28<$EW$38,$ES$38,IF(CE28<$EW$39,$ES$39,IF(CE28<$EW$40,$ES$40,$ES$41))))))) -> 0.267 | DO28: =IF(CE28<$EW$42,$ES$42,IF(CE28<$EW$43,$ES$43,IF(CE28<$EW$44,$ES$44,IF(CE28<$EW$45,$ES$45,IF(CE28<$EW$46,$ES$46,IF(CE28<$EW$47,$ES$47,IF(CE28<$EW$48,$ES$48,$ES$49))))))) -> 0.316 | DP28: =IF(CE28<$EW$50,$ES$50,IF(CE28<$EW$51,$ES$51,IF(CE28<$EW$52,$ES$52,IF(CE28<$EW$53,$ES$53,IF(CE28<$EW$54,$ES$54,IF(CE28<$EW$55,$ES$55,IF(CE28<$EW$56,$ES$56,$ES$57))))))) -> 0.385 | DQ28: =IF(CE28<$EW$58,$ES$58,IF(CE28<$EW$59,$ES$59,IF(CE28<$EW$60,$ES$60,IF(CE28<$EW$61,$ES$61,IF(CE28<$EW$62,$ES$62,IF(CE28<$EW$63,$ES$63,IF(CE28<$EW$64,$ES$64,$ES$65))))))) -> 0.444 | DR28: =IF(CE28<$EW$66,$ES$66,IF(CE28<$EW$67,$ES$67,IF(CE28<$EW$68,$ES$68,IF(CE28<$EW$69,$ES$69,IF(CE28<$EW$70,$ES$70,IF(CE28<$EW$71,$ES$71,IF(CE28<$EW$72,$ES$72,$ES$73))))))) -> 0.526 | DS28: =IF(CE28<$EW$74,$ES$74,IF(CE28<$EW$75,$ES$75,IF(CE28<$EW$76,$ES$76,IF(CE28<$EW$77,$ES$77,IF(CE28<$EW$78,$ES$78,IF(CE28<$EW$79,$ES$79,IF(CE28<$EW$80,$ES$80,$ES$81))))))) -> 0.571 | DT28: =IF(CE28<$EW$82,$ES$82,IF(CE28<$EW$83,$ES$83,IF(CE28<$EW$84,$ES$84,IF(CE28<$EW$85,$ES$85,IF(CE28<$EW$86,$ES$86,IF(CE28<$EW$87,$ES$87,IF(CE28<$EW$88,$ES$88,$ES$89))))))) -> 0.632 | DU28: =IF(CE28<$EW$90,$ES$90,IF(CE28<$EW$91,$ES$91,IF(CE28<$EW$92,$ES$92,IF(CE28<$EW$93,$ES$93,IF(CE28<$EW$94,$ES$94,IF(CE28<$EW$95,$ES$95,IF(CE28<$EW$96,$ES$96,$ES$97))))))) -> 0.692 | DV28: =IF(CE28<$EW$98,$ES$98,IF(CE28<$EW$99,$ES$99,IF(CE28<$EW$100,$ES$100,IF(CE28<$EW$101,$ES$101,IF(CE28<$EW$102,$ES$102,IF(CE28<$EW$103,$ES$103,IF(CE28<$EW$104,$ES$104,$ES$105))))))) -> 0.75 | DW28: =IF(CE28<$EW$106,$ES$106,IF(CE28<$EW$107,$ES$107,IF(CE28<$EW$108,$ES$108,IF(CE28<$EW$109,$ES$109,IF(CE28<$EW$110,$ES$110,IF(CE28<$EW$111,$ES$111,IF(CE28<$EW$112,$ES$112,$ES$113))))))) -> 0.818 | DX28: =IF(CE28<$EW$114,$ES$114,IF(CE28<$EW$115,$ES$115,IF(CE28<$EW$116,$ES$116,IF(CE28<$EW$117,$ES$117,IF(CE28<$EW$118,$ES$118,IF(CE28<$EW$119,$ES$119,IF(CE28<$EW$120,$ES$120,$ES$121))))))) -> 0.875 | DY28: =IF(CE28<$EW$122,$ES$122,IF(CE28<$EW$123,$ES$123,IF(CE28<$EW$124,$ES$124,IF(CE28<$EW$125,$ES$125,IF(CE28<$EW$126,$ES$126,IF(CE28<$EW$127,$ES$127,$ES$128)))))) -> 0.929 | DZ28: =IF(CE29<$EW$2,$ES$2,IF(CE29<$EW$3,$ES$3,IF(CE29<$EW$4,$ES$4,IF(CE29<$EW$5,$ES$5,IF(CE29<$EW$6,$ES$6,IF(CE29<$EW$7,$ES$7,IF(CE29<$EW$8,$ES$8,$ES$9))))))) -> 0.077 | EA28: =IF(CE29<$EW$10,$ES$10,IF(CE29<$EW$11,$ES$11,IF(CE29<$EW$12,$ES$12,IF(CE29<$EW$13,$ES$13,IF(CE29<$EW$14,$ES$14,IF(CE29<$EW$15,$ES$15,IF(CE29<$EW$16,$ES$16,$ES$17))))))) -> 0.133 | EB28: =IF(CE29<$EW$18,$ES$18,IF(CE29<$EW$19,$ES$19,IF(CE29<$EW$20,$ES$20,IF(CE29<$EW$21,$ES$21,IF(CE29<$EW$22,$ES$22,IF(CE29<$EW$23,$ES$23,IF(CE29<$EW$24,$ES$24,$ES$25))))))) -> 0.188 | EC28: =IF(CE29<$EW$26,$ES$26,IF(CE29<$EW$27,$ES$27,IF(CE29<$EW$28,$ES$28,IF(CE29<$EW$29,$ES$29,IF(CE29<$EW$30,$ES$30,IF(CE29<$EW$31,$ES$31,IF(CE29<$EW$32,$ES$32,$ES$33))))))) -> 0.25 | ED28: =IF(CE29<$EW$34,$ES$34,IF(CE29<$EW$35,$ES$35,IF(CE29<$EW$36,$ES$36,IF(CE29<$EW$37,$ES$37,IF(CE29<$EW$38,$ES$38,IF(CE29<$EW$39,$ES$39,IF(CE29<$EW$40,$ES$40,$ES$41))))))) -> 0.267 | EE28: =IF(CE29<$EW$42,$ES$42,IF(CE29<$EW$43,$ES$43,IF(CE29<$EW$44,$ES$44,IF(CE29<$EW$45,$ES$45,IF(CE29<$EW$46,$ES$46,IF(CE29<$EW$47,$ES$47,IF(CE29<$EW$48,$ES$48,$ES$49))))))) -> 0.316 | EF28: =IF(CE29<$EW$50,$ES$50,IF(CE29<$EW$51,$ES$51,IF(CE29<$EW$52,$ES$52,IF(CE29<$EW$53,$ES$53,IF(CE29<$EW$54,$ES$54,IF(CE29<$EW$55,$ES$55,IF(CE29<$EW$56,$ES$56,$ES$57))))))) -> 0.385 | EG28: =IF(CE29<$EW$58,$ES$58,IF(CE29<$EW$59,$ES$59,IF(CE29<$EW$60,$ES$60,IF(CE29<$EW$61,$ES$61,IF(CE29<$EW$62,$ES$62,IF(CE29<$EW$63,$ES$63,IF(CE29<$EW$64,$ES$64,$ES$65))))))) -> 0.444 | EH28: =IF(CE29<$EW$66,$ES$66,IF(CE29<$EW$67,$ES$67,IF(CE29<$EW$68,$ES$68,IF(CE29<$EW$69,$ES$69,IF(CE29<$EW$70,$ES$70,IF(CE29<$EW$71,$ES$71,IF(CE29<$EW$72,$ES$72,$ES$73))))))) -> 0.526 | EI28: =IF(CE29<$EW$74,$ES$74,IF(CE29<$EW$75,$ES$75,IF(CE29<$EW$76,$ES$76,IF(CE29<$EW$77,$ES$77,IF(CE29<$EW$78,$ES$78,IF(CE29<$EW$79,$ES$79,IF(CE29<$EW$80,$ES$80,$ES$81))))))) -> 0.571 | EJ28: =IF(CE29<$EW$82,$ES$82,IF(CE29<$EW$83,$ES$83,IF(CE29<$EW$84,$ES$84,IF(CE29<$EW$85,$ES$85,IF(CE29<$EW$86,$ES$86,IF(CE29<$EW$87,$ES$87,IF(CE29<$EW$88,$ES$88,$ES$89))))))) -> 0.632 | EK28: =IF(CE29<$EW$90,$ES$90,IF(CE29<$EW$91,$ES$91,IF(CE29<$EW$92,$ES$92,IF(CE29<$EW$93,$ES$93,IF(CE29<$EW$94,$ES$94,IF(CE29<$EW$95,$ES$95,IF(CE29<$EW$96,$ES$96,$ES$97))))))) -> 0.692 | EL28: =IF(CE29<$EW$98,$ES$98,IF(CE29<$EW$99,$ES$99,IF(CE29<$EW$100,$ES$100,IF(CE29<$EW$101,$ES$101,IF(CE29<$EW$102,$ES$102,IF(CE29<$EW$103,$ES$103,IF(CE29<$EW$104,$ES$104,$ES$105))))))) -> 0.75 | EM28: =IF(CE29<$EW$106,$ES$106,IF(CE29<$EW$107,$ES$107,IF(CE29<$EW$108,$ES$108,IF(CE29<$EW$109,$ES$109,IF(CE29<$EW$110,$ES$110,IF(CE29<$EW$111,$ES$111,IF(CE29<$EW$112,$ES$112,$ES$113))))))) -> 0.818 | EN28: =IF(CE29<$EW$114,$ES$114,IF(CE29<$EW$115,$ES$115,IF(CE29<$EW$116,$ES$116,IF(CE29<$EW$117,$ES$117,IF(CE29<$EW$118,$ES$118,IF(CE29<$EW$119,$ES$119,IF(CE29<$EW$120,$ES$120,$ES$121))))))) -> 0.875 | EO28: =IF(CE29<$EW$122,$ES$122,IF(CE29<$EW$123,$ES$123,IF(CE29<$EW$124,$ES$124,IF(CE29<$EW$125,$ES$125,IF(CE29<$EW$126,$ES$126,IF(CE29<$EW$127,$ES$127,$ES$128)))))) -> 0.929 | EP28: 27 | EQ28: 3 | ER28: 14 | ES28: 0.214 | ET28: ³ | EU28: ₁₄ | EV28: =CONCATENATE(ET28,$EX$22,EU28) -> ³∕₁₄ | EW28: 0.218 | EX28: 6 | EY28: ₆
J29: 4 | K29: -5 | V29: 11 | W29: 11 | X29: -7.5 | Y29: -64.5 | AC29: 11 | AD29: 11 | AE29: -7.5 | AF29: -23.5 | AJ29: 11 | AK29: 11 | AL29: -7.5 | AM29: -7.5 | AT29: -9.5 | AU29: -18 | AV29: -7.5 | AW29: -14 | BD29: 25 | BE29: -x³ | BF29: − x² | BG29: -x² | BH29: x | BI29: =CONCATENATE("−⅕",$S$2," ") -> −⅕𝒙 | BJ29: − 3 | BK29: -3 | BL29: -1 | BM29: -1 | BN29: =-1/5 -> -0.2 | BO29: -3 | BP29: -1 | BQ29: 5 | BR29: -1 | BS29: 5 | BT29: -0.2 | BU29: −⅕ | CA29: -28.25 | CB29: 28.25 | CC29: − | CD29: 28 | CE29: 0.25 | CF29: =IF(CE29=CZ28,CZ29,IF(CE29=DA28,DA29,IF(CE29=DB28,DB29,IF(CE29=DC28,DC29,IF(CE29=DD28,DD29,IF(CE29=DE28,DE29,IF(CE29=DF28,DF29,CE29))))))) -> ¼ | CG29: =IF(CF29=DG28,DG29,IF(CF29=DH28,DH29,CF29)) -> ¼ | CH29: −28¼ | CI29: =IF(CE29=CZ28,"*",IF(CE29=DA28,"*",IF(CE29=DB28,"*",IF(CE29=DC28,"*",IF(CE29=DD28,"*",IF(CE29=DE28,"*",IF(CE29=DF28,"*",CO29))))))) -> * | CJ29: =IF(CF29=DG28,"*",IF(CF29=DH28,"*",CI29)) -> * | CK29: * | CL29: -1412.5 | CM29: -1413 | CN29: 0.5 | CO29: • | CP29: =ROUND(50*CA29,0) -> -1413 | CQ29: =IF(DI28=1,DJ29,DQ29) -> ¹∕₂₀ | CR29: =IF(DI28=1,DK29,DR29) -> ¹∕₁₂ | CS29: =IF(DI28=1,DL29,DS29) -> ¹∕₇ | CT29: =IF(DI28=1,DM29,DT29) -> ⅕ | CU29: =IF(DI28=1,DN29,DU29) -> ⁴∕₁₅ | CV29: =IF(DI28=1,DO29,DV29) -> ⁶∕₁₉ | CW29: =IF(DI28=1,DP29,DW29) -> ⁵∕₁₃ | CX29: =IF(DI28=1,DQ29,DX29) -> ⁴∕₉ | CY29: =IF(DI28=1,DR29,DY29) -> ¹º∕₁₉ | CZ29: =IF(DI29=1,DZ29,EG29) -> ¹∕₁₃ | DA29: =IF(DI29=1,EA29,EH29) -> ²∕₁₅ | DB29: =IF(DI29=1,EB29,EI29) -> ³∕₁₆ | DC29: =IF(DI29=1,EC29,EJ29) -> ¼ | DD29: =IF(DI29=1,ED29,EK29) -> ⁴∕₁₅ | DE29: =IF(DI29=1,EE29,EL29) -> ⁶∕₁₉ | DF29: =IF(DI29=1,EF29,EM29) -> ⁵∕₁₃ | DG29: =IF(DI29=1,EG29,EN29) -> ⁴∕₉ | DH29: =IF(DI29=1,EH29,EO29) -> ¹º∕₁₉ | DI29: 1 | DJ29: =IF(CE28<$EW$2,$EV$2,IF(CE28<$EW$3,$EV$3,IF(CE28<$EW$4,$EV$4,IF(CE28<$EW$5,$EV$5,IF(CE28<$EW$6,$EV$6,IF(CE28<$EW$7,$EV$7,IF(CE28<$EW$8,$EV$8,$EV$9))))))) -> ¹∕₂₀ | DK29: =IF(CE28<$EW$10,$EV$10,IF(CE28<$EW$11,$EV$11,IF(CE28<$EW$12,$EV$12,IF(CE28<$EW$13,$EV$13,IF(CE28<$EW$14,$EV$14,IF(CE28<$EW$15,$EV$15,IF(CE28<$EW$16,$EV$16,$EV$17))))))) -> ¹∕₁₂ | DL29: =IF(CE28<$EW$18,$EV$18,IF(CE28<$EW$19,$EV$19,IF(CE28<$EW$20,$EV$20,IF(CE28<$EW$21,$EV$21,IF(CE28<$EW$22,$EV$22,IF(CE28<$EW$23,$EV$23,IF(CE28<$EW$24,$EV$24,$EV$25))))))) -> ¹∕₇ | DM29: =IF(CE28<$EW$26,$EV$26,IF(CE28<$EW$27,$EV$27,IF(CE28<$EW$28,$EV$28,IF(CE28<$EW$29,$EV$29,IF(CE28<$EW$30,$EV$30,IF(CE28<$EW$31,$EV$31,IF(CE28<$EW$32,$EV$32,$EV$33))))))) -> ⅕ | DN29: =IF(CE28<$EW$34,$EV$34,IF(CE28<$EW$35,$EV$35,IF(CE28<$EW$36,$EV$36,IF(CE28<$EW$37,$EV$37,IF(CE28<$EW$38,$EV$38,IF(CE28<$EW$39,$EV$39,IF(CE28<$EW$40,$EV$40,$EV$41))))))) -> ⁴∕₁₅ | DO29: =IF(CE28<$EW$42,$EV$42,IF(CE28<$EW$43,$EV$43,IF(CE28<$EW$44,$EV$44,IF(CE28<$EW$45,$EV$45,IF(CE28<$EW$46,$EV$46,IF(CE28<$EW$47,$EV$47,IF(CE28<$EW$48,$EV$48,$EV$49))))))) -> ⁶∕₁₉ | DP29: =IF(CE28<$EW$50,$EV$50,IF(CE28<$EW$51,$EV$51,IF(CE28<$EW$52,$EV$52,IF(CE28<$EW$53,$EV$53,IF(CE28<$EW$54,$EV$54,IF(CE28<$EW$55,$EV$55,IF(CE28<$EW$56,$EV$56,$EV$57))))))) -> ⁵∕₁₃ | DQ29: =IF(CE28<$EW$58,$EV$58,IF(CE28<$EW$59,$EV$59,IF(CE28<$EW$60,$EV$60,IF(CE28<$EW$61,$EV$61,IF(CE28<$EW$62,$EV$62,IF(CE28<$EW$63,$EV$63,IF(CE28<$EW$64,$EV$64,$EV$65))))))) -> ⁴∕₉ | DR29: =IF(CE28<$EW$66,$EV$66,IF(CE28<$EW$67,$EV$67,IF(CE28<$EW$68,$EV$68,IF(CE28<$EW$69,$EV$69,IF(CE28<$EW$70,$EV$70,IF(CE28<$EW$71,$EV$71,IF(CE28<$EW$72,$EV$72,$EV$73))))))) -> ¹º∕₁₉ | DS29: =IF(CE28<$EW$74,$EV$74,IF(CE28<$EW$75,$EV$75,IF(CE28<$EW$76,$EV$76,IF(CE28<$EW$77,$EV$77,IF(CE28<$EW$78,$EV$78,IF(CE28<$EW$79,$EV$79,IF(CE28<$EW$80,$EV$80,$EV$81))))))) -> ⁴∕₇ | DT29: =IF(CE28<$EW$82,$EV$82,IF(CE28<$EW$83,$EV$83,IF(CE28<$EW$84,$EV$84,IF(CE28<$EW$85,$EV$85,IF(CE28<$EW$86,$EV$86,IF(CE28<$EW$87,$EV$87,IF(CE28<$EW$88,$EV$88,$EV$89))))))) -> ¹²∕₁₉ | DU29: =IF(CE28<$EW$90,$EV$90,IF(CE28<$EW$91,$EV$91,IF(CE28<$EW$92,$EV$92,IF(CE28<$EW$93,$EV$93,IF(CE28<$EW$94,$EV$94,IF(CE28<$EW$95,$EV$95,IF(CE28<$EW$96,$EV$96,$EV$97))))))) -> ⁹∕₁₃ | DV29: =IF(CE28<$EW$98,$EV$98,IF(CE28<$EW$99,$EV$99,IF(CE28<$EW$100,$EV$100,IF(CE28<$EW$101,$EV$101,IF(CE28<$EW$102,$EV$102,IF(CE28<$EW$103,$EV$103,IF(CE28<$EW$104,$EV$104,$EV$105))))))) -> ¾ | DW29: =IF(CE28<$EW$106,$EV$106,IF(CE28<$EW$107,$EV$107,IF(CE28<$EW$108,$EV$108,IF(CE28<$EW$109,$EV$109,IF(CE28<$EW$110,$EV$110,IF(CE28<$EW$111,$EV$111,IF(CE28<$EW$112,$EV$112,$EV$113))))))) -> ⁹∕₁₁ | DX29: =IF(CE28<$EW$114,$EV$114,IF(CE28<$EW$115,$EV$115,IF(CE28<$EW$116,$EV$116,IF(CE28<$EW$117,$EV$117,IF(CE28<$EW$118,$EV$118,IF(CE28<$EW$119,$EV$119,IF(CE28<$EW$120,$EV$120,$EV$121))))))) -> ⅞ | DY29: =IF(CE28<$EW$122,$EV$122,IF(CE28<$EW$123,$EV$123,IF(CE28<$EW$124,$EV$124,IF(CE28<$EW$125,$EV$125,IF(CE28<$EW$126,$EV$126,IF(CE28<$EW$127,$EV$127,$EV$128)))))) -> ¹³∕₁₄ | DZ29: =IF(CE29<$EW$2,$EV$2,IF(CE29<$EW$3,$EV$3,IF(CE29<$EW$4,$EV$4,IF(CE29<$EW$5,$EV$5,IF(CE29<$EW$6,$EV$6,IF(CE29<$EW$7,$EV$7,IF(CE29<$EW$8,$EV$8,$EV$9))))))) -> ¹∕₁₃ | EA29: =IF(CE29<$EW$10,$EV$10,IF(CE29<$EW$11,$EV$11,IF(CE29<$EW$12,$EV$12,IF(CE29<$EW$13,$EV$13,IF(CE29<$EW$14,$EV$14,IF(CE29<$EW$15,$EV$15,IF(CE29<$EW$16,$EV$16,$EV$17))))))) -> ²∕₁₅ | EB29: =IF(CE29<$EW$18,$EV$18,IF(CE29<$EW$19,$EV$19,IF(CE29<$EW$20,$EV$20,IF(CE29<$EW$21,$EV$21,IF(CE29<$EW$22,$EV$22,IF(CE29<$EW$23,$EV$23,IF(CE29<$EW$24,$EV$24,$EV$25))))))) -> ³∕₁₆ | EC29: =IF(CE29<$EW$26,$EV$26,IF(CE29<$EW$27,$EV$27,IF(CE29<$EW$28,$EV$28,IF(CE29<$EW$29,$EV$29,IF(CE29<$EW$30,$EV$30,IF(CE29<$EW$31,$EV$31,IF(CE29<$EW$32,$EV$32,$EV$33))))))) -> ¼ | ED29: =IF(CE29<$EW$34,$EV$34,IF(CE29<$EW$35,$EV$35,IF(CE29<$EW$36,$EV$36,IF(CE29<$EW$37,$EV$37,IF(CE29<$EW$38,$EV$38,IF(CE29<$EW$39,$EV$39,IF(CE29<$EW$40,$EV$40,$EV$41))))))) -> ⁴∕₁₅ | EE29: =IF(CE29<$EW$42,$EV$42,IF(CE29<$EW$43,$EV$43,IF(CE29<$EW$44,$EV$44,IF(CE29<$EW$45,$EV$45,IF(CE29<$EW$46,$EV$46,IF(CE29<$EW$47,$EV$47,IF(CE29<$EW$48,$EV$48,$EV$49))))))) -> ⁶∕₁₉ | EF29: =IF(CE29<$EW$50,$EV$50,IF(CE29<$EW$51,$EV$51,IF(CE29<$EW$52,$EV$52,IF(CE29<$EW$53,$EV$53,IF(CE29<$EW$54,$EV$54,IF(CE29<$EW$55,$EV$55,IF(CE29<$EW$56,$EV$56,$EV$57))))))) -> ⁵∕₁₃ | EG29: =IF(CE29<$EW$58,$EV$58,IF(CE29<$EW$59,$EV$59,IF(CE29<$EW$60,$EV$60,IF(CE29<$EW$61,$EV$61,IF(CE29<$EW$62,$EV$62,IF(CE29<$EW$63,$EV$63,IF(CE29<$EW$64,$EV$64,$EV$65))))))) -> ⁴∕₉ | EH29: =IF(CE29<$EW$66,$EV$66,IF(CE29<$EW$67,$EV$67,IF(CE29<$EW$68,$EV$68,IF(CE29<$EW$69,$EV$69,IF(CE29<$EW$70,$EV$70,IF(CE29<$EW$71,$EV$71,IF(CE29<$EW$72,$EV$72,$EV$73))))))) -> ¹º∕₁₉ | EI29: =IF(CE29<$EW$74,$EV$74,IF(CE29<$EW$75,$EV$75,IF(CE29<$EW$76,$EV$76,IF(CE29<$EW$77,$EV$77,IF(CE29<$EW$78,$EV$78,IF(CE29<$EW$79,$EV$79,IF(CE29<$EW$80,$EV$80,$EV$81))))))) -> ⁴∕₇ | EJ29: =IF(CE29<$EW$82,$EV$82,IF(CE29<$EW$83,$EV$83,IF(CE29<$EW$84,$EV$84,IF(CE29<$EW$85,$EV$85,IF(CE29<$EW$86,$EV$86,IF(CE29<$EW$87,$EV$87,IF(CE29<$EW$88,$EV$88,$EV$89))))))) -> ¹²∕₁₉ | EK29: =IF(CE29<$EW$90,$EV$90,IF(CE29<$EW$91,$EV$91,IF(CE29<$EW$92,$EV$92,IF(CE29<$EW$93,$EV$93,IF(CE29<$EW$94,$EV$94,IF(CE29<$EW$95,$EV$95,IF(CE29<$EW$96,$EV$96,$EV$97))))))) -> ⁹∕₁₃ | EL29: =IF(CE29<$EW$98,$EV$98,IF(CE29<$EW$99,$EV$99,IF(CE29<$EW$100,$EV$100,IF(CE29<$EW$101,$EV$101,IF(CE29<$EW$102,$EV$102,IF(CE29<$EW$103,$EV$103,IF(CE29<$EW$104,$EV$104,$EV$105))))))) -> ¾ | EM29: =IF(CE29<$EW$106,$EV$106,IF(CE29<$EW$107,$EV$107,IF(CE29<$EW$108,$EV$108,IF(CE29<$EW$109,$EV$109,IF(CE29<$EW$110,$EV$110,IF(CE29<$EW$111,$EV$111,IF(CE29<$EW$112,$EV$112,$EV$113))))))) -> ⁹∕₁₁ | EN29: =IF(CE29<$EW$114,$EV$114,IF(CE29<$EW$115,$EV$115,IF(CE29<$EW$116,$EV$116,IF(CE29<$EW$117,$EV$117,IF(CE29<$EW$118,$EV$118,IF(CE29<$EW$119,$EV$119,IF(CE29<$EW$120,$EV$120,$EV$121))))))) -> ⅞ | EO29: =IF(CE29<$EW$122,$EV$122,IF(CE29<$EW$123,$EV$123,IF(CE29<$EW$124,$EV$124,IF(CE29<$EW$125,$EV$125,IF(CE29<$EW$126,$EV$126,IF(CE29<$EW$127,$EV$127,$EV$128)))))) -> ¹³∕₁₄ | EP29: 28 | EQ29: 2 | ER29: 9 | ES29: 0.222 | ET29: ² | EU29: ₉ | EV29: =CONCATENATE(ET29,$EX$22,EU29) -> ²∕₉ | EW29: 0.227 | EX29: 7 | EY29: ₇
J30: 5 | K30: -5 | V30: 11 | W30: 11 | X30: -7.4 | Y30: -63.6 | AC30: 11 | AD30: 11 | AE30: -7.4 | AF30: -23.2 | AJ30: 11 | AK30: 11 | AL30: -7.4 | AM30: -7.4 | AT30: -9.4 | AU30: -17.8 | AV30: -7.4 | AW30: -13.8 | BD30: 26 | BE30: -1½x³ | BF30: − 1½x² | BG30: -1½x² | BH30: x | BI30: =CONCATENATE("−¼",$S$2," ") -> −¼𝒙 | BJ30: − 3½ | BK30: -3½ | BL30: -1.5 | BM30: -1.5 | BN30: =-0.25 -> -0.25 | BO30: -3.5 | BP30: -1 | BQ30: 4 | BR30: -1 | BS30: 4 | BT30: -0.25 | BU30: −¼ | CA30: 11.88888889 | CB30: 11.88888889 | CD30: 11 | CE30: 0.889 | CF30: =IF(CE30=CQ30,CQ31,IF(CE30=CR30,CR31,IF(CE30=CS30,CS31,IF(CE30=CT30,CT31,IF(CE30=CU30,CU31,IF(CE30=CV30,CV31,IF(CE30=CW30,CW31,CE30))))))) -> 0.889 | CG30: =IF(CF30=CX30,CX31,IF(CF30=CY30,CY31,CF30)) -> ⁸∕₉ | CH30: 11⁸∕₉ | CI30: =IF(CE30=CQ30,"*",IF(CE30=CR30,"*",IF(CE30=CS30,"*",IF(CE30=CT30,"*",IF(CE30=CU30,"*",IF(CE30=CV30,"*",IF(CE30=CW30,"*",CO30))))))) -> · | CJ30: =IF(CF30=CX30,"*",IF(CF30=CY30,"*",CI30)) -> * | CK30: * | CL30: 594.4444444 | CM30: 594 | CN30: 0.444444444444457 | CO30: · | CP30: =50*CA31 -> 1126.923077 | CQ30: =IF(DI30=1,DJ30,DQ30) -> 0.5 | CR30: =IF(DI30=1,DK30,DR30) -> 0.563 | CS30: =IF(DI30=1,DL30,DS30) -> 0.625 | CT30: =IF(DI30=1,DM30,DT30) -> 0.688 | CU30: =IF(DI30=1,DN30,DU30) -> 0.737 | CV30: =IF(DI30=1,DO30,DV30) -> 0.813 | CW30: =IF(DI30=1,DP30,DW30) -> 0.867 | CX30: =IF(DI30=1,DQ30,DX30) -> 0.889 | CY30: =IF(DI30=1,DR30,DY30) -> 0.929 | CZ30: =IF(DI31=1,DZ30,EG30) -> 0.5 | DA30: =IF(DI31=1,EA30,EH30) -> 0.538 | DB30: =IF(DI31=1,EB30,EI30) -> 0.571 | DC30: =IF(DI31=1,EC30,EJ30) -> 0.632 | DD30: =IF(DI31=1,ED30,EK30) -> 0.692 | DE30: =IF(DI31=1,EE30,EL30) -> 0.75 | DF30: =IF(DI31=1,EF30,EM30) -> 0.818 | DG30: =IF(DI31=1,EG30,EN30) -> 0.875 | DH30: =IF(DI31=1,EH30,EO30) -> 0.929 | DI30: 2 | DJ30: =IF(CE30<$EW$2,$ES$2,IF(CE30<$EW$3,$ES$3,IF(CE30<$EW$4,$ES$4,IF(CE30<$EW$5,$ES$5,IF(CE30<$EW$6,$ES$6,IF(CE30<$EW$7,$ES$7,IF(CE30<$EW$8,$ES$8,$ES$9))))))) -> 0.077 | DK30: =IF(CE30<$EW$10,$ES$10,IF(CE30<$EW$11,$ES$11,IF(CE30<$EW$12,$ES$12,IF(CE30<$EW$13,$ES$13,IF(CE30<$EW$14,$ES$14,IF(CE30<$EW$15,$ES$15,IF(CE30<$EW$16,$ES$16,$ES$17))))))) -> 0.133 | DL30: =IF(CE30<$EW$18,$ES$18,IF(CE30<$EW$19,$ES$19,IF(CE30<$EW$20,$ES$20,IF(CE30<$EW$21,$ES$21,IF(CE30<$EW$22,$ES$22,IF(CE30<$EW$23,$ES$23,IF(CE30<$EW$24,$ES$24,$ES$25))))))) -> 0.188 | DM30: =IF(CE30<$EW$26,$ES$26,IF(CE30<$EW$27,$ES$27,IF(CE30<$EW$28,$ES$28,IF(CE30<$EW$29,$ES$29,IF(CE30<$EW$30,$ES$30,IF(CE30<$EW$31,$ES$31,IF(CE30<$EW$32,$ES$32,$ES$33))))))) -> 0.263 | DN30: =IF(CE30<$EW$34,$ES$34,IF(CE30<$EW$35,$ES$35,IF(CE30<$EW$36,$ES$36,IF(CE30<$EW$37,$ES$37,IF(CE30<$EW$38,$ES$38,IF(CE30<$EW$39,$ES$39,IF(CE30<$EW$40,$ES$40,$ES$41))))))) -> 0.313 | DO30: =IF(CE30<$EW$42,$ES$42,IF(CE30<$EW$43,$ES$43,IF(CE30<$EW$44,$ES$44,IF(CE30<$EW$45,$ES$45,IF(CE30<$EW$46,$ES$46,IF(CE30<$EW$47,$ES$47,IF(CE30<$EW$48,$ES$48,$ES$49))))))) -> 0.375 | DP30: =IF(CE30<$EW$50,$ES$50,IF(CE30<$EW$51,$ES$51,IF(CE30<$EW$52,$ES$52,IF(CE30<$EW$53,$ES$53,IF(CE30<$EW$54,$ES$54,IF(CE30<$EW$55,$ES$55,IF(CE30<$EW$56,$ES$56,$ES$57))))))) -> 0.438 | DQ30: =IF(CE30<$EW$58,$ES$58,IF(CE30<$EW$59,$ES$59,IF(CE30<$EW$60,$ES$60,IF(CE30<$EW$61,$ES$61,IF(CE30<$EW$62,$ES$62,IF(CE30<$EW$63,$ES$63,IF(CE30<$EW$64,$ES$64,$ES$65))))))) -> 0.5 | DR30: =IF(CE30<$EW$66,$ES$66,IF(CE30<$EW$67,$ES$67,IF(CE30<$EW$68,$ES$68,IF(CE30<$EW$69,$ES$69,IF(CE30<$EW$70,$ES$70,IF(CE30<$EW$71,$ES$71,IF(CE30<$EW$72,$ES$72,$ES$73))))))) -> 0.563 | DS30: =IF(CE30<$EW$74,$ES$74,IF(CE30<$EW$75,$ES$75,IF(CE30<$EW$76,$ES$76,IF(CE30<$EW$77,$ES$77,IF(CE30<$EW$78,$ES$78,IF(CE30<$EW$79,$ES$79,IF(CE30<$EW$80,$ES$80,$ES$81))))))) -> 0.625 | DT30: =IF(CE30<$EW$82,$ES$82,IF(CE30<$EW$83,$ES$83,IF(CE30<$EW$84,$ES$84,IF(CE30<$EW$85,$ES$85,IF(CE30<$EW$86,$ES$86,IF(CE30<$EW$87,$ES$87,IF(CE30<$EW$88,$ES$88,$ES$89))))))) -> 0.688 | DU30: =IF(CE30<$EW$90,$ES$90,IF(CE30<$EW$91,$ES$91,IF(CE30<$EW$92,$ES$92,IF(CE30<$EW$93,$ES$93,IF(CE30<$EW$94,$ES$94,IF(CE30<$EW$95,$ES$95,IF(CE30<$EW$96,$ES$96,$ES$97))))))) -> 0.737 | DV30: =IF(CE30<$EW$98,$ES$98,IF(CE30<$EW$99,$ES$99,IF(CE30<$EW$100,$ES$100,IF(CE30<$EW$101,$ES$101,IF(CE30<$EW$102,$ES$102,IF(CE30<$EW$103,$ES$103,IF(CE30<$EW$104,$ES$104,$ES$105))))))) -> 0.813 | DW30: =IF(CE30<$EW$106,$ES$106,IF(CE30<$EW$107,$ES$107,IF(CE30<$EW$108,$ES$108,IF(CE30<$EW$109,$ES$109,IF(CE30<$EW$110,$ES$110,IF(CE30<$EW$111,$ES$111,IF(CE30<$EW$112,$ES$112,$ES$113))))))) -> 0.867 | DX30: =IF(CE30<$EW$114,$ES$114,IF(CE30<$EW$115,$ES$115,IF(CE30<$EW$116,$ES$116,IF(CE30<$EW$117,$ES$117,IF(CE30<$EW$118,$ES$118,IF(CE30<$EW$119,$ES$119,IF(CE30<$EW$120,$ES$120,$ES$121))))))) -> 0.889 | DY30: =IF(CE30<$EW$122,$ES$122,IF(CE30<$EW$123,$ES$123,IF(CE30<$EW$124,$ES$124,IF(CE30<$EW$125,$ES$125,IF(CE30<$EW$126,$ES$126,IF(CE30<$EW$127,$ES$127,$ES$128)))))) -> 0.929 | DZ30: =IF(CE31<$EW$2,$ES$2,IF(CE31<$EW$3,$ES$3,IF(CE31<$EW$4,$ES$4,IF(CE31<$EW$5,$ES$5,IF(CE31<$EW$6,$ES$6,IF(CE31<$EW$7,$ES$7,IF(CE31<$EW$8,$ES$8,$ES$9))))))) -> 0.077 | EA30: =IF(CE31<$EW$10,$ES$10,IF(CE31<$EW$11,$ES$11,IF(CE31<$EW$12,$ES$12,IF(CE31<$EW$13,$ES$13,IF(CE31<$EW$14,$ES$14,IF(CE31<$EW$15,$ES$15,IF(CE31<$EW$16,$ES$16,$ES$17))))))) -> 0.133 | EB30: =IF(CE31<$EW$18,$ES$18,IF(CE31<$EW$19,$ES$19,IF(CE31<$EW$20,$ES$20,IF(CE31<$EW$21,$ES$21,IF(CE31<$EW$22,$ES$22,IF(CE31<$EW$23,$ES$23,IF(CE31<$EW$24,$ES$24,$ES$25))))))) -> 0.188 | EC30: =IF(CE31<$EW$26,$ES$26,IF(CE31<$EW$27,$ES$27,IF(CE31<$EW$28,$ES$28,IF(CE31<$EW$29,$ES$29,IF(CE31<$EW$30,$ES$30,IF(CE31<$EW$31,$ES$31,IF(CE31<$EW$32,$ES$32,$ES$33))))))) -> 0.263 | ED30: =IF(CE31<$EW$34,$ES$34,IF(CE31<$EW$35,$ES$35,IF(CE31<$EW$36,$ES$36,IF(CE31<$EW$37,$ES$37,IF(CE31<$EW$38,$ES$38,IF(CE31<$EW$39,$ES$39,IF(CE31<$EW$40,$ES$40,$ES$41))))))) -> 0.313 | EE30: =IF(CE31<$EW$42,$ES$42,IF(CE31<$EW$43,$ES$43,IF(CE31<$EW$44,$ES$44,IF(CE31<$EW$45,$ES$45,IF(CE31<$EW$46,$ES$46,IF(CE31<$EW$47,$ES$47,IF(CE31<$EW$48,$ES$48,$ES$49))))))) -> 0.375 | EF30: =IF(CE31<$EW$50,$ES$50,IF(CE31<$EW$51,$ES$51,IF(CE31<$EW$52,$ES$52,IF(CE31<$EW$53,$ES$53,IF(CE31<$EW$54,$ES$54,IF(CE31<$EW$55,$ES$55,IF(CE31<$EW$56,$ES$56,$ES$57))))))) -> 0.438 | EG30: =IF(CE31<$EW$58,$ES$58,IF(CE31<$EW$59,$ES$59,IF(CE31<$EW$60,$ES$60,IF(CE31<$EW$61,$ES$61,IF(CE31<$EW$62,$ES$62,IF(CE31<$EW$63,$ES$63,IF(CE31<$EW$64,$ES$64,$ES$65))))))) -> 0.5 | EH30: =IF(CE31<$EW$66,$ES$66,IF(CE31<$EW$67,$ES$67,IF(CE31<$EW$68,$ES$68,IF(CE31<$EW$69,$ES$69,IF(CE31<$EW$70,$ES$70,IF(CE31<$EW$71,$ES$71,IF(CE31<$EW$72,$ES$72,$ES$73))))))) -> 0.538 | EI30: =IF(CE31<$EW$74,$ES$74,IF(CE31<$EW$75,$ES$75,IF(CE31<$EW$76,$ES$76,IF(CE31<$EW$77,$ES$77,IF(CE31<$EW$78,$ES$78,IF(CE31<$EW$79,$ES$79,IF(CE31<$EW$80,$ES$80,$ES$81))))))) -> 0.571 | EJ30: =IF(CE31<$EW$82,$ES$82,IF(CE31<$EW$83,$ES$83,IF(CE31<$EW$84,$ES$84,IF(CE31<$EW$85,$ES$85,IF(CE31<$EW$86,$ES$86,IF(CE31<$EW$87,$ES$87,IF(CE31<$EW$88,$ES$88,$ES$89))))))) -> 0.632 | EK30: =IF(CE31<$EW$90,$ES$90,IF(CE31<$EW$91,$ES$91,IF(CE31<$EW$92,$ES$92,IF(CE31<$EW$93,$ES$93,IF(CE31<$EW$94,$ES$94,IF(CE31<$EW$95,$ES$95,IF(CE31<$EW$96,$ES$96,$ES$97))))))) -> 0.692 | EL30: =IF(CE31<$EW$98,$ES$98,IF(CE31<$EW$99,$ES$99,IF(CE31<$EW$100,$ES$100,IF(CE31<$EW$101,$ES$101,IF(CE31<$EW$102,$ES$102,IF(CE31<$EW$103,$ES$103,IF(CE31<$EW$104,$ES$104,$ES$105))))))) -> 0.75 | EM30: =IF(CE31<$EW$106,$ES$106,IF(CE31<$EW$107,$ES$107,IF(CE31<$EW$108,$ES$108,IF(CE31<$EW$109,$ES$109,IF(CE31<$EW$110,$ES$110,IF(CE31<$EW$111,$ES$111,IF(CE31<$EW$112,$ES$112,$ES$113))))))) -> 0.818 | EN30: =IF(CE31<$EW$114,$ES$114,IF(CE31<$EW$115,$ES$115,IF(CE31<$EW$116,$ES$116,IF(CE31<$EW$117,$ES$117,IF(CE31<$EW$118,$ES$118,IF(CE31<$EW$119,$ES$119,IF(CE31<$EW$120,$ES$120,$ES$121))))))) -> 0.875 | EO30: =IF(CE31<$EW$122,$ES$122,IF(CE31<$EW$123,$ES$123,IF(CE31<$EW$124,$ES$124,IF(CE31<$EW$125,$ES$125,IF(CE31<$EW$126,$ES$126,IF(CE31<$EW$127,$ES$127,$ES$128)))))) -> 0.929 | EP30: 29 | EQ30: 3 | ER30: 13 | ES30: 0.231 | ET30: ³ | EU30: ₁₃ | EV30: =CONCATENATE(ET30,$EX$22,EU30) -> ³∕₁₃ | EW30: 0.233 | EX30: 8 | EY30: ₈
J31: 5 | K31: 5 | V31: 11 | W31: 11 | X31: -7.3 | Y31: -62.7 | AC31: 11 | AD31: 11 | AE31: -7.3 | AF31: -22.9 | AJ31: 11 | AK31: 11 | AL31: -7.3 | AM31: -7.3 | AT31: -9.3 | AU31: -17.6 | AV31: -7.3 | AW31: -13.6 | BD31: 27 | BE31: -2x³ | BF31: − 2x² | BG31: -2x² | BH31: x | BI31: =CONCATENATE("−⅓",$S$2," ") -> −⅓𝒙 | BJ31: − 4 | BK31: -4 | BL31: -2 | BM31: -2 | BN31: =-1/3 -> -0.3333333333 | BO31: -4 | BP31: -1 | BQ31: 3 | BR31: -1 | BS31: 3 | BT31: -0.3333333333 | BU31: −⅓ | CA31: 22.53846154 | CB31: 22.53846154 | CD31: 22 | CE31: 0.538 | CF31: =IF(CE31=CZ30,CZ31,IF(CE31=DA30,DA31,IF(CE31=DB30,DB31,IF(CE31=DC30,DC31,IF(CE31=DD30,DD31,IF(CE31=DE30,DE31,IF(CE31=DF30,DF31,CE31))))))) -> ⁷∕₁₃ | CG31: =IF(CF31=DG30,DG31,IF(CF31=DH30,DH31,CF31)) -> ⁷∕₁₃ | CH31: 22⁷∕₁₃ | CI31: =IF(CE31=CZ30,"*",IF(CE31=DA30,"*",IF(CE31=DB30,"*",IF(CE31=DC30,"*",IF(CE31=DD30,"*",IF(CE31=DE30,"*",IF(CE31=DF30,"*",CO31))))))) -> * | CJ31: =IF(CF31=DG30,"*",IF(CF31=DH30,"*",CI31)) -> * | CK31: * | CL31: 1126.923077 | CM31: 1127 | CN31: -0.0769230769230944 | CO31: · | CP31: =ROUND(50*CA31,0) -> 1127 | CQ31: =IF(DI30=1,DJ31,DQ31) -> ½ | CR31: =IF(DI30=1,DK31,DR31) -> ⁹∕₁₆ | CS31: =IF(DI30=1,DL31,DS31) -> ⅝ | CT31: =IF(DI30=1,DM31,DT31) -> ¹¹∕₁₆ | CU31: =IF(DI30=1,DN31,DU31) -> ¹⁴∕₁₉ | CV31: =IF(DI30=1,DO31,DV31) -> ¹³∕₁₆ | CW31: =IF(DI30=1,DP31,DW31) -> ¹³∕₁₅ | CX31: =IF(DI30=1,DQ31,DX31) -> ⁸∕₉ | CY31: =IF(DI30=1,DR31,DY31) -> ¹³∕₁₄ | CZ31: =IF(DI31=1,DZ31,EG31) -> ½ | DA31: =IF(DI31=1,EA31,EH31) -> ⁷∕₁₃ | DB31: =IF(DI31=1,EB31,EI31) -> ⁴∕₇ | DC31: =IF(DI31=1,EC31,EJ31) -> ¹²∕₁₉ | DD31: =IF(DI31=1,ED31,EK31) -> ⁹∕₁₃ | DE31: =IF(DI31=1,EE31,EL31) -> ¾ | DF31: =IF(DI31=1,EF31,EM31) -> ⁹∕₁₁ | DG31: =IF(DI31=1,EG31,EN31) -> ⅞ | DH31: =IF(DI31=1,EH31,EO31) -> ¹³∕₁₄ | DI31: 2 | DJ31: =IF(CE30<$EW$2,$EV$2,IF(CE30<$EW$3,$EV$3,IF(CE30<$EW$4,$EV$4,IF(CE30<$EW$5,$EV$5,IF(CE30<$EW$6,$EV$6,IF(CE30<$EW$7,$EV$7,IF(CE30<$EW$8,$EV$8,$EV$9))))))) -> ¹∕₁₃ | DK31: =IF(CE30<$EW$10,$EV$10,IF(CE30<$EW$11,$EV$11,IF(CE30<$EW$12,$EV$12,IF(CE30<$EW$13,$EV$13,IF(CE30<$EW$14,$EV$14,IF(CE30<$EW$15,$EV$15,IF(CE30<$EW$16,$EV$16,$EV$17))))))) -> ²∕₁₅ | DL31: =IF(CE30<$EW$18,$EV$18,IF(CE30<$EW$19,$EV$19,IF(CE30<$EW$20,$EV$20,IF(CE30<$EW$21,$EV$21,IF(CE30<$EW$22,$EV$22,IF(CE30<$EW$23,$EV$23,IF(CE30<$EW$24,$EV$24,$EV$25))))))) -> ³∕₁₆ | DM31: =IF(CE30<$EW$26,$EV$26,IF(CE30<$EW$27,$EV$27,IF(CE30<$EW$28,$EV$28,IF(CE30<$EW$29,$EV$29,IF(CE30<$EW$30,$EV$30,IF(CE30<$EW$31,$EV$31,IF(CE30<$EW$32,$EV$32,$EV$33))))))) -> ⁵∕₁₉ | DN31: =IF(CE30<$EW$34,$EV$34,IF(CE30<$EW$35,$EV$35,IF(CE30<$EW$36,$EV$36,IF(CE30<$EW$37,$EV$37,IF(CE30<$EW$38,$EV$38,IF(CE30<$EW$39,$EV$39,IF(CE30<$EW$40,$EV$40,$EV$41))))))) -> ⁵∕₁₆ | DO31: =IF(CE30<$EW$42,$EV$42,IF(CE30<$EW$43,$EV$43,IF(CE30<$EW$44,$EV$44,IF(CE30<$EW$45,$EV$45,IF(CE30<$EW$46,$EV$46,IF(CE30<$EW$47,$EV$47,IF(CE30<$EW$48,$EV$48,$EV$49))))))) -> ⅜ | DP31: =IF(CE30<$EW$50,$EV$50,IF(CE30<$EW$51,$EV$51,IF(CE30<$EW$52,$EV$52,IF(CE30<$EW$53,$EV$53,IF(CE30<$EW$54,$EV$54,IF(CE30<$EW$55,$EV$55,IF(CE30<$EW$56,$EV$56,$EV$57))))))) -> ⁷∕₁₆ | DQ31: =IF(CE30<$EW$58,$EV$58,IF(CE30<$EW$59,$EV$59,IF(CE30<$EW$60,$EV$60,IF(CE30<$EW$61,$EV$61,IF(CE30<$EW$62,$EV$62,IF(CE30<$EW$63,$EV$63,IF(CE30<$EW$64,$EV$64,$EV$65))))))) -> ½ | DR31: =IF(CE30<$EW$66,$EV$66,IF(CE30<$EW$67,$EV$67,IF(CE30<$EW$68,$EV$68,IF(CE30<$EW$69,$EV$69,IF(CE30<$EW$70,$EV$70,IF(CE30<$EW$71,$EV$71,IF(CE30<$EW$72,$EV$72,$EV$73))))))) -> ⁹∕₁₆ | DS31: =IF(CE30<$EW$74,$EV$74,IF(CE30<$EW$75,$EV$75,IF(CE30<$EW$76,$EV$76,IF(CE30<$EW$77,$EV$77,IF(CE30<$EW$78,$EV$78,IF(CE30<$EW$79,$EV$79,IF(CE30<$EW$80,$EV$80,$EV$81))))))) -> ⅝ | DT31: =IF(CE30<$EW$82,$EV$82,IF(CE30<$EW$83,$EV$83,IF(CE30<$EW$84,$EV$84,IF(CE30<$EW$85,$EV$85,IF(CE30<$EW$86,$EV$86,IF(CE30<$EW$87,$EV$87,IF(CE30<$EW$88,$EV$88,$EV$89))))))) -> ¹¹∕₁₆ | DU31: =IF(CE30<$EW$90,$EV$90,IF(CE30<$EW$91,$EV$91,IF(CE30<$EW$92,$EV$92,IF(CE30<$EW$93,$EV$93,IF(CE30<$EW$94,$EV$94,IF(CE30<$EW$95,$EV$95,IF(CE30<$EW$96,$EV$96,$EV$97))))))) -> ¹⁴∕₁₉ | DV31: =IF(CE30<$EW$98,$EV$98,IF(CE30<$EW$99,$EV$99,IF(CE30<$EW$100,$EV$100,IF(CE30<$EW$101,$EV$101,IF(CE30<$EW$102,$EV$102,IF(CE30<$EW$103,$EV$103,IF(CE30<$EW$104,$EV$104,$EV$105))))))) -> ¹³∕₁₆ | DW31: =IF(CE30<$EW$106,$EV$106,IF(CE30<$EW$107,$EV$107,IF(CE30<$EW$108,$EV$108,IF(CE30<$EW$109,$EV$109,IF(CE30<$EW$110,$EV$110,IF(CE30<$EW$111,$EV$111,IF(CE30<$EW$112,$EV$112,$EV$113))))))) -> ¹³∕₁₅ | DX31: =IF(CE30<$EW$114,$EV$114,IF(CE30<$EW$115,$EV$115,IF(CE30<$EW$116,$EV$116,IF(CE30<$EW$117,$EV$117,IF(CE30<$EW$118,$EV$118,IF(CE30<$EW$119,$EV$119,IF(CE30<$EW$120,$EV$120,$EV$121))))))) -> ⁸∕₉ | DY31: =IF(CE30<$EW$122,$EV$122,IF(CE30<$EW$123,$EV$123,IF(CE30<$EW$124,$EV$124,IF(CE30<$EW$125,$EV$125,IF(CE30<$EW$126,$EV$126,IF(CE30<$EW$127,$EV$127,$EV$128)))))) -> ¹³∕₁₄ | DZ31: =IF(CE31<$EW$2,$EV$2,IF(CE31<$EW$3,$EV$3,IF(CE31<$EW$4,$EV$4,IF(CE31<$EW$5,$EV$5,IF(CE31<$EW$6,$EV$6,IF(CE31<$EW$7,$EV$7,IF(CE31<$EW$8,$EV$8,$EV$9))))))) -> ¹∕₁₃ | EA31: =IF(CE31<$EW$10,$EV$10,IF(CE31<$EW$11,$EV$11,IF(CE31<$EW$12,$EV$12,IF(CE31<$EW$13,$EV$13,IF(CE31<$EW$14,$EV$14,IF(CE31<$EW$15,$EV$15,IF(CE31<$EW$16,$EV$16,$EV$17))))))) -> ²∕₁₅ | EB31: =IF(CE31<$EW$18,$EV$18,IF(CE31<$EW$19,$EV$19,IF(CE31<$EW$20,$EV$20,IF(CE31<$EW$21,$EV$21,IF(CE31<$EW$22,$EV$22,IF(CE31<$EW$23,$EV$23,IF(CE31<$EW$24,$EV$24,$EV$25))))))) -> ³∕₁₆ | EC31: =IF(CE31<$EW$26,$EV$26,IF(CE31<$EW$27,$EV$27,IF(CE31<$EW$28,$EV$28,IF(CE31<$EW$29,$EV$29,IF(CE31<$EW$30,$EV$30,IF(CE31<$EW$31,$EV$31,IF(CE31<$EW$32,$EV$32,$EV$33))))))) -> ⁵∕₁₉ | ED31: =IF(CE31<$EW$34,$EV$34,IF(CE31<$EW$35,$EV$35,IF(CE31<$EW$36,$EV$36,IF(CE31<$EW$37,$EV$37,IF(CE31<$EW$38,$EV$38,IF(CE31<$EW$39,$EV$39,IF(CE31<$EW$40,$EV$40,$EV$41))))))) -> ⁵∕₁₆ | EE31: =IF(CE31<$EW$42,$EV$42,IF(CE31<$EW$43,$EV$43,IF(CE31<$EW$44,$EV$44,IF(CE31<$EW$45,$EV$45,IF(CE31<$EW$46,$EV$46,IF(CE31<$EW$47,$EV$47,IF(CE31<$EW$48,$EV$48,$EV$49))))))) -> ⅜ | EF31: =IF(CE31<$EW$50,$EV$50,IF(CE31<$EW$51,$EV$51,IF(CE31<$EW$52,$EV$52,IF(CE31<$EW$53,$EV$53,IF(CE31<$EW$54,$EV$54,IF(CE31<$EW$55,$EV$55,IF(CE31<$EW$56,$EV$56,$EV$57))))))) -> ⁷∕₁₆ | EG31: =IF(CE31<$EW$58,$EV$58,IF(CE31<$EW$59,$EV$59,IF(CE31<$EW$60,$EV$60,IF(CE31<$EW$61,$EV$61,IF(CE31<$EW$62,$EV$62,IF(CE31<$EW$63,$EV$63,IF(CE31<$EW$64,$EV$64,$EV$65))))))) -> ½ | EH31: =IF(CE31<$EW$66,$EV$66,IF(CE31<$EW$67,$EV$67,IF(CE31<$EW$68,$EV$68,IF(CE31<$EW$69,$EV$69,IF(CE31<$EW$70,$EV$70,IF(CE31<$EW$71,$EV$71,IF(CE31<$EW$72,$EV$72,$EV$73))))))) -> ⁷∕₁₃ | EI31: =IF(CE31<$EW$74,$EV$74,IF(CE31<$EW$75,$EV$75,IF(CE31<$EW$76,$EV$76,IF(CE31<$EW$77,$EV$77,IF(CE31<$EW$78,$EV$78,IF(CE31<$EW$79,$EV$79,IF(CE31<$EW$80,$EV$80,$EV$81))))))) -> ⁴∕₇ | EJ31: =IF(CE31<$EW$82,$EV$82,IF(CE31<$EW$83,$EV$83,IF(CE31<$EW$84,$EV$84,IF(CE31<$EW$85,$EV$85,IF(CE31<$EW$86,$EV$86,IF(CE31<$EW$87,$EV$87,IF(CE31<$EW$88,$EV$88,$EV$89))))))) -> ¹²∕₁₉ | EK31: =IF(CE31<$EW$90,$EV$90,IF(CE31<$EW$91,$EV$91,IF(CE31<$EW$92,$EV$92,IF(CE31<$EW$93,$EV$93,IF(CE31<$EW$94,$EV$94,IF(CE31<$EW$95,$EV$95,IF(CE31<$EW$96,$EV$96,$EV$97))))))) -> ⁹∕₁₃ | EL31: =IF(CE31<$EW$98,$EV$98,IF(CE31<$EW$99,$EV$99,IF(CE31<$EW$100,$EV$100,IF(CE31<$EW$101,$EV$101,IF(CE31<$EW$102,$EV$102,IF(CE31<$EW$103,$EV$103,IF(CE31<$EW$104,$EV$104,$EV$105))))))) -> ¾ | EM31: =IF(CE31<$EW$106,$EV$106,IF(CE31<$EW$107,$EV$107,IF(CE31<$EW$108,$EV$108,IF(CE31<$EW$109,$EV$109,IF(CE31<$EW$110,$EV$110,IF(CE31<$EW$111,$EV$111,IF(CE31<$EW$112,$EV$112,$EV$113))))))) -> ⁹∕₁₁ | EN31: =IF(CE31<$EW$114,$EV$114,IF(CE31<$EW$115,$EV$115,IF(CE31<$EW$116,$EV$116,IF(CE31<$EW$117,$EV$117,IF(CE31<$EW$118,$EV$118,IF(CE31<$EW$119,$EV$119,IF(CE31<$EW$120,$EV$120,$EV$121))))))) -> ⅞ | EO31: =IF(CE31<$EW$122,$EV$122,IF(CE31<$EW$123,$EV$123,IF(CE31<$EW$124,$EV$124,IF(CE31<$EW$125,$EV$125,IF(CE31<$EW$126,$EV$126,IF(CE31<$EW$127,$EV$127,$EV$128)))))) -> ¹³∕₁₄ | EP31: 30 | EQ31: 4 | ER31: 17 | ES31: 0.235 | ET31: ⁴ | EU31: ₁₇ | EV31: =CONCATENATE(ET31,$EX$22,EU31) -> ⁴∕₁₇ | EW31: 0.243 | EX31: 9 | EY31: ₉
J32: 5 | K32: 5 | V32: 11 | W32: 11 | X32: -7.2 | Y32: -61.8 | AC32: 11 | AD32: 11 | AE32: -7.2 | AF32: -22.6 | AJ32: 11 | AK32: 11 | AL32: -7.2 | AM32: -7.2 | AT32: -9.2 | AU32: -17.4 | AV32: -7.2 | AW32: -13.4 | BD32: 28 | BE32: -2½x³ | BF32: − 2½x² | BG32: -2½x² | BH32: x | BI32: =CONCATENATE("−⅖",$S$2," ") -> −⅖𝒙 | BJ32: − 4½ | BK32: -4½ | BL32: -2.5 | BM32: -2.5 | BN32: -0.4 | BO32: -4.5 | BP32: -2 | BQ32: 5 | BR32: -2 | BS32: 5 | BT32: -0.4 | BU32: −⅖ | CA32: 9.9 | CB32: 9.9 | CD32: 9 | CE32: 0.9 | CF32: =IF(CE32=CQ32,CQ33,IF(CE32=CR32,CR33,IF(CE32=CS32,CS33,IF(CE32=CT32,CT33,IF(CE32=CU32,CU33,IF(CE32=CV32,CV33,IF(CE32=CW32,CW33,CE32))))))) -> 0.9 | CG32: =IF(CF32=CX32,CX33,IF(CF32=CY32,CY33,CF32)) -> ⁹∕₁₀ | CH32: 9⁹∕₁₀ | CI32: =IF(CE32=CQ32,"*",IF(CE32=CR32,"*",IF(CE32=CS32,"*",IF(CE32=CT32,"*",IF(CE32=CU32,"*",IF(CE32=CV32,"*",IF(CE32=CW32,"*",CO32))))))) -> • | CJ32: =IF(CF32=CX32,"*",IF(CF32=CY32,"*",CI32)) -> * | CK32: * | CL32: 495 | CM32: 495 | CN32: 0 | CO32: • | CP32: =50*CA33 -> -190 | CQ32: =IF(DI32=1,DJ32,DQ32) -> 0.5 | CR32: =IF(DI32=1,DK32,DR32) -> 0.563 | CS32: =IF(DI32=1,DL32,DS32) -> 0.625 | CT32: =IF(DI32=1,DM32,DT32) -> 0.688 | CU32: =IF(DI32=1,DN32,DU32) -> 0.737 | CV32: =IF(DI32=1,DO32,DV32) -> 0.813 | CW32: =IF(DI32=1,DP32,DW32) -> 0.867 | CX32: =IF(DI32=1,DQ32,DX32) -> 0.9 | CY32: =IF(DI32=1,DR32,DY32) -> 0.929 | CZ32: =IF(DI33=1,DZ32,EG32) -> 0.5 | DA32: =IF(DI33=1,EA32,EH32) -> 0.563 | DB32: =IF(DI33=1,EB32,EI32) -> 0.625 | DC32: =IF(DI33=1,EC32,EJ32) -> 0.688 | DD32: =IF(DI33=1,ED32,EK32) -> 0.737 | DE32: =IF(DI33=1,EE32,EL32) -> 0.8 | DF32: =IF(DI33=1,EF32,EM32) -> 0.818 | DG32: =IF(DI33=1,EG32,EN32) -> 0.875 | DH32: =IF(DI33=1,EH32,EO32) -> 0.929 | DI32: 2 | DJ32: =IF(CE32<$EW$2,$ES$2,IF(CE32<$EW$3,$ES$3,IF(CE32<$EW$4,$ES$4,IF(CE32<$EW$5,$ES$5,IF(CE32<$EW$6,$ES$6,IF(CE32<$EW$7,$ES$7,IF(CE32<$EW$8,$ES$8,$ES$9))))))) -> 0.077 | DK32: =IF(CE32<$EW$10,$ES$10,IF(CE32<$EW$11,$ES$11,IF(CE32<$EW$12,$ES$12,IF(CE32<$EW$13,$ES$13,IF(CE32<$EW$14,$ES$14,IF(CE32<$EW$15,$ES$15,IF(CE32<$EW$16,$ES$16,$ES$17))))))) -> 0.133 | DL32: =IF(CE32<$EW$18,$ES$18,IF(CE32<$EW$19,$ES$19,IF(CE32<$EW$20,$ES$20,IF(CE32<$EW$21,$ES$21,IF(CE32<$EW$22,$ES$22,IF(CE32<$EW$23,$ES$23,IF(CE32<$EW$24,$ES$24,$ES$25))))))) -> 0.188 | DM32: =IF(CE32<$EW$26,$ES$26,IF(CE32<$EW$27,$ES$27,IF(CE32<$EW$28,$ES$28,IF(CE32<$EW$29,$ES$29,IF(CE32<$EW$30,$ES$30,IF(CE32<$EW$31,$ES$31,IF(CE32<$EW$32,$ES$32,$ES$33))))))) -> 0.263 | DN32: =IF(CE32<$EW$34,$ES$34,IF(CE32<$EW$35,$ES$35,IF(CE32<$EW$36,$ES$36,IF(CE32<$EW$37,$ES$37,IF(CE32<$EW$38,$ES$38,IF(CE32<$EW$39,$ES$39,IF(CE32<$EW$40,$ES$40,$ES$41))))))) -> 0.313 | DO32: =IF(CE32<$EW$42,$ES$42,IF(CE32<$EW$43,$ES$43,IF(CE32<$EW$44,$ES$44,IF(CE32<$EW$45,$ES$45,IF(CE32<$EW$46,$ES$46,IF(CE32<$EW$47,$ES$47,IF(CE32<$EW$48,$ES$48,$ES$49))))))) -> 0.375 | DP32: =IF(CE32<$EW$50,$ES$50,IF(CE32<$EW$51,$ES$51,IF(CE32<$EW$52,$ES$52,IF(CE32<$EW$53,$ES$53,IF(CE32<$EW$54,$ES$54,IF(CE32<$EW$55,$ES$55,IF(CE32<$EW$56,$ES$56,$ES$57))))))) -> 0.438 | DQ32: =IF(CE32<$EW$58,$ES$58,IF(CE32<$EW$59,$ES$59,IF(CE32<$EW$60,$ES$60,IF(CE32<$EW$61,$ES$61,IF(CE32<$EW$62,$ES$62,IF(CE32<$EW$63,$ES$63,IF(CE32<$EW$64,$ES$64,$ES$65))))))) -> 0.5 | DR32: =IF(CE32<$EW$66,$ES$66,IF(CE32<$EW$67,$ES$67,IF(CE32<$EW$68,$ES$68,IF(CE32<$EW$69,$ES$69,IF(CE32<$EW$70,$ES$70,IF(CE32<$EW$71,$ES$71,IF(CE32<$EW$72,$ES$72,$ES$73))))))) -> 0.563 | DS32: =IF(CE32<$EW$74,$ES$74,IF(CE32<$EW$75,$ES$75,IF(CE32<$EW$76,$ES$76,IF(CE32<$EW$77,$ES$77,IF(CE32<$EW$78,$ES$78,IF(CE32<$EW$79,$ES$79,IF(CE32<$EW$80,$ES$80,$ES$81))))))) -> 0.625 | DT32: =IF(CE32<$EW$82,$ES$82,IF(CE32<$EW$83,$ES$83,IF(CE32<$EW$84,$ES$84,IF(CE32<$EW$85,$ES$85,IF(CE32<$EW$86,$ES$86,IF(CE32<$EW$87,$ES$87,IF(CE32<$EW$88,$ES$88,$ES$89))))))) -> 0.688 | DU32: =IF(CE32<$EW$90,$ES$90,IF(CE32<$EW$91,$ES$91,IF(CE32<$EW$92,$ES$92,IF(CE32<$EW$93,$ES$93,IF(CE32<$EW$94,$ES$94,IF(CE32<$EW$95,$ES$95,IF(CE32<$EW$96,$ES$96,$ES$97))))))) -> 0.737 | DV32: =IF(CE32<$EW$98,$ES$98,IF(CE32<$EW$99,$ES$99,IF(CE32<$EW$100,$ES$100,IF(CE32<$EW$101,$ES$101,IF(CE32<$EW$102,$ES$102,IF(CE32<$EW$103,$ES$103,IF(CE32<$EW$104,$ES$104,$ES$105))))))) -> 0.813 | DW32: =IF(CE32<$EW$106,$ES$106,IF(CE32<$EW$107,$ES$107,IF(CE32<$EW$108,$ES$108,IF(CE32<$EW$109,$ES$109,IF(CE32<$EW$110,$ES$110,IF(CE32<$EW$111,$ES$111,IF(CE32<$EW$112,$ES$112,$ES$113))))))) -> 0.867 | DX32: =IF(CE32<$EW$114,$ES$114,IF(CE32<$EW$115,$ES$115,IF(CE32<$EW$116,$ES$116,IF(CE32<$EW$117,$ES$117,IF(CE32<$EW$118,$ES$118,IF(CE32<$EW$119,$ES$119,IF(CE32<$EW$120,$ES$120,$ES$121))))))) -> 0.9 | DY32: =IF(CE32<$EW$122,$ES$122,IF(CE32<$EW$123,$ES$123,IF(CE32<$EW$124,$ES$124,IF(CE32<$EW$125,$ES$125,IF(CE32<$EW$126,$ES$126,IF(CE32<$EW$127,$ES$127,$ES$128)))))) -> 0.929 | DZ32: =IF(CE33<$EW$2,$ES$2,IF(CE33<$EW$3,$ES$3,IF(CE33<$EW$4,$ES$4,IF(CE33<$EW$5,$ES$5,IF(CE33<$EW$6,$ES$6,IF(CE33<$EW$7,$ES$7,IF(CE33<$EW$8,$ES$8,$ES$9))))))) -> 0.077 | EA32: =IF(CE33<$EW$10,$ES$10,IF(CE33<$EW$11,$ES$11,IF(CE33<$EW$12,$ES$12,IF(CE33<$EW$13,$ES$13,IF(CE33<$EW$14,$ES$14,IF(CE33<$EW$15,$ES$15,IF(CE33<$EW$16,$ES$16,$ES$17))))))) -> 0.133 | EB32: =IF(CE33<$EW$18,$ES$18,IF(CE33<$EW$19,$ES$19,IF(CE33<$EW$20,$ES$20,IF(CE33<$EW$21,$ES$21,IF(CE33<$EW$22,$ES$22,IF(CE33<$EW$23,$ES$23,IF(CE33<$EW$24,$ES$24,$ES$25))))))) -> 0.188 | EC32: =IF(CE33<$EW$26,$ES$26,IF(CE33<$EW$27,$ES$27,IF(CE33<$EW$28,$ES$28,IF(CE33<$EW$29,$ES$29,IF(CE33<$EW$30,$ES$30,IF(CE33<$EW$31,$ES$31,IF(CE33<$EW$32,$ES$32,$ES$33))))))) -> 0.263 | ED32: =IF(CE33<$EW$34,$ES$34,IF(CE33<$EW$35,$ES$35,IF(CE33<$EW$36,$ES$36,IF(CE33<$EW$37,$ES$37,IF(CE33<$EW$38,$ES$38,IF(CE33<$EW$39,$ES$39,IF(CE33<$EW$40,$ES$40,$ES$41))))))) -> 0.313 | EE32: =IF(CE33<$EW$42,$ES$42,IF(CE33<$EW$43,$ES$43,IF(CE33<$EW$44,$ES$44,IF(CE33<$EW$45,$ES$45,IF(CE33<$EW$46,$ES$46,IF(CE33<$EW$47,$ES$47,IF(CE33<$EW$48,$ES$48,$ES$49))))))) -> 0.375 | EF32: =IF(CE33<$EW$50,$ES$50,IF(CE33<$EW$51,$ES$51,IF(CE33<$EW$52,$ES$52,IF(CE33<$EW$53,$ES$53,IF(CE33<$EW$54,$ES$54,IF(CE33<$EW$55,$ES$55,IF(CE33<$EW$56,$ES$56,$ES$57))))))) -> 0.438 | EG32: =IF(CE33<$EW$58,$ES$58,IF(CE33<$EW$59,$ES$59,IF(CE33<$EW$60,$ES$60,IF(CE33<$EW$61,$ES$61,IF(CE33<$EW$62,$ES$62,IF(CE33<$EW$63,$ES$63,IF(CE33<$EW$64,$ES$64,$ES$65))))))) -> 0.5 | EH32: =IF(CE33<$EW$66,$ES$66,IF(CE33<$EW$67,$ES$67,IF(CE33<$EW$68,$ES$68,IF(CE33<$EW$69,$ES$69,IF(CE33<$EW$70,$ES$70,IF(CE33<$EW$71,$ES$71,IF(CE33<$EW$72,$ES$72,$ES$73))))))) -> 0.563 | EI32: =IF(CE33<$EW$74,$ES$74,IF(CE33<$EW$75,$ES$75,IF(CE33<$EW$76,$ES$76,IF(CE33<$EW$77,$ES$77,IF(CE33<$EW$78,$ES$78,IF(CE33<$EW$79,$ES$79,IF(CE33<$EW$80,$ES$80,$ES$81))))))) -> 0.625 | EJ32: =IF(CE33<$EW$82,$ES$82,IF(CE33<$EW$83,$ES$83,IF(CE33<$EW$84,$ES$84,IF(CE33<$EW$85,$ES$85,IF(CE33<$EW$86,$ES$86,IF(CE33<$EW$87,$ES$87,IF(CE33<$EW$88,$ES$88,$ES$89))))))) -> 0.688 | EK32: =IF(CE33<$EW$90,$ES$90,IF(CE33<$EW$91,$ES$91,IF(CE33<$EW$92,$ES$92,IF(CE33<$EW$93,$ES$93,IF(CE33<$EW$94,$ES$94,IF(CE33<$EW$95,$ES$95,IF(CE33<$EW$96,$ES$96,$ES$97))))))) -> 0.737 | EL32: =IF(CE33<$EW$98,$ES$98,IF(CE33<$EW$99,$ES$99,IF(CE33<$EW$100,$ES$100,IF(CE33<$EW$101,$ES$101,IF(CE33<$EW$102,$ES$102,IF(CE33<$EW$103,$ES$103,IF(CE33<$EW$104,$ES$104,$ES$105))))))) -> 0.8 | EM32: =IF(CE33<$EW$106,$ES$106,IF(CE33<$EW$107,$ES$107,IF(CE33<$EW$108,$ES$108,IF(CE33<$EW$109,$ES$109,IF(CE33<$EW$110,$ES$110,IF(CE33<$EW$111,$ES$111,IF(CE33<$EW$112,$ES$112,$ES$113))))))) -> 0.818 | EN32: =IF(CE33<$EW$114,$ES$114,IF(CE33<$EW$115,$ES$115,IF(CE33<$EW$116,$ES$116,IF(CE33<$EW$117,$ES$117,IF(CE33<$EW$118,$ES$118,IF(CE33<$EW$119,$ES$119,IF(CE33<$EW$120,$ES$120,$ES$121))))))) -> 0.875 | EO32: =IF(CE33<$EW$122,$ES$122,IF(CE33<$EW$123,$ES$123,IF(CE33<$EW$124,$ES$124,IF(CE33<$EW$125,$ES$125,IF(CE33<$EW$126,$ES$126,IF(CE33<$EW$127,$ES$127,$ES$128)))))) -> 0.929 | EP32: 31 | EQ32: 1 | ER32: 4 | ES32: 0.25 | ET32: ¹ | EU32: ₄ | EV32: ¼ | EW32: 0.257 | EX32: 10 | EY32: ₁₀
J33: 5 | K33: -5 | V33: 11 | W33: 11 | X33: -7.1 | Y33: -60.9 | AC33: 11 | AD33: 11 | AE33: -7.1 | AF33: -22.3 | AJ33: 11 | AK33: 11 | AL33: -7.1 | AM33: -7.1 | AT33: -9.1 | AU33: -17.2 | AV33: -7.1 | AW33: -13.2 | BD33: 29 | BE33: -3x³ | BF33: − 3x² | BG33: -3x² | BH33: x | BI33: =CONCATENATE("−½",$S$2," ") -> −½𝒙 | BJ33: − 5 | BK33: -5 | BL33: -3 | BM33: -3 | BN33: -0.5 | BO33: -5 | BP33: -1 | BQ33: 2 | BR33: -1 | BS33: 2 | BT33: -0.5 | BU33: −½ | CA33: -3.8 | CB33: 3.8 | CC33: − | CD33: 3 | CE33: 0.8 | CF33: =IF(CE33=CZ32,CZ33,IF(CE33=DA32,DA33,IF(CE33=DB32,DB33,IF(CE33=DC32,DC33,IF(CE33=DD32,DD33,IF(CE33=DE32,DE33,IF(CE33=DF32,DF33,CE33))))))) -> ⅘ | CG33: =IF(CF33=DG32,DG33,IF(CF33=DH32,DH33,CF33)) -> ⅘ | CH33: −3⅘ | CI33: =IF(CE33=CZ32,"*",IF(CE33=DA32,"*",IF(CE33=DB32,"*",IF(CE33=DC32,"*",IF(CE33=DD32,"*",IF(CE33=DE32,"*",IF(CE33=DF32,"*",CO33))))))) -> * | CJ33: =IF(CF33=DG32,"*",IF(CF33=DH32,"*",CI33)) -> * | CK33: * | CL33: -190 | CM33: -190 | CN33: 0 | CO33: • | CP33: =ROUND(50*CA33,0) -> -190 | CQ33: =IF(DI32=1,DJ33,DQ33) -> ½ | CR33: =IF(DI32=1,DK33,DR33) -> ⁹∕₁₆ | CS33: =IF(DI32=1,DL33,DS33) -> ⅝ | CT33: =IF(DI32=1,DM33,DT33) -> ¹¹∕₁₆ | CU33: =IF(DI32=1,DN33,DU33) -> ¹⁴∕₁₉ | CV33: =IF(DI32=1,DO33,DV33) -> ¹³∕₁₆ | CW33: =IF(DI32=1,DP33,DW33) -> ¹³∕₁₅ | CX33: =IF(DI32=1,DQ33,DX33) -> ⁹∕₁₀ | CY33: =IF(DI32=1,DR33,DY33) -> ¹³∕₁₄ | CZ33: =IF(DI33=1,DZ33,EG33) -> ½ | DA33: =IF(DI33=1,EA33,EH33) -> ⁹∕₁₆ | DB33: =IF(DI33=1,EB33,EI33) -> ⅝ | DC33: =IF(DI33=1,EC33,EJ33) -> ¹¹∕₁₆ | DD33: =IF(DI33=1,ED33,EK33) -> ¹⁴∕₁₉ | DE33: =IF(DI33=1,EE33,EL33) -> ⅘ | DF33: =IF(DI33=1,EF33,EM33) -> ⁹∕₁₁ | DG33: =IF(DI33=1,EG33,EN33) -> ⅞ | DH33: =IF(DI33=1,EH33,EO33) -> ¹³∕₁₄ | DI33: 2 | DJ33: =IF(CE32<$EW$2,$EV$2,IF(CE32<$EW$3,$EV$3,IF(CE32<$EW$4,$EV$4,IF(CE32<$EW$5,$EV$5,IF(CE32<$EW$6,$EV$6,IF(CE32<$EW$7,$EV$7,IF(CE32<$EW$8,$EV$8,$EV$9))))))) -> ¹∕₁₃ | DK33: =IF(CE32<$EW$10,$EV$10,IF(CE32<$EW$11,$EV$11,IF(CE32<$EW$12,$EV$12,IF(CE32<$EW$13,$EV$13,IF(CE32<$EW$14,$EV$14,IF(CE32<$EW$15,$EV$15,IF(CE32<$EW$16,$EV$16,$EV$17))))))) -> ²∕₁₅ | DL33: =IF(CE32<$EW$18,$EV$18,IF(CE32<$EW$19,$EV$19,IF(CE32<$EW$20,$EV$20,IF(CE32<$EW$21,$EV$21,IF(CE32<$EW$22,$EV$22,IF(CE32<$EW$23,$EV$23,IF(CE32<$EW$24,$EV$24,$EV$25))))))) -> ³∕₁₆ | DM33: =IF(CE32<$EW$26,$EV$26,IF(CE32<$EW$27,$EV$27,IF(CE32<$EW$28,$EV$28,IF(CE32<$EW$29,$EV$29,IF(CE32<$EW$30,$EV$30,IF(CE32<$EW$31,$EV$31,IF(CE32<$EW$32,$EV$32,$EV$33))))))) -> ⁵∕₁₉ | DN33: =IF(CE32<$EW$34,$EV$34,IF(CE32<$EW$35,$EV$35,IF(CE32<$EW$36,$EV$36,IF(CE32<$EW$37,$EV$37,IF(CE32<$EW$38,$EV$38,IF(CE32<$EW$39,$EV$39,IF(CE32<$EW$40,$EV$40,$EV$41))))))) -> ⁵∕₁₆ | DO33: =IF(CE32<$EW$42,$EV$42,IF(CE32<$EW$43,$EV$43,IF(CE32<$EW$44,$EV$44,IF(CE32<$EW$45,$EV$45,IF(CE32<$EW$46,$EV$46,IF(CE32<$EW$47,$EV$47,IF(CE32<$EW$48,$EV$48,$EV$49))))))) -> ⅜ | DP33: =IF(CE32<$EW$50,$EV$50,IF(CE32<$EW$51,$EV$51,IF(CE32<$EW$52,$EV$52,IF(CE32<$EW$53,$EV$53,IF(CE32<$EW$54,$EV$54,IF(CE32<$EW$55,$EV$55,IF(CE32<$EW$56,$EV$56,$EV$57))))))) -> ⁷∕₁₆ | DQ33: =IF(CE32<$EW$58,$EV$58,IF(CE32<$EW$59,$EV$59,IF(CE32<$EW$60,$EV$60,IF(CE32<$EW$61,$EV$61,IF(CE32<$EW$62,$EV$62,IF(CE32<$EW$63,$EV$63,IF(CE32<$EW$64,$EV$64,$EV$65))))))) -> ½ | DR33: =IF(CE32<$EW$66,$EV$66,IF(CE32<$EW$67,$EV$67,IF(CE32<$EW$68,$EV$68,IF(CE32<$EW$69,$EV$69,IF(CE32<$EW$70,$EV$70,IF(CE32<$EW$71,$EV$71,IF(CE32<$EW$72,$EV$72,$EV$73))))))) -> ⁹∕₁₆ | DS33: =IF(CE32<$EW$74,$EV$74,IF(CE32<$EW$75,$EV$75,IF(CE32<$EW$76,$EV$76,IF(CE32<$EW$77,$EV$77,IF(CE32<$EW$78,$EV$78,IF(CE32<$EW$79,$EV$79,IF(CE32<$EW$80,$EV$80,$EV$81))))))) -> ⅝ | DT33: =IF(CE32<$EW$82,$EV$82,IF(CE32<$EW$83,$EV$83,IF(CE32<$EW$84,$EV$84,IF(CE32<$EW$85,$EV$85,IF(CE32<$EW$86,$EV$86,IF(CE32<$EW$87,$EV$87,IF(CE32<$EW$88,$EV$88,$EV$89))))))) -> ¹¹∕₁₆ | DU33: =IF(CE32<$EW$90,$EV$90,IF(CE32<$EW$91,$EV$91,IF(CE32<$EW$92,$EV$92,IF(CE32<$EW$93,$EV$93,IF(CE32<$EW$94,$EV$94,IF(CE32<$EW$95,$EV$95,IF(CE32<$EW$96,$EV$96,$EV$97))))))) -> ¹⁴∕₁₉ | DV33: =IF(CE32<$EW$98,$EV$98,IF(CE32<$EW$99,$EV$99,IF(CE32<$EW$100,$EV$100,IF(CE32<$EW$101,$EV$101,IF(CE32<$EW$102,$EV$102,IF(CE32<$EW$103,$EV$103,IF(CE32<$EW$104,$EV$104,$EV$105))))))) -> ¹³∕₁₆ | DW33: =IF(CE32<$EW$106,$EV$106,IF(CE32<$EW$107,$EV$107,IF(CE32<$EW$108,$EV$108,IF(CE32<$EW$109,$EV$109,IF(CE32<$EW$110,$EV$110,IF(CE32<$EW$111,$EV$111,IF(CE32<$EW$112,$EV$112,$EV$113))))))) -> ¹³∕₁₅ | DX33: =IF(CE32<$EW$114,$EV$114,IF(CE32<$EW$115,$EV$115,IF(CE32<$EW$116,$EV$116,IF(CE32<$EW$117,$EV$117,IF(CE32<$EW$118,$EV$118,IF(CE32<$EW$119,$EV$119,IF(CE32<$EW$120,$EV$120,$EV$121))))))) -> ⁹∕₁₀ | DY33: =IF(CE32<$EW$122,$EV$122,IF(CE32<$EW$123,$EV$123,IF(CE32<$EW$124,$EV$124,IF(CE32<$EW$125,$EV$125,IF(CE32<$EW$126,$EV$126,IF(CE32<$EW$127,$EV$127,$EV$128)))))) -> ¹³∕₁₄ | DZ33: =IF(CE33<$EW$2,$EV$2,IF(CE33<$EW$3,$EV$3,IF(CE33<$EW$4,$EV$4,IF(CE33<$EW$5,$EV$5,IF(CE33<$EW$6,$EV$6,IF(CE33<$EW$7,$EV$7,IF(CE33<$EW$8,$EV$8,$EV$9))))))) -> ¹∕₁₃ | EA33: =IF(CE33<$EW$10,$EV$10,IF(CE33<$EW$11,$EV$11,IF(CE33<$EW$12,$EV$12,IF(CE33<$EW$13,$EV$13,IF(CE33<$EW$14,$EV$14,IF(CE33<$EW$15,$EV$15,IF(CE33<$EW$16,$EV$16,$EV$17))))))) -> ²∕₁₅ | EB33: =IF(CE33<$EW$18,$EV$18,IF(CE33<$EW$19,$EV$19,IF(CE33<$EW$20,$EV$20,IF(CE33<$EW$21,$EV$21,IF(CE33<$EW$22,$EV$22,IF(CE33<$EW$23,$EV$23,IF(CE33<$EW$24,$EV$24,$EV$25))))))) -> ³∕₁₆ | EC33: =IF(CE33<$EW$26,$EV$26,IF(CE33<$EW$27,$EV$27,IF(CE33<$EW$28,$EV$28,IF(CE33<$EW$29,$EV$29,IF(CE33<$EW$30,$EV$30,IF(CE33<$EW$31,$EV$31,IF(CE33<$EW$32,$EV$32,$EV$33))))))) -> ⁵∕₁₉ | ED33: =IF(CE33<$EW$34,$EV$34,IF(CE33<$EW$35,$EV$35,IF(CE33<$EW$36,$EV$36,IF(CE33<$EW$37,$EV$37,IF(CE33<$EW$38,$EV$38,IF(CE33<$EW$39,$EV$39,IF(CE33<$EW$40,$EV$40,$EV$41))))))) -> ⁵∕₁₆ | EE33: =IF(CE33<$EW$42,$EV$42,IF(CE33<$EW$43,$EV$43,IF(CE33<$EW$44,$EV$44,IF(CE33<$EW$45,$EV$45,IF(CE33<$EW$46,$EV$46,IF(CE33<$EW$47,$EV$47,IF(CE33<$EW$48,$EV$48,$EV$49))))))) -> ⅜ | EF33: =IF(CE33<$EW$50,$EV$50,IF(CE33<$EW$51,$EV$51,IF(CE33<$EW$52,$EV$52,IF(CE33<$EW$53,$EV$53,IF(CE33<$EW$54,$EV$54,IF(CE33<$EW$55,$EV$55,IF(CE33<$EW$56,$EV$56,$EV$57))))))) -> ⁷∕₁₆ | EG33: =IF(CE33<$EW$58,$EV$58,IF(CE33<$EW$59,$EV$59,IF(CE33<$EW$60,$EV$60,IF(CE33<$EW$61,$EV$61,IF(CE33<$EW$62,$EV$62,IF(CE33<$EW$63,$EV$63,IF(CE33<$EW$64,$EV$64,$EV$65))))))) -> ½ | EH33: =IF(CE33<$EW$66,$EV$66,IF(CE33<$EW$67,$EV$67,IF(CE33<$EW$68,$EV$68,IF(CE33<$EW$69,$EV$69,IF(CE33<$EW$70,$EV$70,IF(CE33<$EW$71,$EV$71,IF(CE33<$EW$72,$EV$72,$EV$73))))))) -> ⁹∕₁₆ | EI33: =IF(CE33<$EW$74,$EV$74,IF(CE33<$EW$75,$EV$75,IF(CE33<$EW$76,$EV$76,IF(CE33<$EW$77,$EV$77,IF(CE33<$EW$78,$EV$78,IF(CE33<$EW$79,$EV$79,IF(CE33<$EW$80,$EV$80,$EV$81))))))) -> ⅝ | EJ33: =IF(CE33<$EW$82,$EV$82,IF(CE33<$EW$83,$EV$83,IF(CE33<$EW$84,$EV$84,IF(CE33<$EW$85,$EV$85,IF(CE33<$EW$86,$EV$86,IF(CE33<$EW$87,$EV$87,IF(CE33<$EW$88,$EV$88,$EV$89))))))) -> ¹¹∕₁₆ | EK33: =IF(CE33<$EW$90,$EV$90,IF(CE33<$EW$91,$EV$91,IF(CE33<$EW$92,$EV$92,IF(CE33<$EW$93,$EV$93,IF(CE33<$EW$94,$EV$94,IF(CE33<$EW$95,$EV$95,IF(CE33<$EW$96,$EV$96,$EV$97))))))) -> ¹⁴∕₁₉ | EL33: =IF(CE33<$EW$98,$EV$98,IF(CE33<$EW$99,$EV$99,IF(CE33<$EW$100,$EV$100,IF(CE33<$EW$101,$EV$101,IF(CE33<$EW$102,$EV$102,IF(CE33<$EW$103,$EV$103,IF(CE33<$EW$104,$EV$104,$EV$105))))))) -> ⅘ | EM33: =IF(CE33<$EW$106,$EV$106,IF(CE33<$EW$107,$EV$107,IF(CE33<$EW$108,$EV$108,IF(CE33<$EW$109,$EV$109,IF(CE33<$EW$110,$EV$110,IF(CE33<$EW$111,$EV$111,IF(CE33<$EW$112,$EV$112,$EV$113))))))) -> ⁹∕₁₁ | EN33: =IF(CE33<$EW$114,$EV$114,IF(CE33<$EW$115,$EV$115,IF(CE33<$EW$116,$EV$116,IF(CE33<$EW$117,$EV$117,IF(CE33<$EW$118,$EV$118,IF(CE33<$EW$119,$EV$119,IF(CE33<$EW$120,$EV$120,$EV$121))))))) -> ⅞ | EO33: =IF(CE33<$EW$122,$EV$122,IF(CE33<$EW$123,$EV$123,IF(CE33<$EW$124,$EV$124,IF(CE33<$EW$125,$EV$125,IF(CE33<$EW$126,$EV$126,IF(CE33<$EW$127,$EV$127,$EV$128)))))) -> ¹³∕₁₄ | EP33: 32 | EQ33: 5 | ER33: 19 | ES33: 0.263 | ET33: ⁵ | EU33: ₁₉ | EV33: =CONCATENATE(ET33,$EX$22,EU33) -> ⁵∕₁₉ | EW33: 0.265 | EX33: 11 | EY33: ₁₁
